Workbook

Sheet Sample Report (hidden)
A2: Date
A3: Hen
A4: Program
A5: Start at 999999
A6: Sequence component 1 | B6: Time 1 | C6: Seqeunce Component 2 | D6: Time 2 | E6: Seqeunce Component 3 | F6: Time 3 | G6: Correct 0 = No 1=Yes | J6: Seqeunce | K6: Time
A7: 12 | B7: 7 | C7: 12 | D7: 42 | E7: 13 | F7: 18 | G7: if 77 new line, if 31 or 41 = yes new line on 77, | J7: =string of Seqeunce compponent 1, 2 & 3 | K7: =time 3
A8: This continues until ther is a 1 on its own to indicate start of summary data
J9: 10-19 =1
A10: Summary Data | J10: 20-29 =2
A11: Correct | B11: Incorrect | C11: Rft | D11: total | E11: Av Correct | F11: Av Incorrect | G11: Percent correct | H11: Time | J11: in this example the seqeunce would be 111
A12: 40 | B12: 33 | C12: 40 | D12: 73 | E12: 23.95 | F12: 15 | G12: 54 | H12: 806

Sheet Summary
A2: Day | B2: Date | C2: Average Response Rate | D2: Target % | E2: RF for non correct sequence | F2: U Value | K2: Block 1 | L2: Block 2 | M2: Block 3 | N2: Block 4 | O2: Block 5 | P2: Block 6
A3: 1 | B3: ='!MC30C40.092'!B2:C2 -> <date> | C3: =('!MC30C40.092'!H192/60)/'!MC30C40.092'!Q3 -> 2.15062724 | D3: ='!MC30C40.092'!N28/'!MC30C40.092'!Q3 -> 0.005376344086 | E3: =SUM('!MC30C40.092'!L28:Q28)/'!MC30C40.092'!Q3 -> 6.317204301 | F3: ='!MC30C40.092'!Q24 -> 0.237720715 | J3: Average Response Rate | K3: =AVERAGE(C3:C7) -> 2.644467346 | L3: =AVERAGE(C8:C12) -> 3.756542248 | M3: =AVERAGE(C13:C17) -> 4.084323372 | N3: =AVERAGE(C18:C22) -> 2.29806261 | O3: =AVERAGE(C23:C27) -> 2.140553386 | P3: =AVERAGE(C28:C32) -> 2.761074295
A4: 2 | B4: ='!MC31810.092'!B2:C2 -> <date> | C4: =('!MC31810.092'!H166/60)/'!MC31810.092'!Q3 -> 2.488229167 | D4: ='!MC31810.092'!N28/'!MC31810.092'!Q3 -> 0 | E4: =SUM('!MC31810.092'!L28:Q28)/'!MC31810.092'!Q3 -> 7.275 | F4: ='!MC31810.092'!Q24 -> 0.3158351278 | J4: Target % | K4: =AVERAGE(D3:D7) -> 0.005381658944 | L4: =AVERAGE(D8:D12) -> 0.01147922116 | M4: =AVERAGE(D13:D17) -> 0.01421072895 | N4: =AVERAGE(D18:D22) -> 0.02148373297 | O4: =AVERAGE(D23:D27) -> 0.05015731642 | P4: =AVERAGE(D28:D32) -> 0.1399263627
A5: 3 | B5: ='!N102910.092'!B2:C2 -> <date> | C5: =('!N102910.092'!H160/60)/'!N102910.092'!Q3 -> 2.587121212 | D5: ='!N102910.092'!N28/'!N102910.092'!Q3 -> 0.006493506494 | E5: =SUM('!N102910.092'!L28:Q28)/'!N102910.092'!Q3 -> 14.11688312 | F5: ='!N102910.092'!Q24 -> 0.3850779259 | J5: CCRF | K5: =AVERAGE(E3:E7) -> 9.020198307 | L5: =AVERAGE(E8:E12) -> 13.75191011 | M5: =AVERAGE(E13:E17) -> 19.64097064 | N5: =AVERAGE(E18:E22) -> 12.98047394 | O5: =AVERAGE(E23:E27) -> 12.32930885 | P5: =AVERAGE(E28:E32) -> 15.52404271
A6: 4 | B6: ='!N103840.092'!B2:C2 -> <date> | C6: =('!N103840.092'!H140/60)/'!N103840.092'!Q3 -> 2.981965174 | D6: ='!N103840.092'!N28/'!N103840.092'!Q3 -> 0.007462686567 | E6: =SUM('!N103840.092'!L28:Q28)/'!N103840.092'!Q3 -> 8.634328358 | F6: ='!N103840.092'!Q24 -> 0.4687365993 | J6: U Value | K6: =AVERAGE(F3:F7) -> 0.3690838469 | L6: =AVERAGE(F8:F12) -> 0.4764635305 | M6: =AVERAGE(F13:F17) -> 0.5314466938 | N6: =AVERAGE(F18:F22) -> 0.5111769676 | O6: =AVERAGE(F23:F27) -> 0.4845078146 | P6: =AVERAGE(F28:F32) -> 0.487821192
A7: 5 | B7: ='!N104A10.092'!B2:C2 -> <date> | C7: =('!N104A10.092'!H137/60)/'!N104A10.092'!Q3 -> 3.014393939 | D7: ='!N104A10.092'!N28/'!N104A10.092'!Q3 -> 0.007575757576 | E7: =SUM('!N104A10.092'!L28:Q28)/'!N104A10.092'!Q3 -> 8.757575758 | F7: ='!N104A10.092'!Q24 -> 0.4380488664
A8: 6 | B8: ='!N105840.092'!B2:C2 -> <date> | C8: =('!N105840.092'!H130/60)/'!N105840.092'!Q3 -> 3.17311828 | D8: ='!N105840.092'!N28/'!N105840.092'!Q3 -> 0.01612903226 | E8: =SUM('!N105840.092'!L28:Q28)/'!N105840.092'!Q3 -> 9.306451613 | F8: ='!N105840.092'!Q24 -> 0.4241759704
A9: 7 | B9: ='!N106700.092'!B2:C2 -> <date> | C9: =('!N106700.092'!H117/60)/'!N106700.092'!Q3 -> 3.562762763 | D9: ='!N106700.092'!N28/'!N106700.092'!Q3 -> 0.009009009009 | E9: =SUM('!N106700.092'!L28:Q28)/'!N106700.092'!Q3 -> 11.34234234 | F9: ='!N106700.092'!Q24 -> 0.4600713468 | G9: =K3 -> 2.644467346 | H9: =L3 -> 3.756542248 | I9: =M3 -> 4.084323372 | J9: =N3 -> 2.29806261 | K9: =O3 -> 2.140553386 | L9: =P3 -> 2.761074295 | M9: =K4 -> 0.005381658944 | N9: =L4 -> 0.01147922116 | O9: =M4 -> 0.01421072895 | P9: =N4 -> 0.02148373297 | Q9: =O4 -> 0.05015731642 | R9: =P4 -> 0.1399263627 | S9: =K6 -> 0.3690838469 | T9: =L6 -> 0.4764635305 | U9: =M6 -> 0.5314466938 | V9: =N6 -> 0.5111769676 | W9: =O6 -> 0.4845078146 | X9: =P6 -> 0.487821192
A10: 8 | B10: ='!N107750.092'!B2:C2 -> <date> | C10: =('!N107750.092'!H109/60)/'!N107750.092'!Q3 -> 0 | D10: ='!N107750.092'!N28/'!N107750.092'!Q3 -> 0 | E10: =SUM('!N107750.092'!L28:Q28)/'!N107750.092'!Q3 -> 11.12621359 | F10: ='!N107750.092'!Q24 -> 0.4667323168
A11: 9 | B11: ='!N108830.092'!B2:C2 -> <date> | C11: =('!N108830.092'!H54/60)/'!N108830.092'!Q3 -> 7.881597222 | D11: ='!N108830.092'!N28/'!N108830.092'!Q3 -> 0 | E11: =SUM('!N108830.092'!L28:Q28)/'!N108830.092'!Q3 -> 23.47916667 | F11: ='!N108830.092'!Q24 -> 0.4614346435
A12: 10 | B12: ='!N109730.092'!B2:C2 -> <date> | C12: =('!N109730.092'!H99/60)/'!N109730.092'!Q3 -> 4.165232975 | D12: ='!N109730.092'!N28/'!N109730.092'!Q3 -> 0.03225806452 | E12: =SUM('!N109730.092'!L28:Q28)/'!N109730.092'!Q3 -> 13.50537634 | F12: ='!N109730.092'!Q24 -> 0.5699033747
A13: 11 | B13: ='!N110830.092'!B2:C2 -> <date> | C13: =('!N110830.092'!H121/60)/'!N110830.092'!Q3 -> 3.472898551 | D13: ='!N110830.092'!N28/'!N110830.092'!Q3 -> 0.01739130435 | E13: =SUM('!N110830.092'!L28:Q28)/'!N110830.092'!Q3 -> 10.0173913 | F13: ='!N110830.092'!Q24 -> 0.5209434104
A14: 12 | B14: ='!N111A00.092'!B2:C2 -> <date> | C14: =('!N111A00.092'!H100/60)/'!N111A00.092'!Q3 -> 4.206028369 | D14: ='!N111A00.092'!N28/'!N111A00.092'!Q3 -> 0 | E14: =SUM('!N111A00.092'!L28:Q28)/'!N111A00.092'!Q3 -> 23.96808511 | F14: ='!N111A00.092'!Q24 -> 0.5374877843
A15: 13 | B15: ='!N112700.092'!B2:C2 -> <date> | C15: =('!N112700.092'!H64/60)/'!N112700.092'!Q3 -> 6.847413793 | D15: ='!N112700.092'!N28/'!N112700.092'!Q3 -> 0.01724137931 | E15: =SUM('!N112700.092'!L28:Q28)/'!N112700.092'!Q3 -> 38.46551724 | F15: ='!N112700.092'!Q24 -> 0.6434235723
A16: 14 | B16: ='!N113840.092'!B2:C2 -> <date> | C16: =('!N113840.092'!H152/60)/'!N113840.092'!Q3 -> 2.730593607 | D16: ='!N113840.092'!N28/'!N113840.092'!Q3 -> 0.02054794521 | E16: =SUM('!N113840.092'!L28:Q28)/'!N113840.092'!Q3 -> 8.650684932 | F16: ='!N113840.092'!Q24 -> 0.4376686765
A17: 15 | B17: ='!N114800.092'!B2:C2 -> <date> | C17: =('!N114800.092'!H132/60)/'!N114800.092'!Q3 -> 3.16468254 | D17: ='!N114800.092'!N28/'!N114800.092'!Q3 -> 0.01587301587 | E17: =SUM('!N114800.092'!L28:Q28)/'!N114800.092'!Q3 -> 17.1031746 | F17: ='!N114800.092'!Q24 -> 0.5177100256
A18: 16 | B18: ='!N115810.092'!B2:C2 -> <date> | C18: =('!N115810.092'!H140/60)/'!N115810.092'!Q3 -> 2.945432099 | D18: ='!N115810.092'!N28/'!N115810.092'!Q3 -> 0.01481481481 | E18: =SUM('!N115810.092'!L28:Q28)/'!N115810.092'!Q3 -> 16.05925926 | F18: ='!N115810.092'!Q24 -> 0.504407799
A19: 17 | B19: ='!N116800.092'!B2:C2 -> <date> | C19: =('!N116800.092'!H146/60)/'!N116800.092'!Q3 -> 2.849404762 | D19: ='!N116800.092'!N28/'!N116800.092'!Q3 -> 0.02142857143 | E19: =SUM('!N116800.092'!L28:Q28)/'!N116800.092'!Q3 -> 15.43571429 | F19: ='!N116800.092'!Q24 -> 0.5058495302
A20: 18 | B20: ='!N117910.092'!B2:C2 -> <date> | C20: =('!N117910.092'!H146/60)/'!N117910.092'!Q3 -> 2.846547619 | D20: ='!N117910.092'!N28/'!N117910.092'!Q3 -> 0.01428571429 | E20: =SUM('!N117910.092'!L28:Q28)/'!N117910.092'!Q3 -> 16.14285714 | F20: ='!N117910.092'!Q24 -> 0.5353076566
A21: 19 | B21: ='!N118A00.092'!B2:C2 -> <date> | C21: =('!N118A00.092'!H147/60)/'!N118A00.092'!Q3 -> 0 | D21: ='!N118A00.092'!N28/'!N118A00.092'!Q3 -> 0.03546099291 | E21: =SUM('!N118A00.092'!L28:Q28)/'!N118A00.092'!Q3 -> 8.964539007 | F21: ='!N118A00.092'!Q24 -> 0.4900929235
A22: 20 | B22: ='!N119810.092'!B2:C2 -> <date> | C22: =('!N119810.092'!H146/60)/'!N119810.092'!Q3 -> 2.848928571 | D22: ='!N119810.092'!N28/'!N119810.092'!Q3 -> 0.02142857143 | E22: =SUM('!N119810.092'!L28:Q28)/'!N119810.092'!Q3 -> 8.3 | F22: ='!N119810.092'!Q24 -> 0.5202269285
A23: 21 | B23: ='!N120940.092'!B2:C2 -> <date> | C23: =('!N120940.092'!H147/60)/'!N120940.092'!Q3 -> 0 | D23: ='!N120940.092'!N28/'!N120940.092'!Q3 -> 0.03546099291 | E23: =SUM('!N120940.092'!L28:Q28)/'!N120940.092'!Q3 -> 15.41134752 | F23: ='!N120940.092'!Q24 -> 0.5133811458
A24: 22 | B24: ='!N121940.092'!B2:C2 -> <date> | C24: =('!N121940.092'!H155/60)/'!N121940.092'!Q3 -> 2.678970917 | D24: ='!N121940.092'!N28/'!N121940.092'!Q3 -> 0.06040268456 | E24: =SUM('!N121940.092'!L28:Q28)/'!N121940.092'!Q3 -> 8.530201342 | F24: ='!N121940.092'!Q24 -> 0.5155568233
A25: 23 | B25: ='!N122820.092'!B2:C2 -> <date> | C25: =('!N122820.092'!H162/60)/'!N122820.092'!Q3 -> 2.564102564 | D25: ='!N122820.092'!N28/'!N122820.092'!Q3 -> 0.03846153846 | E25: =SUM('!N122820.092'!L28:Q28)/'!N122820.092'!Q3 -> 13.97435897 | F25: ='!N122820.092'!Q24 -> 0.4557317116
A26: 24 | B26: ='!N123950.092'!B2:C2 -> <date> | C26: =('!N123950.092'!H158/60)/'!N123950.092'!Q3 -> 2.624232456 | D26: ='!N123950.092'!N28/'!N123950.092'!Q3 -> 0.05263157895 | E26: =SUM('!N123950.092'!L28:Q28)/'!N123950.092'!Q3 -> 8.361842105 | F26: ='!N123950.092'!Q24 -> 0.4690444096
A27: 25 | B27: ='!N124920.092'!B2:C2 -> <date> | C27: =('!N124920.092'!H147/60)/'!N124920.092'!Q3 -> 2.835460993 | D27: ='!N124920.092'!N28/'!N124920.092'!Q3 -> 0.06382978723 | E27: =SUM('!N124920.092'!L28:Q28)/'!N124920.092'!Q3 -> 15.36879433 | F27: ='!N124920.092'!Q24 -> 0.4688249826
A28: 26 | B28: ='!N125950.092'!B2:C2 -> <date> | C28: =('!N125950.092'!H158/60)/'!N125950.092'!Q3 -> 2.629495614 | D28: ='!N125950.092'!N28/'!N125950.092'!Q3 -> 0.07894736842 | E28: =SUM('!N125950.092'!L28:Q28)/'!N125950.092'!Q3 -> 14.30921053 | F28: ='!N125950.092'!Q24 -> 0.4990885889
A29: 27 | B29: ='!N126850.092'!B2:C2 -> <date> | C29: =('!N126850.092'!H156/60)/'!N126850.092'!Q3 -> 2.662666667 | D29: ='!N126850.092'!N28/'!N126850.092'!Q3 -> 0.14 | E29: =SUM('!N126850.092'!L28:Q28)/'!N126850.092'!Q3 -> 15.22 | F29: ='!N126850.092'!Q24 -> 0.46940442
A30: 28 | B30: ='!N127A10.092'!B2:C2 -> <date> | C30: =('!N127A10.092'!H156/60)/'!N127A10.092'!Q3 -> 2.661666667 | D30: ='!N127A10.092'!N28/'!N127A10.092'!Q3 -> 0.1733333333 | E30: =SUM('!N127A10.092'!L28:Q28)/'!N127A10.092'!Q3 -> 15.25333333 | F30: ='!N127A10.092'!Q24 -> 0.4774637226
A31: 29 | B31: ='!N128840.092'!B2:C2 -> <date> | C31: =('!N128840.092'!H138/60)/'!N128840.092'!Q3 -> 2.982957393 | D31: ='!N128840.092'!N28/'!N128840.092'!Q3 -> 0.1203007519 | E31: =SUM('!N128840.092'!L28:Q28)/'!N128840.092'!Q3 -> 16.40601504 | F31: ='!N128840.092'!Q24 -> 0.5121170265
A32: 30 | B32: ='!N129940.092'!B2:C2 -> <date> | C32: =('!N129940.092'!H145/60)/'!N129940.092'!Q3 -> 2.868585132 | D32: ='!N129940.092'!N28/'!N129940.092'!Q3 -> 0.1870503597 | E32: =SUM('!N129940.092'!L28:Q28)/'!N129940.092'!Q3 -> 16.43165468 | F32: ='!N129940.092'!Q24 -> 0.4810322019

Sheet Start
F1: Use Folder 51 | H1: Auto Clean Up | J1: Correct sequence
F2: FALSE | H2: TRUE | J2: 2212
A4: Working with Folder | G4: Process All/Or Pick A number: ALL or an integer
A5: E:\Hen Data\Raw Data\92_172\phase 3 con\ | G5: ALL
A6: Filenames:
A7: !N109730.092 | G7: Paint Cells
A8: !N110830.092 | G8: FALSE
A9: !N111A00.092
A10: !N112700.092
A11: !N113840.092
A12: !N114800.092
A13: !N115810.092
A14: !N116800.092
A15: !N117910.092
A16: !N118A00.092
A17: !N119810.092
A18: !N120940.092
A19: !N121940.092
A20: !N122820.092
A21: !N123950.092
A22: !N124920.092
A23: !N125950.092
A24: !N126850.092
A25: !N127A10.092
A26: !N128840.092
A27: !N129940.092
A28: !MC30C40.092
A29: !MC31810.092
A30: !N102910.092
A31: !N103840.092
A32: !N104A10.092
A33: !N105840.092
A34: !N106700.092
A35: !N107750.092
A36: !N108830.092

Sheet !MC30C40.092
A1: Report for:!MC30C40.092
A2: Date: | B2: <date>
A3: Hen: | B3: <hen> | F3: Correct Sequence | G3: =Start!J2 -> 2212 | P3: Total Sequences in Data | Q3: =4994-COUNTBLANK(L7:L5000) -> 186 | V3: Total Sequences in Block Data | W3: =COUNTA(L7:L37) -> 31 | AA3: Total Sequences in Block Data | AB3: =COUNTA(L38:L68) -> 31 | AF3: Total Sequences in Block Data | AG3: =COUNTA(L69:L99) -> 31 | AK3: Total Sequences in Block Data | AL3: =COUNTA(L100:L130) -> 31 | AP3: Total Sequences in Block Data | AQ3: =COUNTA(L131:L161) -> 31 | AU3: Total Sequences in Block Data | AV3: =COUNTA(L162:L192) -> 31
P4: Total Sequences in Summary | Q4: =SUM(O7:O22) -> 186 | V4: Total Sequences in Block Summary | W4: =SUM(U7:U22) -> 31 | AA4: Total Sequences in Block Summary | AB4: =SUM(Z7:Z22) -> 31 | AF4: Total Sequences in Block Summary | AG4: =SUM(AE7:AE22) -> 31 | AK4: Total Sequences in Block Summary | AL4: =SUM(AJ7:AJ22) -> 31 | AP4: Total Sequences in Block Summary | AQ4: =SUM(AO7:AO22) -> 31 | AU4: Total Sequences in Block Summary | AV4: =SUM(AT7:AT22) -> 31
T5: Block 1 | Y5: Block 2 | AD5: Block 3 | AI5: Block 4 | AN5: Block 5 | AS5: Block 6
A6: Sequence Component 1 | B6: Time 1 | C6: Sequence Component 2 | D6: Time 2 | E6: Sequence Component 3 | F6: Time 3 | G6: Sequence Component 4 | H6: Time 4 | I6: Sequence Component 5 | J6: Time 5 | K6: Correct? 0=No 1=Yes | L6: Sequence | N6: Frequency | P6: Relative Frequency | Q6: Variability | T6: Frequency | V6: Relative Frequency | W6: Variability | Y6: Frequency | AA6: Relative Frequency | AB6: Variability | AD6: Frequency | AF6: Relative Frequency | AG6: Variability | AI6: Frequency | AK6: Relative Frequency | AL6: Variability | AN6: Frequency | AP6: Relative Frequency | AQ6: Variability | AS6: Frequency | AU6: Relative Frequency | AV6: Variability
A7: 21 | B7: 44 | C7: 21 | D7: 58 | E7: 11 | F7: 71 | G7: 21 | H7: 85 | K7: 0 | L7: 2212 | N7: 1111 | O7: =COUNTIF($L$7:$L$500,N7) -> 122 | P7: =O7/$Q$4 -> 0.6559139785 | Q7: =IF(P7=0,0,(P7*((LOG(P7))/LOG(2)))) -> -0.3990721493 | T7: =N7 -> 1111 | U7: =COUNTIF(L7:L37,T7) -> 8 | V7: =U7/(W4-U20) -> 0.2666666667 | W7: =IF(V7=0,0,(V7*((LOG(V7))/LOG(2)))) -> -0.5085041588 | Y7: =N7 -> 1111 | Z7: =COUNTIF(L38:L68,Y7) -> 20 | AA7: =Z7/(AB4-Z20) -> 0.6451612903 | AB7: =IF(AA7=0,0,(AA7*((LOG(AA7))/LOG(2)))) -> -0.4079149777 | AD7: =N7 -> 1111 | AE7: =COUNTIF(L69:L99,AD7) -> 21 | AF7: =AE7/(AG4-AE20) -> 0.6774193548 | AG7: =IF(AF7=0,0,(AF7*((LOG(AF7))/LOG(2)))) -> -0.3806276335 | AI7: =N7 -> 1111 | AJ7: =COUNTIF(L100:L130,AI7) -> 24 | AK7: =AJ7/(AL4-AJ20) -> 0.7741935484 | AL7: =IF(AK7=0,0,(AK7*((LOG(AK7))/LOG(2)))) -> -0.2858584333 | AN7: =N7 -> 1111 | AO7: =COUNTIF(L131:L161,AN7) -> 26 | AP7: =AO7/(AQ4-AO20) -> 0.8387096774 | AQ7: =IF(AP7=0,0,(AP7*((LOG(AP7))/LOG(2)))) -> -0.2128281096 | AS7: =N7 -> 1111 | AT7: =COUNTIF(L162:L192,AS7) -> 23 | AU7: =AT7/(AV4-AT20) -> 0.7419354839 | AV7: =IF(AU7=0,0,(AU7*((LOG(AU7))/LOG(2)))) -> -0.3195029081
A8: 12 | B8: 201 | C8: 14 | D8: 235 | E8: 13 | F8: 243 | G8: 23 | H8: 263 | K8: 0 | L8: 1112 | N8: 1112 | O8: =COUNTIF($L$7:$L$500,N8) -> 23 | P8: =O8/$Q$4 -> 0.123655914 | Q8: =IF(P8=0,0,(P8*((LOG(P8))/LOG(2)))) -> -0.3728963853 | T8: =N8 -> 1112 | U8: =COUNTIF(L7:L37,T8) -> 6 | V8: =U8/(W4-U20) -> 0.2 | W8: =IF(V8=0,0,(V8*((LOG(V8))/LOG(2)))) -> -0.464385619 | Y8: =N8 -> 1112 | Z8: =COUNTIF(L38:L68,Y8) -> 6 | AA8: =Z8/(AB4-Z20) -> 0.1935483871 | AB8: =IF(AA8=0,0,(AA8*((LOG(AA8))/LOG(2)))) -> -0.4585613825 | AD8: =N8 -> 1112 | AE8: =COUNTIF(L69:L99,AD8) -> 3 | AF8: =AE8/(AG4-AE20) -> 0.09677419355 | AG8: =IF(AF8=0,0,(AF8*((LOG(AF8))/LOG(2)))) -> -0.3260548848 | AI8: =N8 -> 1112 | AJ8: =COUNTIF(L100:L130,AI8) -> 4 | AK8: =AJ8/(AL4-AJ20) -> 0.1290322581 | AL8: =IF(AK8=0,0,(AK8*((LOG(AK8))/LOG(2)))) -> -0.3811866207 | AN8: =N8 -> 1112 | AO8: =COUNTIF(L131:L161,AN8) -> 1 | AP8: =AO8/(AQ4-AO20) -> 0.03225806452 | AQ8: =IF(AP8=0,0,(AP8*((LOG(AP8))/LOG(2)))) -> -0.1598127842 | AS8: =N8 -> 1112 | AT8: =COUNTIF(L162:L192,AS8) -> 3 | AU8: =AT8/(AV4-AT20) -> 0.09677419355 | AV8: =IF(AU8=0,0,(AU8*((LOG(AU8))/LOG(2)))) -> -0.3260548848
A9: 12 | B9: 372 | C9: 23 | D9: 391 | E9: 24 | F9: 403 | G9: 14 | H9: 416 | K9: 0 | L9: 1221 | N9: 1121 | O9: =COUNTIF($L$7:$L$500,N9) -> 3 | P9: =O9/$Q$4 -> 0.01612903226 | Q9: =IF(P9=0,0,(P9*((LOG(P9))/LOG(2)))) -> -0.09603542436 | T9: =N9 -> 1121 | U9: =COUNTIF(L7:L37,T9) -> 0 | V9: =U9/(W4-U20) -> 0 | W9: =IF(V9=0,0,(V9*((LOG(V9))/LOG(2)))) -> 0 | Y9: =N9 -> 1121 | Z9: =COUNTIF(L38:L68,Y9) -> 2 | AA9: =Z9/(AB4-Z20) -> 0.06451612903 | AB9: =IF(AA9=0,0,(AA9*((LOG(AA9))/LOG(2)))) -> -0.2551094394 | AD9: =N9 -> 1121 | AE9: =COUNTIF(L69:L99,AD9) -> 1 | AF9: =AE9/(AG4-AE20) -> 0.03225806452 | AG9: =IF(AF9=0,0,(AF9*((LOG(AF9))/LOG(2)))) -> -0.1598127842 | AI9: =N9 -> 1121 | AJ9: =COUNTIF(L100:L130,AI9) -> 0 | AK9: =AJ9/(AL4-AJ20) -> 0 | AL9: =IF(AK9=0,0,(AK9*((LOG(AK9))/LOG(2)))) -> 0 | AN9: =N9 -> 1121 | AO9: =COUNTIF(L131:L161,AN9) -> 0 | AP9: =AO9/(AQ4-AO20) -> 0 | AQ9: =IF(AP9=0,0,(AP9*((LOG(AP9))/LOG(2)))) -> 0 | AS9: =N9 -> 1121 | AT9: =COUNTIF(L162:L192,AS9) -> 0 | AU9: =AT9/(AV4-AT20) -> 0 | AV9: =IF(AU9=0,0,(AU9*((LOG(AU9))/LOG(2)))) -> 0
A10: 12 | B10: 530 | C10: 14 | D10: 535 | E10: 24 | F10: 546 | G10: 23 | H10: 554 | K10: 0 | L10: 1122 | N10: 1122 | O10: =COUNTIF($L$7:$L$500,N10) -> 19 | P10: =O10/$Q$4 -> 0.1021505376 | Q10: =IF(P10=0,0,(P10*((LOG(P10))/LOG(2)))) -> -0.3362010465 | T10: =N10 -> 1122 | U10: =COUNTIF(L7:L37,T10) -> 5 | V10: =U10/(W4-U20) -> 0.1666666667 | W10: =IF(V10=0,0,(V10*((LOG(V10))/LOG(2)))) -> -0.4308270835 | Y10: =N10 -> 1122 | Z10: =COUNTIF(L38:L68,Y10) -> 1 | AA10: =Z10/(AB4-Z20) -> 0.03225806452 | AB10: =IF(AA10=0,0,(AA10*((LOG(AA10))/LOG(2)))) -> -0.1598127842 | AD10: =N10 -> 1122 | AE10: =COUNTIF(L69:L99,AD10) -> 6 | AF10: =AE10/(AG4-AE20) -> 0.1935483871 | AG10: =IF(AF10=0,0,(AF10*((LOG(AF10))/LOG(2)))) -> -0.4585613825 | AI10: =N10 -> 1122 | AJ10: =COUNTIF(L100:L130,AI10) -> 2 | AK10: =AJ10/(AL4-AJ20) -> 0.06451612903 | AL10: =IF(AK10=0,0,(AK10*((LOG(AK10))/LOG(2)))) -> -0.2551094394 | AN10: =N10 -> 1122 | AO10: =COUNTIF(L131:L161,AN10) -> 2 | AP10: =AO10/(AQ4-AO20) -> 0.06451612903 | AQ10: =IF(AP10=0,0,(AP10*((LOG(AP10))/LOG(2)))) -> -0.2551094394 | AS10: =N10 -> 1122 | AT10: =COUNTIF(L162:L192,AS10) -> 3 | AU10: =AT10/(AV4-AT20) -> 0.09677419355 | AV10: =IF(AU10=0,0,(AU10*((LOG(AU10))/LOG(2)))) -> -0.3260548848
A11: 12 | B11: 655 | C11: 23 | D11: 668 | E11: 24 | F11: 673 | G11: 14 | H11: 688 | K11: 0 | L11: 1221 | N11: 1211 | O11: =COUNTIF($L$7:$L$500,N11) -> 3 | P11: =O11/$Q$4 -> 0.01612903226 | Q11: =IF(P11=0,0,(P11*((LOG(P11))/LOG(2)))) -> -0.09603542436 | T11: =N11 -> 1211 | U11: =COUNTIF(L7:L37,T11) -> 1 | V11: =U11/(W4-U20) -> 0.03333333333 | W11: =IF(V11=0,0,(V11*((LOG(V11))/LOG(2)))) -> -0.1635630199 | Y11: =N11 -> 1211 | Z11: =COUNTIF(L38:L68,Y11) -> 2 | AA11: =Z11/(AB4-Z20) -> 0.06451612903 | AB11: =IF(AA11=0,0,(AA11*((LOG(AA11))/LOG(2)))) -> -0.2551094394 | AD11: =N11 -> 1211 | AE11: =COUNTIF(L69:L99,AD11) -> 0 | AF11: =AE11/(AG4-AE20) -> 0 | AG11: =IF(AF11=0,0,(AF11*((LOG(AF11))/LOG(2)))) -> 0 | AI11: =N11 -> 1211 | AJ11: =COUNTIF(L100:L130,AI11) -> 0 | AK11: =AJ11/(AL4-AJ20) -> 0 | AL11: =IF(AK11=0,0,(AK11*((LOG(AK11))/LOG(2)))) -> 0 | AN11: =N11 -> 1211 | AO11: =COUNTIF(L131:L161,AN11) -> 0 | AP11: =AO11/(AQ4-AO20) -> 0 | AQ11: =IF(AP11=0,0,(AP11*((LOG(AP11))/LOG(2)))) -> 0 | AS11: =N11 -> 1211 | AT11: =COUNTIF(L162:L192,AS11) -> 0 | AU11: =AT11/(AV4-AT20) -> 0 | AV11: =IF(AU11=0,0,(AU11*((LOG(AU11))/LOG(2)))) -> 0
A12: 12 | B12: 788 | C12: 14 | D12: 792 | E12: 13 | F12: 796 | G12: 14 | H12: 806 | K12: 0 | L12: 1111 | N12: 1212 | O12: =COUNTIF($L$7:$L$500,N12) -> 1 | P12: =O12/$Q$4 -> 0.005376344086 | Q12: =IF(P12=0,0,(P12*((LOG(P12))/LOG(2)))) -> -0.04053311189 | T12: =N12 -> 1212 | U12: =COUNTIF(L7:L37,T12) -> 0 | V12: =U12/(W4-U20) -> 0 | W12: =IF(V12=0,0,(V12*((LOG(V12))/LOG(2)))) -> 0 | Y12: =N12 -> 1212 | Z12: =COUNTIF(L38:L68,Y12) -> 0 | AA12: =Z12/(AB4-Z20) -> 0 | AB12: =IF(AA12=0,0,(AA12*((LOG(AA12))/LOG(2)))) -> 0 | AD12: =N12 -> 1212 | AE12: =COUNTIF(L69:L99,AD12) -> 0 | AF12: =AE12/(AG4-AE20) -> 0 | AG12: =IF(AF12=0,0,(AF12*((LOG(AF12))/LOG(2)))) -> 0 | AI12: =N12 -> 1212 | AJ12: =COUNTIF(L100:L130,AI12) -> 0 | AK12: =AJ12/(AL4-AJ20) -> 0 | AL12: =IF(AK12=0,0,(AK12*((LOG(AK12))/LOG(2)))) -> 0 | AN12: =N12 -> 1212 | AO12: =COUNTIF(L131:L161,AN12) -> 0 | AP12: =AO12/(AQ4-AO20) -> 0 | AQ12: =IF(AP12=0,0,(AP12*((LOG(AP12))/LOG(2)))) -> 0 | AS12: =N12 -> 1212 | AT12: =COUNTIF(L162:L192,AS12) -> 1 | AU12: =AT12/(AV4-AT20) -> 0.03225806452 | AV12: =IF(AU12=0,0,(AU12*((LOG(AU12))/LOG(2)))) -> -0.1598127842
A13: 21 | B13: 922 | C13: 21 | D13: 938 | E13: 22 | F13: 944 | G13: 23 | H13: 952 | K13: 0 | L13: 2222 | N13: 1221 | O13: =COUNTIF($L$7:$L$500,N13) -> 5 | P13: =O13/$Q$4 -> 0.02688172043 | Q13: =IF(P13=0,0,(P13*((LOG(P13))/LOG(2)))) -> -0.1402481375 | T13: =N13 -> 1221 | U13: =COUNTIF(L7:L37,T13) -> 4 | V13: =U13/(W4-U20) -> 0.1333333333 | W13: =IF(V13=0,0,(V13*((LOG(V13))/LOG(2)))) -> -0.3875854127 | Y13: =N13 -> 1221 | Z13: =COUNTIF(L38:L68,Y13) -> 0 | AA13: =Z13/(AB4-Z20) -> 0 | AB13: =IF(AA13=0,0,(AA13*((LOG(AA13))/LOG(2)))) -> 0 | AD13: =N13 -> 1221 | AE13: =COUNTIF(L69:L99,AD13) -> 0 | AF13: =AE13/(AG4-AE20) -> 0 | AG13: =IF(AF13=0,0,(AF13*((LOG(AF13))/LOG(2)))) -> 0 | AI13: =N13 -> 1221 | AJ13: =COUNTIF(L100:L130,AI13) -> 1 | AK13: =AJ13/(AL4-AJ20) -> 0.03225806452 | AL13: =IF(AK13=0,0,(AK13*((LOG(AK13))/LOG(2)))) -> -0.1598127842 | AN13: =N13 -> 1221 | AO13: =COUNTIF(L131:L161,AN13) -> 0 | AP13: =AO13/(AQ4-AO20) -> 0 | AQ13: =IF(AP13=0,0,(AP13*((LOG(AP13))/LOG(2)))) -> 0 | AS13: =N13 -> 1221 | AT13: =COUNTIF(L162:L192,AS13) -> 0 | AU13: =AT13/(AV4-AT20) -> 0 | AV13: =IF(AU13=0,0,(AU13*((LOG(AU13))/LOG(2)))) -> 0
A14: 12 | B14: 1055 | C14: 23 | D14: 1068 | E14: 24 | F14: 1081 | G14: 23 | H14: 1090 | K14: 0 | L14: 1222 | N14: 1222 | O14: =COUNTIF($L$7:$L$500,N14) -> 6 | P14: =O14/$Q$4 -> 0.03225806452 | Q14: =IF(P14=0,0,(P14*((LOG(P14))/LOG(2)))) -> -0.1598127842 | T14: =N14 -> 1222 | U14: =COUNTIF(L7:L37,T14) -> 4 | V14: =U14/(W4-U20) -> 0.1333333333 | W14: =IF(V14=0,0,(V14*((LOG(V14))/LOG(2)))) -> -0.3875854127 | Y14: =N14 -> 1222 | Z14: =COUNTIF(L38:L68,Y14) -> 0 | AA14: =Z14/(AB4-Z20) -> 0 | AB14: =IF(AA14=0,0,(AA14*((LOG(AA14))/LOG(2)))) -> 0 | AD14: =N14 -> 1222 | AE14: =COUNTIF(L69:L99,AD14) -> 0 | AF14: =AE14/(AG4-AE20) -> 0 | AG14: =IF(AF14=0,0,(AF14*((LOG(AF14))/LOG(2)))) -> 0 | AI14: =N14 -> 1222 | AJ14: =COUNTIF(L100:L130,AI14) -> 0 | AK14: =AJ14/(AL4-AJ20) -> 0 | AL14: =IF(AK14=0,0,(AK14*((LOG(AK14))/LOG(2)))) -> 0 | AN14: =N14 -> 1222 | AO14: =COUNTIF(L131:L161,AN14) -> 2 | AP14: =AO14/(AQ4-AO20) -> 0.06451612903 | AQ14: =IF(AP14=0,0,(AP14*((LOG(AP14))/LOG(2)))) -> -0.2551094394 | AS14: =N14 -> 1222 | AT14: =COUNTIF(L162:L192,AS14) -> 0 | AU14: =AT14/(AV4-AT20) -> 0 | AV14: =IF(AU14=0,0,(AU14*((LOG(AU14))/LOG(2)))) -> 0
A15: 21 | B15: 1214 | C15: 21 | D15: 1221 | E15: 22 | F15: 1228 | G15: 23 | H15: 1256 | K15: 0 | L15: 2222 | N15: 2111 | O15: =COUNTIF($L$7:$L$500,N15) -> 1 | P15: =O15/$Q$4 -> 0.005376344086 | Q15: =IF(P15=0,0,(P15*((LOG(P15))/LOG(2)))) -> -0.04053311189 | T15: =N15 -> 2111 | U15: =COUNTIF(L7:L37,T15) -> 0 | V15: =U15/(W4-U20) -> 0 | W15: =IF(V15=0,0,(V15*((LOG(V15))/LOG(2)))) -> 0 | Y15: =N15 -> 2111 | Z15: =COUNTIF(L38:L68,Y15) -> 0 | AA15: =Z15/(AB4-Z20) -> 0 | AB15: =IF(AA15=0,0,(AA15*((LOG(AA15))/LOG(2)))) -> 0 | AD15: =N15 -> 2111 | AE15: =COUNTIF(L69:L99,AD15) -> 0 | AF15: =AE15/(AG4-AE20) -> 0 | AG15: =IF(AF15=0,0,(AF15*((LOG(AF15))/LOG(2)))) -> 0 | AI15: =N15 -> 2111 | AJ15: =COUNTIF(L100:L130,AI15) -> 0 | AK15: =AJ15/(AL4-AJ20) -> 0 | AL15: =IF(AK15=0,0,(AK15*((LOG(AK15))/LOG(2)))) -> 0 | AN15: =N15 -> 2111 | AO15: =COUNTIF(L131:L161,AN15) -> 0 | AP15: =AO15/(AQ4-AO20) -> 0 | AQ15: =IF(AP15=0,0,(AP15*((LOG(AP15))/LOG(2)))) -> 0 | AS15: =N15 -> 2111 | AT15: =COUNTIF(L162:L192,AS15) -> 1 | AU15: =AT15/(AV4-AT20) -> 0.03225806452 | AV15: =IF(AU15=0,0,(AU15*((LOG(AU15))/LOG(2)))) -> -0.1598127842
A16: 12 | B16: 1358 | C16: 23 | D16: 1372 | E16: 24 | F16: 1378 | G16: 14 | H16: 1386 | K16: 0 | L16: 1221 | N16: 2112 | O16: =COUNTIF($L$7:$L$500,N16) -> 0 | P16: =O16/$Q$4 -> 0 | Q16: =IF(P16=0,0,(P16*((LOG(P16))/LOG(2)))) -> 0 | T16: =N16 -> 2112 | U16: =COUNTIF(L7:L37,T16) -> 0 | V16: =U16/(W4-U20) -> 0 | W16: =IF(V16=0,0,(V16*((LOG(V16))/LOG(2)))) -> 0 | Y16: =N16 -> 2112 | Z16: =COUNTIF(L38:L68,Y16) -> 0 | AA16: =Z16/(AB4-Z20) -> 0 | AB16: =IF(AA16=0,0,(AA16*((LOG(AA16))/LOG(2)))) -> 0 | AD16: =N16 -> 2112 | AE16: =COUNTIF(L69:L99,AD16) -> 0 | AF16: =AE16/(AG4-AE20) -> 0 | AG16: =IF(AF16=0,0,(AF16*((LOG(AF16))/LOG(2)))) -> 0 | AI16: =N16 -> 2112 | AJ16: =COUNTIF(L100:L130,AI16) -> 0 | AK16: =AJ16/(AL4-AJ20) -> 0 | AL16: =IF(AK16=0,0,(AK16*((LOG(AK16))/LOG(2)))) -> 0 | AN16: =N16 -> 2112 | AO16: =COUNTIF(L131:L161,AN16) -> 0 | AP16: =AO16/(AQ4-AO20) -> 0 | AQ16: =IF(AP16=0,0,(AP16*((LOG(AP16))/LOG(2)))) -> 0 | AS16: =N16 -> 2112 | AT16: =COUNTIF(L162:L192,AS16) -> 0 | AU16: =AT16/(AV4-AT20) -> 0 | AV16: =IF(AU16=0,0,(AU16*((LOG(AU16))/LOG(2)))) -> 0
A17: 12 | B17: 1504 | C17: 23 | D17: 1514 | E17: 24 | F17: 1524 | G17: 23 | H17: 1531 | K17: 0 | L17: 1222 | N17: 2121 | O17: =COUNTIF($L$7:$L$500,N17) -> 0 | P17: =O17/$Q$4 -> 0 | Q17: =IF(P17=0,0,(P17*((LOG(P17))/LOG(2)))) -> 0 | T17: =N17 -> 2121 | U17: =COUNTIF(L7:L37,T17) -> 0 | V17: =U17/(W4-U20) -> 0 | W17: =IF(V17=0,0,(V17*((LOG(V17))/LOG(2)))) -> 0 | Y17: =N17 -> 2121 | Z17: =COUNTIF(L38:L68,Y17) -> 0 | AA17: =Z17/(AB4-Z20) -> 0 | AB17: =IF(AA17=0,0,(AA17*((LOG(AA17))/LOG(2)))) -> 0 | AD17: =N17 -> 2121 | AE17: =COUNTIF(L69:L99,AD17) -> 0 | AF17: =AE17/(AG4-AE20) -> 0 | AG17: =IF(AF17=0,0,(AF17*((LOG(AF17))/LOG(2)))) -> 0 | AI17: =N17 -> 2121 | AJ17: =COUNTIF(L100:L130,AI17) -> 0 | AK17: =AJ17/(AL4-AJ20) -> 0 | AL17: =IF(AK17=0,0,(AK17*((LOG(AK17))/LOG(2)))) -> 0 | AN17: =N17 -> 2121 | AO17: =COUNTIF(L131:L161,AN17) -> 0 | AP17: =AO17/(AQ4-AO20) -> 0 | AQ17: =IF(AP17=0,0,(AP17*((LOG(AP17))/LOG(2)))) -> 0 | AS17: =N17 -> 2121 | AT17: =COUNTIF(L162:L192,AS17) -> 0 | AU17: =AT17/(AV4-AT20) -> 0 | AV17: =IF(AU17=0,0,(AU17*((LOG(AU17))/LOG(2)))) -> 0
A18: 12 | B18: 1630 | C18: 14 | D18: 1643 | E18: 13 | F18: 1648 | G18: 14 | H18: 1653 | K18: 0 | L18: 1111 | N18: 2122 | O18: =COUNTIF($L$7:$L$500,N18) -> 0 | P18: =O18/$Q$4 -> 0 | Q18: =IF(P18=0,0,(P18*((LOG(P18))/LOG(2)))) -> 0 | T18: =N18 -> 2122 | U18: =COUNTIF(L7:L37,T18) -> 0 | V18: =U18/(W4-U20) -> 0 | W18: =IF(V18=0,0,(V18*((LOG(V18))/LOG(2)))) -> 0 | Y18: =N18 -> 2122 | Z18: =COUNTIF(L38:L68,Y18) -> 0 | AA18: =Z18/(AB4-Z20) -> 0 | AB18: =IF(AA18=0,0,(AA18*((LOG(AA18))/LOG(2)))) -> 0 | AD18: =N18 -> 2122 | AE18: =COUNTIF(L69:L99,AD18) -> 0 | AF18: =AE18/(AG4-AE20) -> 0 | AG18: =IF(AF18=0,0,(AF18*((LOG(AF18))/LOG(2)))) -> 0 | AI18: =N18 -> 2122 | AJ18: =COUNTIF(L100:L130,AI18) -> 0 | AK18: =AJ18/(AL4-AJ20) -> 0 | AL18: =IF(AK18=0,0,(AK18*((LOG(AK18))/LOG(2)))) -> 0 | AN18: =N18 -> 2122 | AO18: =COUNTIF(L131:L161,AN18) -> 0 | AP18: =AO18/(AQ4-AO20) -> 0 | AQ18: =IF(AP18=0,0,(AP18*((LOG(AP18))/LOG(2)))) -> 0 | AS18: =N18 -> 2122 | AT18: =COUNTIF(L162:L192,AS18) -> 0 | AU18: =AT18/(AV4-AT20) -> 0 | AV18: =IF(AU18=0,0,(AU18*((LOG(AU18))/LOG(2)))) -> 0
A19: 12 | B19: 1751 | C19: 14 | D19: 1784 | E19: 24 | F19: 1793 | G19: 23 | H19: 1799 | K19: 0 | L19: 1122 | N19: 2211 | O19: =COUNTIF($L$7:$L$500,N19) -> 0 | P19: =O19/$Q$4 -> 0 | Q19: =IF(P19=0,0,(P19*((LOG(P19))/LOG(2)))) -> 0 | T19: =N19 -> 2211 | U19: =COUNTIF(L7:L37,T19) -> 0 | V19: =U19/(W4-U20) -> 0 | W19: =IF(V19=0,0,(V19*((LOG(V19))/LOG(2)))) -> 0 | Y19: =N19 -> 2211 | Z19: =COUNTIF(L38:L68,Y19) -> 0 | AA19: =Z19/(AB4-Z20) -> 0 | AB19: =IF(AA19=0,0,(AA19*((LOG(AA19))/LOG(2)))) -> 0 | AD19: =N19 -> 2211 | AE19: =COUNTIF(L69:L99,AD19) -> 0 | AF19: =AE19/(AG4-AE20) -> 0 | AG19: =IF(AF19=0,0,(AF19*((LOG(AF19))/LOG(2)))) -> 0 | AI19: =N19 -> 2211 | AJ19: =COUNTIF(L100:L130,AI19) -> 0 | AK19: =AJ19/(AL4-AJ20) -> 0 | AL19: =IF(AK19=0,0,(AK19*((LOG(AK19))/LOG(2)))) -> 0 | AN19: =N19 -> 2211 | AO19: =COUNTIF(L131:L161,AN19) -> 0 | AP19: =AO19/(AQ4-AO20) -> 0 | AQ19: =IF(AP19=0,0,(AP19*((LOG(AP19))/LOG(2)))) -> 0 | AS19: =N19 -> 2211 | AT19: =COUNTIF(L162:L192,AS19) -> 0 | AU19: =AT19/(AV4-AT20) -> 0 | AV19: =IF(AU19=0,0,(AU19*((LOG(AU19))/LOG(2)))) -> 0
A20: 12 | B20: 1900 | C20: 14 | D20: 1906 | E20: 13 | F20: 1912 | G20: 14 | H20: 1917 | K20: 0 | L20: 1111 | N20: 2212 | O20: =COUNTIF($L$7:$L$500,N20) -> 1 | P20: =O20/$Q$4 -> 0.005376344086 | Q20: =IF(P20=0,0,(P20*((LOG(P20))/LOG(2)))) -> -0.04053311189 | T20: =N20 -> 2212 | U20: =COUNTIF(L7:L37,T20) -> 1 | Y20: =N20 -> 2212 | Z20: =COUNTIF(L38:L68,Y20) -> 0 | AD20: =N20 -> 2212 | AE20: =COUNTIF(L69:L99,AD20) -> 0 | AI20: =N20 -> 2212 | AJ20: =COUNTIF(L100:L130,AI20) -> 0 | AN20: =N20 -> 2212 | AO20: =COUNTIF(L131:L161,AN20) -> 0 | AS20: =N20 -> 2212 | AT20: =COUNTIF(L162:L192,AS20) -> 0
A21: 12 | B21: 2017 | C21: 23 | D21: 2038 | E21: 24 | F21: 2047 | G21: 14 | H21: 2060 | K21: 0 | L21: 1221 | N21: 2221 | O21: =COUNTIF($L$7:$L$500,N21) -> 0 | P21: =O21/$Q$4 -> 0 | Q21: =IF(P21=0,0,(P21*((LOG(P21))/LOG(2)))) -> 0 | T21: =N21 -> 2221 | U21: =COUNTIF(L7:L37,T21) -> 0 | V21: =U21/(W4-U20) -> 0 | W21: =IF(V21=0,0,(V21*((LOG(V21))/LOG(2)))) -> 0 | Y21: =N21 -> 2221 | Z21: =COUNTIF(L38:L68,Y21) -> 0 | AA21: =Z21/(AB4-Z20) -> 0 | AB21: =IF(AA21=0,0,(AA21*((LOG(AA21))/LOG(2)))) -> 0 | AD21: =N21 -> 2221 | AE21: =COUNTIF(L69:L99,AD21) -> 0 | AF21: =AE21/(AG4-AE20) -> 0 | AG21: =IF(AF21=0,0,(AF21*((LOG(AF21))/LOG(2)))) -> 0 | AI21: =N21 -> 2221 | AJ21: =COUNTIF(L100:L130,AI21) -> 0 | AK21: =AJ21/(AL4-AJ20) -> 0 | AL21: =IF(AK21=0,0,(AK21*((LOG(AK21))/LOG(2)))) -> 0 | AN21: =N21 -> 2221 | AO21: =COUNTIF(L131:L161,AN21) -> 0 | AP21: =AO21/(AQ4-AO20) -> 0 | AQ21: =IF(AP21=0,0,(AP21*((LOG(AP21))/LOG(2)))) -> 0 | AS21: =N21 -> 2221 | AT21: =COUNTIF(L162:L192,AS21) -> 0 | AU21: =AT21/(AV4-AT20) -> 0 | AV21: =IF(AU21=0,0,(AU21*((LOG(AU21))/LOG(2)))) -> 0
A22: 12 | B22: 2160 | C22: 14 | D22: 2166 | E22: 13 | F22: 2180 | G22: 23 | H22: 2191 | K22: 0 | L22: 1112 | N22: 2222 | O22: =COUNTIF($L$7:$L$500,N22) -> 2 | P22: =O22/$Q$4 -> 0.01075268817 | Q22: =IF(P22=0,0,(P22*((LOG(P22))/LOG(2)))) -> -0.0703135356 | T22: =N22 -> 2222 | U22: =COUNTIF(L7:L37,T22) -> 2 | V22: =U22/(W4-U20) -> 0.06666666667 | W22: =IF(V22=0,0,(V22*((LOG(V22))/LOG(2)))) -> -0.260459373 | Y22: =N22 -> 2222 | Z22: =COUNTIF(L38:L68,Y22) -> 0 | AA22: =Z22/(AB4-Z20) -> 0 | AB22: =IF(AA22=0,0,(AA22*((LOG(AA22))/LOG(2)))) -> 0 | AD22: =N22 -> 2222 | AE22: =COUNTIF(L69:L99,AD22) -> 0 | AF22: =AE22/(AG4-AE20) -> 0 | AG22: =IF(AF22=0,0,(AF22*((LOG(AF22))/LOG(2)))) -> 0 | AI22: =N22 -> 2222 | AJ22: =COUNTIF(L100:L130,AI22) -> 0 | AK22: =AJ22/(AL4-AJ20) -> 0 | AL22: =IF(AK22=0,0,(AK22*((LOG(AK22))/LOG(2)))) -> 0 | AN22: =N22 -> 2222 | AO22: =COUNTIF(L131:L161,AN22) -> 0 | AP22: =AO22/(AQ4-AO20) -> 0 | AQ22: =IF(AP22=0,0,(AP22*((LOG(AP22))/LOG(2)))) -> 0 | AS22: =N22 -> 2222 | AT22: =COUNTIF(L162:L192,AS22) -> 0 | AU22: =AT22/(AV4-AT20) -> 0 | AV22: =IF(AU22=0,0,(AU22*((LOG(AU22))/LOG(2)))) -> 0
A23: 12 | B23: 2289 | C23: 14 | D23: 2301 | E23: 13 | F23: 2306 | G23: 14 | H23: 2311 | K23: 0 | L23: 1111 | P23: =SUM(P7:P22) -> 1 | Q23: =-SUM(Q7:Q22) -> 1.792214223 | V23: =SUM(V7:V22) -> 1 | W23: =-SUM(W7:W22) -> 2.60291008 | AA23: =SUM(AA7:AA22) -> 1 | AB23: =-SUM(AB7:AB22) -> 1.536508023 | AF23: =SUM(AF7:AF22) -> 1 | AG23: =-SUM(AG7:AG22) -> 1.325056685 | AK23: =SUM(AK7:AK22) -> 1 | AL23: =-SUM(AL7:AL22) -> 1.081967278 | AP23: =SUM(AP7:AP22) -> 1 | AQ23: =-SUM(AQ7:AQ22) -> 0.8828597726 | AU23: =SUM(AU7:AU22) -> 1 | AV23: =-SUM(AV7:AV22) -> 1.291238246
A24: 12 | B24: 2420 | C24: 23 | D24: 2431 | E24: 24 | F24: 2443 | G24: 23 | H24: 2451 | K24: 0 | L24: 1222 | P24: U= | Q24: =Q23/(LOG(Q4)/LOG(2)) -> 0.237720715 | V24: U1= | W24: =W23/(LOG(W4)/LOG(2)) -> 0.525395022 | AA24: U2= | AB24: =AB23/(LOG(AB4)/LOG(2)) -> 0.310142741 | AF24: U3= | AG24: =AG23/(LOG(AG4)/LOG(2)) -> 0.2674614816 | AK24: U4= | AL24: =AL23/(LOG(AL4)/LOG(2)) -> 0.2183941067 | AP24: U5= | AQ24: =AQ23/(LOG(AQ4)/LOG(2)) -> 0.1782044387 | AU24: U6= | AV24: =AV23/(LOG(AV4)/LOG(2)) -> 0.2606352605
A25: 12 | B25: 2550 | C25: 14 | D25: 2558 | E25: 24 | F25: 2569 | G25: 23 | H25: 2573 | K25: 0 | L25: 1122
A26: 12 | B26: 2676 | C26: 14 | D26: 2682 | E26: 24 | F26: 2704 | G26: 23 | H26: 2713 | K26: 0 | L26: 1122
A27: 12 | B27: 2811 | C27: 23 | D27: 2833 | E27: 24 | F27: 2841 | G27: 23 | H27: 2845 | K27: 0 | L27: 1222 | N27: Total Target Seq
A28: 12 | B28: 2944 | C28: 14 | D28: 2949 | E28: 13 | F28: 2962 | G28: 23 | H28: 2981 | K28: 0 | L28: 1112 | N28: =COUNTIF(L7:L192,G3) -> 1 | P28: 31 | Q28: 31 | R28: 31 | S28: 31 | T28: 31 | U28: 31
A29: 12 | B29: 3084 | C29: 23 | D29: 3097 | E29: 13 | F29: 3109 | G29: 14 | H29: 3114 | K29: 0 | L29: 1211 | P29: % of reinforcement given in 6 equal intervals based on number of trials
A30: 12 | B30: 3213 | C30: 14 | D30: 3217 | E30: 13 | F30: 3229 | G30: 14 | H30: 3233 | K30: 0 | L30: 1111 | P30: %_1 | Q30: %_2 | R30: %_3 | S30: %_4 | T30: %_5 | U30: %_6
A31: 12 | B31: 3330 | C31: 14 | D31: 3356 | E31: 13 | F31: 3364 | G31: 14 | H31: 3379 | K31: 0 | L31: 1111 | O31: target sequence | P31: =$G$3 -> 2212 | Q31: =$G$3 -> 2212 | R31: =$G$3 -> 2212 | S31: =$G$3 -> 2212 | T31: =$G$3 -> 2212 | U31: =$G$3 -> 2212
A32: 12 | B32: 3478 | C32: 14 | D32: 3488 | E32: 13 | F32: 3493 | G32: 23 | H32: 3521 | K32: 0 | L32: 1112 | O32: total reinforcement | P32: =U20 -> 1 | Q32: =Z20 -> 0 | R32: =AE20 -> 0 | S32: =AJ20 -> 0 | T32: =AO20 -> 0 | U32: =AT20 -> 0
A33: 12 | B33: 3628 | C33: 14 | D33: 3636 | E33: 13 | F33: 3642 | G33: 14 | H33: 3647 | K33: 0 | L33: 1111 | O33: % target
A34: 12 | B34: 3746 | C34: 14 | D34: 3753 | E34: 13 | F34: 3762 | G34: 23 | H34: 3775 | K34: 0 | L34: 1112 | O34: CCRF
A35: 12 | B35: 3874 | C35: 14 | D35: 3884 | E35: 13 | F35: 3890 | G35: 14 | H35: 3895 | K35: 0 | L35: 1111 | O35: % CCRf
A36: 12 | B36: 3998 | C36: 14 | D36: 4003 | E36: 24 | F36: 4020 | G36: 23 | H36: 4033 | K36: 0 | L36: 1122 | O36: average response rate | P36: =H37/P28 -> 134.2903226 | Q36: =(H68-H37)/Q28 -> 126.2580645 | R36: =(H99-H68)/R28 -> 124.3870968 | S36: =(H130-H99)/S28 -> 125.8387097 | T36: =(H161-H130)/T28 -> 128.0322581 | U36: =(H192-H161)/U28 -> 135.4193548
A37: 12 | B37: 4133 | C37: 14 | D37: 4144 | E37: 13 | F37: 4149 | G37: 23 | H37: 4163 | K37: 0 | L37: 1112
A38: 12 | B38: 4282 | C38: 23 | D38: 4292 | E38: 13 | F38: 4307 | G38: 14 | H38: 4311 | K38: 0 | L38: 1211
A39: 12 | B39: 4410 | C39: 14 | D39: 4415 | E39: 13 | F39: 4421 | G39: 14 | H39: 4425 | K39: 0 | L39: 1111
A40: 12 | B40: 4524 | C40: 14 | D40: 4536 | E40: 13 | F40: 4541 | G40: 14 | H40: 4545 | K40: 0 | L40: 1111
A41: 12 | B41: 4643 | C41: 14 | D41: 4649 | E41: 13 | F41: 4654 | G41: 14 | H41: 4659 | K41: 0 | L41: 1111
A42: 12 | B42: 4759 | C42: 14 | D42: 4766 | E42: 13 | F42: 4771 | G42: 14 | H42: 4783 | K42: 0 | L42: 1111
A43: 12 | B43: 4882 | C43: 23 | D43: 4896 | E43: 13 | F43: 4913 | G43: 14 | H43: 4917 | K43: 0 | L43: 1211
A44: 12 | B44: 5016 | C44: 14 | D44: 5025 | E44: 13 | F44: 5030 | G44: 23 | H44: 5047 | K44: 0 | L44: 1112
A45: 12 | B45: 5147 | C45: 14 | D45: 5156 | E45: 13 | F45: 5160 | G45: 14 | H45: 5167 | K45: 0 | L45: 1111
A46: 12 | B46: 5269 | C46: 14 | D46: 5275 | E46: 13 | F46: 5280 | G46: 23 | H46: 5292 | K46: 0 | L46: 1112
A47: 12 | B47: 5391 | C47: 14 | D47: 5398 | E47: 13 | F47: 5403 | G47: 23 | H47: 5421 | K47: 0 | L47: 1112
A48: 12 | B48: 5518 | C48: 14 | D48: 5525 | E48: 24 | F48: 5536 | G48: 14 | H48: 5543 | K48: 0 | L48: 1121
A49: 12 | B49: 5640 | C49: 14 | D49: 5645 | E49: 13 | F49: 5651 | G49: 14 | H49: 5669 | K49: 0 | L49: 1111
A50: 12 | B50: 5771 | C50: 14 | D50: 5776 | E50: 13 | F50: 5780 | G50: 14 | H50: 5785 | K50: 0 | L50: 1111
A51: 12 | B51: 5886 | C51: 14 | D51: 5891 | E51: 13 | F51: 5899 | G51: 23 | H51: 5911 | K51: 0 | L51: 1112
A52: 12 | B52: 6021 | C52: 14 | D52: 6025 | E52: 13 | F52: 6030 | G52: 14 | H52: 6034 | K52: 0 | L52: 1111
A53: 12 | B53: 6136 | C53: 14 | D53: 6143 | E53: 13 | F53: 6154 | G53: 14 | H53: 6160 | K53: 0 | L53: 1111
A54: 12 | B54: 6263 | C54: 14 | D54: 6269 | E54: 13 | F54: 6277 | G54: 14 | H54: 6281 | K54: 0 | L54: 1111
A55: 12 | B55: 6382 | C55: 14 | D55: 6415 | E55: 13 | F55: 6448 | G55: 14 | H55: 6457 | K55: 0 | L55: 1111
A56: 12 | B56: 6561 | C56: 14 | D56: 6565 | E56: 24 | F56: 6591 | G56: 14 | H56: 6602 | K56: 0 | L56: 1121
A57: 12 | B57: 6708 | C57: 14 | D57: 6712 | E57: 24 | F57: 6725 | G57: 23 | H57: 6740 | K57: 0 | L57: 1122
A58: 12 | B58: 6838 | C58: 14 | D58: 6845 | E58: 13 | F58: 6850 | G58: 14 | H58: 6854 | K58: 0 | L58: 1111
A59: 12 | B59: 6960 | C59: 14 | D59: 6964 | E59: 13 | F59: 6971 | G59: 14 | H59: 6979 | K59: 0 | L59: 1111
A60: 12 | B60: 7088 | C60: 14 | D60: 7092 | E60: 13 | F60: 7096 | G60: 23 | H60: 7109 | K60: 0 | L60: 1112
A61: 12 | B61: 7207 | C61: 14 | D61: 7211 | E61: 13 | F61: 7219 | G61: 14 | H61: 7226 | K61: 0 | L61: 1111
A62: 12 | B62: 7328 | C62: 14 | D62: 7334 | E62: 13 | F62: 7339 | G62: 14 | H62: 7345 | K62: 0 | L62: 1111
A63: 12 | B63: 7442 | C63: 14 | D63: 7448 | E63: 13 | F63: 7466 | G63: 23 | H63: 7481 | K63: 0 | L63: 1112
A64: 12 | B64: 7581 | C64: 14 | D64: 7588 | E64: 13 | F64: 7602 | G64: 14 | H64: 7606 | K64: 0 | L64: 1111
A65: 12 | B65: 7708 | C65: 14 | D65: 7713 | E65: 13 | F65: 7718 | G65: 14 | H65: 7729 | K65: 0 | L65: 1111
A66: 12 | B66: 7825 | C66: 14 | D66: 7837 | E66: 13 | F66: 7843 | G66: 14 | H66: 7848 | K66: 0 | L66: 1111
A67: 12 | B67: 7946 | C67: 14 | D67: 7951 | E67: 13 | F67: 7955 | G67: 14 | H67: 7960 | K67: 0 | L67: 1111
A68: 12 | B68: 8057 | C68: 14 | D68: 8068 | E68: 13 | F68: 8073 | G68: 14 | H68: 8077 | K68: 0 | L68: 1111
A69: 12 | B69: 8178 | C69: 14 | D69: 8183 | E69: 13 | F69: 8188 | G69: 14 | H69: 8193 | K69: 0 | L69: 1111
A70: 12 | B70: 8295 | C70: 14 | D70: 8299 | E70: 24 | F70: 8312 | G70: 23 | H70: 8331 | K70: 0 | L70: 1122
A71: 12 | B71: 8429 | C71: 14 | D71: 8447 | E71: 24 | F71: 8459 | G71: 23 | H71: 8465 | K71: 0 | L71: 1122
A72: 12 | B72: 8562 | C72: 14 | D72: 8581 | E72: 13 | F72: 8586 | G72: 14 | H72: 8595 | K72: 0 | L72: 1111
A73: 12 | B73: 8693 | C73: 14 | D73: 8699 | E73: 13 | F73: 8703 | G73: 14 | H73: 8708 | K73: 0 | L73: 1111
A74: 12 | B74: 8805 | C74: 14 | D74: 8811 | E74: 13 | F74: 8819 | G74: 14 | H74: 8824 | K74: 0 | L74: 1111
A75: 12 | B75: 8928 | C75: 14 | D75: 8933 | E75: 24 | F75: 8949 | G75: 14 | H75: 8968 | K75: 0 | L75: 1121
A76: 12 | B76: 9089 | C76: 14 | D76: 9093 | E76: 13 | F76: 9097 | G76: 14 | H76: 9102 | K76: 0 | L76: 1111
A77: 12 | B77: 9198 | C77: 14 | D77: 9208 | E77: 13 | F77: 9213 | G77: 14 | H77: 9223 | K77: 0 | L77: 1111
A78: 12 | B78: 9324 | C78: 14 | D78: 9329 | E78: 24 | F78: 9340 | G78: 23 | H78: 9346 | K78: 0 | L78: 1122
A79: 12 | B79: 9444 | C79: 14 | D79: 9450 | E79: 13 | F79: 9454 | G79: 14 | H79: 9459 | K79: 0 | L79: 1111
A80: 12 | B80: 9557 | C80: 14 | D80: 9562 | E80: 13 | F80: 9567 | G80: 23 | H80: 9579 | K80: 0 | L80: 1112
A81: 12 | B81: 9690 | C81: 14 | D81: 9695 | E81: 13 | F81: 9700 | G81: 14 | H81: 9712 | K81: 0 | L81: 1111
A82: 12 | B82: 9813 | C82: 14 | D82: 9821 | E82: 24 | F82: 9832 | G82: 23 | H82: 9840 | K82: 0 | L82: 1122
A83: 12 | B83: 9938 | C83: 14 | D83: 9950 | E83: 13 | F83: 9955 | G83: 14 | H83: 9959 | K83: 0 | L83: 1111
A84: 12 | B84: 10061 | C84: 14 | D84: 10066 | E84: 13 | F84: 10076 | G84: 14 | H84: 10083 | K84: 0 | L84: 1111
A85: 12 | B85: 10180 | C85: 14 | D85: 10185 | E85: 13 | F85: 10190 | G85: 14 | H85: 10195 | K85: 0 | L85: 1111
A86: 12 | B86: 10293 | C86: 14 | D86: 10301 | E86: 13 | F86: 10309 | G86: 14 | H86: 10314 | K86: 0 | L86: 1111
A87: 12 | B87: 10421 | C87: 14 | D87: 10426 | E87: 13 | F87: 10430 | G87: 14 | H87: 10454 | K87: 0 | L87: 1111
A88: 12 | B88: 10552 | C88: 14 | D88: 10562 | E88: 13 | F88: 10566 | G88: 14 | H88: 10571 | K88: 0 | L88: 1111
A89: 12 | B89: 10668 | C89: 14 | D89: 10673 | E89: 13 | F89: 10678 | G89: 23 | H89: 10695 | K89: 0 | L89: 1112
A90: 12 | B90: 10794 | C90: 14 | D90: 10799 | E90: 13 | F90: 10803 | G90: 14 | H90: 10807 | K90: 0 | L90: 1111
A91: 12 | B91: 10907 | C91: 14 | D91: 10918 | E91: 13 | F91: 10924 | G91: 14 | H91: 10932 | K91: 0 | L91: 1111
A92: 12 | B92: 11032 | C92: 14 | D92: 11040 | E92: 13 | F92: 11045 | G92: 14 | H92: 11050 | K92: 0 | L92: 1111
A93: 12 | B93: 11148 | C93: 14 | D93: 11154 | E93: 13 | F93: 11159 | G93: 23 | H93: 11176 | K93: 0 | L93: 1112
A94: 12 | B94: 11277 | C94: 14 | D94: 11290 | E94: 13 | F94: 11294 | G94: 14 | H94: 11300 | K94: 0 | L94: 1111
A95: 12 | B95: 11397 | C95: 14 | D95: 11403 | E95: 13 | F95: 11408 | G95: 14 | H95: 11418 | K95: 0 | L95: 1111
A96: 12 | B96: 11517 | C96: 14 | D96: 11525 | E96: 24 | F96: 11542 | G96: 23 | H96: 11554 | K96: 0 | L96: 1122
A97: 12 | B97: 11658 | C97: 14 | D97: 11663 | E97: 13 | F97: 11667 | G97: 14 | H97: 11674 | K97: 0 | L97: 1111
A98: 12 | B98: 11771 | C98: 14 | D98: 11779 | E98: 13 | F98: 11784 | G98: 14 | H98: 11789 | K98: 0 | L98: 1111
A99: 12 | B99: 11894 | C99: 14 | D99: 11909 | E99: 24 | F99: 11929 | G99: 23 | H99: 11933 | K99: 0 | L99: 1122
A100: 12 | B100: 12036 | C100: 14 | D100: 12040 | E100: 13 | F100: 12045 | G100: 23 | H100: 12065 | K100: 0 | L100: 1112
A101: 12 | B101: 12163 | C101: 14 | D101: 12172 | E101: 13 | F101: 12177 | G101: 14 | H101: 12185 | K101: 0 | L101: 1111
A102: 12 | B102: 12287 | C102: 14 | D102: 12292 | E102: 13 | F102: 12298 | G102: 14 | H102: 12306 | K102: 0 | L102: 1111
A103: 12 | B103: 12403 | C103: 14 | D103: 12407 | E103: 13 | F103: 12412 | G103: 14 | H103: 12418 | K103: 0 | L103: 1111
A104: 12 | B104: 12515 | C104: 14 | D104: 12527 | E104: 13 | F104: 12532 | G104: 23 | H104: 12551 | K104: 0 | L104: 1112
A105: 12 | B105: 12650 | C105: 14 | D105: 12654 | E105: 13 | F105: 12660 | G105: 14 | H105: 12665 | K105: 0 | L105: 1111
A106: 12 | B106: 12782 | C106: 14 | D106: 12788 | E106: 13 | F106: 12792 | G106: 14 | H106: 12796 | K106: 0 | L106: 1111
A107: 12 | B107: 12899 | C107: 14 | D107: 12904 | E107: 13 | F107: 12909 | G107: 14 | H107: 12914 | K107: 0 | L107: 1111
A108: 12 | B108: 13013 | C108: 14 | D108: 13018 | E108: 13 | F108: 13023 | G108: 14 | H108: 13027 | K108: 0 | L108: 1111
A109: 12 | B109: 13127 | C109: 14 | D109: 13132 | E109: 13 | F109: 13137 | G109: 14 | H109: 13142 | K109: 0 | L109: 1111
A110: 12 | B110: 13242 | C110: 14 | D110: 13247 | E110: 13 | F110: 13252 | G110: 14 | H110: 13257 | K110: 0 | L110: 1111
A111: 12 | B111: 13370 | C111: 23 | D111: 13386 | E111: 24 | F111: 13398 | G111: 14 | H111: 13408 | K111: 0 | L111: 1221
A112: 12 | B112: 13509 | C112: 14 | D112: 13522 | E112: 13 | F112: 13531 | G112: 14 | H112: 13544 | K112: 0 | L112: 1111
A113: 12 | B113: 13642 | C113: 14 | D113: 13647 | E113: 13 | F113: 13654 | G113: 14 | H113: 13660 | K113: 0 | L113: 1111
A114: 12 | B114: 13759 | C114: 14 | D114: 13763 | E114: 13 | F114: 13768 | G114: 23 | H114: 13792 | K114: 0 | L114: 1112
A115: 12 | B115: 13890 | C115: 14 | D115: 13906 | E115: 13 | F115: 13910 | G115: 14 | H115: 13914 | K115: 0 | L115: 1111
A116: 12 | B116: 14012 | C116: 14 | D116: 14020 | E116: 13 | F116: 14025 | G116: 14 | H116: 14029 | K116: 0 | L116: 1111
A117: 12 | B117: 14167 | C117: 14 | D117: 14172 | E117: 13 | F117: 14181 | G117: 14 | H117: 14185 | K117: 0 | L117: 1111
A118: 12 | B118: 14289 | C118: 14 | D118: 14295 | E118: 13 | F118: 14301 | G118: 14 | H118: 14305 | K118: 0 | L118: 1111
A119: 12 | B119: 14402 | C119: 14 | D119: 14407 | E119: 13 | F119: 14411 | G119: 14 | H119: 14416 | K119: 0 | L119: 1111
A120: 12 | B120: 14515 | C120: 14 | D120: 14520 | E120: 13 | F120: 14525 | G120: 14 | H120: 14530 | K120: 0 | L120: 1111
A121: 12 | B121: 14643 | C121: 14 | D121: 14648 | E121: 13 | F121: 14652 | G121: 14 | H121: 14656 | K121: 0 | L121: 1111
A122: 12 | B122: 14768 | C122: 14 | D122: 14773 | E122: 24 | F122: 14785 | G122: 23 | H122: 14804 | K122: 0 | L122: 1122
A123: 12 | B123: 14911 | C123: 14 | D123: 14919 | E123: 13 | F123: 14924 | G123: 14 | H123: 14929 | K123: 0 | L123: 1111
A124: 12 | B124: 15028 | C124: 14 | D124: 15032 | E124: 13 | F124: 15037 | G124: 23 | H124: 15056 | K124: 0 | L124: 1112
A125: 12 | B125: 15162 | C125: 14 | D125: 15166 | E125: 13 | F125: 15171 | G125: 14 | H125: 15175 | K125: 0 | L125: 1111
A126: 12 | B126: 15300 | C126: 14 | D126: 15305 | E126: 13 | F126: 15314 | G126: 14 | H126: 15320 | K126: 0 | L126: 1111
A127: 12 | B127: 15429 | C127: 14 | D127: 15434 | E127: 13 | F127: 15441 | G127: 14 | H127: 15445 | K127: 0 | L127: 1111
A128: 12 | B128: 15549 | C128: 14 | D128: 15556 | E128: 13 | F128: 15561 | G128: 14 | H128: 15567 | K128: 0 | L128: 1111
A129: 12 | B129: 15665 | C129: 14 | D129: 15673 | E129: 24 | F129: 15694 | G129: 23 | H129: 15706 | K129: 0 | L129: 1122
A130: 12 | B130: 15806 | C130: 14 | D130: 15822 | E130: 13 | F130: 15829 | G130: 14 | H130: 15834 | K130: 0 | L130: 1111
A131: 12 | B131: 15941 | C131: 14 | D131: 15946 | E131: 13 | F131: 15950 | G131: 14 | H131: 15956 | K131: 0 | L131: 1111
A132: 12 | B132: 16071 | C132: 14 | D132: 16083 | E132: 13 | F132: 16087 | G132: 14 | H132: 16092 | K132: 0 | L132: 1111
A133: 12 | B133: 16190 | C133: 14 | D133: 16196 | E133: 13 | F133: 16201 | G133: 14 | H133: 16206 | K133: 0 | L133: 1111
A134: 12 | B134: 16305 | C134: 14 | D134: 16310 | E134: 13 | F134: 16315 | G134: 14 | H134: 16320 | K134: 0 | L134: 1111
A135: 12 | B135: 16417 | C135: 14 | D135: 16423 | E135: 13 | F135: 16428 | G135: 14 | H135: 16433 | K135: 0 | L135: 1111
A136: 12 | B136: 16531 | C136: 14 | D136: 16535 | E136: 13 | F136: 16545 | G136: 14 | H136: 16552 | K136: 0 | L136: 1111
A137: 12 | B137: 16681 | C137: 14 | D137: 16689 | E137: 13 | F137: 16695 | G137: 14 | H137: 16700 | K137: 0 | L137: 1111
A138: 12 | B138: 16803 | C138: 14 | D138: 16807 | E138: 13 | F138: 16812 | G138: 14 | H138: 16818 | K138: 0 | L138: 1111
A139: 12 | B139: 16919 | C139: 14 | D139: 16926 | E139: 13 | F139: 16939 | G139: 14 | H139: 16945 | K139: 0 | L139: 1111
A140: 12 | B140: 17042 | C140: 14 | D140: 17047 | E140: 13 | F140: 17053 | G140: 14 | H140: 17061 | K140: 0 | L140: 1111
A141: 12 | B141: 17175 | C141: 23 | D141: 17189 | E141: 24 | F141: 17194 | G141: 23 | H141: 17206 | K141: 0 | L141: 1222
A142: 12 | B142: 17308 | C142: 14 | D142: 17313 | E142: 13 | F142: 17323 | G142: 23 | H142: 17339 | K142: 0 | L142: 1112
A143: 12 | B143: 17439 | C143: 14 | D143: 17458 | E143: 13 | F143: 17466 | G143: 14 | H143: 17475 | K143: 0 | L143: 1111
A144: 12 | B144: 17579 | C144: 14 | D144: 17584 | E144: 13 | F144: 17590 | G144: 14 | H144: 17595 | K144: 0 | L144: 1111
A145: 12 | B145: 17704 | C145: 14 | D145: 17711 | E145: 13 | F145: 17717 | G145: 14 | H145: 17721 | K145: 0 | L145: 1111
A146: 12 | B146: 17820 | C146: 14 | D146: 17826 | E146: 13 | F146: 17827 | G146: 14 | H146: 17835 | K146: 0 | L146: 1111
A147: 12 | B147: 17935 | C147: 14 | D147: 17948 | E147: 24 | F147: 17960 | G147: 23 | H147: 17965 | K147: 0 | L147: 1122
A148: 12 | B148: 18066 | C148: 14 | D148: 18071 | E148: 13 | F148: 18076 | G148: 14 | H148: 18081 | K148: 0 | L148: 1111
A149: 12 | B149: 18198 | C149: 14 | D149: 18203 | E149: 13 | F149: 18208 | G149: 14 | H149: 18219 | K149: 0 | L149: 1111
A150: 12 | B150: 18320 | C150: 14 | D150: 18329 | E150: 13 | F150: 18334 | G150: 14 | H150: 18340 | K150: 0 | L150: 1111
A151: 12 | B151: 18462 | C151: 23 | D151: 18477 | E151: 24 | F151: 18482 | G151: 23 | H151: 18493 | K151: 0 | L151: 1222
A152: 12 | B152: 18595 | C152: 14 | D152: 18600 | E152: 13 | F152: 18606 | G152: 14 | H152: 18610 | K152: 0 | L152: 1111
A153: 12 | B153: 18710 | C153: 14 | D153: 18715 | E153: 13 | F153: 18720 | G153: 14 | H153: 18726 | K153: 0 | L153: 1111
A154: 12 | B154: 18872 | C154: 14 | D154: 18878 | E154: 24 | F154: 18889 | G154: 23 | H154: 18902 | K154: 0 | L154: 1122
A155: 12 | B155: 19008 | C155: 14 | D155: 19012 | E155: 13 | F155: 19017 | G155: 14 | H155: 19023 | K155: 0 | L155: 1111
A156: 12 | B156: 19123 | C156: 14 | D156: 19129 | E156: 13 | F156: 19134 | G156: 14 | H156: 19143 | K156: 0 | L156: 1111
A157: 12 | B157: 19260 | C157: 14 | D157: 19268 | E157: 13 | F157: 19273 | G157: 14 | H157: 19281 | K157: 0 | L157: 1111
A158: 12 | B158: 19383 | C158: 14 | D158: 19394 | E158: 13 | F158: 19398 | G158: 14 | H158: 19402 | K158: 0 | L158: 1111
A159: 12 | B159: 19504 | C159: 14 | D159: 19509 | E159: 13 | F159: 19516 | G159: 14 | H159: 19521 | K159: 0 | L159: 1111
A160: 12 | B160: 19619 | C160: 14 | D160: 19626 | E160: 13 | F160: 19635 | G160: 14 | H160: 19639 | K160: 0 | L160: 1111
A161: 12 | B161: 19775 | C161: 14 | D161: 19790 | E161: 13 | F161: 19798 | G161: 14 | H161: 19803 | K161: 0 | L161: 1111
A162: 12 | B162: 19933 | C162: 14 | D162: 19940 | E162: 24 | F162: 19956 | G162: 23 | H162: 19964 | K162: 0 | L162: 1122
A163: 12 | B163: 20077 | C163: 14 | D163: 20082 | E163: 13 | F163: 20086 | G163: 14 | H163: 20091 | K163: 0 | L163: 1111
A164: 12 | B164: 20211 | C164: 23 | D164: 20248 | E164: 13 | F164: 20262 | G164: 23 | H164: 20273 | K164: 0 | L164: 1212
A165: 12 | B165: 20381 | C165: 14 | D165: 20388 | E165: 24 | F165: 20409 | G165: 23 | H165: 20414 | K165: 0 | L165: 1122
A166: 21 | B166: 20540 | C166: 12 | D166: 20547 | E166: 13 | F166: 20558 | G166: 14 | H166: 20563 | K166: 0 | L166: 2111
A167: 12 | B167: 20681 | C167: 14 | D167: 20686 | E167: 13 | F167: 20691 | G167: 14 | H167: 20696 | K167: 0 | L167: 1111
A168: 12 | B168: 20793 | C168: 14 | D168: 20803 | E168: 13 | F168: 20808 | G168: 14 | H168: 20812 | K168: 0 | L168: 1111
A169: 12 | B169: 20926 | C169: 14 | D169: 20937 | E169: 13 | F169: 20941 | G169: 23 | H169: 20959 | K169: 0 | L169: 1112
A170: 12 | B170: 21083 | C170: 14 | D170: 21088 | E170: 24 | F170: 21109 | G170: 23 | H170: 21117 | K170: 0 | L170: 1122
A171: 12 | B171: 21244 | C171: 14 | D171: 21250 | E171: 13 | F171: 21258 | G171: 14 | H171: 21263 | K171: 0 | L171: 1111
A172: 12 | B172: 21380 | C172: 14 | D172: 21385 | E172: 13 | F172: 21393 | G172: 14 | H172: 21422 | K172: 0 | L172: 1111
A173: 12 | B173: 21525 | C173: 14 | D173: 21530 | E173: 13 | F173: 21539 | G173: 14 | H173: 21544 | K173: 0 | L173: 1111
A174: 12 | B174: 21643 | C174: 14 | D174: 21649 | E174: 13 | F174: 21655 | G174: 14 | H174: 21664 | K174: 0 | L174: 1111
A175: 12 | B175: 21762 | C175: 14 | D175: 21768 | E175: 13 | F175: 21773 | G175: 14 | H175: 21778 | K175: 0 | L175: 1111
A176: 12 | B176: 21880 | C176: 14 | D176: 21885 | E176: 13 | F176: 21890 | G176: 14 | H176: 21894 | K176: 0 | L176: 1111
A177: 12 | B177: 21993 | C177: 14 | D177: 21997 | E177: 13 | F177: 22002 | G177: 14 | H177: 22011 | K177: 0 | L177: 1111
A178: 12 | B178: 22123 | C178: 14 | D178: 22153 | E178: 13 | F178: 22161 | G178: 23 | H178: 22172 | K178: 0 | L178: 1112
A179: 12 | B179: 22273 | C179: 14 | D179: 22278 | E179: 13 | F179: 22283 | G179: 14 | H179: 22297 | K179: 0 | L179: 1111
A180: 12 | B180: 22406 | C180: 14 | D180: 22412 | E180: 13 | F180: 22415 | G180: 14 | H180: 22428 | K180: 0 | L180: 1111
A181: 12 | B181: 22542 | C181: 14 | D181: 22547 | E181: 13 | F181: 22553 | G181: 14 | H181: 22556 | K181: 0 | L181: 1111
A182: 12 | B182: 22671 | C182: 14 | D182: 22679 | E182: 13 | F182: 22686 | G182: 14 | H182: 22691 | K182: 0 | L182: 1111
A183: 12 | B183: 22792 | C183: 14 | D183: 22797 | E183: 13 | F183: 22805 | G183: 14 | H183: 22809 | K183: 0 | L183: 1111
A184: 12 | B184: 22909 | C184: 14 | D184: 22914 | E184: 13 | F184: 22926 | G184: 14 | H184: 22931 | K184: 0 | L184: 1111
A185: 12 | B185: 23029 | C185: 14 | D185: 23041 | E185: 13 | F185: 23049 | G185: 14 | H185: 23053 | K185: 0 | L185: 1111
A186: 12 | B186: 23153 | C186: 14 | D186: 23158 | E186: 13 | F186: 23166 | G186: 23 | H186: 23182 | K186: 0 | L186: 1112
A187: 12 | B187: 23283 | C187: 14 | D187: 23289 | E187: 13 | F187: 23294 | G187: 14 | H187: 23300 | K187: 0 | L187: 1111
A188: 12 | B188: 23401 | C188: 14 | D188: 23408 | E188: 13 | F188: 23423 | G188: 14 | H188: 23427 | K188: 0 | L188: 1111
A189: 12 | B189: 23539 | C189: 14 | D189: 23544 | E189: 13 | F189: 23549 | G189: 14 | H189: 23557 | K189: 0 | L189: 1111
A190: 12 | B190: 23660 | C190: 14 | D190: 23665 | E190: 13 | F190: 23672 | G190: 14 | H190: 23678 | K190: 0 | L190: 1111
A191: 12 | B191: 23838 | C191: 14 | D191: 23842 | E191: 13 | F191: 23850 | G191: 14 | H191: 23854 | K191: 0 | L191: 1111
A192: 12 | B192: 23961 | C192: 14 | D192: 23966 | E192: 13 | F192: 23997 | G192: 14 | H192: 24001 | L192: 1111

Sheet !MC31810.092
A1: Report for:!MC31810.092
A2: Date: | B2: <date>
A3: Hen: | B3: <hen> | F3: Correct Sequence | G3: =Start!J2 -> 2212 | P3: Total Sequences in Data | Q3: =4994-COUNTBLANK(L7:L5000) -> 160 | V3: Total Sequences in Block Data | W3: =COUNTA(L7:L33) -> 27 | AA3: Total Sequences in Block Data | AB3: =COUNTA(L34:L59) -> 26 | AF3: Total Sequences in Block Data | AG3: =COUNTA(L60:L86) -> 27 | AK3: Total Sequences in Block Data | AL3: =COUNTA(L87:L113) -> 27 | AP3: Total Sequences in Block Data | AQ3: =COUNTA(L114:L139) -> 26 | AU3: Total Sequences in Block Data | AV3: =COUNTA(L140:L166) -> 27
P4: Total Sequences in Summary | Q4: =SUM(O7:O22) -> 160 | V4: Total Sequences in Block Summary | W4: =SUM(U7:U22) -> 27 | AA4: Total Sequences in Block Summary | AB4: =SUM(Z7:Z22) -> 26 | AF4: Total Sequences in Block Summary | AG4: =SUM(AE7:AE22) -> 27 | AK4: Total Sequences in Block Summary | AL4: =SUM(AJ7:AJ22) -> 27 | AP4: Total Sequences in Block Summary | AQ4: =SUM(AO7:AO22) -> 26 | AU4: Total Sequences in Block Summary | AV4: =SUM(AT7:AT22) -> 27
T5: Block 1 | Y5: Block 2 | AD5: Block 3 | AI5: Block 4 | AN5: Block 5 | AS5: Block 6
A6: Sequence Component 1 | B6: Time 1 | C6: Sequence Component 2 | D6: Time 2 | E6: Sequence Component 3 | F6: Time 3 | G6: Sequence Component 4 | H6: Time 4 | I6: Sequence Component 5 | J6: Time 5 | K6: Correct? 0=No 1=Yes | L6: Sequence | N6: Frequency | P6: Relative Frequency | Q6: Variability | T6: Frequency | V6: Relative Frequency | W6: Variability | Y6: Frequency | AA6: Relative Frequency | AB6: Variability | AD6: Frequency | AF6: Relative Frequency | AG6: Variability | AI6: Frequency | AK6: Relative Frequency | AL6: Variability | AN6: Frequency | AP6: Relative Frequency | AQ6: Variability | AS6: Frequency | AU6: Relative Frequency | AV6: Variability
A7: 12 | B7: 78 | C7: 14 | D7: 85 | E7: 24 | F7: 107 | G7: 14 | H7: 123 | K7: 0 | L7: 1121 | N7: 1111 | O7: =COUNTIF($L$7:$L$500,N7) -> 86 | P7: =O7/$Q$4 -> 0.5375 | Q7: =IF(P7=0,0,(P7*((LOG(P7))/LOG(2)))) -> -0.4814190453 | T7: =N7 -> 1111 | U7: =COUNTIF(L7:L33,T7) -> 20 | V7: =U7/(W4-U20) -> 0.7407407407 | W7: =IF(V7=0,0,(V7*((LOG(V7))/LOG(2)))) -> -0.3207106721 | Y7: =N7 -> 1111 | Z7: =COUNTIF(L34:L59,Y7) -> 16 | AA7: =Z7/(AB4-Z20) -> 0.6153846154 | AB7: =IF(AA7=0,0,(AA7*((LOG(AA7))/LOG(2)))) -> -0.4310398265 | AD7: =N7 -> 1111 | AE7: =COUNTIF(L60:L86,AD7) -> 21 | AF7: =AE7/(AG4-AE20) -> 0.7777777778 | AG7: =IF(AF7=0,0,(AF7*((LOG(AF7))/LOG(2)))) -> -0.2819989506 | AI7: =N7 -> 1111 | AJ7: =COUNTIF(L87:L113,AI7) -> 11 | AK7: =AJ7/(AL4-AJ20) -> 0.4074074074 | AL7: =IF(AK7=0,0,(AK7*((LOG(AK7))/LOG(2)))) -> -0.5277783229 | AN7: =N7 -> 1111 | AO7: =COUNTIF(L114:L139,AN7) -> 8 | AP7: =AO7/(AQ4-AO20) -> 0.3076923077 | AQ7: =IF(AP7=0,0,(AP7*((LOG(AP7))/LOG(2)))) -> -0.523212221 | AS7: =N7 -> 1111 | AT7: =COUNTIF(L140:L166,AS7) -> 10 | AU7: =AT7/(AV4-AT20) -> 0.3703703704 | AV7: =IF(AU7=0,0,(AU7*((LOG(AU7))/LOG(2)))) -> -0.5307257064
A8: 21 | B8: 256 | C8: 21 | D8: 267 | E8: 11 | F8: 281 | G8: 12 | H8: 286 | K8: 0 | L8: 2211 | N8: 1112 | O8: =COUNTIF($L$7:$L$500,N8) -> 18 | P8: =O8/$Q$4 -> 0.1125 | Q8: =IF(P8=0,0,(P8*((LOG(P8))/LOG(2)))) -> -0.354600348 | T8: =N8 -> 1112 | U8: =COUNTIF(L7:L33,T8) -> 2 | V8: =U8/(W4-U20) -> 0.07407407407 | W8: =IF(V8=0,0,(V8*((LOG(V8))/LOG(2)))) -> -0.278139815 | Y8: =N8 -> 1112 | Z8: =COUNTIF(L34:L59,Y8) -> 4 | AA8: =Z8/(AB4-Z20) -> 0.1538461538 | AB8: =IF(AA8=0,0,(AA8*((LOG(AA8))/LOG(2)))) -> -0.4154522643 | AD8: =N8 -> 1112 | AE8: =COUNTIF(L60:L86,AD8) -> 2 | AF8: =AE8/(AG4-AE20) -> 0.07407407407 | AG8: =IF(AF8=0,0,(AF8*((LOG(AF8))/LOG(2)))) -> -0.278139815 | AI8: =N8 -> 1112 | AJ8: =COUNTIF(L87:L113,AI8) -> 4 | AK8: =AJ8/(AL4-AJ20) -> 0.1481481481 | AL8: =IF(AK8=0,0,(AK8*((LOG(AK8))/LOG(2)))) -> -0.4081314818 | AN8: =N8 -> 1112 | AO8: =COUNTIF(L114:L139,AN8) -> 3 | AP8: =AO8/(AQ4-AO20) -> 0.1153846154 | AQ8: =IF(AP8=0,0,(AP8*((LOG(AP8))/LOG(2)))) -> -0.3594781405 | AS8: =N8 -> 1112 | AT8: =COUNTIF(L140:L166,AS8) -> 3 | AU8: =AT8/(AV4-AT20) -> 0.1111111111 | AV8: =IF(AU8=0,0,(AU8*((LOG(AU8))/LOG(2)))) -> -0.352213889
A9: 12 | B9: 408 | C9: 14 | D9: 414 | E9: 24 | F9: 425 | G9: 23 | H9: 430 | K9: 0 | L9: 1122 | N9: 1121 | O9: =COUNTIF($L$7:$L$500,N9) -> 2 | P9: =O9/$Q$4 -> 0.0125 | Q9: =IF(P9=0,0,(P9*((LOG(P9))/LOG(2)))) -> -0.07902410119 | T9: =N9 -> 1121 | U9: =COUNTIF(L7:L33,T9) -> 1 | V9: =U9/(W4-U20) -> 0.03703703704 | W9: =IF(V9=0,0,(V9*((LOG(V9))/LOG(2)))) -> -0.1761069445 | Y9: =N9 -> 1121 | Z9: =COUNTIF(L34:L59,Y9) -> 0 | AA9: =Z9/(AB4-Z20) -> 0 | AB9: =IF(AA9=0,0,(AA9*((LOG(AA9))/LOG(2)))) -> 0 | AD9: =N9 -> 1121 | AE9: =COUNTIF(L60:L86,AD9) -> 1 | AF9: =AE9/(AG4-AE20) -> 0.03703703704 | AG9: =IF(AF9=0,0,(AF9*((LOG(AF9))/LOG(2)))) -> -0.1761069445 | AI9: =N9 -> 1121 | AJ9: =COUNTIF(L87:L113,AI9) -> 0 | AK9: =AJ9/(AL4-AJ20) -> 0 | AL9: =IF(AK9=0,0,(AK9*((LOG(AK9))/LOG(2)))) -> 0 | AN9: =N9 -> 1121 | AO9: =COUNTIF(L114:L139,AN9) -> 0 | AP9: =AO9/(AQ4-AO20) -> 0 | AQ9: =IF(AP9=0,0,(AP9*((LOG(AP9))/LOG(2)))) -> 0 | AS9: =N9 -> 1121 | AT9: =COUNTIF(L140:L166,AS9) -> 0 | AU9: =AT9/(AV4-AT20) -> 0 | AV9: =IF(AU9=0,0,(AU9*((LOG(AU9))/LOG(2)))) -> 0
A10: 12 | B10: 533 | C10: 14 | D10: 540 | E10: 13 | F10: 558 | G10: 14 | H10: 565 | K10: 0 | L10: 1111 | N10: 1122 | O10: =COUNTIF($L$7:$L$500,N10) -> 8 | P10: =O10/$Q$4 -> 0.05 | Q10: =IF(P10=0,0,(P10*((LOG(P10))/LOG(2)))) -> -0.2160964047 | T10: =N10 -> 1122 | U10: =COUNTIF(L7:L33,T10) -> 2 | V10: =U10/(W4-U20) -> 0.07407407407 | W10: =IF(V10=0,0,(V10*((LOG(V10))/LOG(2)))) -> -0.278139815 | Y10: =N10 -> 1122 | Z10: =COUNTIF(L34:L59,Y10) -> 3 | AA10: =Z10/(AB4-Z20) -> 0.1153846154 | AB10: =IF(AA10=0,0,(AA10*((LOG(AA10))/LOG(2)))) -> -0.3594781405 | AD10: =N10 -> 1122 | AE10: =COUNTIF(L60:L86,AD10) -> 0 | AF10: =AE10/(AG4-AE20) -> 0 | AG10: =IF(AF10=0,0,(AF10*((LOG(AF10))/LOG(2)))) -> 0 | AI10: =N10 -> 1122 | AJ10: =COUNTIF(L87:L113,AI10) -> 2 | AK10: =AJ10/(AL4-AJ20) -> 0.07407407407 | AL10: =IF(AK10=0,0,(AK10*((LOG(AK10))/LOG(2)))) -> -0.278139815 | AN10: =N10 -> 1122 | AO10: =COUNTIF(L114:L139,AN10) -> 1 | AP10: =AO10/(AQ4-AO20) -> 0.03846153846 | AQ10: =IF(AP10=0,0,(AP10*((LOG(AP10))/LOG(2)))) -> -0.180786143 | AS10: =N10 -> 1122 | AT10: =COUNTIF(L140:L166,AS10) -> 0 | AU10: =AT10/(AV4-AT20) -> 0 | AV10: =IF(AU10=0,0,(AU10*((LOG(AU10))/LOG(2)))) -> 0
A11: 12 | B11: 670 | C11: 14 | D11: 693 | E11: 13 | F11: 698 | G11: 23 | H11: 706 | K11: 0 | L11: 1112 | N11: 1211 | O11: =COUNTIF($L$7:$L$500,N11) -> 6 | P11: =O11/$Q$4 -> 0.0375 | Q11: =IF(P11=0,0,(P11*((LOG(P11))/LOG(2)))) -> -0.1776362098 | T11: =N11 -> 1211 | U11: =COUNTIF(L7:L33,T11) -> 1 | V11: =U11/(W4-U20) -> 0.03703703704 | W11: =IF(V11=0,0,(V11*((LOG(V11))/LOG(2)))) -> -0.1761069445 | Y11: =N11 -> 1211 | Z11: =COUNTIF(L34:L59,Y11) -> 1 | AA11: =Z11/(AB4-Z20) -> 0.03846153846 | AB11: =IF(AA11=0,0,(AA11*((LOG(AA11))/LOG(2)))) -> -0.180786143 | AD11: =N11 -> 1211 | AE11: =COUNTIF(L60:L86,AD11) -> 0 | AF11: =AE11/(AG4-AE20) -> 0 | AG11: =IF(AF11=0,0,(AF11*((LOG(AF11))/LOG(2)))) -> 0 | AI11: =N11 -> 1211 | AJ11: =COUNTIF(L87:L113,AI11) -> 0 | AK11: =AJ11/(AL4-AJ20) -> 0 | AL11: =IF(AK11=0,0,(AK11*((LOG(AK11))/LOG(2)))) -> 0 | AN11: =N11 -> 1211 | AO11: =COUNTIF(L114:L139,AN11) -> 3 | AP11: =AO11/(AQ4-AO20) -> 0.1153846154 | AQ11: =IF(AP11=0,0,(AP11*((LOG(AP11))/LOG(2)))) -> -0.3594781405 | AS11: =N11 -> 1211 | AT11: =COUNTIF(L140:L166,AS11) -> 1 | AU11: =AT11/(AV4-AT20) -> 0.03703703704 | AV11: =IF(AU11=0,0,(AU11*((LOG(AU11))/LOG(2)))) -> -0.1761069445
A12: 12 | B12: 811 | C12: 14 | D12: 816 | E12: 13 | F12: 826 | G12: 23 | H12: 839 | K12: 0 | L12: 1112 | N12: 1212 | O12: =COUNTIF($L$7:$L$500,N12) -> 0 | P12: =O12/$Q$4 -> 0 | Q12: =IF(P12=0,0,(P12*((LOG(P12))/LOG(2)))) -> 0 | T12: =N12 -> 1212 | U12: =COUNTIF(L7:L33,T12) -> 0 | V12: =U12/(W4-U20) -> 0 | W12: =IF(V12=0,0,(V12*((LOG(V12))/LOG(2)))) -> 0 | Y12: =N12 -> 1212 | Z12: =COUNTIF(L34:L59,Y12) -> 0 | AA12: =Z12/(AB4-Z20) -> 0 | AB12: =IF(AA12=0,0,(AA12*((LOG(AA12))/LOG(2)))) -> 0 | AD12: =N12 -> 1212 | AE12: =COUNTIF(L60:L86,AD12) -> 0 | AF12: =AE12/(AG4-AE20) -> 0 | AG12: =IF(AF12=0,0,(AF12*((LOG(AF12))/LOG(2)))) -> 0 | AI12: =N12 -> 1212 | AJ12: =COUNTIF(L87:L113,AI12) -> 0 | AK12: =AJ12/(AL4-AJ20) -> 0 | AL12: =IF(AK12=0,0,(AK12*((LOG(AK12))/LOG(2)))) -> 0 | AN12: =N12 -> 1212 | AO12: =COUNTIF(L114:L139,AN12) -> 0 | AP12: =AO12/(AQ4-AO20) -> 0 | AQ12: =IF(AP12=0,0,(AP12*((LOG(AP12))/LOG(2)))) -> 0 | AS12: =N12 -> 1212 | AT12: =COUNTIF(L140:L166,AS12) -> 0 | AU12: =AT12/(AV4-AT20) -> 0 | AV12: =IF(AU12=0,0,(AU12*((LOG(AU12))/LOG(2)))) -> 0
A13: 12 | B13: 944 | C13: 14 | D13: 949 | E13: 13 | F13: 954 | G13: 14 | H13: 960 | K13: 0 | L13: 1111 | N13: 1221 | O13: =COUNTIF($L$7:$L$500,N13) -> 3 | P13: =O13/$Q$4 -> 0.01875 | Q13: =IF(P13=0,0,(P13*((LOG(P13))/LOG(2)))) -> -0.1075681049 | T13: =N13 -> 1221 | U13: =COUNTIF(L7:L33,T13) -> 0 | V13: =U13/(W4-U20) -> 0 | W13: =IF(V13=0,0,(V13*((LOG(V13))/LOG(2)))) -> 0 | Y13: =N13 -> 1221 | Z13: =COUNTIF(L34:L59,Y13) -> 1 | AA13: =Z13/(AB4-Z20) -> 0.03846153846 | AB13: =IF(AA13=0,0,(AA13*((LOG(AA13))/LOG(2)))) -> -0.180786143 | AD13: =N13 -> 1221 | AE13: =COUNTIF(L60:L86,AD13) -> 0 | AF13: =AE13/(AG4-AE20) -> 0 | AG13: =IF(AF13=0,0,(AF13*((LOG(AF13))/LOG(2)))) -> 0 | AI13: =N13 -> 1221 | AJ13: =COUNTIF(L87:L113,AI13) -> 2 | AK13: =AJ13/(AL4-AJ20) -> 0.07407407407 | AL13: =IF(AK13=0,0,(AK13*((LOG(AK13))/LOG(2)))) -> -0.278139815 | AN13: =N13 -> 1221 | AO13: =COUNTIF(L114:L139,AN13) -> 0 | AP13: =AO13/(AQ4-AO20) -> 0 | AQ13: =IF(AP13=0,0,(AP13*((LOG(AP13))/LOG(2)))) -> 0 | AS13: =N13 -> 1221 | AT13: =COUNTIF(L140:L166,AS13) -> 0 | AU13: =AT13/(AV4-AT20) -> 0 | AV13: =IF(AU13=0,0,(AU13*((LOG(AU13))/LOG(2)))) -> 0
A14: 12 | B14: 1073 | C14: 14 | D14: 1088 | E14: 24 | F14: 1104 | G14: 23 | H14: 1111 | K14: 0 | L14: 1122 | N14: 1222 | O14: =COUNTIF($L$7:$L$500,N14) -> 1 | P14: =O14/$Q$4 -> 0.00625 | Q14: =IF(P14=0,0,(P14*((LOG(P14))/LOG(2)))) -> -0.04576205059 | T14: =N14 -> 1222 | U14: =COUNTIF(L7:L33,T14) -> 0 | V14: =U14/(W4-U20) -> 0 | W14: =IF(V14=0,0,(V14*((LOG(V14))/LOG(2)))) -> 0 | Y14: =N14 -> 1222 | Z14: =COUNTIF(L34:L59,Y14) -> 0 | AA14: =Z14/(AB4-Z20) -> 0 | AB14: =IF(AA14=0,0,(AA14*((LOG(AA14))/LOG(2)))) -> 0 | AD14: =N14 -> 1222 | AE14: =COUNTIF(L60:L86,AD14) -> 0 | AF14: =AE14/(AG4-AE20) -> 0 | AG14: =IF(AF14=0,0,(AF14*((LOG(AF14))/LOG(2)))) -> 0 | AI14: =N14 -> 1222 | AJ14: =COUNTIF(L87:L113,AI14) -> 1 | AK14: =AJ14/(AL4-AJ20) -> 0.03703703704 | AL14: =IF(AK14=0,0,(AK14*((LOG(AK14))/LOG(2)))) -> -0.1761069445 | AN14: =N14 -> 1222 | AO14: =COUNTIF(L114:L139,AN14) -> 0 | AP14: =AO14/(AQ4-AO20) -> 0 | AQ14: =IF(AP14=0,0,(AP14*((LOG(AP14))/LOG(2)))) -> 0 | AS14: =N14 -> 1222 | AT14: =COUNTIF(L140:L166,AS14) -> 0 | AU14: =AT14/(AV4-AT20) -> 0 | AV14: =IF(AU14=0,0,(AU14*((LOG(AU14))/LOG(2)))) -> 0
A15: 12 | B15: 1214 | C15: 14 | D15: 1219 | E15: 13 | F15: 1223 | G15: 14 | H15: 1229 | K15: 0 | L15: 1111 | N15: 2111 | O15: =COUNTIF($L$7:$L$500,N15) -> 21 | P15: =O15/$Q$4 -> 0.13125 | Q15: =IF(P15=0,0,(P15*((LOG(P15))/LOG(2)))) -> -0.3845114007 | T15: =N15 -> 2111 | U15: =COUNTIF(L7:L33,T15) -> 0 | V15: =U15/(W4-U20) -> 0 | W15: =IF(V15=0,0,(V15*((LOG(V15))/LOG(2)))) -> 0 | Y15: =N15 -> 2111 | Z15: =COUNTIF(L34:L59,Y15) -> 0 | AA15: =Z15/(AB4-Z20) -> 0 | AB15: =IF(AA15=0,0,(AA15*((LOG(AA15))/LOG(2)))) -> 0 | AD15: =N15 -> 2111 | AE15: =COUNTIF(L60:L86,AD15) -> 2 | AF15: =AE15/(AG4-AE20) -> 0.07407407407 | AG15: =IF(AF15=0,0,(AF15*((LOG(AF15))/LOG(2)))) -> -0.278139815 | AI15: =N15 -> 2111 | AJ15: =COUNTIF(L87:L113,AI15) -> 5 | AK15: =AJ15/(AL4-AJ20) -> 0.1851851852 | AL15: =IF(AK15=0,0,(AK15*((LOG(AK15))/LOG(2)))) -> -0.4505480384 | AN15: =N15 -> 2111 | AO15: =COUNTIF(L114:L139,AN15) -> 6 | AP15: =AO15/(AQ4-AO20) -> 0.2307692308 | AQ15: =IF(AP15=0,0,(AP15*((LOG(AP15))/LOG(2)))) -> -0.4881870502 | AS15: =N15 -> 2111 | AT15: =COUNTIF(L140:L166,AS15) -> 8 | AU15: =AT15/(AV4-AT20) -> 0.2962962963 | AV15: =IF(AU15=0,0,(AU15*((LOG(AU15))/LOG(2)))) -> -0.5199666673
A16: 12 | B16: 1340 | C16: 14 | D16: 1346 | E16: 13 | F16: 1351 | G16: 14 | H16: 1355 | K16: 0 | L16: 1111 | N16: 2112 | O16: =COUNTIF($L$7:$L$500,N16) -> 2 | P16: =O16/$Q$4 -> 0.0125 | Q16: =IF(P16=0,0,(P16*((LOG(P16))/LOG(2)))) -> -0.07902410119 | T16: =N16 -> 2112 | U16: =COUNTIF(L7:L33,T16) -> 0 | V16: =U16/(W4-U20) -> 0 | W16: =IF(V16=0,0,(V16*((LOG(V16))/LOG(2)))) -> 0 | Y16: =N16 -> 2112 | Z16: =COUNTIF(L34:L59,Y16) -> 0 | AA16: =Z16/(AB4-Z20) -> 0 | AB16: =IF(AA16=0,0,(AA16*((LOG(AA16))/LOG(2)))) -> 0 | AD16: =N16 -> 2112 | AE16: =COUNTIF(L60:L86,AD16) -> 1 | AF16: =AE16/(AG4-AE20) -> 0.03703703704 | AG16: =IF(AF16=0,0,(AF16*((LOG(AF16))/LOG(2)))) -> -0.1761069445 | AI16: =N16 -> 2112 | AJ16: =COUNTIF(L87:L113,AI16) -> 0 | AK16: =AJ16/(AL4-AJ20) -> 0 | AL16: =IF(AK16=0,0,(AK16*((LOG(AK16))/LOG(2)))) -> 0 | AN16: =N16 -> 2112 | AO16: =COUNTIF(L114:L139,AN16) -> 0 | AP16: =AO16/(AQ4-AO20) -> 0 | AQ16: =IF(AP16=0,0,(AP16*((LOG(AP16))/LOG(2)))) -> 0 | AS16: =N16 -> 2112 | AT16: =COUNTIF(L140:L166,AS16) -> 1 | AU16: =AT16/(AV4-AT20) -> 0.03703703704 | AV16: =IF(AU16=0,0,(AU16*((LOG(AU16))/LOG(2)))) -> -0.1761069445
A17: 12 | B17: 1460 | C17: 14 | D17: 1485 | E17: 13 | F17: 1491 | G17: 14 | H17: 1498 | K17: 0 | L17: 1111 | N17: 2121 | O17: =COUNTIF($L$7:$L$500,N17) -> 0 | P17: =O17/$Q$4 -> 0 | Q17: =IF(P17=0,0,(P17*((LOG(P17))/LOG(2)))) -> 0 | T17: =N17 -> 2121 | U17: =COUNTIF(L7:L33,T17) -> 0 | V17: =U17/(W4-U20) -> 0 | W17: =IF(V17=0,0,(V17*((LOG(V17))/LOG(2)))) -> 0 | Y17: =N17 -> 2121 | Z17: =COUNTIF(L34:L59,Y17) -> 0 | AA17: =Z17/(AB4-Z20) -> 0 | AB17: =IF(AA17=0,0,(AA17*((LOG(AA17))/LOG(2)))) -> 0 | AD17: =N17 -> 2121 | AE17: =COUNTIF(L60:L86,AD17) -> 0 | AF17: =AE17/(AG4-AE20) -> 0 | AG17: =IF(AF17=0,0,(AF17*((LOG(AF17))/LOG(2)))) -> 0 | AI17: =N17 -> 2121 | AJ17: =COUNTIF(L87:L113,AI17) -> 0 | AK17: =AJ17/(AL4-AJ20) -> 0 | AL17: =IF(AK17=0,0,(AK17*((LOG(AK17))/LOG(2)))) -> 0 | AN17: =N17 -> 2121 | AO17: =COUNTIF(L114:L139,AN17) -> 0 | AP17: =AO17/(AQ4-AO20) -> 0 | AQ17: =IF(AP17=0,0,(AP17*((LOG(AP17))/LOG(2)))) -> 0 | AS17: =N17 -> 2121 | AT17: =COUNTIF(L140:L166,AS17) -> 0 | AU17: =AT17/(AV4-AT20) -> 0 | AV17: =IF(AU17=0,0,(AU17*((LOG(AU17))/LOG(2)))) -> 0
A18: 12 | B18: 1600 | C18: 14 | D18: 1605 | E18: 13 | F18: 1610 | G18: 14 | H18: 1615 | K18: 0 | L18: 1111 | N18: 2122 | O18: =COUNTIF($L$7:$L$500,N18) -> 3 | P18: =O18/$Q$4 -> 0.01875 | Q18: =IF(P18=0,0,(P18*((LOG(P18))/LOG(2)))) -> -0.1075681049 | T18: =N18 -> 2122 | U18: =COUNTIF(L7:L33,T18) -> 0 | V18: =U18/(W4-U20) -> 0 | W18: =IF(V18=0,0,(V18*((LOG(V18))/LOG(2)))) -> 0 | Y18: =N18 -> 2122 | Z18: =COUNTIF(L34:L59,Y18) -> 1 | AA18: =Z18/(AB4-Z20) -> 0.03846153846 | AB18: =IF(AA18=0,0,(AA18*((LOG(AA18))/LOG(2)))) -> -0.180786143 | AD18: =N18 -> 2122 | AE18: =COUNTIF(L60:L86,AD18) -> 0 | AF18: =AE18/(AG4-AE20) -> 0 | AG18: =IF(AF18=0,0,(AF18*((LOG(AF18))/LOG(2)))) -> 0 | AI18: =N18 -> 2122 | AJ18: =COUNTIF(L87:L113,AI18) -> 0 | AK18: =AJ18/(AL4-AJ20) -> 0 | AL18: =IF(AK18=0,0,(AK18*((LOG(AK18))/LOG(2)))) -> 0 | AN18: =N18 -> 2122 | AO18: =COUNTIF(L114:L139,AN18) -> 2 | AP18: =AO18/(AQ4-AO20) -> 0.07692307692 | AQ18: =IF(AP18=0,0,(AP18*((LOG(AP18))/LOG(2)))) -> -0.2846492091 | AS18: =N18 -> 2122 | AT18: =COUNTIF(L140:L166,AS18) -> 0 | AU18: =AT18/(AV4-AT20) -> 0 | AV18: =IF(AU18=0,0,(AU18*((LOG(AU18))/LOG(2)))) -> 0
A19: 12 | B19: 1722 | C19: 14 | D19: 1727 | E19: 13 | F19: 1732 | G19: 14 | H19: 1736 | K19: 0 | L19: 1111 | N19: 2211 | O19: =COUNTIF($L$7:$L$500,N19) -> 9 | P19: =O19/$Q$4 -> 0.05625 | Q19: =IF(P19=0,0,(P19*((LOG(P19))/LOG(2)))) -> -0.233550174 | T19: =N19 -> 2211 | U19: =COUNTIF(L7:L33,T19) -> 1 | V19: =U19/(W4-U20) -> 0.03703703704 | W19: =IF(V19=0,0,(V19*((LOG(V19))/LOG(2)))) -> -0.1761069445 | Y19: =N19 -> 2211 | Z19: =COUNTIF(L34:L59,Y19) -> 0 | AA19: =Z19/(AB4-Z20) -> 0 | AB19: =IF(AA19=0,0,(AA19*((LOG(AA19))/LOG(2)))) -> 0 | AD19: =N19 -> 2211 | AE19: =COUNTIF(L60:L86,AD19) -> 0 | AF19: =AE19/(AG4-AE20) -> 0 | AG19: =IF(AF19=0,0,(AF19*((LOG(AF19))/LOG(2)))) -> 0 | AI19: =N19 -> 2211 | AJ19: =COUNTIF(L87:L113,AI19) -> 1 | AK19: =AJ19/(AL4-AJ20) -> 0.03703703704 | AL19: =IF(AK19=0,0,(AK19*((LOG(AK19))/LOG(2)))) -> -0.1761069445 | AN19: =N19 -> 2211 | AO19: =COUNTIF(L114:L139,AN19) -> 3 | AP19: =AO19/(AQ4-AO20) -> 0.1153846154 | AQ19: =IF(AP19=0,0,(AP19*((LOG(AP19))/LOG(2)))) -> -0.3594781405 | AS19: =N19 -> 2211 | AT19: =COUNTIF(L140:L166,AS19) -> 4 | AU19: =AT19/(AV4-AT20) -> 0.1481481481 | AV19: =IF(AU19=0,0,(AU19*((LOG(AU19))/LOG(2)))) -> -0.4081314818
A20: 12 | B20: 1836 | C20: 23 | D20: 1854 | E20: 13 | F20: 1869 | G20: 14 | H20: 1874 | K20: 0 | L20: 1211 | N20: 2212 | O20: =COUNTIF($L$7:$L$500,N20) -> 0 | P20: =O20/$Q$4 -> 0 | Q20: =IF(P20=0,0,(P20*((LOG(P20))/LOG(2)))) -> 0 | T20: =N20 -> 2212 | U20: =COUNTIF(L7:L33,T20) -> 0 | Y20: =N20 -> 2212 | Z20: =COUNTIF(L34:L59,Y20) -> 0 | AD20: =N20 -> 2212 | AE20: =COUNTIF(L60:L86,AD20) -> 0 | AI20: =N20 -> 2212 | AJ20: =COUNTIF(L87:L113,AI20) -> 0 | AN20: =N20 -> 2212 | AO20: =COUNTIF(L114:L139,AN20) -> 0 | AS20: =N20 -> 2212 | AT20: =COUNTIF(L140:L166,AS20) -> 0
A21: 12 | B21: 1988 | C21: 14 | D21: 2006 | E21: 13 | F21: 2011 | G21: 14 | H21: 2018 | K21: 0 | L21: 1111 | N21: 2221 | O21: =COUNTIF($L$7:$L$500,N21) -> 1 | P21: =O21/$Q$4 -> 0.00625 | Q21: =IF(P21=0,0,(P21*((LOG(P21))/LOG(2)))) -> -0.04576205059 | T21: =N21 -> 2221 | U21: =COUNTIF(L7:L33,T21) -> 0 | V21: =U21/(W4-U20) -> 0 | W21: =IF(V21=0,0,(V21*((LOG(V21))/LOG(2)))) -> 0 | Y21: =N21 -> 2221 | Z21: =COUNTIF(L34:L59,Y21) -> 0 | AA21: =Z21/(AB4-Z20) -> 0 | AB21: =IF(AA21=0,0,(AA21*((LOG(AA21))/LOG(2)))) -> 0 | AD21: =N21 -> 2221 | AE21: =COUNTIF(L60:L86,AD21) -> 0 | AF21: =AE21/(AG4-AE20) -> 0 | AG21: =IF(AF21=0,0,(AF21*((LOG(AF21))/LOG(2)))) -> 0 | AI21: =N21 -> 2221 | AJ21: =COUNTIF(L87:L113,AI21) -> 1 | AK21: =AJ21/(AL4-AJ20) -> 0.03703703704 | AL21: =IF(AK21=0,0,(AK21*((LOG(AK21))/LOG(2)))) -> -0.1761069445 | AN21: =N21 -> 2221 | AO21: =COUNTIF(L114:L139,AN21) -> 0 | AP21: =AO21/(AQ4-AO20) -> 0 | AQ21: =IF(AP21=0,0,(AP21*((LOG(AP21))/LOG(2)))) -> 0 | AS21: =N21 -> 2221 | AT21: =COUNTIF(L140:L166,AS21) -> 0 | AU21: =AT21/(AV4-AT20) -> 0 | AV21: =IF(AU21=0,0,(AU21*((LOG(AU21))/LOG(2)))) -> 0
A22: 12 | B22: 2120 | C22: 14 | D22: 2126 | E22: 13 | F22: 2146 | G22: 14 | H22: 2150 | K22: 0 | L22: 1111 | N22: 2222 | O22: =COUNTIF($L$7:$L$500,N22) -> 0 | P22: =O22/$Q$4 -> 0 | Q22: =IF(P22=0,0,(P22*((LOG(P22))/LOG(2)))) -> 0 | T22: =N22 -> 2222 | U22: =COUNTIF(L7:L33,T22) -> 0 | V22: =U22/(W4-U20) -> 0 | W22: =IF(V22=0,0,(V22*((LOG(V22))/LOG(2)))) -> 0 | Y22: =N22 -> 2222 | Z22: =COUNTIF(L34:L59,Y22) -> 0 | AA22: =Z22/(AB4-Z20) -> 0 | AB22: =IF(AA22=0,0,(AA22*((LOG(AA22))/LOG(2)))) -> 0 | AD22: =N22 -> 2222 | AE22: =COUNTIF(L60:L86,AD22) -> 0 | AF22: =AE22/(AG4-AE20) -> 0 | AG22: =IF(AF22=0,0,(AF22*((LOG(AF22))/LOG(2)))) -> 0 | AI22: =N22 -> 2222 | AJ22: =COUNTIF(L87:L113,AI22) -> 0 | AK22: =AJ22/(AL4-AJ20) -> 0 | AL22: =IF(AK22=0,0,(AK22*((LOG(AK22))/LOG(2)))) -> 0 | AN22: =N22 -> 2222 | AO22: =COUNTIF(L114:L139,AN22) -> 0 | AP22: =AO22/(AQ4-AO20) -> 0 | AQ22: =IF(AP22=0,0,(AP22*((LOG(AP22))/LOG(2)))) -> 0 | AS22: =N22 -> 2222 | AT22: =COUNTIF(L140:L166,AS22) -> 0 | AU22: =AT22/(AV4-AT20) -> 0 | AV22: =IF(AU22=0,0,(AU22*((LOG(AU22))/LOG(2)))) -> 0
A23: 12 | B23: 2254 | C23: 14 | D23: 2272 | E23: 13 | F23: 2277 | G23: 14 | H23: 2284 | K23: 0 | L23: 1111 | P23: =SUM(P7:P22) -> 1 | Q23: =-SUM(Q7:Q22) -> 2.312522096 | V23: =SUM(V7:V22) -> 1 | W23: =-SUM(W7:W22) -> 1.405311136 | AA23: =SUM(AA7:AA22) -> 1 | AB23: =-SUM(AB7:AB22) -> 1.74832866 | AF23: =SUM(AF7:AF22) -> 1 | AG23: =-SUM(AG7:AG22) -> 1.19049247 | AK23: =SUM(AK7:AK22) -> 1 | AL23: =-SUM(AL7:AL22) -> 2.471058307 | AP23: =SUM(AP7:AP22) -> 1 | AQ23: =-SUM(AQ7:AQ22) -> 2.555269045 | AU23: =SUM(AU7:AU22) -> 1 | AV23: =-SUM(AV7:AV22) -> 2.163251634
A24: 12 | B24: 2383 | C24: 14 | D24: 2397 | E24: 13 | F24: 2402 | G24: 14 | H24: 2407 | K24: 0 | L24: 1111 | P24: U= | Q24: =Q23/(LOG(Q4)/LOG(2)) -> 0.3158351278 | V24: U1= | W24: =W23/(LOG(W4)/LOG(2)) -> 0.2955508695 | AA24: U2= | AB24: =AB23/(LOG(AB4)/LOG(2)) -> 0.3719500228 | AF24: U3= | AG24: =AG23/(LOG(AG4)/LOG(2)) -> 0.2503723735 | AK24: U4= | AL24: =AL23/(LOG(AL4)/LOG(2)) -> 0.5196880695 | AP24: U5= | AQ24: =AQ23/(LOG(AQ4)/LOG(2)) -> 0.543623405 | AU24: U6= | AV24: =AV23/(LOG(AV4)/LOG(2)) -> 0.4549532734
A25: 12 | B25: 2506 | C25: 14 | D25: 2512 | E25: 13 | F25: 2521 | G25: 14 | H25: 2526 | K25: 0 | L25: 1111
A26: 12 | B26: 2629 | C26: 14 | D26: 2635 | E26: 13 | F26: 2640 | G26: 14 | H26: 2647 | K26: 0 | L26: 1111
A27: 12 | B27: 2748 | C27: 14 | D27: 2753 | E27: 13 | F27: 2758 | G27: 14 | H27: 2763 | K27: 0 | L27: 1111 | N27: Total Target Seq
A28: 12 | B28: 2887 | C28: 14 | D28: 2894 | E28: 13 | F28: 2911 | G28: 14 | H28: 2917 | K28: 0 | L28: 1111 | N28: =COUNTIF(L7:L166,G3) -> 0 | P28: 27 | Q28: 26 | R28: 27 | S28: 27 | T28: 26 | U28: 27
A29: 12 | B29: 3028 | C29: 14 | D29: 3034 | E29: 13 | F29: 3041 | G29: 14 | H29: 3046 | K29: 0 | L29: 1111 | P29: % of reinforcement given in 6 equal intervals based on number of trials
A30: 12 | B30: 3146 | C30: 14 | D30: 3150 | E30: 13 | F30: 3155 | G30: 14 | H30: 3159 | K30: 0 | L30: 1111 | P30: %_1 | Q30: %_2 | R30: %_3 | S30: %_4 | T30: %_5 | U30: %_6
A31: 12 | B31: 3265 | C31: 14 | D31: 3270 | E31: 13 | F31: 3275 | G31: 14 | H31: 3280 | K31: 0 | L31: 1111 | O31: target sequence | P31: =$G$3 -> 2212 | Q31: =$G$3 -> 2212 | R31: =$G$3 -> 2212 | S31: =$G$3 -> 2212 | T31: =$G$3 -> 2212 | U31: =$G$3 -> 2212
A32: 12 | B32: 3381 | C32: 14 | D32: 3387 | E32: 13 | F32: 3392 | G32: 14 | H32: 3399 | K32: 0 | L32: 1111 | O32: total reinforcement | P32: =U20 -> 0 | Q32: =Z20 -> 0 | R32: =AE20 -> 0 | S32: =AJ20 -> 0 | T32: =AO20 -> 0 | U32: =AT20 -> 0
A33: 12 | B33: 3506 | C33: 14 | D33: 3513 | E33: 13 | F33: 3519 | G33: 14 | H33: 3523 | K33: 0 | L33: 1111 | O33: % target
A34: 12 | B34: 3624 | C34: 14 | D34: 3628 | E34: 13 | F34: 3634 | G34: 23 | H34: 3667 | K34: 0 | L34: 1112 | O34: CCRF
A35: 12 | B35: 3815 | C35: 14 | D35: 3820 | E35: 13 | F35: 3826 | G35: 14 | H35: 3831 | K35: 0 | L35: 1111 | O35: % CCRf
A36: 21 | B36: 3981 | C36: 12 | D36: 3992 | E36: 24 | F36: 4007 | G36: 23 | H36: 4015 | K36: 0 | L36: 2122 | O36: average response rate | P36: =H33/P28 -> 130.4814815 | Q36: =(H59-H33)/Q28 -> 148.3461538 | R36: =(H86-H59)/R28 -> 154.1851852 | S36: =(H113-H86)/S28 -> 164.8888889 | T36: =(H139-H113)/T28 -> 149.5769231 | U36: =(H166-H139)/U28 -> 148.2592593
A37: 12 | B37: 4116 | C37: 14 | D37: 4122 | E37: 13 | F37: 4127 | G37: 23 | H37: 4142 | K37: 0 | L37: 1112
A38: 12 | B38: 4245 | C38: 14 | D38: 4250 | E38: 13 | F38: 4255 | G38: 14 | H38: 4259 | K38: 0 | L38: 1111
A39: 12 | B39: 4364 | C39: 14 | D39: 4370 | E39: 13 | F39: 4379 | G39: 14 | H39: 4386 | K39: 0 | L39: 1111
A40: 12 | B40: 4522 | C40: 14 | D40: 4529 | E40: 13 | F40: 4534 | G40: 23 | H40: 4564 | K40: 0 | L40: 1112
A41: 12 | B41: 4672 | C41: 14 | D41: 4677 | E41: 13 | F41: 4685 | G41: 23 | H41: 4699 | K41: 0 | L41: 1112
A42: 12 | B42: 4800 | C42: 14 | D42: 4805 | E42: 13 | F42: 4811 | G42: 14 | H42: 4816 | K42: 0 | L42: 1111
A43: 12 | B43: 4923 | C43: 14 | D43: 4942 | E43: 13 | F43: 4948 | G43: 14 | H43: 4952 | K43: 0 | L43: 1111
A44: 12 | B44: 5060 | C44: 14 | D44: 5065 | E44: 13 | F44: 5071 | G44: 14 | H44: 5085 | K44: 0 | L44: 1111
A45: 12 | B45: 5191 | C45: 23 | D45: 5207 | E45: 24 | F45: 5212 | G45: 14 | H45: 5224 | K45: 0 | L45: 1221
A46: 12 | B46: 5346 | C46: 14 | D46: 5351 | E46: 24 | F46: 5365 | G46: 23 | H46: 5370 | K46: 0 | L46: 1122
A47: 12 | B47: 5519 | C47: 14 | D47: 5524 | E47: 13 | F47: 5530 | G47: 14 | H47: 5535 | K47: 0 | L47: 1111
A48: 12 | B48: 5665 | C48: 14 | D48: 5670 | E48: 13 | F48: 5675 | G48: 14 | H48: 5681 | K48: 0 | L48: 1111
A49: 12 | B49: 5786 | C49: 14 | D49: 5792 | E49: 13 | F49: 5797 | G49: 14 | H49: 5803 | K49: 0 | L49: 1111
A50: 12 | B50: 5904 | C50: 14 | D50: 5909 | E50: 13 | F50: 5914 | G50: 14 | H50: 5920 | K50: 0 | L50: 1111
A51: 12 | B51: 6040 | C51: 14 | D51: 6056 | E51: 24 | F51: 6070 | G51: 23 | H51: 6076 | K51: 0 | L51: 1122
A52: 12 | B52: 6179 | C52: 14 | D52: 6185 | E52: 13 | F52: 6190 | G52: 14 | H52: 6195 | K52: 0 | L52: 1111
A53: 12 | B53: 6315 | C53: 14 | D53: 6323 | E53: 24 | F53: 6334 | G53: 23 | H53: 6341 | K53: 0 | L53: 1122
A54: 12 | B54: 6455 | C54: 14 | D54: 6461 | E54: 13 | F54: 6474 | G54: 14 | H54: 6480 | K54: 0 | L54: 1111
A55: 12 | B55: 6611 | C55: 14 | D55: 6617 | E55: 13 | F55: 6622 | G55: 14 | H55: 6627 | K55: 0 | L55: 1111
A56: 12 | B56: 6793 | C56: 23 | D56: 6805 | E56: 13 | F56: 6822 | G56: 14 | H56: 6828 | K56: 0 | L56: 1211
A57: 12 | B57: 7103 | C57: 14 | D57: 7112 | E57: 13 | F57: 7118 | G57: 14 | H57: 7123 | K57: 0 | L57: 1111
A58: 12 | B58: 7227 | C58: 14 | D58: 7240 | E58: 13 | F58: 7246 | G58: 14 | H58: 7252 | K58: 0 | L58: 1111
A59: 12 | B59: 7355 | C59: 14 | D59: 7366 | E59: 13 | F59: 7373 | G59: 14 | H59: 7380 | K59: 0 | L59: 1111
A60: 12 | B60: 7497 | C60: 14 | D60: 7502 | E60: 13 | F60: 7509 | G60: 14 | H60: 7519 | K60: 0 | L60: 1111
A61: 12 | B61: 7656 | C61: 14 | D61: 7661 | E61: 13 | F61: 7666 | G61: 14 | H61: 7672 | K61: 0 | L61: 1111
A62: 12 | B62: 7775 | C62: 14 | D62: 7780 | E62: 13 | F62: 7786 | G62: 14 | H62: 7791 | K62: 0 | L62: 1111
A63: 12 | B63: 7893 | C63: 14 | D63: 7905 | E63: 13 | F63: 7910 | G63: 14 | H63: 7915 | K63: 0 | L63: 1111
A64: 12 | B64: 8018 | C64: 14 | D64: 8036 | E64: 13 | F64: 8042 | G64: 14 | H64: 8047 | K64: 0 | L64: 1111
A65: 21 | B65: 8325 | C65: 12 | D65: 8339 | E65: 13 | F65: 8344 | G65: 14 | H65: 8351 | K65: 0 | L65: 2111
A66: 12 | B66: 8469 | C66: 14 | D66: 8475 | E66: 13 | F66: 8480 | G66: 14 | H66: 8486 | K66: 0 | L66: 1111
A67: 12 | B67: 8613 | C67: 14 | D67: 8636 | E67: 13 | F67: 8641 | G67: 14 | H67: 8661 | K67: 0 | L67: 1111
A68: 12 | B68: 8805 | C68: 14 | D68: 8810 | E68: 24 | F68: 8824 | G68: 14 | H68: 8842 | K68: 0 | L68: 1121
A69: 12 | B69: 8966 | C69: 14 | D69: 8979 | E69: 13 | F69: 8984 | G69: 14 | H69: 8989 | K69: 0 | L69: 1111
A70: 12 | B70: 9105 | C70: 14 | D70: 9111 | E70: 13 | F70: 9116 | G70: 14 | H70: 9122 | K70: 0 | L70: 1111
A71: 12 | B71: 9246 | C71: 14 | D71: 9259 | E71: 13 | F71: 9263 | G71: 14 | H71: 9268 | K71: 0 | L71: 1111
A72: 12 | B72: 9390 | C72: 14 | D72: 9400 | E72: 13 | F72: 9405 | G72: 14 | H72: 9411 | K72: 0 | L72: 1111
A73: 12 | B73: 9522 | C73: 14 | D73: 9537 | E73: 13 | F73: 9546 | G73: 14 | H73: 9550 | K73: 0 | L73: 1111
A74: 12 | B74: 9696 | C74: 14 | D74: 9702 | E74: 13 | F74: 9706 | G74: 14 | H74: 9710 | K74: 0 | L74: 1111
A75: 12 | B75: 9832 | C75: 14 | D75: 9836 | E75: 13 | F75: 9842 | G75: 23 | H75: 9858 | K75: 0 | L75: 1112
A76: 12 | B76: 9973 | C76: 14 | D76: 9978 | E76: 13 | F76: 9983 | G76: 14 | H76: 9987 | K76: 0 | L76: 1111
A77: 12 | B77: 10121 | C77: 14 | D77: 10130 | E77: 13 | F77: 10137 | G77: 14 | H77: 10146 | K77: 0 | L77: 1111
A78: 21 | B78: 10262 | C78: 12 | D78: 10275 | E78: 13 | F78: 10280 | G78: 23 | H78: 10293 | K78: 0 | L78: 2112
A79: 12 | B79: 10415 | C79: 14 | D79: 10420 | E79: 13 | F79: 10425 | G79: 14 | H79: 10431 | K79: 0 | L79: 1111
A80: 12 | B80: 10585 | C80: 14 | D80: 10591 | E80: 13 | F80: 10598 | G80: 14 | H80: 10606 | K80: 0 | L80: 1111
A81: 12 | B81: 10754 | C81: 14 | D81: 10759 | E81: 13 | F81: 10764 | G81: 14 | H81: 10772 | K81: 0 | L81: 1111
A82: 12 | B82: 10881 | C82: 14 | D82: 10887 | E82: 13 | F82: 10892 | G82: 14 | H82: 10920 | K82: 0 | L82: 1111
A83: 12 | B83: 11054 | C83: 14 | D83: 11058 | E83: 13 | F83: 11063 | G83: 14 | H83: 11081 | K83: 0 | L83: 1111
A84: 12 | B84: 11183 | C84: 14 | D84: 11189 | E84: 13 | F84: 11194 | G84: 14 | H84: 11198 | K84: 0 | L84: 1111
A85: 12 | B85: 11342 | C85: 14 | D85: 11347 | E85: 13 | F85: 11352 | G85: 23 | H85: 11366 | K85: 0 | L85: 1112
A86: 21 | B86: 11521 | C86: 12 | D86: 11535 | E86: 13 | F86: 11539 | G86: 14 | H86: 11543 | K86: 0 | L86: 2111
A87: 12 | B87: 11694 | C87: 14 | D87: 11698 | E87: 13 | F87: 11704 | G87: 14 | H87: 11712 | K87: 0 | L87: 1111
A88: 12 | B88: 11831 | C88: 23 | D88: 11853 | E88: 24 | F88: 11862 | G88: 14 | H88: 11881 | K88: 0 | L88: 1221
A89: 12 | B89: 11984 | C89: 14 | D89: 11989 | E89: 13 | F89: 11993 | G89: 14 | H89: 11998 | K89: 0 | L89: 1111
A90: 12 | B90: 12113 | C90: 14 | D90: 12119 | E90: 13 | F90: 12124 | G90: 14 | H90: 12129 | K90: 0 | L90: 1111
A91: 12 | B91: 12250 | C91: 14 | D91: 12254 | E91: 13 | F91: 12259 | G91: 23 | H91: 12281 | K91: 0 | L91: 1112
A92: 12 | B92: 12406 | C92: 14 | D92: 12418 | E92: 13 | F92: 12424 | G92: 14 | H92: 12432 | K92: 0 | L92: 1111
A93: 12 | B93: 12533 | C93: 14 | D93: 12546 | E93: 13 | F93: 12550 | G93: 14 | H93: 12554 | K93: 0 | L93: 1111
A94: 12 | B94: 12795 | C94: 14 | D94: 12800 | E94: 13 | F94: 12836 | G94: 14 | H94: 12841 | K94: 0 | L94: 1111
A95: 12 | B95: 12983 | C95: 14 | D95: 12988 | E95: 13 | F95: 12992 | G95: 23 | H95: 13015 | K95: 0 | L95: 1112
A96: 21 | B96: 13127 | C96: 12 | D96: 13135 | E96: 13 | F96: 13139 | G96: 14 | H96: 13143 | K96: 0 | L96: 2111
A97: 21 | B97: 13279 | C97: 12 | D97: 13290 | E97: 13 | F97: 13295 | G97: 14 | H97: 13300 | K97: 0 | L97: 2111
A98: 21 | B98: 13419 | C98: 12 | D98: 13434 | E98: 13 | F98: 13438 | G98: 14 | H98: 13443 | K98: 0 | L98: 2111
A99: 21 | B99: 13561 | C99: 12 | D99: 13578 | E99: 13 | F99: 13585 | G99: 14 | H99: 13590 | K99: 0 | L99: 2111
A100: 12 | B100: 13737 | C100: 14 | D100: 13742 | E100: 13 | F100: 13747 | G100: 14 | H100: 13752 | K100: 0 | L100: 1111
A101: 12 | B101: 13971 | C101: 14 | D101: 13976 | E101: 13 | F101: 13982 | G101: 14 | H101: 13986 | K101: 0 | L101: 1111
A102: 12 | B102: 14148 | C102: 14 | D102: 14152 | E102: 24 | F102: 14168 | G102: 23 | H102: 14177 | K102: 0 | L102: 1122
A103: 12 | B103: 14337 | C103: 14 | D103: 14343 | E103: 13 | F103: 14349 | G103: 14 | H103: 14353 | K103: 0 | L103: 1111
A104: 12 | B104: 14500 | C104: 14 | D104: 14504 | E104: 13 | F104: 14509 | G104: 14 | H104: 14516 | K104: 0 | L104: 1111
A105: 12 | B105: 14658 | C105: 14 | D105: 14663 | E105: 24 | F105: 14677 | G105: 23 | H105: 14688 | K105: 0 | L105: 1122
A106: 12 | B106: 14868 | C106: 14 | D106: 14872 | E106: 13 | F106: 14877 | G106: 23 | H106: 14893 | K106: 0 | L106: 1112
A107: 21 | B107: 14994 | C107: 21 | D107: 15010 | E107: 22 | F107: 15021 | G107: 14 | H107: 15032 | K107: 0 | L107: 2221
A108: 12 | B108: 15138 | C108: 23 | D108: 15152 | E108: 24 | F108: 15157 | G108: 14 | H108: 15168 | K108: 0 | L108: 1221
A109: 12 | B109: 15339 | C109: 14 | D109: 15344 | E109: 13 | F109: 15349 | G109: 23 | H109: 15367 | K109: 0 | L109: 1112
A110: 12 | B110: 15528 | C110: 23 | D110: 15544 | E110: 24 | F110: 15550 | G110: 23 | H110: 15560 | K110: 0 | L110: 1222
A111: 12 | B111: 15708 | C111: 14 | D111: 15713 | E111: 13 | F111: 15719 | G111: 14 | H111: 15724 | K111: 0 | L111: 1111
A112: 21 | B112: 15823 | C112: 21 | D112: 15837 | E112: 11 | F112: 15852 | G112: 12 | H112: 15857 | K112: 0 | L112: 2211
A113: 21 | B113: 15965 | C113: 12 | D113: 15985 | E113: 13 | F113: 15990 | G113: 14 | H113: 15995 | K113: 0 | L113: 2111
A114: 12 | B114: 16105 | C114: 23 | D114: 16120 | E114: 13 | F114: 16132 | G114: 14 | H114: 16136 | K114: 0 | L114: 1211
A115: 21 | B115: 16252 | C115: 12 | D115: 16267 | E115: 13 | F115: 16272 | G115: 14 | H115: 16278 | K115: 0 | L115: 2111
A116: 21 | B116: 16389 | C116: 12 | D116: 16402 | E116: 24 | F116: 16417 | G116: 23 | H116: 16423 | K116: 0 | L116: 2122
A117: 12 | B117: 16526 | C117: 14 | D117: 16551 | E117: 13 | F117: 16560 | G117: 23 | H117: 16575 | K117: 0 | L117: 1112
A118: 12 | B118: 16700 | C118: 14 | D118: 16710 | E118: 13 | F118: 16716 | G118: 23 | H118: 16729 | K118: 0 | L118: 1112
A119: 12 | B119: 16833 | C119: 14 | D119: 16837 | E119: 13 | F119: 16843 | G119: 14 | H119: 16849 | K119: 0 | L119: 1111
A120: 21 | B120: 16960 | C120: 12 | D120: 16976 | E120: 13 | F120: 16981 | G120: 14 | H120: 16986 | K120: 0 | L120: 2111
A121: 12 | B121: 17092 | C121: 14 | D121: 17098 | E121: 24 | F121: 17110 | G121: 23 | H121: 17115 | K121: 0 | L121: 1122
A122: 12 | B122: 17245 | C122: 14 | D122: 17250 | E122: 13 | F122: 17256 | G122: 14 | H122: 17260 | K122: 0 | L122: 1111
A123: 12 | B123: 17378 | C123: 14 | D123: 17383 | E123: 13 | F123: 17388 | G123: 14 | H123: 17395 | K123: 0 | L123: 1111
A124: 12 | B124: 17530 | C124: 14 | D124: 17535 | E124: 13 | F124: 17540 | G124: 23 | H124: 17553 | K124: 0 | L124: 1112
A125: 21 | B125: 17657 | C125: 12 | D125: 17670 | E125: 13 | F125: 17675 | G125: 14 | H125: 17681 | K125: 0 | L125: 2111
A126: 21 | B126: 17822 | C126: 12 | D126: 17841 | E126: 24 | F126: 17855 | G126: 23 | H126: 17859 | K126: 0 | L126: 2122
A127: 12 | B127: 17973 | C127: 23 | D127: 17988 | E127: 13 | F127: 18000 | G127: 14 | H127: 18004 | K127: 0 | L127: 1211
A128: 12 | B128: 18126 | C128: 14 | D128: 18138 | E128: 13 | F128: 18152 | G128: 14 | H128: 18157 | K128: 0 | L128: 1111
A129: 12 | B129: 18287 | C129: 23 | D129: 18303 | E129: 13 | F129: 18319 | G129: 14 | H129: 18323 | K129: 0 | L129: 1211
A130: 12 | B130: 18498 | C130: 14 | D130: 18503 | E130: 13 | F130: 18507 | G130: 14 | H130: 18513 | K130: 0 | L130: 1111
A131: 12 | B131: 18663 | C131: 14 | D131: 18668 | E131: 13 | F131: 18674 | G131: 14 | H131: 18685 | K131: 0 | L131: 1111
A132: 21 | B132: 18860 | C132: 21 | D132: 18875 | E132: 11 | F132: 18889 | G132: 12 | H132: 18896 | K132: 0 | L132: 2211
A133: 12 | B133: 19039 | C133: 14 | D133: 19043 | E133: 13 | F133: 19049 | G133: 14 | H133: 19053 | K133: 0 | L133: 1111
A134: 21 | B134: 19156 | C134: 12 | D134: 19169 | E134: 13 | F134: 19173 | G134: 14 | H134: 19178 | K134: 0 | L134: 2111
A135: 21 | B135: 19294 | C135: 21 | D135: 19306 | E135: 11 | F135: 19321 | G135: 12 | H135: 19326 | K135: 0 | L135: 2211
A136: 21 | B136: 19435 | C136: 12 | D136: 19449 | E136: 13 | F136: 19455 | G136: 14 | H136: 19460 | K136: 0 | L136: 2111
A137: 21 | B137: 19561 | C137: 21 | D137: 19573 | E137: 11 | F137: 19595 | G137: 12 | H137: 19599 | K137: 0 | L137: 2211
A138: 21 | B138: 19731 | C138: 12 | D138: 19745 | E138: 13 | F138: 19749 | G138: 14 | H138: 19754 | K138: 0 | L138: 2111
A139: 12 | B139: 19869 | C139: 14 | D139: 19873 | E139: 13 | F139: 19878 | G139: 14 | H139: 19884 | K139: 0 | L139: 1111
A140: 12 | B140: 20036 | C140: 14 | D140: 20041 | E140: 13 | F140: 20046 | G140: 14 | H140: 20050 | K140: 0 | L140: 1111
A141: 21 | B141: 20165 | C141: 12 | D141: 20179 | E141: 13 | F141: 20183 | G141: 14 | H141: 20189 | K141: 0 | L141: 2111
A142: 21 | B142: 20305 | C142: 12 | D142: 20319 | E142: 13 | F142: 20323 | G142: 14 | H142: 20330 | K142: 0 | L142: 2111
A143: 12 | B143: 20446 | C143: 14 | D143: 20451 | E143: 13 | F143: 20456 | G143: 14 | H143: 20467 | K143: 0 | L143: 1111
A144: 12 | B144: 20576 | C144: 14 | D144: 20587 | E144: 13 | F144: 20595 | G144: 14 | H144: 20600 | K144: 0 | L144: 1111
A145: 21 | B145: 20720 | C145: 12 | D145: 20731 | E145: 13 | F145: 20736 | G145: 14 | H145: 20741 | K145: 0 | L145: 2111
A146: 21 | B146: 20873 | C146: 21 | D146: 20889 | E146: 11 | F146: 20908 | G146: 12 | H146: 20912 | K146: 0 | L146: 2211
A147: 21 | B147: 21019 | C147: 12 | D147: 21037 | E147: 13 | F147: 21041 | G147: 14 | H147: 21046 | K147: 0 | L147: 2111
A148: 21 | B148: 21165 | C148: 12 | D148: 21183 | E148: 13 | F148: 21187 | G148: 14 | H148: 21193 | K148: 0 | L148: 2111
A149: 12 | B149: 21330 | C149: 14 | D149: 21335 | E149: 13 | F149: 21340 | G149: 14 | H149: 21349 | K149: 0 | L149: 1111
A150: 12 | B150: 21484 | C150: 14 | D150: 21489 | E150: 13 | F150: 21494 | G150: 14 | H150: 21499 | K150: 0 | L150: 1111
A151: 21 | B151: 21599 | C151: 12 | D151: 21611 | E151: 13 | F151: 21616 | G151: 14 | H151: 21622 | K151: 0 | L151: 2111
A152: 12 | B152: 21750 | C152: 14 | D152: 21755 | E152: 13 | F152: 21761 | G152: 14 | H152: 21771 | K152: 0 | L152: 1111
A153: 21 | B153: 21891 | C153: 12 | D153: 21907 | E153: 13 | F153: 21912 | G153: 14 | H153: 21918 | K153: 0 | L153: 2111
A154: 12 | B154: 22105 | C154: 14 | D154: 22122 | E154: 13 | F154: 22127 | G154: 23 | H154: 22146 | K154: 0 | L154: 1112
A155: 12 | B155: 22265 | C155: 14 | D155: 22270 | E155: 13 | F155: 22274 | G155: 14 | H155: 22283 | K155: 0 | L155: 1111
A156: 12 | B156: 22393 | C156: 14 | D156: 22398 | E156: 13 | F156: 22402 | G156: 23 | H156: 22425 | K156: 0 | L156: 1112
A157: 12 | B157: 22538 | C157: 14 | D157: 22546 | E157: 13 | F157: 22551 | G157: 14 | H157: 22556 | K157: 0 | L157: 1111
A158: 12 | B158: 22698 | C158: 14 | D158: 22703 | E158: 13 | F158: 22708 | G158: 14 | H158: 22713 | K158: 0 | L158: 1111
A159: 12 | B159: 22843 | C159: 14 | D159: 22847 | E159: 13 | F159: 22851 | G159: 23 | H159: 22867 | K159: 0 | L159: 1112
A160: 12 | B160: 22982 | C160: 23 | D160: 22994 | E160: 13 | F160: 23010 | G160: 14 | H160: 23014 | K160: 0 | L160: 1211
A161: 12 | B161: 23143 | C161: 14 | D161: 23148 | E161: 13 | F161: 23155 | G161: 14 | H161: 23162 | K161: 0 | L161: 1111
A162: 21 | B162: 23260 | C162: 21 | D162: 23274 | E162: 11 | F162: 23294 | G162: 12 | H162: 23298 | K162: 0 | L162: 2211
A163: 21 | B163: 23424 | C163: 12 | D163: 23440 | E163: 13 | F163: 23447 | G163: 23 | H163: 23459 | K163: 0 | L163: 2112
A164: 21 | B164: 23557 | C164: 21 | D164: 23572 | E164: 11 | F164: 23584 | G164: 12 | H164: 23588 | K164: 0 | L164: 2211
A165: 21 | B165: 23707 | C165: 21 | D165: 23712 | E165: 11 | F165: 23728 | G165: 12 | H165: 23732 | K165: 0 | L165: 2211
A166: 21 | B166: 23863 | C166: 12 | D166: 23876 | E166: 13 | F166: 23880 | G166: 14 | H166: 23887 | K166: 0 | L166: 2111

Sheet !N102910.092
A1: Report for:!N102910.092
A2: Date: | B2: <date>
A3: Hen: | B3: <hen> | F3: Correct Sequence | G3: =Start!J2 -> 2212 | P3: Total Sequences in Data | Q3: =4994-COUNTBLANK(L7:L5000) -> 154 | V3: Total Sequences in Block Data | W3: =COUNTA(L7:L32) -> 26 | AA3: Total Sequences in Block Data | AB3: =COUNTA(L33:L57) -> 25 | AF3: Total Sequences in Block Data | AG3: =COUNTA(L58:L83) -> 26 | AK3: Total Sequences in Block Data | AL3: =COUNTA(L84:L109) -> 26 | AP3: Total Sequences in Block Data | AQ3: =COUNTA(L110:L134) -> 25 | AU3: Total Sequences in Block Data | AV3: =COUNTA(L135:L160) -> 26
P4: Total Sequences in Summary | Q4: =SUM(O7:O22) -> 154 | V4: Total Sequences in Block Summary | W4: =SUM(U7:U22) -> 26 | AA4: Total Sequences in Block Summary | AB4: =SUM(Z7:Z22) -> 25 | AF4: Total Sequences in Block Summary | AG4: =SUM(AE7:AE22) -> 26 | AK4: Total Sequences in Block Summary | AL4: =SUM(AJ7:AJ22) -> 26 | AP4: Total Sequences in Block Summary | AQ4: =SUM(AO7:AO22) -> 25 | AU4: Total Sequences in Block Summary | AV4: =SUM(AT7:AT22) -> 26
T5: Block 1 | Y5: Block 2 | AD5: Block 3 | AI5: Block 4 | AN5: Block 5 | AS5: Block 6
A6: Sequence Component 1 | B6: Time 1 | C6: Sequence Component 2 | D6: Time 2 | E6: Sequence Component 3 | F6: Time 3 | G6: Sequence Component 4 | H6: Time 4 | I6: Sequence Component 5 | J6: Time 5 | K6: Correct? 0=No 1=Yes | L6: Sequence | N6: Frequency | P6: Relative Frequency | Q6: Variability | T6: Frequency | V6: Relative Frequency | W6: Variability | Y6: Frequency | AA6: Relative Frequency | AB6: Variability | AD6: Frequency | AF6: Relative Frequency | AG6: Variability | AI6: Frequency | AK6: Relative Frequency | AL6: Variability | AN6: Frequency | AP6: Relative Frequency | AQ6: Variability | AS6: Frequency | AU6: Relative Frequency | AV6: Variability
A7: 21 | B7: 36 | C7: 12 | D7: 56 | E7: 24 | F7: 66 | G7: 14 | H7: 79 | K7: 0 | L7: 2121 | N7: 1111 | O7: =COUNTIF($L$7:$L$500,N7) -> 63 | P7: =O7/$Q$4 -> 0.4090909091 | Q7: =IF(P7=0,0,(P7*((LOG(P7))/LOG(2)))) -> -0.5275254343 | T7: =N7 -> 1111 | U7: =COUNTIF(L7:L32,T7) -> 17 | V7: =U7/(W4-U20) -> 0.6538461538 | W7: =IF(V7=0,0,(V7*((LOG(V7))/LOG(2)))) -> -0.4007925734 | Y7: =N7 -> 1111 | Z7: =COUNTIF(L33:L57,Y7) -> 12 | AA7: =Z7/(AB4-Z20) -> 0.48 | AB7: =IF(AA7=0,0,(AA7*((LOG(AA7))/LOG(2)))) -> -0.5082689707 | AD7: =N7 -> 1111 | AE7: =COUNTIF(L58:L83,AD7) -> 12 | AF7: =AE7/(AG4-AE20) -> 0.4615384615 | AG7: =IF(AF7=0,0,(AF7*((LOG(AF7))/LOG(2)))) -> -0.5148356388 | AI7: =N7 -> 1111 | AJ7: =COUNTIF(L84:L109,AI7) -> 11 | AK7: =AJ7/(AL4-AJ20) -> 0.44 | AL7: =IF(AK7=0,0,(AK7*((LOG(AK7))/LOG(2)))) -> -0.5211468113 | AN7: =N7 -> 1111 | AO7: =COUNTIF(L110:L134,AN7) -> 3 | AP7: =AO7/(AQ4-AO20) -> 0.12 | AQ7: =IF(AP7=0,0,(AP7*((LOG(AP7))/LOG(2)))) -> -0.3670672427 | AS7: =N7 -> 1111 | AT7: =COUNTIF(L135:L160,AS7) -> 8 | AU7: =AT7/(AV4-AT20) -> 0.3076923077 | AV7: =IF(AU7=0,0,(AU7*((LOG(AU7))/LOG(2)))) -> -0.523212221
A8: 12 | B8: 181 | C8: 14 | D8: 198 | E8: 13 | F8: 223 | G8: 14 | H8: 227 | K8: 0 | L8: 1111 | N8: 1112 | O8: =COUNTIF($L$7:$L$500,N8) -> 7 | P8: =O8/$Q$4 -> 0.04545454545 | Q8: =IF(P8=0,0,(P8*((LOG(P8))/LOG(2)))) -> -0.2027014372 | T8: =N8 -> 1112 | U8: =COUNTIF(L7:L32,T8) -> 2 | V8: =U8/(W4-U20) -> 0.07692307692 | W8: =IF(V8=0,0,(V8*((LOG(V8))/LOG(2)))) -> -0.2846492091 | Y8: =N8 -> 1112 | Z8: =COUNTIF(L33:L57,Y8) -> 2 | AA8: =Z8/(AB4-Z20) -> 0.08 | AB8: =IF(AA8=0,0,(AA8*((LOG(AA8))/LOG(2)))) -> -0.2915084952 | AD8: =N8 -> 1112 | AE8: =COUNTIF(L58:L83,AD8) -> 0 | AF8: =AE8/(AG4-AE20) -> 0 | AG8: =IF(AF8=0,0,(AF8*((LOG(AF8))/LOG(2)))) -> 0 | AI8: =N8 -> 1112 | AJ8: =COUNTIF(L84:L109,AI8) -> 2 | AK8: =AJ8/(AL4-AJ20) -> 0.08 | AL8: =IF(AK8=0,0,(AK8*((LOG(AK8))/LOG(2)))) -> -0.2915084952 | AN8: =N8 -> 1112 | AO8: =COUNTIF(L110:L134,AN8) -> 1 | AP8: =AO8/(AQ4-AO20) -> 0.04 | AQ8: =IF(AP8=0,0,(AP8*((LOG(AP8))/LOG(2)))) -> -0.1857542476 | AS8: =N8 -> 1112 | AT8: =COUNTIF(L135:L160,AS8) -> 0 | AU8: =AT8/(AV4-AT20) -> 0 | AV8: =IF(AU8=0,0,(AU8*((LOG(AU8))/LOG(2)))) -> 0
A9: 12 | B9: 329 | C9: 14 | D9: 356 | E9: 13 | F9: 362 | G9: 14 | H9: 371 | K9: 0 | L9: 1111 | N9: 1121 | O9: =COUNTIF($L$7:$L$500,N9) -> 7 | P9: =O9/$Q$4 -> 0.04545454545 | Q9: =IF(P9=0,0,(P9*((LOG(P9))/LOG(2)))) -> -0.2027014372 | T9: =N9 -> 1121 | U9: =COUNTIF(L7:L32,T9) -> 1 | V9: =U9/(W4-U20) -> 0.03846153846 | W9: =IF(V9=0,0,(V9*((LOG(V9))/LOG(2)))) -> -0.180786143 | Y9: =N9 -> 1121 | Z9: =COUNTIF(L33:L57,Y9) -> 3 | AA9: =Z9/(AB4-Z20) -> 0.12 | AB9: =IF(AA9=0,0,(AA9*((LOG(AA9))/LOG(2)))) -> -0.3670672427 | AD9: =N9 -> 1121 | AE9: =COUNTIF(L58:L83,AD9) -> 2 | AF9: =AE9/(AG4-AE20) -> 0.07692307692 | AG9: =IF(AF9=0,0,(AF9*((LOG(AF9))/LOG(2)))) -> -0.2846492091 | AI9: =N9 -> 1121 | AJ9: =COUNTIF(L84:L109,AI9) -> 0 | AK9: =AJ9/(AL4-AJ20) -> 0 | AL9: =IF(AK9=0,0,(AK9*((LOG(AK9))/LOG(2)))) -> 0 | AN9: =N9 -> 1121 | AO9: =COUNTIF(L110:L134,AN9) -> 1 | AP9: =AO9/(AQ4-AO20) -> 0.04 | AQ9: =IF(AP9=0,0,(AP9*((LOG(AP9))/LOG(2)))) -> -0.1857542476 | AS9: =N9 -> 1121 | AT9: =COUNTIF(L135:L160,AS9) -> 0 | AU9: =AT9/(AV4-AT20) -> 0 | AV9: =IF(AU9=0,0,(AU9*((LOG(AU9))/LOG(2)))) -> 0
A10: 12 | B10: 478 | C10: 14 | D10: 484 | E10: 13 | F10: 504 | G10: 14 | H10: 509 | K10: 0 | L10: 1111 | N10: 1122 | O10: =COUNTIF($L$7:$L$500,N10) -> 6 | P10: =O10/$Q$4 -> 0.03896103896 | Q10: =IF(P10=0,0,(P10*((LOG(P10))/LOG(2)))) -> -0.1824087288 | T10: =N10 -> 1122 | U10: =COUNTIF(L7:L32,T10) -> 0 | V10: =U10/(W4-U20) -> 0 | W10: =IF(V10=0,0,(V10*((LOG(V10))/LOG(2)))) -> 0 | Y10: =N10 -> 1122 | Z10: =COUNTIF(L33:L57,Y10) -> 0 | AA10: =Z10/(AB4-Z20) -> 0 | AB10: =IF(AA10=0,0,(AA10*((LOG(AA10))/LOG(2)))) -> 0 | AD10: =N10 -> 1122 | AE10: =COUNTIF(L58:L83,AD10) -> 1 | AF10: =AE10/(AG4-AE20) -> 0.03846153846 | AG10: =IF(AF10=0,0,(AF10*((LOG(AF10))/LOG(2)))) -> -0.180786143 | AI10: =N10 -> 1122 | AJ10: =COUNTIF(L84:L109,AI10) -> 2 | AK10: =AJ10/(AL4-AJ20) -> 0.08 | AL10: =IF(AK10=0,0,(AK10*((LOG(AK10))/LOG(2)))) -> -0.2915084952 | AN10: =N10 -> 1122 | AO10: =COUNTIF(L110:L134,AN10) -> 2 | AP10: =AO10/(AQ4-AO20) -> 0.08 | AQ10: =IF(AP10=0,0,(AP10*((LOG(AP10))/LOG(2)))) -> -0.2915084952 | AS10: =N10 -> 1122 | AT10: =COUNTIF(L135:L160,AS10) -> 1 | AU10: =AT10/(AV4-AT20) -> 0.03846153846 | AV10: =IF(AU10=0,0,(AU10*((LOG(AU10))/LOG(2)))) -> -0.180786143
A11: 21 | B11: 625 | C11: 21 | D11: 640 | E11: 11 | F11: 654 | G11: 12 | H11: 660 | K11: 0 | L11: 2211 | N11: 1211 | O11: =COUNTIF($L$7:$L$500,N11) -> 6 | P11: =O11/$Q$4 -> 0.03896103896 | Q11: =IF(P11=0,0,(P11*((LOG(P11))/LOG(2)))) -> -0.1824087288 | T11: =N11 -> 1211 | U11: =COUNTIF(L7:L32,T11) -> 1 | V11: =U11/(W4-U20) -> 0.03846153846 | W11: =IF(V11=0,0,(V11*((LOG(V11))/LOG(2)))) -> -0.180786143 | Y11: =N11 -> 1211 | Z11: =COUNTIF(L33:L57,Y11) -> 0 | AA11: =Z11/(AB4-Z20) -> 0 | AB11: =IF(AA11=0,0,(AA11*((LOG(AA11))/LOG(2)))) -> 0 | AD11: =N11 -> 1211 | AE11: =COUNTIF(L58:L83,AD11) -> 3 | AF11: =AE11/(AG4-AE20) -> 0.1153846154 | AG11: =IF(AF11=0,0,(AF11*((LOG(AF11))/LOG(2)))) -> -0.3594781405 | AI11: =N11 -> 1211 | AJ11: =COUNTIF(L84:L109,AI11) -> 0 | AK11: =AJ11/(AL4-AJ20) -> 0 | AL11: =IF(AK11=0,0,(AK11*((LOG(AK11))/LOG(2)))) -> 0 | AN11: =N11 -> 1211 | AO11: =COUNTIF(L110:L134,AN11) -> 1 | AP11: =AO11/(AQ4-AO20) -> 0.04 | AQ11: =IF(AP11=0,0,(AP11*((LOG(AP11))/LOG(2)))) -> -0.1857542476 | AS11: =N11 -> 1211 | AT11: =COUNTIF(L135:L160,AS11) -> 1 | AU11: =AT11/(AV4-AT20) -> 0.03846153846 | AV11: =IF(AU11=0,0,(AU11*((LOG(AU11))/LOG(2)))) -> -0.180786143
A12: 12 | B12: 777 | C12: 14 | D12: 781 | E12: 13 | F12: 786 | G12: 14 | H12: 792 | K12: 0 | L12: 1111 | N12: 1212 | O12: =COUNTIF($L$7:$L$500,N12) -> 0 | P12: =O12/$Q$4 -> 0 | Q12: =IF(P12=0,0,(P12*((LOG(P12))/LOG(2)))) -> 0 | T12: =N12 -> 1212 | U12: =COUNTIF(L7:L32,T12) -> 0 | V12: =U12/(W4-U20) -> 0 | W12: =IF(V12=0,0,(V12*((LOG(V12))/LOG(2)))) -> 0 | Y12: =N12 -> 1212 | Z12: =COUNTIF(L33:L57,Y12) -> 0 | AA12: =Z12/(AB4-Z20) -> 0 | AB12: =IF(AA12=0,0,(AA12*((LOG(AA12))/LOG(2)))) -> 0 | AD12: =N12 -> 1212 | AE12: =COUNTIF(L58:L83,AD12) -> 0 | AF12: =AE12/(AG4-AE20) -> 0 | AG12: =IF(AF12=0,0,(AF12*((LOG(AF12))/LOG(2)))) -> 0 | AI12: =N12 -> 1212 | AJ12: =COUNTIF(L84:L109,AI12) -> 0 | AK12: =AJ12/(AL4-AJ20) -> 0 | AL12: =IF(AK12=0,0,(AK12*((LOG(AK12))/LOG(2)))) -> 0 | AN12: =N12 -> 1212 | AO12: =COUNTIF(L110:L134,AN12) -> 0 | AP12: =AO12/(AQ4-AO20) -> 0 | AQ12: =IF(AP12=0,0,(AP12*((LOG(AP12))/LOG(2)))) -> 0 | AS12: =N12 -> 1212 | AT12: =COUNTIF(L135:L160,AS12) -> 0 | AU12: =AT12/(AV4-AT20) -> 0 | AV12: =IF(AU12=0,0,(AU12*((LOG(AU12))/LOG(2)))) -> 0
A13: 12 | B13: 915 | C13: 14 | D13: 920 | E13: 13 | F13: 925 | G13: 14 | H13: 937 | K13: 0 | L13: 1111 | N13: 1221 | O13: =COUNTIF($L$7:$L$500,N13) -> 3 | P13: =O13/$Q$4 -> 0.01948051948 | Q13: =IF(P13=0,0,(P13*((LOG(P13))/LOG(2)))) -> -0.1106848839 | T13: =N13 -> 1221 | U13: =COUNTIF(L7:L32,T13) -> 0 | V13: =U13/(W4-U20) -> 0 | W13: =IF(V13=0,0,(V13*((LOG(V13))/LOG(2)))) -> 0 | Y13: =N13 -> 1221 | Z13: =COUNTIF(L33:L57,Y13) -> 0 | AA13: =Z13/(AB4-Z20) -> 0 | AB13: =IF(AA13=0,0,(AA13*((LOG(AA13))/LOG(2)))) -> 0 | AD13: =N13 -> 1221 | AE13: =COUNTIF(L58:L83,AD13) -> 0 | AF13: =AE13/(AG4-AE20) -> 0 | AG13: =IF(AF13=0,0,(AF13*((LOG(AF13))/LOG(2)))) -> 0 | AI13: =N13 -> 1221 | AJ13: =COUNTIF(L84:L109,AI13) -> 0 | AK13: =AJ13/(AL4-AJ20) -> 0 | AL13: =IF(AK13=0,0,(AK13*((LOG(AK13))/LOG(2)))) -> 0 | AN13: =N13 -> 1221 | AO13: =COUNTIF(L110:L134,AN13) -> 1 | AP13: =AO13/(AQ4-AO20) -> 0.04 | AQ13: =IF(AP13=0,0,(AP13*((LOG(AP13))/LOG(2)))) -> -0.1857542476 | AS13: =N13 -> 1221 | AT13: =COUNTIF(L135:L160,AS13) -> 2 | AU13: =AT13/(AV4-AT20) -> 0.07692307692 | AV13: =IF(AU13=0,0,(AU13*((LOG(AU13))/LOG(2)))) -> -0.2846492091
A14: 12 | B14: 1076 | C14: 14 | D14: 1082 | E14: 13 | F14: 1090 | G14: 14 | H14: 1096 | K14: 0 | L14: 1111 | N14: 1222 | O14: =COUNTIF($L$7:$L$500,N14) -> 6 | P14: =O14/$Q$4 -> 0.03896103896 | Q14: =IF(P14=0,0,(P14*((LOG(P14))/LOG(2)))) -> -0.1824087288 | T14: =N14 -> 1222 | U14: =COUNTIF(L7:L32,T14) -> 0 | V14: =U14/(W4-U20) -> 0 | W14: =IF(V14=0,0,(V14*((LOG(V14))/LOG(2)))) -> 0 | Y14: =N14 -> 1222 | Z14: =COUNTIF(L33:L57,Y14) -> 2 | AA14: =Z14/(AB4-Z20) -> 0.08 | AB14: =IF(AA14=0,0,(AA14*((LOG(AA14))/LOG(2)))) -> -0.2915084952 | AD14: =N14 -> 1222 | AE14: =COUNTIF(L58:L83,AD14) -> 1 | AF14: =AE14/(AG4-AE20) -> 0.03846153846 | AG14: =IF(AF14=0,0,(AF14*((LOG(AF14))/LOG(2)))) -> -0.180786143 | AI14: =N14 -> 1222 | AJ14: =COUNTIF(L84:L109,AI14) -> 1 | AK14: =AJ14/(AL4-AJ20) -> 0.04 | AL14: =IF(AK14=0,0,(AK14*((LOG(AK14))/LOG(2)))) -> -0.1857542476 | AN14: =N14 -> 1222 | AO14: =COUNTIF(L110:L134,AN14) -> 1 | AP14: =AO14/(AQ4-AO20) -> 0.04 | AQ14: =IF(AP14=0,0,(AP14*((LOG(AP14))/LOG(2)))) -> -0.1857542476 | AS14: =N14 -> 1222 | AT14: =COUNTIF(L135:L160,AS14) -> 1 | AU14: =AT14/(AV4-AT20) -> 0.03846153846 | AV14: =IF(AU14=0,0,(AU14*((LOG(AU14))/LOG(2)))) -> -0.180786143
A15: 12 | B15: 1194 | C15: 14 | D15: 1199 | E15: 13 | F15: 1204 | G15: 14 | H15: 1212 | K15: 0 | L15: 1111 | N15: 2111 | O15: =COUNTIF($L$7:$L$500,N15) -> 33 | P15: =O15/$Q$4 -> 0.2142857143 | Q15: =IF(P15=0,0,(P15*((LOG(P15))/LOG(2)))) -> -0.4762269474 | T15: =N15 -> 2111 | U15: =COUNTIF(L7:L32,T15) -> 2 | V15: =U15/(W4-U20) -> 0.07692307692 | W15: =IF(V15=0,0,(V15*((LOG(V15))/LOG(2)))) -> -0.2846492091 | Y15: =N15 -> 2111 | Z15: =COUNTIF(L33:L57,Y15) -> 5 | AA15: =Z15/(AB4-Z20) -> 0.2 | AB15: =IF(AA15=0,0,(AA15*((LOG(AA15))/LOG(2)))) -> -0.464385619 | AD15: =N15 -> 2111 | AE15: =COUNTIF(L58:L83,AD15) -> 7 | AF15: =AE15/(AG4-AE20) -> 0.2692307692 | AG15: =IF(AF15=0,0,(AF15*((LOG(AF15))/LOG(2)))) -> -0.5096766759 | AI15: =N15 -> 2111 | AJ15: =COUNTIF(L84:L109,AI15) -> 5 | AK15: =AJ15/(AL4-AJ20) -> 0.2 | AL15: =IF(AK15=0,0,(AK15*((LOG(AK15))/LOG(2)))) -> -0.464385619 | AN15: =N15 -> 2111 | AO15: =COUNTIF(L110:L134,AN15) -> 8 | AP15: =AO15/(AQ4-AO20) -> 0.32 | AQ15: =IF(AP15=0,0,(AP15*((LOG(AP15))/LOG(2)))) -> -0.5260339807 | AS15: =N15 -> 2111 | AT15: =COUNTIF(L135:L160,AS15) -> 6 | AU15: =AT15/(AV4-AT20) -> 0.2307692308 | AV15: =IF(AU15=0,0,(AU15*((LOG(AU15))/LOG(2)))) -> -0.4881870502
A16: 12 | B16: 1316 | C16: 14 | D16: 1339 | E16: 24 | F16: 1351 | G16: 14 | H16: 1365 | K16: 0 | L16: 1121 | N16: 2112 | O16: =COUNTIF($L$7:$L$500,N16) -> 1 | P16: =O16/$Q$4 -> 0.006493506494 | Q16: =IF(P16=0,0,(P16*((LOG(P16))/LOG(2)))) -> -0.04718692559 | T16: =N16 -> 2112 | U16: =COUNTIF(L7:L32,T16) -> 0 | V16: =U16/(W4-U20) -> 0 | W16: =IF(V16=0,0,(V16*((LOG(V16))/LOG(2)))) -> 0 | Y16: =N16 -> 2112 | Z16: =COUNTIF(L33:L57,Y16) -> 0 | AA16: =Z16/(AB4-Z20) -> 0 | AB16: =IF(AA16=0,0,(AA16*((LOG(AA16))/LOG(2)))) -> 0 | AD16: =N16 -> 2112 | AE16: =COUNTIF(L58:L83,AD16) -> 0 | AF16: =AE16/(AG4-AE20) -> 0 | AG16: =IF(AF16=0,0,(AF16*((LOG(AF16))/LOG(2)))) -> 0 | AI16: =N16 -> 2112 | AJ16: =COUNTIF(L84:L109,AI16) -> 0 | AK16: =AJ16/(AL4-AJ20) -> 0 | AL16: =IF(AK16=0,0,(AK16*((LOG(AK16))/LOG(2)))) -> 0 | AN16: =N16 -> 2112 | AO16: =COUNTIF(L110:L134,AN16) -> 0 | AP16: =AO16/(AQ4-AO20) -> 0 | AQ16: =IF(AP16=0,0,(AP16*((LOG(AP16))/LOG(2)))) -> 0 | AS16: =N16 -> 2112 | AT16: =COUNTIF(L135:L160,AS16) -> 1 | AU16: =AT16/(AV4-AT20) -> 0.03846153846 | AV16: =IF(AU16=0,0,(AU16*((LOG(AU16))/LOG(2)))) -> -0.180786143
A17: 12 | B17: 1486 | C17: 14 | D17: 1499 | E17: 13 | F17: 1504 | G17: 14 | H17: 1521 | K17: 0 | L17: 1111 | N17: 2121 | O17: =COUNTIF($L$7:$L$500,N17) -> 1 | P17: =O17/$Q$4 -> 0.006493506494 | Q17: =IF(P17=0,0,(P17*((LOG(P17))/LOG(2)))) -> -0.04718692559 | T17: =N17 -> 2121 | U17: =COUNTIF(L7:L32,T17) -> 1 | V17: =U17/(W4-U20) -> 0.03846153846 | W17: =IF(V17=0,0,(V17*((LOG(V17))/LOG(2)))) -> -0.180786143 | Y17: =N17 -> 2121 | Z17: =COUNTIF(L33:L57,Y17) -> 0 | AA17: =Z17/(AB4-Z20) -> 0 | AB17: =IF(AA17=0,0,(AA17*((LOG(AA17))/LOG(2)))) -> 0 | AD17: =N17 -> 2121 | AE17: =COUNTIF(L58:L83,AD17) -> 0 | AF17: =AE17/(AG4-AE20) -> 0 | AG17: =IF(AF17=0,0,(AF17*((LOG(AF17))/LOG(2)))) -> 0 | AI17: =N17 -> 2121 | AJ17: =COUNTIF(L84:L109,AI17) -> 0 | AK17: =AJ17/(AL4-AJ20) -> 0 | AL17: =IF(AK17=0,0,(AK17*((LOG(AK17))/LOG(2)))) -> 0 | AN17: =N17 -> 2121 | AO17: =COUNTIF(L110:L134,AN17) -> 0 | AP17: =AO17/(AQ4-AO20) -> 0 | AQ17: =IF(AP17=0,0,(AP17*((LOG(AP17))/LOG(2)))) -> 0 | AS17: =N17 -> 2121 | AT17: =COUNTIF(L135:L160,AS17) -> 0 | AU17: =AT17/(AV4-AT20) -> 0 | AV17: =IF(AU17=0,0,(AU17*((LOG(AU17))/LOG(2)))) -> 0
A18: 12 | B18: 1641 | C18: 14 | D18: 1646 | E18: 13 | F18: 1651 | G18: 14 | H18: 1658 | K18: 0 | L18: 1111 | N18: 2122 | O18: =COUNTIF($L$7:$L$500,N18) -> 2 | P18: =O18/$Q$4 -> 0.01298701299 | Q18: =IF(P18=0,0,(P18*((LOG(P18))/LOG(2)))) -> -0.08138683819 | T18: =N18 -> 2122 | U18: =COUNTIF(L7:L32,T18) -> 1 | V18: =U18/(W4-U20) -> 0.03846153846 | W18: =IF(V18=0,0,(V18*((LOG(V18))/LOG(2)))) -> -0.180786143 | Y18: =N18 -> 2122 | Z18: =COUNTIF(L33:L57,Y18) -> 0 | AA18: =Z18/(AB4-Z20) -> 0 | AB18: =IF(AA18=0,0,(AA18*((LOG(AA18))/LOG(2)))) -> 0 | AD18: =N18 -> 2122 | AE18: =COUNTIF(L58:L83,AD18) -> 0 | AF18: =AE18/(AG4-AE20) -> 0 | AG18: =IF(AF18=0,0,(AF18*((LOG(AF18))/LOG(2)))) -> 0 | AI18: =N18 -> 2122 | AJ18: =COUNTIF(L84:L109,AI18) -> 1 | AK18: =AJ18/(AL4-AJ20) -> 0.04 | AL18: =IF(AK18=0,0,(AK18*((LOG(AK18))/LOG(2)))) -> -0.1857542476 | AN18: =N18 -> 2122 | AO18: =COUNTIF(L110:L134,AN18) -> 0 | AP18: =AO18/(AQ4-AO20) -> 0 | AQ18: =IF(AP18=0,0,(AP18*((LOG(AP18))/LOG(2)))) -> 0 | AS18: =N18 -> 2122 | AT18: =COUNTIF(L135:L160,AS18) -> 0 | AU18: =AT18/(AV4-AT20) -> 0 | AV18: =IF(AU18=0,0,(AU18*((LOG(AU18))/LOG(2)))) -> 0
A19: 12 | B19: 1767 | C19: 14 | D19: 1772 | E19: 13 | F19: 1776 | G19: 14 | H19: 1782 | K19: 0 | L19: 1111 | N19: 2211 | O19: =COUNTIF($L$7:$L$500,N19) -> 12 | P19: =O19/$Q$4 -> 0.07792207792 | Q19: =IF(P19=0,0,(P19*((LOG(P19))/LOG(2)))) -> -0.2868953797 | T19: =N19 -> 2211 | U19: =COUNTIF(L7:L32,T19) -> 1 | V19: =U19/(W4-U20) -> 0.03846153846 | W19: =IF(V19=0,0,(V19*((LOG(V19))/LOG(2)))) -> -0.180786143 | Y19: =N19 -> 2211 | Z19: =COUNTIF(L33:L57,Y19) -> 1 | AA19: =Z19/(AB4-Z20) -> 0.04 | AB19: =IF(AA19=0,0,(AA19*((LOG(AA19))/LOG(2)))) -> -0.1857542476 | AD19: =N19 -> 2211 | AE19: =COUNTIF(L58:L83,AD19) -> 0 | AF19: =AE19/(AG4-AE20) -> 0 | AG19: =IF(AF19=0,0,(AF19*((LOG(AF19))/LOG(2)))) -> 0 | AI19: =N19 -> 2211 | AJ19: =COUNTIF(L84:L109,AI19) -> 2 | AK19: =AJ19/(AL4-AJ20) -> 0.08 | AL19: =IF(AK19=0,0,(AK19*((LOG(AK19))/LOG(2)))) -> -0.2915084952 | AN19: =N19 -> 2211 | AO19: =COUNTIF(L110:L134,AN19) -> 5 | AP19: =AO19/(AQ4-AO20) -> 0.2 | AQ19: =IF(AP19=0,0,(AP19*((LOG(AP19))/LOG(2)))) -> -0.464385619 | AS19: =N19 -> 2211 | AT19: =COUNTIF(L135:L160,AS19) -> 3 | AU19: =AT19/(AV4-AT20) -> 0.1153846154 | AV19: =IF(AU19=0,0,(AU19*((LOG(AU19))/LOG(2)))) -> -0.3594781405
A20: 21 | B20: 1893 | C20: 12 | D20: 1906 | E20: 13 | F20: 1912 | G20: 14 | H20: 1921 | K20: 0 | L20: 2111 | N20: 2212 | O20: =COUNTIF($L$7:$L$500,N20) -> 1 | P20: =O20/$Q$4 -> 0.006493506494 | Q20: =IF(P20=0,0,(P20*((LOG(P20))/LOG(2)))) -> -0.04718692559 | T20: =N20 -> 2212 | U20: =COUNTIF(L7:L32,T20) -> 0 | Y20: =N20 -> 2212 | Z20: =COUNTIF(L33:L57,Y20) -> 0 | AD20: =N20 -> 2212 | AE20: =COUNTIF(L58:L83,AD20) -> 0 | AI20: =N20 -> 2212 | AJ20: =COUNTIF(L84:L109,AI20) -> 1 | AN20: =N20 -> 2212 | AO20: =COUNTIF(L110:L134,AN20) -> 0 | AS20: =N20 -> 2212 | AT20: =COUNTIF(L135:L160,AS20) -> 0
A21: 12 | B21: 2031 | C21: 14 | D21: 2036 | E21: 13 | F21: 2041 | G21: 14 | H21: 2047 | K21: 0 | L21: 1111 | N21: 2221 | O21: =COUNTIF($L$7:$L$500,N21) -> 3 | P21: =O21/$Q$4 -> 0.01948051948 | Q21: =IF(P21=0,0,(P21*((LOG(P21))/LOG(2)))) -> -0.1106848839 | T21: =N21 -> 2221 | U21: =COUNTIF(L7:L32,T21) -> 0 | V21: =U21/(W4-U20) -> 0 | W21: =IF(V21=0,0,(V21*((LOG(V21))/LOG(2)))) -> 0 | Y21: =N21 -> 2221 | Z21: =COUNTIF(L33:L57,Y21) -> 0 | AA21: =Z21/(AB4-Z20) -> 0 | AB21: =IF(AA21=0,0,(AA21*((LOG(AA21))/LOG(2)))) -> 0 | AD21: =N21 -> 2221 | AE21: =COUNTIF(L58:L83,AD21) -> 0 | AF21: =AE21/(AG4-AE20) -> 0 | AG21: =IF(AF21=0,0,(AF21*((LOG(AF21))/LOG(2)))) -> 0 | AI21: =N21 -> 2221 | AJ21: =COUNTIF(L84:L109,AI21) -> 0 | AK21: =AJ21/(AL4-AJ20) -> 0 | AL21: =IF(AK21=0,0,(AK21*((LOG(AK21))/LOG(2)))) -> 0 | AN21: =N21 -> 2221 | AO21: =COUNTIF(L110:L134,AN21) -> 2 | AP21: =AO21/(AQ4-AO20) -> 0.08 | AQ21: =IF(AP21=0,0,(AP21*((LOG(AP21))/LOG(2)))) -> -0.2915084952 | AS21: =N21 -> 2221 | AT21: =COUNTIF(L135:L160,AS21) -> 1 | AU21: =AT21/(AV4-AT20) -> 0.03846153846 | AV21: =IF(AU21=0,0,(AU21*((LOG(AU21))/LOG(2)))) -> -0.180786143
A22: 12 | B22: 2152 | C22: 14 | D22: 2157 | E22: 13 | F22: 2175 | G22: 23 | H22: 2188 | K22: 0 | L22: 1112 | N22: 2222 | O22: =COUNTIF($L$7:$L$500,N22) -> 3 | P22: =O22/$Q$4 -> 0.01948051948 | Q22: =IF(P22=0,0,(P22*((LOG(P22))/LOG(2)))) -> -0.1106848839 | T22: =N22 -> 2222 | U22: =COUNTIF(L7:L32,T22) -> 0 | V22: =U22/(W4-U20) -> 0 | W22: =IF(V22=0,0,(V22*((LOG(V22))/LOG(2)))) -> 0 | Y22: =N22 -> 2222 | Z22: =COUNTIF(L33:L57,Y22) -> 0 | AA22: =Z22/(AB4-Z20) -> 0 | AB22: =IF(AA22=0,0,(AA22*((LOG(AA22))/LOG(2)))) -> 0 | AD22: =N22 -> 2222 | AE22: =COUNTIF(L58:L83,AD22) -> 0 | AF22: =AE22/(AG4-AE20) -> 0 | AG22: =IF(AF22=0,0,(AF22*((LOG(AF22))/LOG(2)))) -> 0 | AI22: =N22 -> 2222 | AJ22: =COUNTIF(L84:L109,AI22) -> 1 | AK22: =AJ22/(AL4-AJ20) -> 0.04 | AL22: =IF(AK22=0,0,(AK22*((LOG(AK22))/LOG(2)))) -> -0.1857542476 | AN22: =N22 -> 2222 | AO22: =COUNTIF(L110:L134,AN22) -> 0 | AP22: =AO22/(AQ4-AO20) -> 0 | AQ22: =IF(AP22=0,0,(AP22*((LOG(AP22))/LOG(2)))) -> 0 | AS22: =N22 -> 2222 | AT22: =COUNTIF(L135:L160,AS22) -> 2 | AU22: =AT22/(AV4-AT20) -> 0.07692307692 | AV22: =IF(AU22=0,0,(AU22*((LOG(AU22))/LOG(2)))) -> -0.2846492091
A23: 12 | B23: 2294 | C23: 14 | D23: 2315 | E23: 13 | F23: 2320 | G23: 14 | H23: 2325 | K23: 0 | L23: 1111 | P23: =SUM(P7:P22) -> 1 | Q23: =-SUM(Q7:Q22) -> 2.798279089 | V23: =SUM(V7:V22) -> 1 | W23: =-SUM(W7:W22) -> 1.874021707 | AA23: =SUM(AA7:AA22) -> 1 | AB23: =-SUM(AB7:AB22) -> 2.10849307 | AF23: =SUM(AF7:AF22) -> 1 | AG23: =-SUM(AG7:AG22) -> 2.03021195 | AK23: =SUM(AK7:AK22) -> 1 | AL23: =-SUM(AL7:AL22) -> 2.417320659 | AP23: =SUM(AP7:AP22) -> 1 | AQ23: =-SUM(AQ7:AQ22) -> 2.869275071 | AU23: =SUM(AU7:AU22) -> 1 | AV23: =-SUM(AV7:AV22) -> 2.844106545
A24: 12 | B24: 2430 | C24: 14 | D24: 2434 | E24: 13 | F24: 2439 | G24: 14 | H24: 2444 | K24: 0 | L24: 1111 | P24: U= | Q24: =Q23/(LOG(Q4)/LOG(2)) -> 0.3850779259 | V24: U1= | W24: =W23/(LOG(W4)/LOG(2)) -> 0.3986907223 | AA24: U2= | AB24: =AB23/(LOG(AB4)/LOG(2)) -> 0.4540392691 | AF24: U3= | AG24: =AG23/(LOG(AG4)/LOG(2)) -> 0.4319195803 | AK24: U4= | AL24: =AL23/(LOG(AL4)/LOG(2)) -> 0.5142754303 | AP24: U5= | AQ24: =AQ23/(LOG(AQ4)/LOG(2)) -> 0.6178647558 | AU24: U6= | AV24: =AV23/(LOG(AV4)/LOG(2)) -> 0.6050724433
A25: 12 | B25: 2578 | C25: 14 | D25: 2583 | E25: 13 | F25: 2591 | G25: 14 | H25: 2596 | K25: 0 | L25: 1111
A26: 12 | B26: 2701 | C26: 14 | D26: 2705 | E26: 13 | F26: 2711 | G26: 14 | H26: 2715 | K26: 0 | L26: 1111
A27: 12 | B27: 2820 | C27: 14 | D27: 2846 | E27: 13 | F27: 2852 | G27: 14 | H27: 2857 | K27: 0 | L27: 1111 | N27: Total Target Seq
A28: 21 | B28: 2962 | C28: 12 | D28: 2975 | E28: 24 | F28: 2989 | G28: 23 | H28: 3004 | K28: 0 | L28: 2122 | N28: =COUNTIF(L7:L160,G3) -> 1 | P28: 26 | Q28: 25 | R28: 26 | S28: 26 | T28: 25 | U28: 26
A29: 12 | B29: 3109 | C29: 14 | D29: 3114 | E29: 13 | F29: 3134 | G29: 23 | H29: 3156 | K29: 0 | L29: 1112 | P29: % of reinforcement given in 6 equal intervals based on number of trials
A30: 12 | B30: 3262 | C30: 23 | D30: 3273 | E30: 13 | F30: 3285 | G30: 14 | H30: 3290 | K30: 0 | L30: 1211 | P30: %_1 | Q30: %_2 | R30: %_3 | S30: %_4 | T30: %_5 | U30: %_6
A31: 12 | B31: 3398 | C31: 14 | D31: 3407 | E31: 13 | F31: 3414 | G31: 14 | H31: 3419 | K31: 0 | L31: 1111 | O31: target sequence | P31: =$G$3 -> 2212 | Q31: =$G$3 -> 2212 | R31: =$G$3 -> 2212 | S31: =$G$3 -> 2212 | T31: =$G$3 -> 2212 | U31: =$G$3 -> 2212
A32: 21 | B32: 3527 | C32: 12 | D32: 3542 | E32: 13 | F32: 3552 | G32: 14 | H32: 3557 | K32: 0 | L32: 2111 | O32: total reinforcement | P32: =U20 -> 0 | Q32: =Z20 -> 0 | R32: =AE20 -> 0 | S32: =AJ20 -> 1 | T32: =AO20 -> 0 | U32: =AT20 -> 0
A33: 12 | B33: 3668 | C33: 14 | D33: 3672 | E33: 13 | F33: 3677 | G33: 14 | H33: 3690 | K33: 0 | L33: 1111 | O33: % target
A34: 21 | B34: 3805 | C34: 12 | D34: 3819 | E34: 13 | F34: 3823 | G34: 14 | H34: 3829 | K34: 0 | L34: 2111 | O34: CCRF
A35: 12 | B35: 3940 | C35: 14 | D35: 3944 | E35: 13 | F35: 3950 | G35: 14 | H35: 3963 | K35: 0 | L35: 1111 | O35: % CCRf
A36: 12 | B36: 4062 | C36: 14 | D36: 4090 | E36: 13 | F36: 4095 | G36: 14 | H36: 4100 | K36: 0 | L36: 1111 | O36: average response rate | P36: =H32/P28 -> 136.8076923 | Q36: =(H57-H32)/Q28 -> 160.68 | R36: =(H83-H57)/R28 -> 176.1153846 | S36: =(H109-H83)/S28 -> 144.0384615 | T36: =(H134-H109)/T28 -> 150.8 | U36: =(H160-H134)/U28 -> 162.9615385
A37: 12 | B37: 4239 | C37: 14 | D37: 4243 | E37: 13 | F37: 4250 | G37: 23 | H37: 4262 | K37: 0 | L37: 1112
A38: 12 | B38: 4364 | C38: 14 | D38: 4369 | E38: 24 | F38: 4382 | G38: 14 | H38: 4398 | K38: 0 | L38: 1121
A39: 12 | B39: 4535 | C39: 14 | D39: 4539 | E39: 13 | F39: 4545 | G39: 14 | H39: 4549 | K39: 0 | L39: 1111
A40: 12 | B40: 4653 | C40: 14 | D40: 4657 | E40: 13 | F40: 4662 | G40: 14 | H40: 4668 | K40: 0 | L40: 1111
A41: 12 | B41: 4803 | C41: 14 | D41: 4807 | E41: 24 | F41: 4820 | G41: 14 | H41: 4831 | K41: 0 | L41: 1121
A42: 12 | B42: 4957 | C42: 14 | D42: 4961 | E42: 13 | F42: 4966 | G42: 14 | H42: 4972 | K42: 0 | L42: 1111
A43: 21 | B43: 5107 | C43: 12 | D43: 5137 | E43: 13 | F43: 5148 | G43: 14 | H43: 5153 | K43: 0 | L43: 2111
A44: 12 | B44: 5310 | C44: 14 | D44: 5314 | E44: 13 | F44: 5319 | G44: 14 | H44: 5324 | K44: 0 | L44: 1111
A45: 12 | B45: 5427 | C45: 14 | D45: 5432 | E45: 13 | F45: 5438 | G45: 14 | H45: 5446 | K45: 0 | L45: 1111
A46: 12 | B46: 5575 | C46: 14 | D46: 5580 | E46: 13 | F46: 5586 | G46: 14 | H46: 5604 | K46: 0 | L46: 1111
A47: 12 | B47: 5738 | C47: 14 | D47: 5744 | E47: 13 | F47: 5749 | G47: 14 | H47: 5753 | K47: 0 | L47: 1111
A48: 21 | B48: 5900 | C48: 12 | D48: 5917 | E48: 13 | F48: 5923 | G48: 14 | H48: 5928 | K48: 0 | L48: 2111
A49: 12 | B49: 6075 | C49: 14 | D49: 6081 | E49: 13 | F49: 6084 | G49: 23 | H49: 6113 | K49: 0 | L49: 1112
A50: 21 | B50: 6214 | C50: 12 | D50: 6232 | E50: 13 | F50: 6237 | G50: 14 | H50: 6241 | K50: 0 | L50: 2111
A51: 12 | B51: 6393 | C51: 23 | D51: 6409 | E51: 24 | F51: 6413 | G51: 23 | H51: 6419 | K51: 0 | L51: 1222
A52: 12 | B52: 6577 | C52: 14 | D52: 6582 | E52: 13 | F52: 6586 | G52: 14 | H52: 6591 | K52: 0 | L52: 1111
A53: 12 | B53: 6745 | C53: 14 | D53: 6751 | E53: 24 | F53: 6762 | G53: 14 | H53: 6783 | K53: 0 | L53: 1121
A54: 21 | B54: 6883 | C54: 21 | D54: 6891 | E54: 11 | F54: 6910 | G54: 12 | H54: 6915 | K54: 0 | L54: 2211
A55: 21 | B55: 7095 | C55: 12 | D55: 7108 | E55: 13 | F55: 7113 | G55: 14 | H55: 7117 | K55: 0 | L55: 2111
A56: 12 | B56: 7301 | C56: 14 | D56: 7305 | E56: 13 | F56: 7309 | G56: 14 | H56: 7314 | K56: 0 | L56: 1111
A57: 12 | B57: 7535 | C57: 23 | D57: 7551 | E57: 24 | F57: 7556 | G57: 23 | H57: 7574 | K57: 0 | L57: 1222
A58: 12 | B58: 7712 | C58: 14 | D58: 7718 | E58: 13 | F58: 7722 | G58: 14 | H58: 7727 | K58: 0 | L58: 1111
A59: 12 | B59: 7826 | C59: 14 | D59: 7848 | E59: 13 | F59: 7852 | G59: 14 | H59: 7860 | K59: 0 | L59: 1111
A60: 12 | B60: 8002 | C60: 14 | D60: 8010 | E60: 13 | F60: 8016 | G60: 14 | H60: 8020 | K60: 0 | L60: 1111
A61: 12 | B61: 8194 | C61: 14 | D61: 8199 | E61: 13 | F61: 8203 | G61: 14 | H61: 8208 | K61: 0 | L61: 1111
A62: 12 | B62: 8310 | C62: 14 | D62: 8314 | E62: 13 | F62: 8319 | G62: 14 | H62: 8324 | K62: 0 | L62: 1111
A63: 12 | B63: 8444 | C63: 14 | D63: 8453 | E63: 13 | F63: 8458 | G63: 14 | H63: 8463 | K63: 0 | L63: 1111
A64: 12 | B64: 8697 | C64: 14 | D64: 8702 | E64: 13 | F64: 8708 | G64: 14 | H64: 8717 | K64: 0 | L64: 1111
A65: 12 | B65: 8892 | C65: 14 | D65: 8897 | E65: 13 | F65: 8901 | G65: 14 | H65: 8906 | K65: 0 | L65: 1111
A66: 12 | B66: 9016 | C66: 14 | D66: 9021 | E66: 13 | F66: 9026 | G66: 14 | H66: 9030 | K66: 0 | L66: 1111
A67: 21 | B67: 9135 | C67: 12 | D67: 9196 | E67: 13 | F67: 9200 | G67: 14 | H67: 9205 | K67: 0 | L67: 2111
A68: 21 | B68: 9328 | C68: 12 | D68: 9342 | E68: 13 | F68: 9347 | G68: 14 | H68: 9352 | K68: 0 | L68: 2111
A69: 21 | B69: 9567 | C69: 12 | D69: 9580 | E69: 13 | F69: 9585 | G69: 14 | H69: 9591 | K69: 0 | L69: 2111
A70: 21 | B70: 9713 | C70: 12 | D70: 9726 | E70: 13 | F70: 9731 | G70: 14 | H70: 9736 | K70: 0 | L70: 2111
A71: 12 | B71: 9987 | C71: 14 | D71: 9996 | E71: 13 | F71: 10002 | G71: 14 | H71: 10035 | K71: 0 | L71: 1111
A72: 12 | B72: 10167 | C72: 14 | D72: 10171 | E72: 13 | F72: 10176 | G72: 14 | H72: 10181 | K72: 0 | L72: 1111
A73: 12 | B73: 10300 | C73: 23 | D73: 10317 | E73: 13 | F73: 10341 | G73: 14 | H73: 10347 | K73: 0 | L73: 1211
A74: 12 | B74: 10527 | C74: 14 | D74: 10534 | E74: 24 | F74: 10547 | G74: 14 | H74: 10564 | K74: 0 | L74: 1121
A75: 12 | B75: 10726 | C75: 14 | D75: 10731 | E75: 13 | F75: 10736 | G75: 14 | H75: 10741 | K75: 0 | L75: 1111
A76: 12 | B76: 10898 | C76: 23 | D76: 10911 | E76: 24 | F76: 10919 | G76: 23 | H76: 10933 | K76: 0 | L76: 1222
A77: 12 | B77: 11043 | C77: 23 | D77: 11059 | E77: 13 | F77: 11078 | G77: 14 | H77: 11083 | K77: 0 | L77: 1211
A78: 21 | B78: 11282 | C78: 12 | D78: 11322 | E78: 13 | F78: 11326 | G78: 14 | H78: 11330 | K78: 0 | L78: 2111
A79: 12 | B79: 11430 | C79: 14 | D79: 11435 | E79: 24 | F79: 11447 | G79: 23 | H79: 11458 | K79: 0 | L79: 1122
A80: 21 | B80: 11571 | C80: 12 | D80: 11593 | E80: 13 | F80: 11598 | G80: 14 | H80: 11602 | K80: 0 | L80: 2111
A81: 12 | B81: 11704 | C81: 23 | D81: 11714 | E81: 13 | F81: 11731 | G81: 14 | H81: 11735 | K81: 0 | L81: 1211
A82: 21 | B82: 11973 | C82: 12 | D82: 11987 | E82: 13 | F82: 11992 | G82: 14 | H82: 11997 | K82: 0 | L82: 2111
A83: 12 | B83: 12114 | C83: 14 | D83: 12119 | E83: 24 | F83: 12140 | G83: 14 | H83: 12153 | K83: 0 | L83: 1121
A84: 12 | B84: 12283 | C84: 14 | D84: 12288 | E84: 13 | F84: 12294 | G84: 14 | H84: 12299 | K84: 0 | L84: 1111
A85: 21 | B85: 12436 | C85: 12 | D85: 12461 | E85: 13 | F85: 12465 | G85: 14 | H85: 12471 | K85: 0 | L85: 2111
A86: 21 | B86: 12688 | C86: 21 | D86: 12703 | E86: 11 | F86: 12722 | G86: 12 | H86: 12727 | K86: 0 | L86: 2211
A87: 21 | B87: 12828 | C87: 21 | D87: 12838 | E87: 11 | F87: 12852 | G87: 21 | H87: 12864 | K87: 0 | L87: 2212
A88: 21 | B88: 12971 | C88: 21 | D88: 12978 | E88: 11 | F88: 12996 | G88: 12 | H88: 13002 | K88: 0 | L88: 2211
A89: 21 | B89: 13111 | C89: 12 | D89: 13133 | E89: 24 | F89: 13150 | G89: 23 | H89: 13159 | K89: 0 | L89: 2122
A90: 12 | B90: 13293 | C90: 14 | D90: 13297 | E90: 13 | F90: 13303 | G90: 14 | H90: 13308 | K90: 0 | L90: 1111
A91: 12 | B91: 13436 | C91: 14 | D91: 13440 | E91: 13 | F91: 13445 | G91: 23 | H91: 13463 | K91: 0 | L91: 1112
A92: 21 | B92: 13581 | C92: 12 | D92: 13594 | E92: 13 | F92: 13599 | G92: 14 | H92: 13607 | K92: 0 | L92: 2111
A93: 12 | B93: 13723 | C93: 14 | D93: 13728 | E93: 13 | F93: 13733 | G93: 14 | H93: 13738 | K93: 0 | L93: 1111
A94: 12 | B94: 13839 | C94: 14 | D94: 13844 | E94: 24 | F94: 13858 | G94: 23 | H94: 13865 | K94: 0 | L94: 1122
A95: 12 | B95: 13969 | C95: 14 | D95: 13974 | E95: 13 | F95: 13978 | G95: 14 | H95: 13985 | K95: 0 | L95: 1111
A96: 12 | B96: 14086 | C96: 14 | D96: 14091 | E96: 13 | F96: 14103 | G96: 14 | H96: 14109 | K96: 0 | L96: 1111
A97: 12 | B97: 14212 | C97: 14 | D97: 14217 | E97: 13 | F97: 14221 | G97: 14 | H97: 14227 | K97: 0 | L97: 1111
A98: 12 | B98: 14365 | C98: 14 | D98: 14370 | E98: 13 | F98: 14378 | G98: 23 | H98: 14406 | K98: 0 | L98: 1112
A99: 12 | B99: 14507 | C99: 14 | D99: 14512 | E99: 13 | F99: 14520 | G99: 14 | H99: 14524 | K99: 0 | L99: 1111
A100: 21 | B100: 14628 | C100: 12 | D100: 14639 | E100: 13 | F100: 14644 | G100: 14 | H100: 14650 | K100: 0 | L100: 2111
A101: 12 | B101: 14754 | C101: 14 | D101: 14759 | E101: 13 | F101: 14765 | G101: 14 | H101: 14771 | K101: 0 | L101: 1111
A102: 12 | B102: 14873 | C102: 14 | D102: 14878 | E102: 13 | F102: 14883 | G102: 14 | H102: 14888 | K102: 0 | L102: 1111
A103: 21 | B103: 15003 | C103: 12 | D103: 15020 | E103: 13 | F103: 15026 | G103: 14 | H103: 15031 | K103: 0 | L103: 2111
A104: 12 | B104: 15151 | C104: 14 | D104: 15158 | E104: 13 | F104: 15162 | G104: 14 | H104: 15167 | K104: 0 | L104: 1111
A105: 12 | B105: 15321 | C105: 23 | D105: 15330 | E105: 24 | F105: 15338 | G105: 23 | H105: 15347 | K105: 0 | L105: 1222
A106: 12 | B106: 15458 | C106: 14 | D106: 15463 | E106: 13 | F106: 15469 | G106: 14 | H106: 15474 | K106: 0 | L106: 1111
A107: 21 | B107: 15583 | C107: 21 | D107: 15591 | E107: 22 | F107: 15605 | G107: 23 | H107: 15619 | K107: 0 | L107: 2222
A108: 12 | B108: 15741 | C108: 14 | D108: 15747 | E108: 24 | F108: 15763 | G108: 23 | H108: 15770 | K108: 0 | L108: 1122
A109: 21 | B109: 15869 | C109: 12 | D109: 15882 | E109: 13 | F109: 15893 | G109: 14 | H109: 15898 | K109: 0 | L109: 2111
A110: 21 | B110: 16033 | C110: 12 | D110: 16045 | E110: 13 | F110: 16051 | G110: 14 | H110: 16056 | K110: 0 | L110: 2111
A111: 12 | B111: 16160 | C111: 14 | D111: 16166 | E111: 24 | F111: 16179 | G111: 14 | H111: 16194 | K111: 0 | L111: 1121
A112: 21 | B112: 16304 | C112: 21 | D112: 16316 | E112: 11 | F112: 16332 | G112: 12 | H112: 16338 | K112: 0 | L112: 2211
A113: 21 | B113: 16459 | C113: 21 | D113: 16468 | E113: 22 | F113: 16476 | G113: 14 | H113: 16491 | K113: 0 | L113: 2221
A114: 12 | B114: 16648 | C114: 14 | D114: 16652 | E114: 13 | F114: 16657 | G114: 14 | H114: 16663 | K114: 0 | L114: 1111
A115: 21 | B115: 16778 | C115: 12 | D115: 16790 | E115: 13 | F115: 16794 | G115: 14 | H115: 16798 | K115: 0 | L115: 2111
A116: 21 | B116: 16954 | C116: 12 | D116: 16971 | E116: 13 | F116: 16976 | G116: 14 | H116: 16982 | K116: 0 | L116: 2111
A117: 21 | B117: 17112 | C117: 12 | D117: 17131 | E117: 13 | F117: 17135 | G117: 14 | H117: 17140 | K117: 0 | L117: 2111
A118: 21 | B118: 17240 | C118: 21 | D118: 17254 | E118: 11 | F118: 17271 | G118: 12 | H118: 17275 | K118: 0 | L118: 2211
A119: 12 | B119: 17399 | C119: 23 | D119: 17414 | E119: 13 | F119: 17428 | G119: 14 | H119: 17433 | K119: 0 | L119: 1211
A120: 12 | B120: 17589 | C120: 23 | D120: 17603 | E120: 24 | F120: 17610 | G120: 23 | H120: 17616 | K120: 0 | L120: 1222
A121: 12 | B121: 17733 | C121: 14 | D121: 17737 | E121: 13 | F121: 17742 | G121: 14 | H121: 17747 | K121: 0 | L121: 1111
A122: 21 | B122: 17844 | C122: 21 | D122: 17861 | E122: 11 | F122: 17878 | G122: 12 | H122: 17883 | K122: 0 | L122: 2211
A123: 21 | B123: 17981 | C123: 12 | D123: 17994 | E123: 13 | F123: 17998 | G123: 14 | H123: 18003 | K123: 0 | L123: 2111
A124: 12 | B124: 18106 | C124: 14 | D124: 18111 | E124: 13 | F124: 18116 | G124: 23 | H124: 18130 | K124: 0 | L124: 1112
A125: 12 | B125: 18397 | C125: 14 | D125: 18402 | E125: 13 | F125: 18406 | G125: 14 | H125: 18414 | K125: 0 | L125: 1111
A126: 12 | B126: 18530 | C126: 14 | D126: 18537 | E126: 24 | F126: 18552 | G126: 23 | H126: 18556 | K126: 0 | L126: 1122
A127: 12 | B127: 18663 | C127: 14 | D127: 18669 | E127: 24 | F127: 18681 | G127: 23 | H127: 18686 | K127: 0 | L127: 1122
A128: 21 | B128: 18795 | C128: 21 | D128: 18802 | E128: 22 | F128: 18823 | G128: 14 | H128: 18834 | K128: 0 | L128: 2221
A129: 21 | B129: 18933 | C129: 12 | D129: 18952 | E129: 13 | F129: 18960 | G129: 14 | H129: 18965 | K129: 0 | L129: 2111
A130: 21 | B130: 19065 | C130: 12 | D130: 19081 | E130: 13 | F130: 19086 | G130: 14 | H130: 19091 | K130: 0 | L130: 2111
A131: 12 | B131: 19197 | C131: 23 | D131: 19209 | E131: 24 | F131: 19218 | G131: 14 | H131: 19229 | K131: 0 | L131: 1221
A132: 21 | B132: 19342 | C132: 12 | D132: 19356 | E132: 13 | F132: 19361 | G132: 14 | H132: 19366 | K132: 0 | L132: 2111
A133: 21 | B133: 19497 | C133: 21 | D133: 19507 | E133: 11 | F133: 19529 | G133: 12 | H133: 19534 | K133: 0 | L133: 2211
A134: 21 | B134: 19641 | C134: 21 | D134: 19651 | E134: 11 | F134: 19665 | G134: 12 | H134: 19668 | K134: 0 | L134: 2211
A135: 12 | B135: 19809 | C135: 14 | D135: 19814 | E135: 13 | F135: 19818 | G135: 14 | H135: 19824 | K135: 0 | L135: 1111
A136: 12 | B136: 19992 | C136: 23 | D136: 20008 | E136: 24 | F136: 20014 | G136: 23 | H136: 20022 | K136: 0 | L136: 1222
A137: 12 | B137: 20125 | C137: 23 | D137: 20137 | E137: 24 | F137: 20142 | G137: 14 | H137: 20157 | K137: 0 | L137: 1221
A138: 12 | B138: 20287 | C138: 14 | D138: 20292 | E138: 13 | F138: 20297 | G138: 14 | H138: 20302 | K138: 0 | L138: 1111
A139: 12 | B139: 20435 | C139: 14 | D139: 20445 | E139: 13 | F139: 20451 | G139: 14 | H139: 20459 | K139: 0 | L139: 1111
A140: 21 | B140: 20557 | C140: 21 | D140: 20566 | E140: 22 | F140: 20568 | G140: 14 | H140: 20579 | K140: 0 | L140: 2221
A141: 12 | B141: 20755 | C141: 14 | D141: 20762 | E141: 13 | F141: 20770 | G141: 14 | H141: 20774 | K141: 0 | L141: 1111
A142: 21 | B142: 20959 | C142: 12 | D142: 20974 | E142: 13 | F142: 20980 | G142: 14 | H142: 20984 | K142: 0 | L142: 2111
A143: 12 | B143: 21168 | C143: 14 | D143: 21173 | E143: 13 | F143: 21178 | G143: 14 | H143: 21183 | K143: 0 | L143: 1111
A144: 21 | B144: 21298 | C144: 12 | D144: 21319 | E144: 13 | F144: 21325 | G144: 23 | H144: 21346 | K144: 0 | L144: 2112
A145: 12 | B145: 21462 | C145: 23 | D145: 21476 | E145: 13 | F145: 21502 | G145: 14 | H145: 21506 | K145: 0 | L145: 1211
A146: 21 | B146: 21630 | C146: 21 | D146: 21639 | E146: 11 | F146: 21655 | G146: 12 | H146: 21659 | K146: 0 | L146: 2211
A147: 21 | B147: 21759 | C147: 21 | D147: 21774 | E147: 11 | F147: 21785 | G147: 12 | H147: 21789 | K147: 0 | L147: 2211
A148: 12 | B148: 21976 | C148: 14 | D148: 21981 | E148: 13 | F148: 21986 | G148: 14 | H148: 21992 | K148: 0 | L148: 1111
A149: 12 | B149: 22127 | C149: 23 | D149: 22147 | E149: 24 | F149: 22152 | G149: 14 | H149: 22167 | K149: 0 | L149: 1221
A150: 21 | B150: 22294 | C150: 21 | D150: 22299 | E150: 22 | F150: 22303 | G150: 23 | H150: 22314 | K150: 0 | L150: 2222
A151: 21 | B151: 22421 | C151: 12 | D151: 22432 | E151: 13 | F151: 22437 | G151: 14 | H151: 22444 | K151: 0 | L151: 2111
A152: 21 | B152: 22585 | C152: 12 | D152: 22603 | E152: 13 | F152: 22608 | G152: 14 | H152: 22614 | K152: 0 | L152: 2111
A153: 21 | B153: 22752 | C153: 12 | D153: 22783 | E153: 13 | F153: 22789 | G153: 14 | H153: 22793 | K153: 0 | L153: 2111
A154: 12 | B154: 22914 | C154: 14 | D154: 22919 | E154: 24 | F154: 22934 | G154: 23 | H154: 22938 | K154: 0 | L154: 1122
A155: 12 | B155: 23043 | C155: 14 | D155: 23051 | E155: 13 | F155: 23056 | G155: 14 | H155: 23061 | K155: 0 | L155: 1111
A156: 12 | B156: 23183 | C156: 14 | D156: 23188 | E156: 13 | F156: 23193 | G156: 14 | H156: 23198 | K156: 0 | L156: 1111
A157: 21 | B157: 23366 | C157: 21 | D157: 23384 | E157: 22 | F157: 23405 | G157: 23 | H157: 23415 | K157: 0 | L157: 2222
A158: 21 | B158: 23529 | C158: 21 | D158: 23536 | E158: 11 | F158: 23551 | G158: 12 | H158: 23559 | K158: 0 | L158: 2211
A159: 21 | B159: 23686 | C159: 12 | D159: 23721 | E159: 13 | F159: 23729 | G159: 14 | H159: 23733 | K159: 0 | L159: 2111
A160: 21 | B160: 23881 | C160: 12 | D160: 23895 | E160: 13 | F160: 23900 | G160: 14 | H160: 23905 | K160: 0 | L160: 2111

Sheet !N103840.092
A1: Report for:!N103840.092
A2: Date: | B2: <date>
A3: Hen: | B3: <hen> | F3: Correct Sequence | G3: =Start!J2 -> 2212 | P3: Total Sequences in Data | Q3: =4994-COUNTBLANK(L7:L5000) -> 134 | V3: Total Sequences in Block Data | W3: =COUNTA(L7:L28) -> 22 | AA3: Total Sequences in Block Data | AB3: =COUNTA(L29:L51) -> 23 | AF3: Total Sequences in Block Data | AG3: =COUNTA(L52:L73) -> 22 | AK3: Total Sequences in Block Data | AL3: =COUNTA(L74:L95) -> 22 | AP3: Total Sequences in Block Data | AQ3: =COUNTA(L96:L118) -> 23 | AU3: Total Sequences in Block Data | AV3: =COUNTA(L119:L140) -> 22
P4: Total Sequences in Summary | Q4: =SUM(O7:O22) -> 134 | V4: Total Sequences in Block Summary | W4: =SUM(U7:U22) -> 22 | AA4: Total Sequences in Block Summary | AB4: =SUM(Z7:Z22) -> 23 | AF4: Total Sequences in Block Summary | AG4: =SUM(AE7:AE22) -> 22 | AK4: Total Sequences in Block Summary | AL4: =SUM(AJ7:AJ22) -> 22 | AP4: Total Sequences in Block Summary | AQ4: =SUM(AO7:AO22) -> 23 | AU4: Total Sequences in Block Summary | AV4: =SUM(AT7:AT22) -> 22
T5: Block 1 | Y5: Block 2 | AD5: Block 3 | AI5: Block 4 | AN5: Block 5 | AS5: Block 6
A6: Sequence Component 1 | B6: Time 1 | C6: Sequence Component 2 | D6: Time 2 | E6: Sequence Component 3 | F6: Time 3 | G6: Sequence Component 4 | H6: Time 4 | I6: Sequence Component 5 | J6: Time 5 | K6: Correct? 0=No 1=Yes | L6: Sequence | N6: Frequency | P6: Relative Frequency | Q6: Variability | T6: Frequency | V6: Relative Frequency | W6: Variability | Y6: Frequency | AA6: Relative Frequency | AB6: Variability | AD6: Frequency | AF6: Relative Frequency | AG6: Variability | AI6: Frequency | AK6: Relative Frequency | AL6: Variability | AN6: Frequency | AP6: Relative Frequency | AQ6: Variability | AS6: Frequency | AU6: Relative Frequency | AV6: Variability
A7: 21 | B7: 69 | C7: 21 | D7: 89 | E7: 22 | F7: 106 | G7: 23 | H7: 125 | K7: 0 | L7: 2222 | N7: 1111 | O7: =COUNTIF($L$7:$L$500,N7) -> 25 | P7: =O7/$Q$4 -> 0.1865671642 | Q7: =IF(P7=0,0,(P7*((LOG(P7))/LOG(2)))) -> -0.4519091419 | T7: =N7 -> 1111 | U7: =COUNTIF(L7:L28,T7) -> 5 | V7: =U7/(W4-U20) -> 0.2380952381 | W7: =IF(V7=0,0,(V7*((LOG(V7))/LOG(2)))) -> -0.49294984 | Y7: =N7 -> 1111 | Z7: =COUNTIF(L29:L51,Y7) -> 6 | AA7: =Z7/(AB4-Z20) -> 0.2608695652 | AB7: =IF(AA7=0,0,(AA7*((LOG(AA7))/LOG(2)))) -> -0.505721597 | AD7: =N7 -> 1111 | AE7: =COUNTIF(L52:L73,AD7) -> 3 | AF7: =AE7/(AG4-AE20) -> 0.1363636364 | AG7: =IF(AF7=0,0,(AF7*((LOG(AF7))/LOG(2)))) -> -0.3919730615 | AI7: =N7 -> 1111 | AJ7: =COUNTIF(L74:L95,AI7) -> 4 | AK7: =AJ7/(AL4-AJ20) -> 0.1818181818 | AL7: =IF(AK7=0,0,(AK7*((LOG(AK7))/LOG(2)))) -> -0.4471693852 | AN7: =N7 -> 1111 | AO7: =COUNTIF(L96:L118,AN7) -> 3 | AP7: =AO7/(AQ4-AO20) -> 0.1304347826 | AQ7: =IF(AP7=0,0,(AP7*((LOG(AP7))/LOG(2)))) -> -0.3832955811 | AS7: =N7 -> 1111 | AT7: =COUNTIF(L119:L140,AS7) -> 4 | AU7: =AT7/(AV4-AT20) -> 0.1818181818 | AV7: =IF(AU7=0,0,(AU7*((LOG(AU7))/LOG(2)))) -> -0.4471693852
A8: 21 | B8: 251 | C8: 21 | D8: 269 | E8: 11 | F8: 288 | G8: 21 | H8: 299 | K8: 0 | L8: 2212 | N8: 1112 | O8: =COUNTIF($L$7:$L$500,N8) -> 8 | P8: =O8/$Q$4 -> 0.05970149254 | Q8: =IF(P8=0,0,(P8*((LOG(P8))/LOG(2)))) -> -0.2427515935 | T8: =N8 -> 1112 | U8: =COUNTIF(L7:L28,T8) -> 2 | V8: =U8/(W4-U20) -> 0.09523809524 | W8: =IF(V8=0,0,(V8*((LOG(V8))/LOG(2)))) -> -0.3230778498 | Y8: =N8 -> 1112 | Z8: =COUNTIF(L29:L51,Y8) -> 2 | AA8: =Z8/(AB4-Z20) -> 0.08695652174 | AB8: =IF(AA8=0,0,(AA8*((LOG(AA8))/LOG(2)))) -> -0.3063966918 | AD8: =N8 -> 1112 | AE8: =COUNTIF(L52:L73,AD8) -> 2 | AF8: =AE8/(AG4-AE20) -> 0.09090909091 | AG8: =IF(AF8=0,0,(AF8*((LOG(AF8))/LOG(2)))) -> -0.3144937835 | AI8: =N8 -> 1112 | AJ8: =COUNTIF(L74:L95,AI8) -> 1 | AK8: =AJ8/(AL4-AJ20) -> 0.04545454545 | AL8: =IF(AK8=0,0,(AK8*((LOG(AK8))/LOG(2)))) -> -0.2027014372 | AN8: =N8 -> 1112 | AO8: =COUNTIF(L96:L118,AN8) -> 1 | AP8: =AO8/(AQ4-AO20) -> 0.04347826087 | AQ8: =IF(AP8=0,0,(AP8*((LOG(AP8))/LOG(2)))) -> -0.1966766068 | AS8: =N8 -> 1112 | AT8: =COUNTIF(L119:L140,AS8) -> 0 | AU8: =AT8/(AV4-AT20) -> 0 | AV8: =IF(AU8=0,0,(AU8*((LOG(AU8))/LOG(2)))) -> 0
A9: 21 | B9: 436 | C9: 12 | D9: 449 | E9: 13 | F9: 450 | G9: 23 | H9: 461 | K9: 0 | L9: 2112 | N9: 1121 | O9: =COUNTIF($L$7:$L$500,N9) -> 2 | P9: =O9/$Q$4 -> 0.01492537313 | Q9: =IF(P9=0,0,(P9*((LOG(P9))/LOG(2)))) -> -0.09053864463 | T9: =N9 -> 1121 | U9: =COUNTIF(L7:L28,T9) -> 0 | V9: =U9/(W4-U20) -> 0 | W9: =IF(V9=0,0,(V9*((LOG(V9))/LOG(2)))) -> 0 | Y9: =N9 -> 1121 | Z9: =COUNTIF(L29:L51,Y9) -> 1 | AA9: =Z9/(AB4-Z20) -> 0.04347826087 | AB9: =IF(AA9=0,0,(AA9*((LOG(AA9))/LOG(2)))) -> -0.1966766068 | AD9: =N9 -> 1121 | AE9: =COUNTIF(L52:L73,AD9) -> 0 | AF9: =AE9/(AG4-AE20) -> 0 | AG9: =IF(AF9=0,0,(AF9*((LOG(AF9))/LOG(2)))) -> 0 | AI9: =N9 -> 1121 | AJ9: =COUNTIF(L74:L95,AI9) -> 0 | AK9: =AJ9/(AL4-AJ20) -> 0 | AL9: =IF(AK9=0,0,(AK9*((LOG(AK9))/LOG(2)))) -> 0 | AN9: =N9 -> 1121 | AO9: =COUNTIF(L96:L118,AN9) -> 1 | AP9: =AO9/(AQ4-AO20) -> 0.04347826087 | AQ9: =IF(AP9=0,0,(AP9*((LOG(AP9))/LOG(2)))) -> -0.1966766068 | AS9: =N9 -> 1121 | AT9: =COUNTIF(L119:L140,AS9) -> 0 | AU9: =AT9/(AV4-AT20) -> 0 | AV9: =IF(AU9=0,0,(AU9*((LOG(AU9))/LOG(2)))) -> 0
A10: 21 | B10: 575 | C10: 21 | D10: 615 | E10: 11 | F10: 626 | G10: 12 | H10: 630 | K10: 0 | L10: 2211 | N10: 1122 | O10: =COUNTIF($L$7:$L$500,N10) -> 7 | P10: =O10/$Q$4 -> 0.05223880597 | Q10: =IF(P10=0,0,(P10*((LOG(P10))/LOG(2)))) -> -0.2224711931 | T10: =N10 -> 1122 | U10: =COUNTIF(L7:L28,T10) -> 4 | V10: =U10/(W4-U20) -> 0.1904761905 | W10: =IF(V10=0,0,(V10*((LOG(V10))/LOG(2)))) -> -0.4556795091 | Y10: =N10 -> 1122 | Z10: =COUNTIF(L29:L51,Y10) -> 1 | AA10: =Z10/(AB4-Z20) -> 0.04347826087 | AB10: =IF(AA10=0,0,(AA10*((LOG(AA10))/LOG(2)))) -> -0.1966766068 | AD10: =N10 -> 1122 | AE10: =COUNTIF(L52:L73,AD10) -> 1 | AF10: =AE10/(AG4-AE20) -> 0.04545454545 | AG10: =IF(AF10=0,0,(AF10*((LOG(AF10))/LOG(2)))) -> -0.2027014372 | AI10: =N10 -> 1122 | AJ10: =COUNTIF(L74:L95,AI10) -> 0 | AK10: =AJ10/(AL4-AJ20) -> 0 | AL10: =IF(AK10=0,0,(AK10*((LOG(AK10))/LOG(2)))) -> 0 | AN10: =N10 -> 1122 | AO10: =COUNTIF(L96:L118,AN10) -> 0 | AP10: =AO10/(AQ4-AO20) -> 0 | AQ10: =IF(AP10=0,0,(AP10*((LOG(AP10))/LOG(2)))) -> 0 | AS10: =N10 -> 1122 | AT10: =COUNTIF(L119:L140,AS10) -> 1 | AU10: =AT10/(AV4-AT20) -> 0.04545454545 | AV10: =IF(AU10=0,0,(AU10*((LOG(AU10))/LOG(2)))) -> -0.2027014372
A11: 21 | B11: 747 | C11: 12 | D11: 759 | E11: 13 | F11: 764 | G11: 23 | H11: 777 | K11: 0 | L11: 2112 | N11: 1211 | O11: =COUNTIF($L$7:$L$500,N11) -> 3 | P11: =O11/$Q$4 -> 0.0223880597 | Q11: =IF(P11=0,0,(P11*((LOG(P11))/LOG(2)))) -> -0.1227117916 | T11: =N11 -> 1211 | U11: =COUNTIF(L7:L28,T11) -> 2 | V11: =U11/(W4-U20) -> 0.09523809524 | W11: =IF(V11=0,0,(V11*((LOG(V11))/LOG(2)))) -> -0.3230778498 | Y11: =N11 -> 1211 | Z11: =COUNTIF(L29:L51,Y11) -> 0 | AA11: =Z11/(AB4-Z20) -> 0 | AB11: =IF(AA11=0,0,(AA11*((LOG(AA11))/LOG(2)))) -> 0 | AD11: =N11 -> 1211 | AE11: =COUNTIF(L52:L73,AD11) -> 1 | AF11: =AE11/(AG4-AE20) -> 0.04545454545 | AG11: =IF(AF11=0,0,(AF11*((LOG(AF11))/LOG(2)))) -> -0.2027014372 | AI11: =N11 -> 1211 | AJ11: =COUNTIF(L74:L95,AI11) -> 0 | AK11: =AJ11/(AL4-AJ20) -> 0 | AL11: =IF(AK11=0,0,(AK11*((LOG(AK11))/LOG(2)))) -> 0 | AN11: =N11 -> 1211 | AO11: =COUNTIF(L96:L118,AN11) -> 0 | AP11: =AO11/(AQ4-AO20) -> 0 | AQ11: =IF(AP11=0,0,(AP11*((LOG(AP11))/LOG(2)))) -> 0 | AS11: =N11 -> 1211 | AT11: =COUNTIF(L119:L140,AS11) -> 0 | AU11: =AT11/(AV4-AT20) -> 0 | AV11: =IF(AU11=0,0,(AU11*((LOG(AU11))/LOG(2)))) -> 0
A12: 21 | B12: 897 | C12: 12 | D12: 911 | E12: 13 | F12: 916 | G12: 14 | H12: 920 | K12: 0 | L12: 2111 | N12: 1212 | O12: =COUNTIF($L$7:$L$500,N12) -> 0 | P12: =O12/$Q$4 -> 0 | Q12: =IF(P12=0,0,(P12*((LOG(P12))/LOG(2)))) -> 0 | T12: =N12 -> 1212 | U12: =COUNTIF(L7:L28,T12) -> 0 | V12: =U12/(W4-U20) -> 0 | W12: =IF(V12=0,0,(V12*((LOG(V12))/LOG(2)))) -> 0 | Y12: =N12 -> 1212 | Z12: =COUNTIF(L29:L51,Y12) -> 0 | AA12: =Z12/(AB4-Z20) -> 0 | AB12: =IF(AA12=0,0,(AA12*((LOG(AA12))/LOG(2)))) -> 0 | AD12: =N12 -> 1212 | AE12: =COUNTIF(L52:L73,AD12) -> 0 | AF12: =AE12/(AG4-AE20) -> 0 | AG12: =IF(AF12=0,0,(AF12*((LOG(AF12))/LOG(2)))) -> 0 | AI12: =N12 -> 1212 | AJ12: =COUNTIF(L74:L95,AI12) -> 0 | AK12: =AJ12/(AL4-AJ20) -> 0 | AL12: =IF(AK12=0,0,(AK12*((LOG(AK12))/LOG(2)))) -> 0 | AN12: =N12 -> 1212 | AO12: =COUNTIF(L96:L118,AN12) -> 0 | AP12: =AO12/(AQ4-AO20) -> 0 | AQ12: =IF(AP12=0,0,(AP12*((LOG(AP12))/LOG(2)))) -> 0 | AS12: =N12 -> 1212 | AT12: =COUNTIF(L119:L140,AS12) -> 0 | AU12: =AT12/(AV4-AT20) -> 0 | AV12: =IF(AU12=0,0,(AU12*((LOG(AU12))/LOG(2)))) -> 0
A13: 12 | B13: 1043 | C13: 14 | D13: 1047 | E13: 13 | F13: 1053 | G13: 23 | H13: 1068 | K13: 0 | L13: 1112 | N13: 1221 | O13: =COUNTIF($L$7:$L$500,N13) -> 3 | P13: =O13/$Q$4 -> 0.0223880597 | Q13: =IF(P13=0,0,(P13*((LOG(P13))/LOG(2)))) -> -0.1227117916 | T13: =N13 -> 1221 | U13: =COUNTIF(L7:L28,T13) -> 0 | V13: =U13/(W4-U20) -> 0 | W13: =IF(V13=0,0,(V13*((LOG(V13))/LOG(2)))) -> 0 | Y13: =N13 -> 1221 | Z13: =COUNTIF(L29:L51,Y13) -> 1 | AA13: =Z13/(AB4-Z20) -> 0.04347826087 | AB13: =IF(AA13=0,0,(AA13*((LOG(AA13))/LOG(2)))) -> -0.1966766068 | AD13: =N13 -> 1221 | AE13: =COUNTIF(L52:L73,AD13) -> 0 | AF13: =AE13/(AG4-AE20) -> 0 | AG13: =IF(AF13=0,0,(AF13*((LOG(AF13))/LOG(2)))) -> 0 | AI13: =N13 -> 1221 | AJ13: =COUNTIF(L74:L95,AI13) -> 1 | AK13: =AJ13/(AL4-AJ20) -> 0.04545454545 | AL13: =IF(AK13=0,0,(AK13*((LOG(AK13))/LOG(2)))) -> -0.2027014372 | AN13: =N13 -> 1221 | AO13: =COUNTIF(L96:L118,AN13) -> 1 | AP13: =AO13/(AQ4-AO20) -> 0.04347826087 | AQ13: =IF(AP13=0,0,(AP13*((LOG(AP13))/LOG(2)))) -> -0.1966766068 | AS13: =N13 -> 1221 | AT13: =COUNTIF(L119:L140,AS13) -> 0 | AU13: =AT13/(AV4-AT20) -> 0 | AV13: =IF(AU13=0,0,(AU13*((LOG(AU13))/LOG(2)))) -> 0
A14: 12 | B14: 1198 | C14: 23 | D14: 1212 | E14: 13 | F14: 1229 | G14: 14 | H14: 1234 | K14: 0 | L14: 1211 | N14: 1222 | O14: =COUNTIF($L$7:$L$500,N14) -> 7 | P14: =O14/$Q$4 -> 0.05223880597 | Q14: =IF(P14=0,0,(P14*((LOG(P14))/LOG(2)))) -> -0.2224711931 | T14: =N14 -> 1222 | U14: =COUNTIF(L7:L28,T14) -> 0 | V14: =U14/(W4-U20) -> 0 | W14: =IF(V14=0,0,(V14*((LOG(V14))/LOG(2)))) -> 0 | Y14: =N14 -> 1222 | Z14: =COUNTIF(L29:L51,Y14) -> 0 | AA14: =Z14/(AB4-Z20) -> 0 | AB14: =IF(AA14=0,0,(AA14*((LOG(AA14))/LOG(2)))) -> 0 | AD14: =N14 -> 1222 | AE14: =COUNTIF(L52:L73,AD14) -> 0 | AF14: =AE14/(AG4-AE20) -> 0 | AG14: =IF(AF14=0,0,(AF14*((LOG(AF14))/LOG(2)))) -> 0 | AI14: =N14 -> 1222 | AJ14: =COUNTIF(L74:L95,AI14) -> 2 | AK14: =AJ14/(AL4-AJ20) -> 0.09090909091 | AL14: =IF(AK14=0,0,(AK14*((LOG(AK14))/LOG(2)))) -> -0.3144937835 | AN14: =N14 -> 1222 | AO14: =COUNTIF(L96:L118,AN14) -> 3 | AP14: =AO14/(AQ4-AO20) -> 0.1304347826 | AQ14: =IF(AP14=0,0,(AP14*((LOG(AP14))/LOG(2)))) -> -0.3832955811 | AS14: =N14 -> 1222 | AT14: =COUNTIF(L119:L140,AS14) -> 2 | AU14: =AT14/(AV4-AT20) -> 0.09090909091 | AV14: =IF(AU14=0,0,(AU14*((LOG(AU14))/LOG(2)))) -> -0.3144937835
A15: 12 | B15: 1345 | C15: 14 | D15: 1355 | E15: 24 | F15: 1367 | G15: 23 | H15: 1372 | K15: 0 | L15: 1122 | N15: 2111 | O15: =COUNTIF($L$7:$L$500,N15) -> 22 | P15: =O15/$Q$4 -> 0.1641791045 | Q15: =IF(P15=0,0,(P15*((LOG(P15))/LOG(2)))) -> -0.4279587058 | T15: =N15 -> 2111 | U15: =COUNTIF(L7:L28,T15) -> 2 | V15: =U15/(W4-U20) -> 0.09523809524 | W15: =IF(V15=0,0,(V15*((LOG(V15))/LOG(2)))) -> -0.3230778498 | Y15: =N15 -> 2111 | Z15: =COUNTIF(L29:L51,Y15) -> 5 | AA15: =Z15/(AB4-Z20) -> 0.2173913043 | AB15: =IF(AA15=0,0,(AA15*((LOG(AA15))/LOG(2)))) -> -0.4786160568 | AD15: =N15 -> 2111 | AE15: =COUNTIF(L52:L73,AD15) -> 5 | AF15: =AE15/(AG4-AE20) -> 0.2272727273 | AG15: =IF(AF15=0,0,(AF15*((LOG(AF15))/LOG(2)))) -> -0.4857962554 | AI15: =N15 -> 2111 | AJ15: =COUNTIF(L74:L95,AI15) -> 4 | AK15: =AJ15/(AL4-AJ20) -> 0.1818181818 | AL15: =IF(AK15=0,0,(AK15*((LOG(AK15))/LOG(2)))) -> -0.4471693852 | AN15: =N15 -> 2111 | AO15: =COUNTIF(L96:L118,AN15) -> 4 | AP15: =AO15/(AQ4-AO20) -> 0.1739130435 | AQ15: =IF(AP15=0,0,(AP15*((LOG(AP15))/LOG(2)))) -> -0.4388803402 | AS15: =N15 -> 2111 | AT15: =COUNTIF(L119:L140,AS15) -> 2 | AU15: =AT15/(AV4-AT20) -> 0.09090909091 | AV15: =IF(AU15=0,0,(AU15*((LOG(AU15))/LOG(2)))) -> -0.3144937835
A16: 12 | B16: 1485 | C16: 14 | D16: 1490 | E16: 13 | F16: 1496 | G16: 23 | H16: 1506 | K16: 0 | L16: 1112 | N16: 2112 | O16: =COUNTIF($L$7:$L$500,N16) -> 3 | P16: =O16/$Q$4 -> 0.0223880597 | Q16: =IF(P16=0,0,(P16*((LOG(P16))/LOG(2)))) -> -0.1227117916 | T16: =N16 -> 2112 | U16: =COUNTIF(L7:L28,T16) -> 3 | V16: =U16/(W4-U20) -> 0.1428571429 | W16: =IF(V16=0,0,(V16*((LOG(V16))/LOG(2)))) -> -0.4010507032 | Y16: =N16 -> 2112 | Z16: =COUNTIF(L29:L51,Y16) -> 0 | AA16: =Z16/(AB4-Z20) -> 0 | AB16: =IF(AA16=0,0,(AA16*((LOG(AA16))/LOG(2)))) -> 0 | AD16: =N16 -> 2112 | AE16: =COUNTIF(L52:L73,AD16) -> 0 | AF16: =AE16/(AG4-AE20) -> 0 | AG16: =IF(AF16=0,0,(AF16*((LOG(AF16))/LOG(2)))) -> 0 | AI16: =N16 -> 2112 | AJ16: =COUNTIF(L74:L95,AI16) -> 0 | AK16: =AJ16/(AL4-AJ20) -> 0 | AL16: =IF(AK16=0,0,(AK16*((LOG(AK16))/LOG(2)))) -> 0 | AN16: =N16 -> 2112 | AO16: =COUNTIF(L96:L118,AN16) -> 0 | AP16: =AO16/(AQ4-AO20) -> 0 | AQ16: =IF(AP16=0,0,(AP16*((LOG(AP16))/LOG(2)))) -> 0 | AS16: =N16 -> 2112 | AT16: =COUNTIF(L119:L140,AS16) -> 0 | AU16: =AT16/(AV4-AT20) -> 0 | AV16: =IF(AU16=0,0,(AU16*((LOG(AU16))/LOG(2)))) -> 0
A17: 12 | B17: 1631 | C17: 14 | D17: 1638 | E17: 24 | F17: 1658 | G17: 23 | H17: 1663 | K17: 0 | L17: 1122 | N17: 2121 | O17: =COUNTIF($L$7:$L$500,N17) -> 1 | P17: =O17/$Q$4 -> 0.007462686567 | Q17: =IF(P17=0,0,(P17*((LOG(P17))/LOG(2)))) -> -0.05273200888 | T17: =N17 -> 2121 | U17: =COUNTIF(L7:L28,T17) -> 0 | V17: =U17/(W4-U20) -> 0 | W17: =IF(V17=0,0,(V17*((LOG(V17))/LOG(2)))) -> 0 | Y17: =N17 -> 2121 | Z17: =COUNTIF(L29:L51,Y17) -> 0 | AA17: =Z17/(AB4-Z20) -> 0 | AB17: =IF(AA17=0,0,(AA17*((LOG(AA17))/LOG(2)))) -> 0 | AD17: =N17 -> 2121 | AE17: =COUNTIF(L52:L73,AD17) -> 0 | AF17: =AE17/(AG4-AE20) -> 0 | AG17: =IF(AF17=0,0,(AF17*((LOG(AF17))/LOG(2)))) -> 0 | AI17: =N17 -> 2121 | AJ17: =COUNTIF(L74:L95,AI17) -> 0 | AK17: =AJ17/(AL4-AJ20) -> 0 | AL17: =IF(AK17=0,0,(AK17*((LOG(AK17))/LOG(2)))) -> 0 | AN17: =N17 -> 2121 | AO17: =COUNTIF(L96:L118,AN17) -> 0 | AP17: =AO17/(AQ4-AO20) -> 0 | AQ17: =IF(AP17=0,0,(AP17*((LOG(AP17))/LOG(2)))) -> 0 | AS17: =N17 -> 2121 | AT17: =COUNTIF(L119:L140,AS17) -> 1 | AU17: =AT17/(AV4-AT20) -> 0.04545454545 | AV17: =IF(AU17=0,0,(AU17*((LOG(AU17))/LOG(2)))) -> -0.2027014372
A18: 12 | B18: 1764 | C18: 14 | D18: 1774 | E18: 13 | F18: 1779 | G18: 14 | H18: 1792 | K18: 0 | L18: 1111 | N18: 2122 | O18: =COUNTIF($L$7:$L$500,N18) -> 2 | P18: =O18/$Q$4 -> 0.01492537313 | Q18: =IF(P18=0,0,(P18*((LOG(P18))/LOG(2)))) -> -0.09053864463 | T18: =N18 -> 2122 | U18: =COUNTIF(L7:L28,T18) -> 0 | V18: =U18/(W4-U20) -> 0 | W18: =IF(V18=0,0,(V18*((LOG(V18))/LOG(2)))) -> 0 | Y18: =N18 -> 2122 | Z18: =COUNTIF(L29:L51,Y18) -> 0 | AA18: =Z18/(AB4-Z20) -> 0 | AB18: =IF(AA18=0,0,(AA18*((LOG(AA18))/LOG(2)))) -> 0 | AD18: =N18 -> 2122 | AE18: =COUNTIF(L52:L73,AD18) -> 1 | AF18: =AE18/(AG4-AE20) -> 0.04545454545 | AG18: =IF(AF18=0,0,(AF18*((LOG(AF18))/LOG(2)))) -> -0.2027014372 | AI18: =N18 -> 2122 | AJ18: =COUNTIF(L74:L95,AI18) -> 0 | AK18: =AJ18/(AL4-AJ20) -> 0 | AL18: =IF(AK18=0,0,(AK18*((LOG(AK18))/LOG(2)))) -> 0 | AN18: =N18 -> 2122 | AO18: =COUNTIF(L96:L118,AN18) -> 1 | AP18: =AO18/(AQ4-AO20) -> 0.04347826087 | AQ18: =IF(AP18=0,0,(AP18*((LOG(AP18))/LOG(2)))) -> -0.1966766068 | AS18: =N18 -> 2122 | AT18: =COUNTIF(L119:L140,AS18) -> 0 | AU18: =AT18/(AV4-AT20) -> 0 | AV18: =IF(AU18=0,0,(AU18*((LOG(AU18))/LOG(2)))) -> 0
A19: 12 | B19: 1913 | C19: 14 | D19: 1918 | E19: 24 | F19: 1934 | G19: 23 | H19: 1939 | K19: 0 | L19: 1122 | N19: 2211 | O19: =COUNTIF($L$7:$L$500,N19) -> 16 | P19: =O19/$Q$4 -> 0.1194029851 | Q19: =IF(P19=0,0,(P19*((LOG(P19))/LOG(2)))) -> -0.3661002018 | T19: =N19 -> 2211 | U19: =COUNTIF(L7:L28,T19) -> 2 | V19: =U19/(W4-U20) -> 0.09523809524 | W19: =IF(V19=0,0,(V19*((LOG(V19))/LOG(2)))) -> -0.3230778498 | Y19: =N19 -> 2211 | Z19: =COUNTIF(L29:L51,Y19) -> 2 | AA19: =Z19/(AB4-Z20) -> 0.08695652174 | AB19: =IF(AA19=0,0,(AA19*((LOG(AA19))/LOG(2)))) -> -0.3063966918 | AD19: =N19 -> 2211 | AE19: =COUNTIF(L52:L73,AD19) -> 2 | AF19: =AE19/(AG4-AE20) -> 0.09090909091 | AG19: =IF(AF19=0,0,(AF19*((LOG(AF19))/LOG(2)))) -> -0.3144937835 | AI19: =N19 -> 2211 | AJ19: =COUNTIF(L74:L95,AI19) -> 2 | AK19: =AJ19/(AL4-AJ20) -> 0.09090909091 | AL19: =IF(AK19=0,0,(AK19*((LOG(AK19))/LOG(2)))) -> -0.3144937835 | AN19: =N19 -> 2211 | AO19: =COUNTIF(L96:L118,AN19) -> 3 | AP19: =AO19/(AQ4-AO20) -> 0.1304347826 | AQ19: =IF(AP19=0,0,(AP19*((LOG(AP19))/LOG(2)))) -> -0.3832955811 | AS19: =N19 -> 2211 | AT19: =COUNTIF(L119:L140,AS19) -> 5 | AU19: =AT19/(AV4-AT20) -> 0.2272727273 | AV19: =IF(AU19=0,0,(AU19*((LOG(AU19))/LOG(2)))) -> -0.4857962554
A20: 12 | B20: 2066 | C20: 23 | D20: 2078 | E20: 13 | F20: 2086 | G20: 14 | H20: 2092 | K20: 0 | L20: 1211 | N20: 2212 | O20: =COUNTIF($L$7:$L$500,N20) -> 1 | P20: =O20/$Q$4 -> 0.007462686567 | Q20: =IF(P20=0,0,(P20*((LOG(P20))/LOG(2)))) -> -0.05273200888 | T20: =N20 -> 2212 | U20: =COUNTIF(L7:L28,T20) -> 1 | Y20: =N20 -> 2212 | Z20: =COUNTIF(L29:L51,Y20) -> 0 | AD20: =N20 -> 2212 | AE20: =COUNTIF(L52:L73,AD20) -> 0 | AI20: =N20 -> 2212 | AJ20: =COUNTIF(L74:L95,AI20) -> 0 | AN20: =N20 -> 2212 | AO20: =COUNTIF(L96:L118,AN20) -> 0 | AS20: =N20 -> 2212 | AT20: =COUNTIF(L119:L140,AS20) -> 0
A21: 21 | B21: 2197 | C21: 12 | D21: 2210 | E21: 13 | F21: 2216 | G21: 23 | H21: 2229 | K21: 0 | L21: 2112 | N21: 2221 | O21: =COUNTIF($L$7:$L$500,N21) -> 10 | P21: =O21/$Q$4 -> 0.07462686567 | Q21: =IF(P21=0,0,(P21*((LOG(P21))/LOG(2)))) -> -0.2794150071 | T21: =N21 -> 2221 | U21: =COUNTIF(L7:L28,T21) -> 0 | V21: =U21/(W4-U20) -> 0 | W21: =IF(V21=0,0,(V21*((LOG(V21))/LOG(2)))) -> 0 | Y21: =N21 -> 2221 | Z21: =COUNTIF(L29:L51,Y21) -> 1 | AA21: =Z21/(AB4-Z20) -> 0.04347826087 | AB21: =IF(AA21=0,0,(AA21*((LOG(AA21))/LOG(2)))) -> -0.1966766068 | AD21: =N21 -> 2221 | AE21: =COUNTIF(L52:L73,AD21) -> 5 | AF21: =AE21/(AG4-AE20) -> 0.2272727273 | AG21: =IF(AF21=0,0,(AF21*((LOG(AF21))/LOG(2)))) -> -0.4857962554 | AI21: =N21 -> 2221 | AJ21: =COUNTIF(L74:L95,AI21) -> 3 | AK21: =AJ21/(AL4-AJ20) -> 0.1363636364 | AL21: =IF(AK21=0,0,(AK21*((LOG(AK21))/LOG(2)))) -> -0.3919730615 | AN21: =N21 -> 2221 | AO21: =COUNTIF(L96:L118,AN21) -> 1 | AP21: =AO21/(AQ4-AO20) -> 0.04347826087 | AQ21: =IF(AP21=0,0,(AP21*((LOG(AP21))/LOG(2)))) -> -0.1966766068 | AS21: =N21 -> 2221 | AT21: =COUNTIF(L119:L140,AS21) -> 0 | AU21: =AT21/(AV4-AT20) -> 0 | AV21: =IF(AU21=0,0,(AU21*((LOG(AU21))/LOG(2)))) -> 0
A22: 21 | B22: 2350 | C22: 21 | D22: 2369 | E22: 11 | F22: 2387 | G22: 12 | H22: 2395 | K22: 0 | L22: 2211 | N22: 2222 | O22: =COUNTIF($L$7:$L$500,N22) -> 24 | P22: =O22/$Q$4 -> 0.1791044776 | Q22: =IF(P22=0,0,(P22*((LOG(P22))/LOG(2)))) -> -0.4443808997 | T22: =N22 -> 2222 | U22: =COUNTIF(L7:L28,T22) -> 1 | V22: =U22/(W4-U20) -> 0.04761904762 | W22: =IF(V22=0,0,(V22*((LOG(V22))/LOG(2)))) -> -0.2091579725 | Y22: =N22 -> 2222 | Z22: =COUNTIF(L29:L51,Y22) -> 4 | AA22: =Z22/(AB4-Z20) -> 0.1739130435 | AB22: =IF(AA22=0,0,(AA22*((LOG(AA22))/LOG(2)))) -> -0.4388803402 | AD22: =N22 -> 2222 | AE22: =COUNTIF(L52:L73,AD22) -> 2 | AF22: =AE22/(AG4-AE20) -> 0.09090909091 | AG22: =IF(AF22=0,0,(AF22*((LOG(AF22))/LOG(2)))) -> -0.3144937835 | AI22: =N22 -> 2222 | AJ22: =COUNTIF(L74:L95,AI22) -> 5 | AK22: =AJ22/(AL4-AJ20) -> 0.2272727273 | AL22: =IF(AK22=0,0,(AK22*((LOG(AK22))/LOG(2)))) -> -0.4857962554 | AN22: =N22 -> 2222 | AO22: =COUNTIF(L96:L118,AN22) -> 5 | AP22: =AO22/(AQ4-AO20) -> 0.2173913043 | AQ22: =IF(AP22=0,0,(AP22*((LOG(AP22))/LOG(2)))) -> -0.4786160568 | AS22: =N22 -> 2222 | AT22: =COUNTIF(L119:L140,AS22) -> 7 | AU22: =AT22/(AV4-AT20) -> 0.3181818182 | AV22: =IF(AU22=0,0,(AU22*((LOG(AU22))/LOG(2)))) -> -0.5256607671
A23: 21 | B23: 2514 | C23: 12 | D23: 2528 | E23: 13 | F23: 2532 | G23: 14 | H23: 2537 | K23: 0 | L23: 2111 | P23: =SUM(P7:P22) -> 1 | Q23: =-SUM(Q7:Q22) -> 3.312134618 | V23: =SUM(V7:V22) -> 1 | W23: =-SUM(W7:W22) -> 2.851149424 | AA23: =SUM(AA7:AA22) -> 1 | AB23: =-SUM(AB7:AB22) -> 2.822717805 | AF23: =SUM(AF7:AF22) -> 1 | AG23: =-SUM(AG7:AG22) -> 2.915151234 | AK23: =SUM(AK7:AK22) -> 1 | AL23: =-SUM(AL7:AL22) -> 2.806498529 | AP23: =SUM(AP7:AP22) -> 1 | AQ23: =-SUM(AQ7:AQ22) -> 3.050766174 | AU23: =SUM(AU7:AU22) -> 1 | AV23: =-SUM(AV7:AV22) -> 2.493016849
A24: 12 | B24: 2660 | C24: 14 | D24: 2666 | E24: 24 | F24: 2680 | G24: 23 | H24: 2688 | K24: 0 | L24: 1122 | P24: U= | Q24: =Q23/(LOG(Q4)/LOG(2)) -> 0.4687365993 | V24: U1= | W24: =W23/(LOG(W4)/LOG(2)) -> 0.6393526502 | AA24: U2= | AB24: =AB23/(LOG(AB4)/LOG(2)) -> 0.6240033479 | AF24: U3= | AG24: =AG23/(LOG(AG4)/LOG(2)) -> 0.653704661 | AK24: U4= | AL24: =AL23/(LOG(AL4)/LOG(2)) -> 0.6293399628 | AP24: U5= | AQ24: =AQ23/(LOG(AQ4)/LOG(2)) -> 0.674416799 | AU24: U6= | AV24: =AV23/(LOG(AV4)/LOG(2)) -> 0.5590436321
A25: 12 | B25: 2818 | C25: 14 | D25: 2824 | E25: 13 | F25: 2829 | G25: 14 | H25: 2835 | K25: 0 | L25: 1111
A26: 12 | B26: 2990 | C26: 14 | D26: 2996 | E26: 13 | F26: 3000 | G26: 14 | H26: 3007 | K26: 0 | L26: 1111
A27: 12 | B27: 3152 | C27: 14 | D27: 3158 | E27: 13 | F27: 3167 | G27: 14 | H27: 3174 | K27: 0 | L27: 1111 | N27: Total Target Seq
A28: 12 | B28: 3316 | C28: 14 | D28: 3322 | E28: 13 | F28: 3327 | G28: 14 | H28: 3332 | K28: 0 | L28: 1111 | N28: =COUNTIF(L7:L140,G3) -> 1 | P28: 22 | Q28: 23 | R28: 22 | S28: 22 | T28: 23 | U28: 22
A29: 12 | B29: 3467 | C29: 14 | D29: 3472 | E29: 13 | F29: 3502 | G29: 14 | H29: 3508 | K29: 0 | L29: 1111 | P29: % of reinforcement given in 6 equal intervals based on number of trials
A30: 21 | B30: 3617 | C30: 12 | D30: 3647 | E30: 13 | F30: 3652 | G30: 14 | H30: 3656 | K30: 0 | L30: 2111 | P30: %_1 | Q30: %_2 | R30: %_3 | S30: %_4 | T30: %_5 | U30: %_6
A31: 12 | B31: 3776 | C31: 14 | D31: 3781 | E31: 13 | F31: 3787 | G31: 14 | H31: 3795 | K31: 0 | L31: 1111 | O31: target sequence | P31: =$G$3 -> 2212 | Q31: =$G$3 -> 2212 | R31: =$G$3 -> 2212 | S31: =$G$3 -> 2212 | T31: =$G$3 -> 2212 | U31: =$G$3 -> 2212
A32: 12 | B32: 3924 | C32: 14 | D32: 3930 | E32: 24 | F32: 3943 | G32: 14 | H32: 3962 | K32: 0 | L32: 1121 | O32: total reinforcement | P32: =U20 -> 1 | Q32: =Z20 -> 0 | R32: =AE20 -> 0 | S32: =AJ20 -> 0 | T32: =AO20 -> 0 | U32: =AT20 -> 0
A33: 12 | B33: 4088 | C33: 14 | D33: 4093 | E33: 13 | F33: 4099 | G33: 14 | H33: 4107 | K33: 0 | L33: 1111 | O33: % target
A34: 12 | B34: 4248 | C34: 23 | D34: 4264 | E34: 24 | F34: 4270 | G34: 14 | H34: 4286 | K34: 0 | L34: 1221 | O34: CCRF
A35: 21 | B35: 4383 | C35: 12 | D35: 4400 | E35: 13 | F35: 4404 | G35: 14 | H35: 4435 | K35: 0 | L35: 2111 | O35: % CCRf
A36: 21 | B36: 4536 | C36: 12 | D36: 4553 | E36: 13 | F36: 4564 | G36: 14 | H36: 4570 | K36: 0 | L36: 2111 | O36: average response rate | P36: =H28/P28 -> 151.4545455 | Q36: =(H51-H28)/Q28 -> 173.2173913 | R36: =(H73-H51)/R28 -> 186.3181818 | S36: =(H95-H73)/S28 -> 173.9545455 | T36: =(H118-H95)/T28 -> 190.7826087 | U36: =(H140-H118)/U28 -> 197.5
A37: 21 | B37: 4704 | C37: 21 | D37: 4714 | E37: 11 | F37: 4726 | G37: 12 | H37: 4731 | K37: 0 | L37: 2211
A38: 21 | B38: 4837 | C38: 12 | D38: 4854 | E38: 13 | F38: 4858 | G38: 14 | H38: 4863 | K38: 0 | L38: 2111
A39: 12 | B39: 5002 | C39: 14 | D39: 5010 | E39: 13 | F39: 5015 | G39: 23 | H39: 5030 | K39: 0 | L39: 1112
A40: 12 | B40: 5203 | C40: 14 | D40: 5209 | E40: 13 | F40: 5214 | G40: 14 | H40: 5219 | K40: 0 | L40: 1111
A41: 21 | B41: 5399 | C41: 21 | D41: 5404 | E41: 22 | F41: 5410 | G41: 14 | H41: 5425 | K41: 0 | L41: 2221
A42: 21 | B42: 5664 | C42: 21 | D42: 5675 | E42: 11 | F42: 5688 | G42: 12 | H42: 5695 | K42: 0 | L42: 2211
A43: 12 | B43: 5806 | C43: 14 | D43: 5812 | E43: 24 | F43: 5826 | G43: 23 | H43: 5839 | K43: 0 | L43: 1122
A44: 12 | B44: 5964 | C44: 14 | D44: 5986 | E44: 13 | F44: 5991 | G44: 14 | H44: 5995 | K44: 0 | L44: 1111
A45: 21 | B45: 6233 | C45: 12 | D45: 6255 | E45: 13 | F45: 6260 | G45: 14 | H45: 6264 | K45: 0 | L45: 2111
A46: 12 | B46: 6416 | C46: 14 | D46: 6421 | E46: 13 | F46: 6427 | G46: 23 | H46: 6439 | K46: 0 | L46: 1112
A47: 21 | B47: 6560 | C47: 21 | D47: 6566 | E47: 22 | F47: 6585 | G47: 23 | H47: 6599 | K47: 0 | L47: 2222
A48: 21 | B48: 6735 | C48: 21 | D48: 6742 | E48: 22 | F48: 6767 | G48: 23 | H48: 6773 | K48: 0 | L48: 2222
A49: 21 | B49: 6970 | C49: 21 | D49: 7004 | E49: 22 | F49: 7033 | G49: 23 | H49: 7047 | K49: 0 | L49: 2222
A50: 12 | B50: 7163 | C50: 14 | D50: 7168 | E50: 13 | F50: 7174 | G50: 14 | H50: 7179 | K50: 0 | L50: 1111
A51: 21 | B51: 7293 | C51: 21 | D51: 7305 | E51: 22 | F51: 7310 | G51: 23 | H51: 7316 | K51: 0 | L51: 2222
A52: 21 | B52: 7547 | C52: 12 | D52: 7584 | E52: 24 | F52: 7597 | G52: 23 | H52: 7602 | K52: 0 | L52: 2122
A53: 12 | B53: 7799 | C53: 14 | D53: 7805 | E53: 13 | F53: 7814 | G53: 23 | H53: 7828 | K53: 0 | L53: 1112
A54: 21 | B54: 7961 | C54: 21 | D54: 7969 | E54: 22 | F54: 7979 | G54: 23 | H54: 7984 | K54: 0 | L54: 2222
A55: 21 | B55: 8089 | C55: 21 | D55: 8096 | E55: 22 | F55: 8109 | G55: 14 | H55: 8133 | K55: 0 | L55: 2221
A56: 21 | B56: 8236 | C56: 12 | D56: 8252 | E56: 13 | F56: 8258 | G56: 14 | H56: 8262 | K56: 0 | L56: 2111
A57: 21 | B57: 8404 | C57: 21 | D57: 8418 | E57: 22 | F57: 8425 | G57: 14 | H57: 8442 | K57: 0 | L57: 2221
A58: 21 | B58: 8586 | C58: 21 | D58: 8603 | E58: 11 | F58: 8614 | G58: 12 | H58: 8619 | K58: 0 | L58: 2211
A59: 12 | B59: 8799 | C59: 14 | D59: 8804 | E59: 13 | F59: 8809 | G59: 14 | H59: 8815 | K59: 0 | L59: 1111
A60: 21 | B60: 8934 | C60: 12 | D60: 8947 | E60: 13 | F60: 8953 | G60: 14 | H60: 8960 | K60: 0 | L60: 2111
A61: 12 | B61: 9077 | C61: 14 | D61: 9083 | E61: 24 | F61: 9098 | G61: 23 | H61: 9115 | K61: 0 | L61: 1122
A62: 21 | B62: 9215 | C62: 12 | D62: 9242 | E62: 13 | F62: 9246 | G62: 14 | H62: 9251 | K62: 0 | L62: 2111
A63: 12 | B63: 9354 | C63: 14 | D63: 9385 | E63: 13 | F63: 9390 | G63: 14 | H63: 9398 | K63: 0 | L63: 1111
A64: 21 | B64: 9664 | C64: 21 | D64: 9677 | E64: 11 | F64: 9691 | G64: 12 | H64: 9695 | K64: 0 | L64: 2211
A65: 12 | B65: 9811 | C65: 14 | D65: 9816 | E65: 13 | F65: 9821 | G65: 14 | H65: 9829 | K65: 0 | L65: 1111
A66: 12 | B66: 9993 | C66: 23 | D66: 10015 | E66: 13 | F66: 10032 | G66: 14 | H66: 10037 | K66: 0 | L66: 1211
A67: 21 | B67: 10317 | C67: 21 | D67: 10333 | E67: 22 | F67: 10339 | G67: 14 | H67: 10354 | K67: 0 | L67: 2221
A68: 21 | B68: 10454 | C68: 21 | D68: 10491 | E68: 22 | F68: 10502 | G68: 14 | H68: 10516 | K68: 0 | L68: 2221
A69: 21 | B69: 10621 | C69: 21 | D69: 10630 | E69: 22 | F69: 10642 | G69: 14 | H69: 10658 | K69: 0 | L69: 2221
A70: 21 | B70: 10841 | C70: 12 | D70: 10866 | E70: 13 | F70: 10870 | G70: 14 | H70: 10875 | K70: 0 | L70: 2111
A71: 21 | B71: 11053 | C71: 21 | D71: 11065 | E71: 22 | F71: 11072 | G71: 23 | H71: 11077 | K71: 0 | L71: 2222
A72: 21 | B72: 11236 | C72: 12 | D72: 11251 | E72: 13 | F72: 11258 | G72: 14 | H72: 11265 | K72: 0 | L72: 2111
A73: 12 | B73: 11390 | C73: 14 | D73: 11396 | E73: 13 | F73: 11401 | G73: 23 | H73: 11415 | K73: 0 | L73: 1112
A74: 21 | B74: 11507 | C74: 21 | D74: 11521 | E74: 11 | F74: 11538 | G74: 12 | H74: 11544 | K74: 0 | L74: 2211
A75: 21 | B75: 11706 | C75: 21 | D75: 11724 | E75: 11 | F75: 11743 | G75: 12 | H75: 11748 | K75: 0 | L75: 2211
A76: 21 | B76: 11923 | C76: 21 | D76: 11934 | E76: 22 | F76: 11939 | G76: 14 | H76: 11956 | K76: 0 | L76: 2221
A77: 21 | B77: 12059 | C77: 21 | D77: 12065 | E77: 22 | F77: 12080 | G77: 23 | H77: 12088 | K77: 0 | L77: 2222
A78: 12 | B78: 12259 | C78: 14 | D78: 12268 | E78: 13 | F78: 12277 | G78: 14 | H78: 12285 | K78: 0 | L78: 1111
A79: 21 | B79: 12399 | C79: 21 | D79: 12405 | E79: 22 | F79: 12417 | G79: 14 | H79: 12431 | K79: 0 | L79: 2221
A80: 21 | B80: 12725 | C80: 21 | D80: 12733 | E80: 22 | F80: 12744 | G80: 14 | H80: 12763 | K80: 0 | L80: 2221
A81: 12 | B81: 12890 | C81: 23 | D81: 12905 | E81: 24 | F81: 12910 | G81: 14 | H81: 12926 | K81: 0 | L81: 1221
A82: 21 | B82: 13075 | C82: 12 | D82: 13094 | E82: 13 | F82: 13099 | G82: 14 | H82: 13104 | K82: 0 | L82: 2111
A83: 21 | B83: 13253 | C83: 12 | D83: 13275 | E83: 13 | F83: 13280 | G83: 14 | H83: 13284 | K83: 0 | L83: 2111
A84: 21 | B84: 13468 | C84: 12 | D84: 13490 | E84: 13 | F84: 13499 | G84: 14 | H84: 13505 | K84: 0 | L84: 2111
A85: 21 | B85: 13604 | C85: 21 | D85: 13610 | E85: 22 | F85: 13634 | G85: 23 | H85: 13640 | K85: 0 | L85: 2222
A86: 21 | B86: 13742 | C86: 12 | D86: 13769 | E86: 13 | F86: 13774 | G86: 14 | H86: 13782 | K86: 0 | L86: 2111
A87: 12 | B87: 13921 | C87: 14 | D87: 13929 | E87: 13 | F87: 13936 | G87: 23 | H87: 13949 | K87: 0 | L87: 1112
A88: 12 | B88: 14064 | C88: 14 | D88: 14069 | E88: 13 | F88: 14073 | G88: 14 | H88: 14078 | K88: 0 | L88: 1111
A89: 12 | B89: 14243 | C89: 14 | D89: 14247 | E89: 13 | F89: 14252 | G89: 14 | H89: 14257 | K89: 0 | L89: 1111
A90: 21 | B90: 14369 | C90: 21 | D90: 14385 | E90: 22 | F90: 14399 | G90: 23 | H90: 14404 | K90: 0 | L90: 2222
A91: 12 | B91: 14530 | C91: 14 | D91: 14534 | E91: 13 | F91: 14540 | G91: 14 | H91: 14544 | K91: 0 | L91: 1111
A92: 21 | B92: 14731 | C92: 21 | D92: 14739 | E92: 22 | F92: 14750 | G92: 23 | H92: 14759 | K92: 0 | L92: 2222
A93: 12 | B93: 14865 | C93: 23 | D93: 14877 | E93: 24 | F93: 14882 | G93: 23 | H93: 14891 | K93: 0 | L93: 1222
A94: 21 | B94: 15065 | C94: 21 | D94: 15073 | E94: 22 | F94: 15080 | G94: 23 | H94: 15094 | K94: 0 | L94: 2222
A95: 12 | B95: 15202 | C95: 23 | D95: 15220 | E95: 24 | F95: 15231 | G95: 23 | H95: 15242 | K95: 0 | L95: 1222
A96: 21 | B96: 15414 | C96: 21 | D96: 15433 | E96: 22 | F96: 15442 | G96: 23 | H96: 15448 | K96: 0 | L96: 2222
A97: 12 | B97: 15559 | C97: 23 | D97: 15572 | E97: 24 | F97: 15577 | G97: 23 | H97: 15586 | K97: 0 | L97: 1222
A98: 21 | B98: 15691 | C98: 12 | D98: 15711 | E98: 24 | F98: 15730 | G98: 23 | H98: 15734 | K98: 0 | L98: 2122
A99: 21 | B99: 15928 | C99: 21 | D99: 15935 | E99: 22 | F99: 15944 | G99: 23 | H99: 15950 | K99: 0 | L99: 2222
A100: 12 | B100: 16116 | C100: 23 | D100: 16136 | E100: 24 | F100: 16142 | G100: 23 | H100: 16154 | K100: 0 | L100: 1222
A101: 12 | B101: 16262 | C101: 23 | D101: 16277 | E101: 24 | F101: 16282 | G101: 14 | H101: 16295 | K101: 0 | L101: 1221
A102: 21 | B102: 16497 | C102: 21 | D102: 16509 | E102: 22 | F102: 16519 | G102: 23 | H102: 16524 | K102: 0 | L102: 2222
A103: 21 | B103: 16627 | C103: 12 | D103: 16649 | E103: 13 | F103: 16653 | G103: 14 | H103: 16660 | K103: 0 | L103: 2111
A104: 12 | B104: 16794 | C104: 14 | D104: 16799 | E104: 24 | F104: 16811 | G104: 14 | H104: 16839 | K104: 0 | L104: 1121
A105: 21 | B105: 17004 | C105: 21 | D105: 17011 | E105: 22 | F105: 17016 | G105: 14 | H105: 17033 | K105: 0 | L105: 2221
A106: 21 | B106: 17296 | C106: 21 | D106: 17308 | E106: 11 | F106: 17323 | G106: 12 | H106: 17327 | K106: 0 | L106: 2211
A107: 12 | B107: 17474 | C107: 14 | D107: 17481 | E107: 13 | F107: 17488 | G107: 23 | H107: 17503 | K107: 0 | L107: 1112
A108: 21 | B108: 17627 | C108: 12 | D108: 17645 | E108: 13 | F108: 17650 | G108: 14 | H108: 17654 | K108: 0 | L108: 2111
A109: 21 | B109: 17857 | C109: 21 | D109: 17864 | E109: 11 | F109: 17884 | G109: 12 | H109: 17892 | K109: 0 | L109: 2211
A110: 12 | B110: 18003 | C110: 14 | D110: 18012 | E110: 13 | F110: 18017 | G110: 14 | H110: 18021 | K110: 0 | L110: 1111
A111: 12 | B111: 18173 | C111: 14 | D111: 18178 | E111: 13 | F111: 18184 | G111: 14 | H111: 18189 | K111: 0 | L111: 1111
A112: 21 | B112: 18297 | C112: 21 | D112: 18312 | E112: 22 | F112: 18321 | G112: 23 | H112: 18337 | K112: 0 | L112: 2222
A113: 12 | B113: 18499 | C113: 23 | D113: 18529 | E113: 24 | F113: 18534 | G113: 23 | H113: 18539 | K113: 0 | L113: 1222
A114: 21 | B114: 18702 | C114: 12 | D114: 18724 | E114: 13 | F114: 18734 | G114: 14 | H114: 18741 | K114: 0 | L114: 2111
A115: 12 | B115: 18964 | C115: 14 | D115: 18969 | E115: 13 | F115: 18973 | G115: 14 | H115: 18978 | K115: 0 | L115: 1111
A116: 21 | B116: 19207 | C116: 21 | D116: 19227 | E116: 11 | F116: 19245 | G116: 12 | H116: 19251 | K116: 0 | L116: 2211
A117: 21 | B117: 19359 | C117: 21 | D117: 19363 | E117: 22 | F117: 19368 | G117: 23 | H117: 19400 | K117: 0 | L117: 2222
A118: 21 | B118: 19590 | C118: 12 | D118: 19618 | E118: 13 | F118: 19623 | G118: 14 | H118: 19630 | K118: 0 | L118: 2111
A119: 21 | B119: 19885 | C119: 21 | D119: 19896 | E119: 22 | F119: 19902 | G119: 23 | H119: 19912 | K119: 0 | L119: 2222
A120: 21 | B120: 20017 | C120: 21 | D120: 20022 | E120: 22 | F120: 20033 | G120: 23 | H120: 20039 | K120: 0 | L120: 2222
A121: 21 | B121: 20142 | C121: 21 | D121: 20147 | E121: 11 | F121: 20170 | G121: 12 | H121: 20175 | K121: 0 | L121: 2211
A122: 12 | B122: 20377 | C122: 14 | D122: 20382 | E122: 13 | F122: 20385 | G122: 14 | H122: 20389 | K122: 0 | L122: 1111
A123: 12 | B123: 20597 | C123: 14 | D123: 20603 | E123: 13 | F123: 20608 | G123: 14 | H123: 20612 | K123: 0 | L123: 1111
A124: 21 | B124: 20821 | C124: 12 | D124: 20838 | E124: 13 | F124: 20843 | G124: 14 | H124: 20847 | K124: 0 | L124: 2111
A125: 21 | B125: 20946 | C125: 21 | D125: 20952 | E125: 22 | F125: 20957 | G125: 23 | H125: 20979 | K125: 0 | L125: 2222
A126: 12 | B126: 21090 | C126: 23 | D126: 21103 | E126: 24 | F126: 21109 | G126: 23 | H126: 21114 | K126: 0 | L126: 1222
A127: 21 | B127: 21214 | C127: 12 | D127: 21238 | E127: 24 | F127: 21260 | G127: 14 | H127: 21276 | K127: 0 | L127: 2121
A128: 21 | B128: 21405 | C128: 21 | D128: 21420 | E128: 22 | F128: 21425 | G128: 23 | H128: 21430 | K128: 0 | L128: 2222
A129: 21 | B129: 21566 | C129: 12 | D129: 21585 | E129: 13 | F129: 21589 | G129: 14 | H129: 21597 | K129: 0 | L129: 2111
A130: 21 | B130: 21798 | C130: 21 | D130: 21805 | E130: 11 | F130: 21822 | G130: 12 | H130: 21827 | K130: 0 | L130: 2211
A131: 21 | B131: 22105 | C131: 21 | D131: 22115 | E131: 11 | F131: 22134 | G131: 12 | H131: 22149 | K131: 0 | L131: 2211
A132: 12 | B132: 22275 | C132: 23 | D132: 22287 | E132: 24 | F132: 22296 | G132: 23 | H132: 22305 | K132: 0 | L132: 1222
A133: 21 | B133: 22491 | C133: 21 | D133: 22495 | E133: 11 | F133: 22507 | G133: 12 | H133: 22511 | K133: 0 | L133: 2211
A134: 12 | B134: 22713 | C134: 14 | D134: 22719 | E134: 24 | F134: 22744 | G134: 23 | H134: 22750 | K134: 0 | L134: 1122
A135: 12 | B135: 22883 | C135: 14 | D135: 22888 | E135: 13 | F135: 22894 | G135: 14 | H135: 22898 | K135: 0 | L135: 1111
A136: 12 | B136: 23055 | C136: 14 | D136: 23085 | E136: 13 | F136: 23089 | G136: 14 | H136: 23094 | K136: 0 | L136: 1111
A137: 21 | B137: 23281 | C137: 21 | D137: 23286 | E137: 22 | F137: 23293 | G137: 23 | H137: 23310 | K137: 0 | L137: 2222
A138: 21 | B138: 23486 | C138: 21 | D138: 23494 | E138: 11 | F138: 23513 | G138: 12 | H138: 23518 | K138: 0 | L138: 2211
A139: 21 | B139: 23664 | C139: 21 | D139: 23671 | E139: 22 | F139: 23687 | G139: 23 | H139: 23691 | K139: 0 | L139: 2222
A140: 21 | B140: 23933 | C140: 21 | D140: 23940 | E140: 22 | F140: 23966 | G140: 23 | H140: 23975 | L140: 2222

Sheet !N104A10.092
A1: Report for:!N104A10.092
A2: Date: | B2: <date>
A3: Hen: | B3: <hen> | F3: Correct Sequence | G3: =Start!J2 -> 2212 | P3: Total Sequences in Data | Q3: =4994-COUNTBLANK(L7:L5000) -> 132 | V3: Total Sequences in Block Data | W3: =COUNTA(L7:L28) -> 22 | AA3: Total Sequences in Block Data | AB3: =COUNTA(L29:L50) -> 22 | AF3: Total Sequences in Block Data | AG3: =COUNTA(L51:L72) -> 22 | AK3: Total Sequences in Block Data | AL3: =COUNTA(L73:L94) -> 22 | AP3: Total Sequences in Block Data | AQ3: =COUNTA(L95:L116) -> 22 | AU3: Total Sequences in Block Data | AV3: =COUNTA(L117:L138) -> 22
P4: Total Sequences in Summary | Q4: =SUM(O7:O22) -> 131 | V4: Total Sequences in Block Summary | W4: =SUM(U7:U22) -> 22 | AA4: Total Sequences in Block Summary | AB4: =SUM(Z7:Z22) -> 22 | AF4: Total Sequences in Block Summary | AG4: =SUM(AE7:AE22) -> 22 | AK4: Total Sequences in Block Summary | AL4: =SUM(AJ7:AJ22) -> 22 | AP4: Total Sequences in Block Summary | AQ4: =SUM(AO7:AO22) -> 22 | AU4: Total Sequences in Block Summary | AV4: =SUM(AT7:AT22) -> 21
T5: Block 1 | Y5: Block 2 | AD5: Block 3 | AI5: Block 4 | AN5: Block 5 | AS5: Block 6
A6: Sequence Component 1 | B6: Time 1 | C6: Sequence Component 2 | D6: Time 2 | E6: Sequence Component 3 | F6: Time 3 | G6: Sequence Component 4 | H6: Time 4 | I6: Sequence Component 5 | J6: Time 5 | K6: Correct? 0=No 1=Yes | L6: Sequence | N6: Frequency | P6: Relative Frequency | Q6: Variability | T6: Frequency | V6: Relative Frequency | W6: Variability | Y6: Frequency | AA6: Relative Frequency | AB6: Variability | AD6: Frequency | AF6: Relative Frequency | AG6: Variability | AI6: Frequency | AK6: Relative Frequency | AL6: Variability | AN6: Frequency | AP6: Relative Frequency | AQ6: Variability | AS6: Frequency | AU6: Relative Frequency | AV6: Variability
A7: 12 | B7: 66 | C7: 23 | D7: 107 | E7: 24 | F7: 221 | G7: 23 | H7: 238 | K7: 0 | L7: 1222 | N7: 1111 | O7: =COUNTIF($L$7:$L$500,N7) -> 34 | P7: =O7/$Q$4 -> 0.2595419847 | Q7: =IF(P7=0,0,(P7*((LOG(P7))/LOG(2)))) -> -0.5050583622 | T7: =N7 -> 1111 | U7: =COUNTIF(L7:L28,T7) -> 10 | V7: =U7/(W4-U20) -> 0.4545454545 | W7: =IF(V7=0,0,(V7*((LOG(V7))/LOG(2)))) -> -0.5170470562 | Y7: =N7 -> 1111 | Z7: =COUNTIF(L29:L50,Y7) -> 5 | AA7: =Z7/(AB4-Z20) -> 0.2272727273 | AB7: =IF(AA7=0,0,(AA7*((LOG(AA7))/LOG(2)))) -> -0.4857962554 | AD7: =N7 -> 1111 | AE7: =COUNTIF(L51:L72,AD7) -> 4 | AF7: =AE7/(AG4-AE20) -> 0.1904761905 | AG7: =IF(AF7=0,0,(AF7*((LOG(AF7))/LOG(2)))) -> -0.4556795091 | AI7: =N7 -> 1111 | AJ7: =COUNTIF(L73:L94,AI7) -> 1 | AK7: =AJ7/(AL4-AJ20) -> 0.04545454545 | AL7: =IF(AK7=0,0,(AK7*((LOG(AK7))/LOG(2)))) -> -0.2027014372 | AN7: =N7 -> 1111 | AO7: =COUNTIF(L95:L116,AN7) -> 8 | AP7: =AO7/(AQ4-AO20) -> 0.3636363636 | AQ7: =IF(AP7=0,0,(AP7*((LOG(AP7))/LOG(2)))) -> -0.5307024068 | AS7: =N7 -> 1111 | AT7: =COUNTIF(L117:L138,AS7) -> 6 | AU7: =AT7/(AV4-AT20) -> 0.2857142857 | AV7: =IF(AU7=0,0,(AU7*((LOG(AU7))/LOG(2)))) -> -0.5163871206
A8: 12 | B8: 356 | C8: 14 | D8: 387 | E8: 13 | F8: 392 | G8: 23 | H8: 406 | K8: 0 | L8: 1112 | N8: 1112 | O8: =COUNTIF($L$7:$L$500,N8) -> 9 | P8: =O8/$Q$4 -> 0.06870229008 | Q8: =IF(P8=0,0,(P8*((LOG(P8))/LOG(2)))) -> -0.2654311603 | T8: =N8 -> 1112 | U8: =COUNTIF(L7:L28,T8) -> 2 | V8: =U8/(W4-U20) -> 0.09090909091 | W8: =IF(V8=0,0,(V8*((LOG(V8))/LOG(2)))) -> -0.3144937835 | Y8: =N8 -> 1112 | Z8: =COUNTIF(L29:L50,Y8) -> 1 | AA8: =Z8/(AB4-Z20) -> 0.04545454545 | AB8: =IF(AA8=0,0,(AA8*((LOG(AA8))/LOG(2)))) -> -0.2027014372 | AD8: =N8 -> 1112 | AE8: =COUNTIF(L51:L72,AD8) -> 1 | AF8: =AE8/(AG4-AE20) -> 0.04761904762 | AG8: =IF(AF8=0,0,(AF8*((LOG(AF8))/LOG(2)))) -> -0.2091579725 | AI8: =N8 -> 1112 | AJ8: =COUNTIF(L73:L94,AI8) -> 0 | AK8: =AJ8/(AL4-AJ20) -> 0 | AL8: =IF(AK8=0,0,(AK8*((LOG(AK8))/LOG(2)))) -> 0 | AN8: =N8 -> 1112 | AO8: =COUNTIF(L95:L116,AN8) -> 3 | AP8: =AO8/(AQ4-AO20) -> 0.1363636364 | AQ8: =IF(AP8=0,0,(AP8*((LOG(AP8))/LOG(2)))) -> -0.3919730615 | AS8: =N8 -> 1112 | AT8: =COUNTIF(L117:L138,AS8) -> 2 | AU8: =AT8/(AV4-AT20) -> 0.09523809524 | AV8: =IF(AU8=0,0,(AU8*((LOG(AU8))/LOG(2)))) -> -0.3230778498
A9: 12 | B9: 509 | C9: 23 | D9: 522 | E9: 13 | F9: 532 | G9: 14 | H9: 537 | K9: 0 | L9: 1211 | N9: 1121 | O9: =COUNTIF($L$7:$L$500,N9) -> 1 | P9: =O9/$Q$4 -> 0.007633587786 | Q9: =IF(P9=0,0,(P9*((LOG(P9))/LOG(2)))) -> -0.05369025192 | T9: =N9 -> 1121 | U9: =COUNTIF(L7:L28,T9) -> 0 | V9: =U9/(W4-U20) -> 0 | W9: =IF(V9=0,0,(V9*((LOG(V9))/LOG(2)))) -> 0 | Y9: =N9 -> 1121 | Z9: =COUNTIF(L29:L50,Y9) -> 0 | AA9: =Z9/(AB4-Z20) -> 0 | AB9: =IF(AA9=0,0,(AA9*((LOG(AA9))/LOG(2)))) -> 0 | AD9: =N9 -> 1121 | AE9: =COUNTIF(L51:L72,AD9) -> 0 | AF9: =AE9/(AG4-AE20) -> 0 | AG9: =IF(AF9=0,0,(AF9*((LOG(AF9))/LOG(2)))) -> 0 | AI9: =N9 -> 1121 | AJ9: =COUNTIF(L73:L94,AI9) -> 0 | AK9: =AJ9/(AL4-AJ20) -> 0 | AL9: =IF(AK9=0,0,(AK9*((LOG(AK9))/LOG(2)))) -> 0 | AN9: =N9 -> 1121 | AO9: =COUNTIF(L95:L116,AN9) -> 1 | AP9: =AO9/(AQ4-AO20) -> 0.04545454545 | AQ9: =IF(AP9=0,0,(AP9*((LOG(AP9))/LOG(2)))) -> -0.2027014372 | AS9: =N9 -> 1121 | AT9: =COUNTIF(L117:L138,AS9) -> 0 | AU9: =AT9/(AV4-AT20) -> 0 | AV9: =IF(AU9=0,0,(AU9*((LOG(AU9))/LOG(2)))) -> 0
A10: 12 | B10: 645 | C10: 14 | D10: 655 | E10: 13 | F10: 660 | G10: 14 | H10: 669 | K10: 0 | L10: 1111 | N10: 1122 | O10: =COUNTIF($L$7:$L$500,N10) -> 5 | P10: =O10/$Q$4 -> 0.03816793893 | Q10: =IF(P10=0,0,(P10*((LOG(P10))/LOG(2)))) -> -0.1798280499 | T10: =N10 -> 1122 | U10: =COUNTIF(L7:L28,T10) -> 0 | V10: =U10/(W4-U20) -> 0 | W10: =IF(V10=0,0,(V10*((LOG(V10))/LOG(2)))) -> 0 | Y10: =N10 -> 1122 | Z10: =COUNTIF(L29:L50,Y10) -> 2 | AA10: =Z10/(AB4-Z20) -> 0.09090909091 | AB10: =IF(AA10=0,0,(AA10*((LOG(AA10))/LOG(2)))) -> -0.3144937835 | AD10: =N10 -> 1122 | AE10: =COUNTIF(L51:L72,AD10) -> 0 | AF10: =AE10/(AG4-AE20) -> 0 | AG10: =IF(AF10=0,0,(AF10*((LOG(AF10))/LOG(2)))) -> 0 | AI10: =N10 -> 1122 | AJ10: =COUNTIF(L73:L94,AI10) -> 0 | AK10: =AJ10/(AL4-AJ20) -> 0 | AL10: =IF(AK10=0,0,(AK10*((LOG(AK10))/LOG(2)))) -> 0 | AN10: =N10 -> 1122 | AO10: =COUNTIF(L95:L116,AN10) -> 1 | AP10: =AO10/(AQ4-AO20) -> 0.04545454545 | AQ10: =IF(AP10=0,0,(AP10*((LOG(AP10))/LOG(2)))) -> -0.2027014372 | AS10: =N10 -> 1122 | AT10: =COUNTIF(L117:L138,AS10) -> 2 | AU10: =AT10/(AV4-AT20) -> 0.09523809524 | AV10: =IF(AU10=0,0,(AU10*((LOG(AU10))/LOG(2)))) -> -0.3230778498
A11: 12 | B11: 778 | C11: 23 | D11: 789 | E11: 24 | F11: 798 | G11: 14 | H11: 809 | K11: 0 | L11: 1221 | N11: 1211 | O11: =COUNTIF($L$7:$L$500,N11) -> 5 | P11: =O11/$Q$4 -> 0.03816793893 | Q11: =IF(P11=0,0,(P11*((LOG(P11))/LOG(2)))) -> -0.1798280499 | T11: =N11 -> 1211 | U11: =COUNTIF(L7:L28,T11) -> 3 | V11: =U11/(W4-U20) -> 0.1363636364 | W11: =IF(V11=0,0,(V11*((LOG(V11))/LOG(2)))) -> -0.3919730615 | Y11: =N11 -> 1211 | Z11: =COUNTIF(L29:L50,Y11) -> 0 | AA11: =Z11/(AB4-Z20) -> 0 | AB11: =IF(AA11=0,0,(AA11*((LOG(AA11))/LOG(2)))) -> 0 | AD11: =N11 -> 1211 | AE11: =COUNTIF(L51:L72,AD11) -> 0 | AF11: =AE11/(AG4-AE20) -> 0 | AG11: =IF(AF11=0,0,(AF11*((LOG(AF11))/LOG(2)))) -> 0 | AI11: =N11 -> 1211 | AJ11: =COUNTIF(L73:L94,AI11) -> 2 | AK11: =AJ11/(AL4-AJ20) -> 0.09090909091 | AL11: =IF(AK11=0,0,(AK11*((LOG(AK11))/LOG(2)))) -> -0.3144937835 | AN11: =N11 -> 1211 | AO11: =COUNTIF(L95:L116,AN11) -> 0 | AP11: =AO11/(AQ4-AO20) -> 0 | AQ11: =IF(AP11=0,0,(AP11*((LOG(AP11))/LOG(2)))) -> 0 | AS11: =N11 -> 1211 | AT11: =COUNTIF(L117:L138,AS11) -> 0 | AU11: =AT11/(AV4-AT20) -> 0 | AV11: =IF(AU11=0,0,(AU11*((LOG(AU11))/LOG(2)))) -> 0
A12: 12 | B12: 943 | C12: 14 | D12: 948 | E12: 13 | F12: 953 | G12: 14 | H12: 958 | K12: 0 | L12: 1111 | N12: 1212 | O12: =COUNTIF($L$7:$L$500,N12) -> 0 | P12: =O12/$Q$4 -> 0 | Q12: =IF(P12=0,0,(P12*((LOG(P12))/LOG(2)))) -> 0 | T12: =N12 -> 1212 | U12: =COUNTIF(L7:L28,T12) -> 0 | V12: =U12/(W4-U20) -> 0 | W12: =IF(V12=0,0,(V12*((LOG(V12))/LOG(2)))) -> 0 | Y12: =N12 -> 1212 | Z12: =COUNTIF(L29:L50,Y12) -> 0 | AA12: =Z12/(AB4-Z20) -> 0 | AB12: =IF(AA12=0,0,(AA12*((LOG(AA12))/LOG(2)))) -> 0 | AD12: =N12 -> 1212 | AE12: =COUNTIF(L51:L72,AD12) -> 0 | AF12: =AE12/(AG4-AE20) -> 0 | AG12: =IF(AF12=0,0,(AF12*((LOG(AF12))/LOG(2)))) -> 0 | AI12: =N12 -> 1212 | AJ12: =COUNTIF(L73:L94,AI12) -> 0 | AK12: =AJ12/(AL4-AJ20) -> 0 | AL12: =IF(AK12=0,0,(AK12*((LOG(AK12))/LOG(2)))) -> 0 | AN12: =N12 -> 1212 | AO12: =COUNTIF(L95:L116,AN12) -> 0 | AP12: =AO12/(AQ4-AO20) -> 0 | AQ12: =IF(AP12=0,0,(AP12*((LOG(AP12))/LOG(2)))) -> 0 | AS12: =N12 -> 1212 | AT12: =COUNTIF(L117:L138,AS12) -> 0 | AU12: =AT12/(AV4-AT20) -> 0 | AV12: =IF(AU12=0,0,(AU12*((LOG(AU12))/LOG(2)))) -> 0
A13: 12 | B13: 1074 | C13: 14 | D13: 1079 | E13: 13 | F13: 1103 | G13: 14 | H13: 1108 | K13: 0 | L13: 1111 | N13: 1221 | O13: =COUNTIF($L$7:$L$500,N13) -> 4 | P13: =O13/$Q$4 -> 0.03053435115 | Q13: =IF(P13=0,0,(P13*((LOG(P13))/LOG(2)))) -> -0.1536923054 | T13: =N13 -> 1221 | U13: =COUNTIF(L7:L28,T13) -> 1 | V13: =U13/(W4-U20) -> 0.04545454545 | W13: =IF(V13=0,0,(V13*((LOG(V13))/LOG(2)))) -> -0.2027014372 | Y13: =N13 -> 1221 | Z13: =COUNTIF(L29:L50,Y13) -> 0 | AA13: =Z13/(AB4-Z20) -> 0 | AB13: =IF(AA13=0,0,(AA13*((LOG(AA13))/LOG(2)))) -> 0 | AD13: =N13 -> 1221 | AE13: =COUNTIF(L51:L72,AD13) -> 1 | AF13: =AE13/(AG4-AE20) -> 0.04761904762 | AG13: =IF(AF13=0,0,(AF13*((LOG(AF13))/LOG(2)))) -> -0.2091579725 | AI13: =N13 -> 1221 | AJ13: =COUNTIF(L73:L94,AI13) -> 0 | AK13: =AJ13/(AL4-AJ20) -> 0 | AL13: =IF(AK13=0,0,(AK13*((LOG(AK13))/LOG(2)))) -> 0 | AN13: =N13 -> 1221 | AO13: =COUNTIF(L95:L116,AN13) -> 1 | AP13: =AO13/(AQ4-AO20) -> 0.04545454545 | AQ13: =IF(AP13=0,0,(AP13*((LOG(AP13))/LOG(2)))) -> -0.2027014372 | AS13: =N13 -> 1221 | AT13: =COUNTIF(L117:L138,AS13) -> 1 | AU13: =AT13/(AV4-AT20) -> 0.04761904762 | AV13: =IF(AU13=0,0,(AU13*((LOG(AU13))/LOG(2)))) -> -0.2091579725
A14: 12 | B14: 1240 | C14: 14 | D14: 1246 | E14: 13 | F14: 1255 | G14: 14 | H14: 1260 | K14: 0 | L14: 1111 | N14: 1222 | O14: =COUNTIF($L$7:$L$500,N14) -> 11 | P14: =O14/$Q$4 -> 0.08396946565 | Q14: =IF(P14=0,0,(P14*((LOG(P14))/LOG(2)))) -> -0.3001061467 | T14: =N14 -> 1222 | U14: =COUNTIF(L7:L28,T14) -> 1 | V14: =U14/(W4-U20) -> 0.04545454545 | W14: =IF(V14=0,0,(V14*((LOG(V14))/LOG(2)))) -> -0.2027014372 | Y14: =N14 -> 1222 | Z14: =COUNTIF(L29:L50,Y14) -> 1 | AA14: =Z14/(AB4-Z20) -> 0.04545454545 | AB14: =IF(AA14=0,0,(AA14*((LOG(AA14))/LOG(2)))) -> -0.2027014372 | AD14: =N14 -> 1222 | AE14: =COUNTIF(L51:L72,AD14) -> 3 | AF14: =AE14/(AG4-AE20) -> 0.1428571429 | AG14: =IF(AF14=0,0,(AF14*((LOG(AF14))/LOG(2)))) -> -0.4010507032 | AI14: =N14 -> 1222 | AJ14: =COUNTIF(L73:L94,AI14) -> 2 | AK14: =AJ14/(AL4-AJ20) -> 0.09090909091 | AL14: =IF(AK14=0,0,(AK14*((LOG(AK14))/LOG(2)))) -> -0.3144937835 | AN14: =N14 -> 1222 | AO14: =COUNTIF(L95:L116,AN14) -> 2 | AP14: =AO14/(AQ4-AO20) -> 0.09090909091 | AQ14: =IF(AP14=0,0,(AP14*((LOG(AP14))/LOG(2)))) -> -0.3144937835 | AS14: =N14 -> 1222 | AT14: =COUNTIF(L117:L138,AS14) -> 2 | AU14: =AT14/(AV4-AT20) -> 0.09523809524 | AV14: =IF(AU14=0,0,(AU14*((LOG(AU14))/LOG(2)))) -> -0.3230778498
A15: 21 | B15: 1378 | C15: 21 | D15: 1401 | E15: 22 | F15: 1419 | G15: 14 | H15: 1438 | K15: 0 | L15: 2221 | N15: 2111 | O15: =COUNTIF($L$7:$L$500,N15) -> 16 | P15: =O15/$Q$4 -> 0.1221374046 | Q15: =IF(P15=0,0,(P15*((LOG(P15))/LOG(2)))) -> -0.3704944124 | T15: =N15 -> 2111 | U15: =COUNTIF(L7:L28,T15) -> 0 | V15: =U15/(W4-U20) -> 0 | W15: =IF(V15=0,0,(V15*((LOG(V15))/LOG(2)))) -> 0 | Y15: =N15 -> 2111 | Z15: =COUNTIF(L29:L50,Y15) -> 6 | AA15: =Z15/(AB4-Z20) -> 0.2727272727 | AB15: =IF(AA15=0,0,(AA15*((LOG(AA15))/LOG(2)))) -> -0.5112188503 | AD15: =N15 -> 2111 | AE15: =COUNTIF(L51:L72,AD15) -> 4 | AF15: =AE15/(AG4-AE20) -> 0.1904761905 | AG15: =IF(AF15=0,0,(AF15*((LOG(AF15))/LOG(2)))) -> -0.4556795091 | AI15: =N15 -> 2111 | AJ15: =COUNTIF(L73:L94,AI15) -> 2 | AK15: =AJ15/(AL4-AJ20) -> 0.09090909091 | AL15: =IF(AK15=0,0,(AK15*((LOG(AK15))/LOG(2)))) -> -0.3144937835 | AN15: =N15 -> 2111 | AO15: =COUNTIF(L95:L116,AN15) -> 2 | AP15: =AO15/(AQ4-AO20) -> 0.09090909091 | AQ15: =IF(AP15=0,0,(AP15*((LOG(AP15))/LOG(2)))) -> -0.3144937835 | AS15: =N15 -> 2111 | AT15: =COUNTIF(L117:L138,AS15) -> 2 | AU15: =AT15/(AV4-AT20) -> 0.09523809524 | AV15: =IF(AU15=0,0,(AU15*((LOG(AU15))/LOG(2)))) -> -0.3230778498
A16: 12 | B16: 1576 | C16: 14 | D16: 1585 | E16: 13 | F16: 1592 | G16: 14 | H16: 1597 | K16: 0 | L16: 1111 | N16: 2112 | O16: =COUNTIF($L$7:$L$500,N16) -> 0 | P16: =O16/$Q$4 -> 0 | Q16: =IF(P16=0,0,(P16*((LOG(P16))/LOG(2)))) -> 0 | T16: =N16 -> 2112 | U16: =COUNTIF(L7:L28,T16) -> 0 | V16: =U16/(W4-U20) -> 0 | W16: =IF(V16=0,0,(V16*((LOG(V16))/LOG(2)))) -> 0 | Y16: =N16 -> 2112 | Z16: =COUNTIF(L29:L50,Y16) -> 0 | AA16: =Z16/(AB4-Z20) -> 0 | AB16: =IF(AA16=0,0,(AA16*((LOG(AA16))/LOG(2)))) -> 0 | AD16: =N16 -> 2112 | AE16: =COUNTIF(L51:L72,AD16) -> 0 | AF16: =AE16/(AG4-AE20) -> 0 | AG16: =IF(AF16=0,0,(AF16*((LOG(AF16))/LOG(2)))) -> 0 | AI16: =N16 -> 2112 | AJ16: =COUNTIF(L73:L94,AI16) -> 0 | AK16: =AJ16/(AL4-AJ20) -> 0 | AL16: =IF(AK16=0,0,(AK16*((LOG(AK16))/LOG(2)))) -> 0 | AN16: =N16 -> 2112 | AO16: =COUNTIF(L95:L116,AN16) -> 0 | AP16: =AO16/(AQ4-AO20) -> 0 | AQ16: =IF(AP16=0,0,(AP16*((LOG(AP16))/LOG(2)))) -> 0 | AS16: =N16 -> 2112 | AT16: =COUNTIF(L117:L138,AS16) -> 0 | AU16: =AT16/(AV4-AT20) -> 0 | AV16: =IF(AU16=0,0,(AU16*((LOG(AU16))/LOG(2)))) -> 0
A17: 12 | B17: 1763 | C17: 14 | D17: 1768 | E17: 13 | F17: 1773 | G17: 14 | H17: 1778 | K17: 0 | L17: 1111 | N17: 2121 | O17: =COUNTIF($L$7:$L$500,N17) -> 0 | P17: =O17/$Q$4 -> 0 | Q17: =IF(P17=0,0,(P17*((LOG(P17))/LOG(2)))) -> 0 | T17: =N17 -> 2121 | U17: =COUNTIF(L7:L28,T17) -> 0 | V17: =U17/(W4-U20) -> 0 | W17: =IF(V17=0,0,(V17*((LOG(V17))/LOG(2)))) -> 0 | Y17: =N17 -> 2121 | Z17: =COUNTIF(L29:L50,Y17) -> 0 | AA17: =Z17/(AB4-Z20) -> 0 | AB17: =IF(AA17=0,0,(AA17*((LOG(AA17))/LOG(2)))) -> 0 | AD17: =N17 -> 2121 | AE17: =COUNTIF(L51:L72,AD17) -> 0 | AF17: =AE17/(AG4-AE20) -> 0 | AG17: =IF(AF17=0,0,(AF17*((LOG(AF17))/LOG(2)))) -> 0 | AI17: =N17 -> 2121 | AJ17: =COUNTIF(L73:L94,AI17) -> 0 | AK17: =AJ17/(AL4-AJ20) -> 0 | AL17: =IF(AK17=0,0,(AK17*((LOG(AK17))/LOG(2)))) -> 0 | AN17: =N17 -> 2121 | AO17: =COUNTIF(L95:L116,AN17) -> 0 | AP17: =AO17/(AQ4-AO20) -> 0 | AQ17: =IF(AP17=0,0,(AP17*((LOG(AP17))/LOG(2)))) -> 0 | AS17: =N17 -> 2121 | AT17: =COUNTIF(L117:L138,AS17) -> 0 | AU17: =AT17/(AV4-AT20) -> 0 | AV17: =IF(AU17=0,0,(AU17*((LOG(AU17))/LOG(2)))) -> 0
A18: 12 | B18: 1936 | C18: 14 | D18: 1942 | E18: 13 | F18: 1948 | G18: 23 | H18: 1960 | K18: 0 | L18: 1112 | N18: 2122 | O18: =COUNTIF($L$7:$L$500,N18) -> 0 | P18: =O18/$Q$4 -> 0 | Q18: =IF(P18=0,0,(P18*((LOG(P18))/LOG(2)))) -> 0 | T18: =N18 -> 2122 | U18: =COUNTIF(L7:L28,T18) -> 0 | V18: =U18/(W4-U20) -> 0 | W18: =IF(V18=0,0,(V18*((LOG(V18))/LOG(2)))) -> 0 | Y18: =N18 -> 2122 | Z18: =COUNTIF(L29:L50,Y18) -> 0 | AA18: =Z18/(AB4-Z20) -> 0 | AB18: =IF(AA18=0,0,(AA18*((LOG(AA18))/LOG(2)))) -> 0 | AD18: =N18 -> 2122 | AE18: =COUNTIF(L51:L72,AD18) -> 0 | AF18: =AE18/(AG4-AE20) -> 0 | AG18: =IF(AF18=0,0,(AF18*((LOG(AF18))/LOG(2)))) -> 0 | AI18: =N18 -> 2122 | AJ18: =COUNTIF(L73:L94,AI18) -> 0 | AK18: =AJ18/(AL4-AJ20) -> 0 | AL18: =IF(AK18=0,0,(AK18*((LOG(AK18))/LOG(2)))) -> 0 | AN18: =N18 -> 2122 | AO18: =COUNTIF(L95:L116,AN18) -> 0 | AP18: =AO18/(AQ4-AO20) -> 0 | AQ18: =IF(AP18=0,0,(AP18*((LOG(AP18))/LOG(2)))) -> 0 | AS18: =N18 -> 2122 | AT18: =COUNTIF(L117:L138,AS18) -> 0 | AU18: =AT18/(AV4-AT20) -> 0 | AV18: =IF(AU18=0,0,(AU18*((LOG(AU18))/LOG(2)))) -> 0
A19: 21 | B19: 2126 | C19: 21 | D19: 2131 | E19: 22 | F19: 2136 | G19: 23 | H19: 2141 | K19: 0 | L19: 2222 | N19: 2211 | O19: =COUNTIF($L$7:$L$500,N19) -> 14 | P19: =O19/$Q$4 -> 0.106870229 | Q19: =IF(P19=0,0,(P19*((LOG(P19))/LOG(2)))) -> -0.3447706344 | T19: =N19 -> 2211 | U19: =COUNTIF(L7:L28,T19) -> 3 | V19: =U19/(W4-U20) -> 0.1363636364 | W19: =IF(V19=0,0,(V19*((LOG(V19))/LOG(2)))) -> -0.3919730615 | Y19: =N19 -> 2211 | Z19: =COUNTIF(L29:L50,Y19) -> 1 | AA19: =Z19/(AB4-Z20) -> 0.04545454545 | AB19: =IF(AA19=0,0,(AA19*((LOG(AA19))/LOG(2)))) -> -0.2027014372 | AD19: =N19 -> 2211 | AE19: =COUNTIF(L51:L72,AD19) -> 4 | AF19: =AE19/(AG4-AE20) -> 0.1904761905 | AG19: =IF(AF19=0,0,(AF19*((LOG(AF19))/LOG(2)))) -> -0.4556795091 | AI19: =N19 -> 2211 | AJ19: =COUNTIF(L73:L94,AI19) -> 2 | AK19: =AJ19/(AL4-AJ20) -> 0.09090909091 | AL19: =IF(AK19=0,0,(AK19*((LOG(AK19))/LOG(2)))) -> -0.3144937835 | AN19: =N19 -> 2211 | AO19: =COUNTIF(L95:L116,AN19) -> 3 | AP19: =AO19/(AQ4-AO20) -> 0.1363636364 | AQ19: =IF(AP19=0,0,(AP19*((LOG(AP19))/LOG(2)))) -> -0.3919730615 | AS19: =N19 -> 2211 | AT19: =COUNTIF(L117:L138,AS19) -> 1 | AU19: =AT19/(AV4-AT20) -> 0.04761904762 | AV19: =IF(AU19=0,0,(AU19*((LOG(AU19))/LOG(2)))) -> -0.2091579725
A20: 21 | B20: 2403 | C20: 21 | D20: 2411 | E20: 11 | F20: 2426 | G20: 12 | H20: 2431 | K20: 0 | L20: 2211 | N20: 2212 | O20: =COUNTIF($L$7:$L$500,N20) -> 1 | P20: =O20/$Q$4 -> 0.007633587786 | Q20: =IF(P20=0,0,(P20*((LOG(P20))/LOG(2)))) -> -0.05369025192 | T20: =N20 -> 2212 | U20: =COUNTIF(L7:L28,T20) -> 0 | Y20: =N20 -> 2212 | Z20: =COUNTIF(L29:L50,Y20) -> 0 | AD20: =N20 -> 2212 | AE20: =COUNTIF(L51:L72,AD20) -> 1 | AI20: =N20 -> 2212 | AJ20: =COUNTIF(L73:L94,AI20) -> 0 | AN20: =N20 -> 2212 | AO20: =COUNTIF(L95:L116,AN20) -> 0 | AS20: =N20 -> 2212 | AT20: =COUNTIF(L117:L138,AS20) -> 0
A21: 12 | B21: 2670 | C21: 14 | D21: 2674 | E21: 13 | F21: 2680 | G21: 14 | H21: 2690 | K21: 0 | L21: 1111 | N21: 2221 | O21: =COUNTIF($L$7:$L$500,N21) -> 7 | P21: =O21/$Q$4 -> 0.0534351145 | Q21: =IF(P21=0,0,(P21*((LOG(P21))/LOG(2)))) -> -0.2258204317 | T21: =N21 -> 2221 | U21: =COUNTIF(L7:L28,T21) -> 1 | V21: =U21/(W4-U20) -> 0.04545454545 | W21: =IF(V21=0,0,(V21*((LOG(V21))/LOG(2)))) -> -0.2027014372 | Y21: =N21 -> 2221 | Z21: =COUNTIF(L29:L50,Y21) -> 1 | AA21: =Z21/(AB4-Z20) -> 0.04545454545 | AB21: =IF(AA21=0,0,(AA21*((LOG(AA21))/LOG(2)))) -> -0.2027014372 | AD21: =N21 -> 2221 | AE21: =COUNTIF(L51:L72,AD21) -> 2 | AF21: =AE21/(AG4-AE20) -> 0.09523809524 | AG21: =IF(AF21=0,0,(AF21*((LOG(AF21))/LOG(2)))) -> -0.3230778498 | AI21: =N21 -> 2221 | AJ21: =COUNTIF(L73:L94,AI21) -> 2 | AK21: =AJ21/(AL4-AJ20) -> 0.09090909091 | AL21: =IF(AK21=0,0,(AK21*((LOG(AK21))/LOG(2)))) -> -0.3144937835 | AN21: =N21 -> 2221 | AO21: =COUNTIF(L95:L116,AN21) -> 0 | AP21: =AO21/(AQ4-AO20) -> 0 | AQ21: =IF(AP21=0,0,(AP21*((LOG(AP21))/LOG(2)))) -> 0 | AS21: =N21 -> 2221 | AT21: =COUNTIF(L117:L138,AS21) -> 1 | AU21: =AT21/(AV4-AT20) -> 0.04761904762 | AV21: =IF(AU21=0,0,(AU21*((LOG(AU21))/LOG(2)))) -> -0.2091579725
A22: 12 | B22: 2807 | C22: 14 | D22: 2812 | E22: 13 | F22: 2816 | G22: 14 | H22: 2821 | K22: 0 | L22: 1111 | N22: 2222 | O22: =COUNTIF($L$7:$L$500,N22) -> 24 | P22: =O22/$Q$4 -> 0.1832061069 | Q22: =IF(P22=0,0,(P22*((LOG(P22))/LOG(2)))) -> -0.4485729162 | T22: =N22 -> 2222 | U22: =COUNTIF(L7:L28,T22) -> 1 | V22: =U22/(W4-U20) -> 0.04545454545 | W22: =IF(V22=0,0,(V22*((LOG(V22))/LOG(2)))) -> -0.2027014372 | Y22: =N22 -> 2222 | Z22: =COUNTIF(L29:L50,Y22) -> 5 | AA22: =Z22/(AB4-Z20) -> 0.2272727273 | AB22: =IF(AA22=0,0,(AA22*((LOG(AA22))/LOG(2)))) -> -0.4857962554 | AD22: =N22 -> 2222 | AE22: =COUNTIF(L51:L72,AD22) -> 2 | AF22: =AE22/(AG4-AE20) -> 0.09523809524 | AG22: =IF(AF22=0,0,(AF22*((LOG(AF22))/LOG(2)))) -> -0.3230778498 | AI22: =N22 -> 2222 | AJ22: =COUNTIF(L73:L94,AI22) -> 11 | AK22: =AJ22/(AL4-AJ20) -> 0.5 | AL22: =IF(AK22=0,0,(AK22*((LOG(AK22))/LOG(2)))) -> -0.5 | AN22: =N22 -> 2222 | AO22: =COUNTIF(L95:L116,AN22) -> 1 | AP22: =AO22/(AQ4-AO20) -> 0.04545454545 | AQ22: =IF(AP22=0,0,(AP22*((LOG(AP22))/LOG(2)))) -> -0.2027014372 | AS22: =N22 -> 2222 | AT22: =COUNTIF(L117:L138,AS22) -> 4 | AU22: =AT22/(AV4-AT20) -> 0.1904761905 | AV22: =IF(AU22=0,0,(AU22*((LOG(AU22))/LOG(2)))) -> -0.4556795091
A23: 12 | B23: 2950 | C23: 23 | D23: 2963 | E23: 13 | F23: 2977 | G23: 14 | H23: 2982 | K23: 0 | L23: 1211 | P23: =SUM(P7:P22) -> 1 | Q23: =-SUM(Q7:Q22) -> 3.080982973 | V23: =SUM(V7:V22) -> 1 | W23: =-SUM(W7:W22) -> 2.426292712 | AA23: =SUM(AA7:AA22) -> 1 | AB23: =-SUM(AB7:AB22) -> 2.608110893 | AF23: =SUM(AF7:AF22) -> 1 | AG23: =-SUM(AG7:AG22) -> 2.832560875 | AK23: =SUM(AK7:AK22) -> 1 | AL23: =-SUM(AL7:AL22) -> 2.275170355 | AP23: =SUM(AP7:AP22) -> 1 | AQ23: =-SUM(AQ7:AQ22) -> 2.754441846 | AU23: =SUM(AU7:AU22) -> 1 | AV23: =-SUM(AV7:AV22) -> 2.891851946
A24: 21 | B24: 3220 | C24: 21 | D24: 3224 | E24: 11 | F24: 3242 | G24: 12 | H24: 3247 | K24: 0 | L24: 2211 | P24: U= | Q24: =Q23/(LOG(Q4)/LOG(2)) -> 0.4380488664 | V24: U1= | W24: =W23/(LOG(W4)/LOG(2)) -> 0.5440811563 | AA24: U2= | AB24: =AB23/(LOG(AB4)/LOG(2)) -> 0.5848527607 | AF24: U3= | AG24: =AG23/(LOG(AG4)/LOG(2)) -> 0.635184283 | AK24: U4= | AL24: =AL23/(LOG(AL4)/LOG(2)) -> 0.5101929011 | AP24: U5= | AQ24: =AQ23/(LOG(AQ4)/LOG(2)) -> 0.6176665731 | AU24: U6= | AV24: =AV23/(LOG(AV4)/LOG(2)) -> 0.6583886518
A25: 21 | B25: 3354 | C25: 21 | D25: 3360 | E25: 11 | F25: 3376 | G25: 12 | H25: 3380 | K25: 0 | L25: 2211
A26: 12 | B26: 3547 | C26: 23 | D26: 3560 | E26: 13 | F26: 3581 | G26: 14 | H26: 3586 | K26: 0 | L26: 1211
A27: 12 | B27: 3688 | C27: 14 | D27: 3693 | E27: 13 | F27: 3698 | G27: 14 | H27: 3703 | K27: 0 | L27: 1111 | N27: Total Target Seq
A28: 12 | B28: 3841 | C28: 14 | D28: 3846 | E28: 13 | F28: 3851 | G28: 14 | H28: 3855 | K28: 0 | L28: 1111 | N28: =COUNTIF(L7:L138,G3) -> 1 | P28: 22 | Q28: 22 | R28: 22 | S28: 22 | T28: 22 | U28: 22
A29: 21 | B29: 4070 | C29: 21 | D29: 4080 | E29: 22 | F29: 4103 | G29: 23 | H29: 4111 | K29: 0 | L29: 2222 | P29: % of reinforcement given in 6 equal intervals based on number of trials
A30: 21 | B30: 4243 | C30: 12 | D30: 4259 | E30: 13 | F30: 4263 | G30: 14 | H30: 4268 | K30: 0 | L30: 2111 | P30: %_1 | Q30: %_2 | R30: %_3 | S30: %_4 | T30: %_5 | U30: %_6
A31: 12 | B31: 4395 | C31: 14 | D31: 4401 | E31: 13 | F31: 4410 | G31: 14 | H31: 4421 | K31: 0 | L31: 1111 | O31: target sequence | P31: =$G$3 -> 2212 | Q31: =$G$3 -> 2212 | R31: =$G$3 -> 2212 | S31: =$G$3 -> 2212 | T31: =$G$3 -> 2212 | U31: =$G$3 -> 2212
A32: 21 | B32: 4554 | C32: 21 | D32: 4560 | E32: 11 | F32: 4576 | G32: 12 | H32: 4581 | K32: 0 | L32: 2211 | O32: total reinforcement | P32: =U20 -> 0 | Q32: =Z20 -> 0 | R32: =AE20 -> 1 | S32: =AJ20 -> 0 | T32: =AO20 -> 0 | U32: =AT20 -> 0
A33: 21 | B33: 4748 | C33: 12 | D33: 4761 | E33: 13 | F33: 4765 | G33: 14 | H33: 4770 | K33: 0 | L33: 2111 | O33: % target
A34: 21 | B34: 4990 | C34: 21 | D34: 4995 | E34: 22 | F34: 5004 | G34: 23 | H34: 5010 | K34: 0 | L34: 2222 | O34: CCRF
A35: 21 | B35: 5177 | C35: 21 | D35: 5187 | E35: 22 | F35: 5198 | G35: 14 | H35: 5214 | K35: 0 | L35: 2221 | O35: % CCRf
A36: 21 | B36: 5338 | C36: 12 | D36: 5360 | E36: 13 | F36: 5364 | G36: 14 | H36: 5370 | K36: 0 | L36: 2111 | O36: average response rate | P36: =H28/P28 -> 175.2272727 | Q36: =(H50-H28)/Q28 -> 179.9090909 | R36: =(H72-H50)/R28 -> 159.7272727 | S36: =(H94-H72)/S28 -> 192.8181818 | T36: =(H116-H94)/T28 -> 189.4090909 | U36: =(H138-H116)/U28 -> -897.0909091
A37: 12 | B37: 5561 | C37: 14 | D37: 5566 | E37: 13 | F37: 5570 | G37: 14 | H37: 5574 | K37: 0 | L37: 1111
A38: 21 | B38: 5679 | C38: 21 | D38: 5684 | E38: 22 | F38: 5690 | G38: 23 | H38: 5696 | K38: 0 | L38: 2222
A39: 12 | B39: 5850 | C39: 14 | D39: 5856 | E39: 24 | F39: 5878 | G39: 23 | H39: 5884 | K39: 0 | L39: 1122
A40: 21 | B40: 6102 | C40: 12 | D40: 6118 | E40: 13 | F40: 6122 | G40: 14 | H40: 6129 | K40: 0 | L40: 2111
A41: 21 | B41: 6285 | C41: 21 | D41: 6290 | E41: 22 | F41: 6296 | G41: 23 | H41: 6301 | K41: 0 | L41: 2222
A42: 21 | B42: 6426 | C42: 21 | D42: 6437 | E42: 22 | F42: 6457 | G42: 23 | H42: 6462 | K42: 0 | L42: 2222
A43: 12 | B43: 6613 | C43: 14 | D43: 6618 | E43: 13 | F43: 6627 | G43: 14 | H43: 6632 | K43: 0 | L43: 1111
A44: 12 | B44: 6737 | C44: 14 | D44: 6743 | E44: 13 | F44: 6748 | G44: 14 | H44: 6753 | K44: 0 | L44: 1111
A45: 12 | B45: 6854 | C45: 14 | D45: 6858 | E45: 24 | F45: 6873 | G45: 23 | H45: 6879 | K45: 0 | L45: 1122
A46: 21 | B46: 7116 | C46: 12 | D46: 7135 | E46: 13 | F46: 7140 | G46: 14 | H46: 7145 | K46: 0 | L46: 2111
A47: 12 | B47: 7267 | C47: 23 | D47: 7282 | E47: 24 | F47: 7289 | G47: 23 | H47: 7295 | K47: 0 | L47: 1222
A48: 12 | B48: 7442 | C48: 14 | D48: 7447 | E48: 13 | F48: 7453 | G48: 23 | H48: 7465 | K48: 0 | L48: 1112
A49: 12 | B49: 7623 | C49: 14 | D49: 7629 | E49: 13 | F49: 7637 | G49: 14 | H49: 7647 | K49: 0 | L49: 1111
A50: 21 | B50: 7773 | C50: 12 | D50: 7802 | E50: 13 | F50: 7808 | G50: 14 | H50: 7813 | K50: 0 | L50: 2111
A51: 21 | B51: 8032 | C51: 21 | D51: 8047 | E51: 11 | F51: 8063 | G51: 12 | H51: 8068 | K51: 0 | L51: 2211
A52: 21 | B52: 8174 | C52: 21 | D52: 8189 | E52: 22 | F52: 8196 | G52: 14 | H52: 8208 | K52: 0 | L52: 2221
A53: 21 | B53: 8331 | C53: 21 | D53: 8339 | E53: 11 | F53: 8359 | G53: 21 | H53: 8370 | K53: 0 | L53: 2212
A54: 21 | B54: 8468 | C54: 12 | D54: 8484 | E54: 13 | F54: 8491 | G54: 14 | H54: 8496 | K54: 0 | L54: 2111
A55: 21 | B55: 8631 | C55: 21 | D55: 8636 | E55: 11 | F55: 8651 | G55: 12 | H55: 8661 | K55: 0 | L55: 2211
A56: 12 | B56: 8788 | C56: 14 | D56: 8792 | E56: 13 | F56: 8798 | G56: 23 | H56: 8817 | K56: 0 | L56: 1112
A57: 21 | B57: 8947 | C57: 21 | D57: 8958 | E57: 22 | F57: 8963 | G57: 14 | H57: 8978 | K57: 0 | L57: 2221
A58: 12 | B58: 9098 | C58: 23 | D58: 9111 | E58: 24 | F58: 9116 | G58: 23 | H58: 9122 | K58: 0 | L58: 1222
A59: 12 | B59: 9239 | C59: 14 | D59: 9261 | E59: 13 | F59: 9267 | G59: 14 | H59: 9272 | K59: 0 | L59: 1111
A60: 12 | B60: 9386 | C60: 23 | D60: 9398 | E60: 24 | F60: 9402 | G60: 23 | H60: 9410 | K60: 0 | L60: 1222
A61: 12 | B61: 9536 | C61: 14 | D61: 9542 | E61: 13 | F61: 9547 | G61: 14 | H61: 9553 | K61: 0 | L61: 1111
A62: 12 | B62: 9689 | C62: 23 | D62: 9707 | E62: 24 | F62: 9717 | G62: 23 | H62: 9728 | K62: 0 | L62: 1222
A63: 12 | B63: 9844 | C63: 23 | D63: 9856 | E63: 24 | F63: 9860 | G63: 14 | H63: 9875 | K63: 0 | L63: 1221
A64: 21 | B64: 9987 | C64: 12 | D64: 10004 | E64: 13 | F64: 10009 | G64: 14 | H64: 10013 | K64: 0 | L64: 2111
A65: 12 | B65: 10115 | C65: 14 | D65: 10120 | E65: 13 | F65: 10125 | G65: 14 | H65: 10131 | K65: 0 | L65: 1111
A66: 12 | B66: 10264 | C66: 14 | D66: 10269 | E66: 13 | F66: 10274 | G66: 14 | H66: 10281 | K66: 0 | L66: 1111
A67: 21 | B67: 10397 | C67: 21 | D67: 10402 | E67: 11 | F67: 10414 | G67: 12 | H67: 10419 | K67: 0 | L67: 2211
A68: 21 | B68: 10561 | C68: 21 | D68: 10569 | E68: 22 | F68: 10575 | G68: 23 | H68: 10587 | K68: 0 | L68: 2222
A69: 21 | B69: 10691 | C69: 12 | D69: 10708 | E69: 13 | F69: 10714 | G69: 14 | H69: 10719 | K69: 0 | L69: 2111
A70: 21 | B70: 10863 | C70: 12 | D70: 10889 | E70: 13 | F70: 10895 | G70: 14 | H70: 10901 | K70: 0 | L70: 2111
A71: 21 | B71: 11174 | C71: 21 | D71: 11182 | E71: 22 | F71: 11192 | G71: 23 | H71: 11200 | K71: 0 | L71: 2222
A72: 21 | B72: 11298 | C72: 21 | D72: 11311 | E72: 11 | F72: 11323 | G72: 12 | H72: 11327 | K72: 0 | L72: 2211
A73: 21 | B73: 11442 | C73: 21 | D73: 11460 | E73: 22 | F73: 11466 | G73: 23 | H73: 11474 | K73: 0 | L73: 2222
A74: 21 | B74: 11619 | C74: 12 | D74: 11641 | E74: 13 | F74: 11647 | G74: 14 | H74: 11652 | K74: 0 | L74: 2111
A75: 21 | B75: 11795 | C75: 21 | D75: 11811 | E75: 22 | F75: 11838 | G75: 23 | H75: 11847 | K75: 0 | L75: 2222
A76: 12 | B76: 11951 | C76: 23 | D76: 11969 | E76: 24 | F76: 11978 | G76: 23 | H76: 11991 | K76: 0 | L76: 1222
A77: 21 | B77: 12135 | C77: 21 | D77: 12139 | E77: 22 | F77: 12143 | G77: 23 | H77: 12153 | K77: 0 | L77: 2222
A78: 21 | B78: 12420 | C78: 21 | D78: 12429 | E78: 22 | F78: 12442 | G78: 23 | H78: 12458 | K78: 0 | L78: 2222
A79: 21 | B79: 12629 | C79: 21 | D79: 12641 | E79: 22 | F79: 12651 | G79: 23 | H79: 12660 | K79: 0 | L79: 2222
A80: 21 | B80: 12766 | C80: 21 | D80: 12771 | E80: 11 | F80: 12793 | G80: 12 | H80: 12799 | K80: 0 | L80: 2211
A81: 12 | B81: 12969 | C81: 23 | D81: 12982 | E81: 24 | F81: 12987 | G81: 23 | H81: 12991 | K81: 0 | L81: 1222
A82: 21 | B82: 13109 | C82: 21 | D82: 13118 | E82: 22 | F82: 13130 | G82: 23 | H82: 13137 | K82: 0 | L82: 2222
A83: 21 | B83: 13305 | C83: 21 | D83: 13310 | E83: 22 | F83: 13318 | G83: 23 | H83: 13323 | K83: 0 | L83: 2222
A84: 21 | B84: 13443 | C84: 21 | D84: 13450 | E84: 22 | F84: 13468 | G84: 23 | H84: 13472 | K84: 0 | L84: 2222
A85: 21 | B85: 13636 | C85: 21 | D85: 13641 | E85: 22 | F85: 13653 | G85: 23 | H85: 13667 | K85: 0 | L85: 2222
A86: 21 | B86: 13870 | C86: 21 | D86: 13883 | E86: 11 | F86: 13911 | G86: 12 | H86: 13917 | K86: 0 | L86: 2211
A87: 21 | B87: 14165 | C87: 21 | D87: 14173 | E87: 22 | F87: 14178 | G87: 14 | H87: 14190 | K87: 0 | L87: 2221
A88: 12 | B88: 14398 | C88: 23 | D88: 14415 | E88: 13 | F88: 14429 | G88: 14 | H88: 14433 | K88: 0 | L88: 1211
A89: 21 | B89: 14629 | C89: 21 | D89: 14634 | E89: 22 | F89: 14639 | G89: 23 | H89: 14644 | K89: 0 | L89: 2222
A90: 21 | B90: 14762 | C90: 12 | D90: 14773 | E90: 13 | F90: 14782 | G90: 14 | H90: 14788 | K90: 0 | L90: 2111
A91: 12 | B91: 14894 | C91: 23 | D91: 14905 | E91: 13 | F91: 14920 | G91: 14 | H91: 14925 | K91: 0 | L91: 1211
A92: 12 | B92: 15112 | C92: 14 | D92: 15117 | E92: 13 | F92: 15123 | G92: 14 | H92: 15127 | K92: 0 | L92: 1111
A93: 21 | B93: 15258 | C93: 21 | D93: 15278 | E93: 22 | F93: 15283 | G93: 23 | H93: 15290 | K93: 0 | L93: 2222
A94: 21 | B94: 15529 | C94: 21 | D94: 15540 | E94: 22 | F94: 15548 | G94: 14 | H94: 15569 | K94: 0 | L94: 2221
A95: 21 | B95: 15700 | C95: 21 | D95: 15704 | E95: 22 | F95: 15710 | G95: 23 | H95: 15716 | K95: 0 | L95: 2222
A96: 12 | B96: 15872 | C96: 14 | D96: 15881 | E96: 13 | F96: 15885 | G96: 14 | H96: 15891 | K96: 0 | L96: 1111
A97: 21 | B97: 16000 | C97: 12 | D97: 16017 | E97: 13 | F97: 16022 | G97: 14 | H97: 16029 | K97: 0 | L97: 2111
A98: 12 | B98: 16211 | C98: 23 | D98: 16226 | E98: 24 | F98: 16236 | G98: 23 | H98: 16259 | K98: 0 | L98: 1222
A99: 21 | B99: 16552 | C99: 21 | D99: 16559 | E99: 11 | F99: 16583 | G99: 12 | H99: 16588 | K99: 0 | L99: 2211
A100: 12 | B100: 16825 | C100: 14 | D100: 16835 | E100: 13 | F100: 16844 | G100: 14 | H100: 16849 | K100: 0 | L100: 1111
A101: 12 | B101: 16968 | C101: 14 | D101: 16976 | E101: 13 | F101: 16980 | G101: 14 | H101: 16984 | K101: 0 | L101: 1111
A102: 21 | B102: 17136 | C102: 12 | D102: 17153 | E102: 13 | F102: 17159 | G102: 14 | H102: 17165 | K102: 0 | L102: 2111
A103: 21 | B103: 17288 | C103: 21 | D103: 17295 | E103: 11 | F103: 17307 | G103: 12 | H103: 17312 | K103: 0 | L103: 2211
A104: 12 | B104: 17502 | C104: 14 | D104: 17507 | E104: 13 | F104: 17513 | G104: 14 | H104: 17517 | K104: 0 | L104: 1111
A105: 12 | B105: 17647 | C105: 14 | D105: 17657 | E105: 13 | F105: 17662 | G105: 14 | H105: 17674 | K105: 0 | L105: 1111
A106: 12 | B106: 17872 | C106: 14 | D106: 17877 | E106: 13 | F106: 17882 | G106: 23 | H106: 17898 | K106: 0 | L106: 1112
A107: 12 | B107: 18014 | C107: 14 | D107: 18020 | E107: 13 | F107: 18027 | G107: 23 | H107: 18039 | K107: 0 | L107: 1112
A108: 12 | B108: 18232 | C108: 23 | D108: 18253 | E108: 24 | F108: 18262 | G108: 23 | H108: 18267 | K108: 0 | L108: 1222
A109: 12 | B109: 18456 | C109: 14 | D109: 18462 | E109: 13 | F109: 18466 | G109: 14 | H109: 18473 | K109: 0 | L109: 1111
A110: 12 | B110: 18581 | C110: 14 | D110: 18587 | E110: 13 | F110: 18594 | G110: 14 | H110: 18603 | K110: 0 | L110: 1111
A111: 12 | B111: 18808 | C111: 14 | D111: 18816 | E111: 24 | F111: 18833 | G111: 23 | H111: 18845 | K111: 0 | L111: 1122
A112: 21 | B112: 19091 | C112: 21 | D112: 19096 | E112: 11 | F112: 19111 | G112: 12 | H112: 19117 | K112: 0 | L112: 2211
A113: 12 | B113: 19269 | C113: 14 | D113: 19275 | E113: 13 | F113: 19281 | G113: 14 | H113: 19285 | K113: 0 | L113: 1111
A114: 12 | B114: 19403 | C114: 14 | D114: 19412 | E114: 13 | F114: 19417 | G114: 23 | H114: 19430 | K114: 0 | L114: 1112
A115: 12 | B115: 19544 | C115: 23 | D115: 19557 | E115: 24 | F115: 19563 | G115: 14 | H115: 19580 | K115: 0 | L115: 1221
A116: 12 | B116: 19699 | C116: 14 | D116: 19704 | E116: 24 | F116: 19717 | G116: 14 | H116: 19736 | K116: 0 | L116: 1121
A117: 21 | B117: 19900 | C117: 21 | D117: 19905 | E117: 22 | F117: 19913 | G117: 23 | H117: 19929 | K117: 0 | L117: 2222
A118: 12 | B118: 20043 | C118: 23 | D118: 20056 | E118: 24 | F118: 20062 | G118: 23 | H118: 20070 | K118: 0 | L118: 1222
A119: 12 | B119: 20178 | C119: 14 | D119: 20187 | E119: 13 | F119: 20197 | G119: 14 | H119: 20206 | K119: 0 | L119: 1111
A120: 21 | B120: 20370 | C120: 21 | D120: 20381 | E120: 11 | F120: 20392 | G120: 12 | H120: 20397 | K120: 0 | L120: 2211
A121: 21 | B121: 20589 | C121: 21 | D121: 20612 | E121: 22 | F121: 20620 | G121: 23 | H121: 20624 | K121: 0 | L121: 2222
A122: 12 | B122: 20732 | C122: 14 | D122: 20737 | E122: 13 | F122: 20741 | G122: 14 | H122: 20746 | K122: 0 | L122: 1111
A123: 21 | B123: 21018 | C123: 21 | D123: 21026 | E123: 22 | F123: 21031 | G123: 23 | H123: 21036 | K123: 0 | L123: 2222
A124: 21 | B124: 21217 | C124: 21 | D124: 21227 | E124: 22 | F124: 21239 | G124: 23 | H124: 21246 | K124: 0 | L124: 2222
A125: 12 | B125: 21471 | C125: 14 | D125: 21481 | E125: 13 | F125: 21487 | G125: 14 | H125: 21492 | K125: 0 | L125: 1111
A126: 21 | B126: 21625 | C126: 12 | D126: 21639 | E126: 13 | F126: 21644 | G126: 14 | H126: 21649 | K126: 0 | L126: 2111
A127: 12 | B127: 21876 | C127: 14 | D127: 21881 | E127: 24 | F127: 21896 | G127: 23 | H127: 21909 | K127: 0 | L127: 1122
A128: 12 | B128: 22083 | C128: 14 | D128: 22099 | E128: 13 | F128: 22104 | G128: 23 | H128: 22121 | K128: 0 | L128: 1112
A129: 12 | B129: 22323 | C129: 23 | D129: 22336 | E129: 24 | F129: 22342 | G129: 14 | H129: 22373 | K129: 0 | L129: 1221
A130: 21 | B130: 22573 | C130: 21 | D130: 22587 | E130: 22 | F130: 22591 | G130: 14 | H130: 22604 | K130: 0 | L130: 2221
A131: 12 | B131: 22702 | C131: 14 | D131: 22707 | E131: 13 | F131: 22743 | G131: 14 | H131: 22748 | K131: 0 | L131: 1111
A132: 12 | B132: 22938 | C132: 23 | D132: 22968 | E132: 24 | F132: 22977 | G132: 23 | H132: 22987 | K132: 0 | L132: 1222
A133: 12 | B133: 23174 | C133: 14 | D133: 23180 | E133: 13 | F133: 23185 | G133: 14 | H133: 23189 | K133: 0 | L133: 1111
A134: 12 | B134: 23338 | C134: 14 | D134: 23346 | E134: 13 | F134: 23351 | G134: 14 | H134: 23356 | K134: 0 | L134: 1111
A135: 21 | B135: 23466 | C135: 12 | D135: 23478 | E135: 13 | F135: 23483 | G135: 14 | H135: 23489 | K135: 0 | L135: 2111
A136: 12 | B136: 23634 | C136: 14 | D136: 23643 | E136: 24 | F136: 23662 | G136: 23 | H136: 23671 | K136: 0 | L136: 1122
A137: 12 | B137: 23848 | C137: 14 | D137: 23853 | E137: 13 | F137: 23861 | G137: 23 | H137: 23874 | K137: 0 | L137: 1112
A138: 12 | B138: 23991 | L138: 1

Sheet !N105840.092
A1: Report for:!N105840.092
A2: Date: | B2: <date>
A3: Hen: | B3: <hen> | F3: Correct Sequence | G3: =Start!J2 -> 2212 | P3: Total Sequences in Data | Q3: =4994-COUNTBLANK(L7:L5000) -> 124 | V3: Total Sequences in Block Data | W3: =COUNTA(L7:L27) -> 21 | AA3: Total Sequences in Block Data | AB3: =COUNTA(L28:L47) -> 20 | AF3: Total Sequences in Block Data | AG3: =COUNTA(L48:L68) -> 21 | AK3: Total Sequences in Block Data | AL3: =COUNTA(L69:L89) -> 21 | AP3: Total Sequences in Block Data | AQ3: =COUNTA(L90:L109) -> 20 | AU3: Total Sequences in Block Data | AV3: =COUNTA(L110:L130) -> 21
P4: Total Sequences in Summary | Q4: =SUM(O7:O22) -> 124 | V4: Total Sequences in Block Summary | W4: =SUM(U7:U22) -> 21 | AA4: Total Sequences in Block Summary | AB4: =SUM(Z7:Z22) -> 20 | AF4: Total Sequences in Block Summary | AG4: =SUM(AE7:AE22) -> 21 | AK4: Total Sequences in Block Summary | AL4: =SUM(AJ7:AJ22) -> 21 | AP4: Total Sequences in Block Summary | AQ4: =SUM(AO7:AO22) -> 20 | AU4: Total Sequences in Block Summary | AV4: =SUM(AT7:AT22) -> 21
T5: Block 1 | Y5: Block 2 | AD5: Block 3 | AI5: Block 4 | AN5: Block 5 | AS5: Block 6
A6: Sequence Component 1 | B6: Time 1 | C6: Sequence Component 2 | D6: Time 2 | E6: Sequence Component 3 | F6: Time 3 | G6: Sequence Component 4 | H6: Time 4 | I6: Sequence Component 5 | J6: Time 5 | K6: Correct? 0=No 1=Yes | L6: Sequence | N6: Frequency | P6: Relative Frequency | Q6: Variability | T6: Frequency | V6: Relative Frequency | W6: Variability | Y6: Frequency | AA6: Relative Frequency | AB6: Variability | AD6: Frequency | AF6: Relative Frequency | AG6: Variability | AI6: Frequency | AK6: Relative Frequency | AL6: Variability | AN6: Frequency | AP6: Relative Frequency | AQ6: Variability | AS6: Frequency | AU6: Relative Frequency | AV6: Variability
A7: 21 | B7: 58 | C7: 21 | D7: 76 | E7: 22 | F7: 99 | G7: 23 | H7: 138 | K7: 0 | L7: 2222 | N7: 1111 | O7: =COUNTIF($L$7:$L$500,N7) -> 50 | P7: =O7/$Q$4 -> 0.4032258065 | Q7: =IF(P7=0,0,(P7*((LOG(P7))/LOG(2)))) -> -0.5283629519 | T7: =N7 -> 1111 | U7: =COUNTIF(L7:L27,T7) -> 1 | V7: =U7/(W4-U20) -> 0.05263157895 | W7: =IF(V7=0,0,(V7*((LOG(V7))/LOG(2)))) -> -0.2235751323 | Y7: =N7 -> 1111 | Z7: =COUNTIF(L28:L47,Y7) -> 9 | AA7: =Z7/(AB4-Z20) -> 0.45 | AB7: =IF(AA7=0,0,(AA7*((LOG(AA7))/LOG(2)))) -> -0.5184013921 | AD7: =N7 -> 1111 | AE7: =COUNTIF(L48:L68,AD7) -> 8 | AF7: =AE7/(AG4-AE20) -> 0.380952381 | AG7: =IF(AF7=0,0,(AF7*((LOG(AF7))/LOG(2)))) -> -0.5304066372 | AI7: =N7 -> 1111 | AJ7: =COUNTIF(L69:L89,AI7) -> 10 | AK7: =AJ7/(AL4-AJ20) -> 0.4761904762 | AL7: =IF(AK7=0,0,(AK7*((LOG(AK7))/LOG(2)))) -> -0.5097092038 | AN7: =N7 -> 1111 | AO7: =COUNTIF(L90:L109,AN7) -> 11 | AP7: =AO7/(AQ4-AO20) -> 0.55 | AQ7: =IF(AP7=0,0,(AP7*((LOG(AP7))/LOG(2)))) -> -0.4743730619 | AS7: =N7 -> 1111 | AT7: =COUNTIF(L110:L130,AS7) -> 11 | AU7: =AT7/(AV4-AT20) -> 0.5238095238 | AV7: =IF(AU7=0,0,(AU7*((LOG(AU7))/LOG(2)))) -> -0.4886544688
A8: 12 | B8: 250 | C8: 23 | D8: 264 | E8: 13 | F8: 280 | G8: 23 | H8: 293 | K8: 0 | L8: 1212 | N8: 1112 | O8: =COUNTIF($L$7:$L$500,N8) -> 15 | P8: =O8/$Q$4 -> 0.1209677419 | Q8: =IF(P8=0,0,(P8*((LOG(P8))/LOG(2)))) -> -0.3686256913 | T8: =N8 -> 1112 | U8: =COUNTIF(L7:L27,T8) -> 6 | V8: =U8/(W4-U20) -> 0.3157894737 | W8: =IF(V8=0,0,(V8*((LOG(V8))/LOG(2)))) -> -0.5251468461 | Y8: =N8 -> 1112 | Z8: =COUNTIF(L28:L47,Y8) -> 3 | AA8: =Z8/(AB4-Z20) -> 0.15 | AB8: =IF(AA8=0,0,(AA8*((LOG(AA8))/LOG(2)))) -> -0.4105448391 | AD8: =N8 -> 1112 | AE8: =COUNTIF(L48:L68,AD8) -> 2 | AF8: =AE8/(AG4-AE20) -> 0.09523809524 | AG8: =IF(AF8=0,0,(AF8*((LOG(AF8))/LOG(2)))) -> -0.3230778498 | AI8: =N8 -> 1112 | AJ8: =COUNTIF(L69:L89,AI8) -> 3 | AK8: =AJ8/(AL4-AJ20) -> 0.1428571429 | AL8: =IF(AK8=0,0,(AK8*((LOG(AK8))/LOG(2)))) -> -0.4010507032 | AN8: =N8 -> 1112 | AO8: =COUNTIF(L90:L109,AN8) -> 0 | AP8: =AO8/(AQ4-AO20) -> 0 | AQ8: =IF(AP8=0,0,(AP8*((LOG(AP8))/LOG(2)))) -> 0 | AS8: =N8 -> 1112 | AT8: =COUNTIF(L110:L130,AS8) -> 1 | AU8: =AT8/(AV4-AT20) -> 0.04761904762 | AV8: =IF(AU8=0,0,(AU8*((LOG(AU8))/LOG(2)))) -> -0.2091579725
A9: 21 | B9: 469 | C9: 21 | D9: 475 | E9: 11 | F9: 487 | G9: 21 | H9: 499 | K9: 0 | L9: 2212 | N9: 1121 | O9: =COUNTIF($L$7:$L$500,N9) -> 3 | P9: =O9/$Q$4 -> 0.02419354839 | Q9: =IF(P9=0,0,(P9*((LOG(P9))/LOG(2)))) -> -0.129900818 | T9: =N9 -> 1121 | U9: =COUNTIF(L7:L27,T9) -> 0 | V9: =U9/(W4-U20) -> 0 | W9: =IF(V9=0,0,(V9*((LOG(V9))/LOG(2)))) -> 0 | Y9: =N9 -> 1121 | Z9: =COUNTIF(L28:L47,Y9) -> 0 | AA9: =Z9/(AB4-Z20) -> 0 | AB9: =IF(AA9=0,0,(AA9*((LOG(AA9))/LOG(2)))) -> 0 | AD9: =N9 -> 1121 | AE9: =COUNTIF(L48:L68,AD9) -> 0 | AF9: =AE9/(AG4-AE20) -> 0 | AG9: =IF(AF9=0,0,(AF9*((LOG(AF9))/LOG(2)))) -> 0 | AI9: =N9 -> 1121 | AJ9: =COUNTIF(L69:L89,AI9) -> 1 | AK9: =AJ9/(AL4-AJ20) -> 0.04761904762 | AL9: =IF(AK9=0,0,(AK9*((LOG(AK9))/LOG(2)))) -> -0.2091579725 | AN9: =N9 -> 1121 | AO9: =COUNTIF(L90:L109,AN9) -> 0 | AP9: =AO9/(AQ4-AO20) -> 0 | AQ9: =IF(AP9=0,0,(AP9*((LOG(AP9))/LOG(2)))) -> 0 | AS9: =N9 -> 1121 | AT9: =COUNTIF(L110:L130,AS9) -> 2 | AU9: =AT9/(AV4-AT20) -> 0.09523809524 | AV9: =IF(AU9=0,0,(AU9*((LOG(AU9))/LOG(2)))) -> -0.3230778498
A10: 12 | B10: 625 | C10: 23 | D10: 637 | E10: 24 | F10: 644 | G10: 23 | H10: 661 | K10: 0 | L10: 1222 | N10: 1122 | O10: =COUNTIF($L$7:$L$500,N10) -> 6 | P10: =O10/$Q$4 -> 0.04838709677 | Q10: =IF(P10=0,0,(P10*((LOG(P10))/LOG(2)))) -> -0.2114145392 | T10: =N10 -> 1122 | U10: =COUNTIF(L7:L27,T10) -> 2 | V10: =U10/(W4-U20) -> 0.1052631579 | W10: =IF(V10=0,0,(V10*((LOG(V10))/LOG(2)))) -> -0.3418871067 | Y10: =N10 -> 1122 | Z10: =COUNTIF(L28:L47,Y10) -> 1 | AA10: =Z10/(AB4-Z20) -> 0.05 | AB10: =IF(AA10=0,0,(AA10*((LOG(AA10))/LOG(2)))) -> -0.2160964047 | AD10: =N10 -> 1122 | AE10: =COUNTIF(L48:L68,AD10) -> 1 | AF10: =AE10/(AG4-AE20) -> 0.04761904762 | AG10: =IF(AF10=0,0,(AF10*((LOG(AF10))/LOG(2)))) -> -0.2091579725 | AI10: =N10 -> 1122 | AJ10: =COUNTIF(L69:L89,AI10) -> 0 | AK10: =AJ10/(AL4-AJ20) -> 0 | AL10: =IF(AK10=0,0,(AK10*((LOG(AK10))/LOG(2)))) -> 0 | AN10: =N10 -> 1122 | AO10: =COUNTIF(L90:L109,AN10) -> 1 | AP10: =AO10/(AQ4-AO20) -> 0.05 | AQ10: =IF(AP10=0,0,(AP10*((LOG(AP10))/LOG(2)))) -> -0.2160964047 | AS10: =N10 -> 1122 | AT10: =COUNTIF(L110:L130,AS10) -> 1 | AU10: =AT10/(AV4-AT20) -> 0.04761904762 | AV10: =IF(AU10=0,0,(AU10*((LOG(AU10))/LOG(2)))) -> -0.2091579725
A11: 21 | B11: 759 | C11: 21 | D11: 766 | E11: 11 | F11: 779 | G11: 21 | H11: 787 | K11: 0 | L11: 2212 | N11: 1211 | O11: =COUNTIF($L$7:$L$500,N11) -> 8 | P11: =O11/$Q$4 -> 0.06451612903 | Q11: =IF(P11=0,0,(P11*((LOG(P11))/LOG(2)))) -> -0.2551094394 | T11: =N11 -> 1211 | U11: =COUNTIF(L7:L27,T11) -> 1 | V11: =U11/(W4-U20) -> 0.05263157895 | W11: =IF(V11=0,0,(V11*((LOG(V11))/LOG(2)))) -> -0.2235751323 | Y11: =N11 -> 1211 | Z11: =COUNTIF(L28:L47,Y11) -> 1 | AA11: =Z11/(AB4-Z20) -> 0.05 | AB11: =IF(AA11=0,0,(AA11*((LOG(AA11))/LOG(2)))) -> -0.2160964047 | AD11: =N11 -> 1211 | AE11: =COUNTIF(L48:L68,AD11) -> 2 | AF11: =AE11/(AG4-AE20) -> 0.09523809524 | AG11: =IF(AF11=0,0,(AF11*((LOG(AF11))/LOG(2)))) -> -0.3230778498 | AI11: =N11 -> 1211 | AJ11: =COUNTIF(L69:L89,AI11) -> 1 | AK11: =AJ11/(AL4-AJ20) -> 0.04761904762 | AL11: =IF(AK11=0,0,(AK11*((LOG(AK11))/LOG(2)))) -> -0.2091579725 | AN11: =N11 -> 1211 | AO11: =COUNTIF(L90:L109,AN11) -> 2 | AP11: =AO11/(AQ4-AO20) -> 0.1 | AQ11: =IF(AP11=0,0,(AP11*((LOG(AP11))/LOG(2)))) -> -0.3321928095 | AS11: =N11 -> 1211 | AT11: =COUNTIF(L110:L130,AS11) -> 1 | AU11: =AT11/(AV4-AT20) -> 0.04761904762 | AV11: =IF(AU11=0,0,(AU11*((LOG(AU11))/LOG(2)))) -> -0.2091579725
A12: 21 | B12: 914 | C12: 12 | D12: 947 | E12: 24 | F12: 958 | G12: 23 | H12: 975 | K12: 0 | L12: 2122 | N12: 1212 | O12: =COUNTIF($L$7:$L$500,N12) -> 1 | P12: =O12/$Q$4 -> 0.008064516129 | Q12: =IF(P12=0,0,(P12*((LOG(P12))/LOG(2)))) -> -0.05608222831 | T12: =N12 -> 1212 | U12: =COUNTIF(L7:L27,T12) -> 1 | V12: =U12/(W4-U20) -> 0.05263157895 | W12: =IF(V12=0,0,(V12*((LOG(V12))/LOG(2)))) -> -0.2235751323 | Y12: =N12 -> 1212 | Z12: =COUNTIF(L28:L47,Y12) -> 0 | AA12: =Z12/(AB4-Z20) -> 0 | AB12: =IF(AA12=0,0,(AA12*((LOG(AA12))/LOG(2)))) -> 0 | AD12: =N12 -> 1212 | AE12: =COUNTIF(L48:L68,AD12) -> 0 | AF12: =AE12/(AG4-AE20) -> 0 | AG12: =IF(AF12=0,0,(AF12*((LOG(AF12))/LOG(2)))) -> 0 | AI12: =N12 -> 1212 | AJ12: =COUNTIF(L69:L89,AI12) -> 0 | AK12: =AJ12/(AL4-AJ20) -> 0 | AL12: =IF(AK12=0,0,(AK12*((LOG(AK12))/LOG(2)))) -> 0 | AN12: =N12 -> 1212 | AO12: =COUNTIF(L90:L109,AN12) -> 0 | AP12: =AO12/(AQ4-AO20) -> 0 | AQ12: =IF(AP12=0,0,(AP12*((LOG(AP12))/LOG(2)))) -> 0 | AS12: =N12 -> 1212 | AT12: =COUNTIF(L110:L130,AS12) -> 0 | AU12: =AT12/(AV4-AT20) -> 0 | AV12: =IF(AU12=0,0,(AU12*((LOG(AU12))/LOG(2)))) -> 0
A13: 21 | B13: 1099 | C13: 12 | D13: 1110 | E13: 24 | F13: 1122 | G13: 23 | H13: 1134 | K13: 0 | L13: 2122 | N13: 1221 | O13: =COUNTIF($L$7:$L$500,N13) -> 5 | P13: =O13/$Q$4 -> 0.04032258065 | Q13: =IF(P13=0,0,(P13*((LOG(P13))/LOG(2)))) -> -0.1867850087 | T13: =N13 -> 1221 | U13: =COUNTIF(L7:L27,T13) -> 1 | V13: =U13/(W4-U20) -> 0.05263157895 | W13: =IF(V13=0,0,(V13*((LOG(V13))/LOG(2)))) -> -0.2235751323 | Y13: =N13 -> 1221 | Z13: =COUNTIF(L28:L47,Y13) -> 0 | AA13: =Z13/(AB4-Z20) -> 0 | AB13: =IF(AA13=0,0,(AA13*((LOG(AA13))/LOG(2)))) -> 0 | AD13: =N13 -> 1221 | AE13: =COUNTIF(L48:L68,AD13) -> 1 | AF13: =AE13/(AG4-AE20) -> 0.04761904762 | AG13: =IF(AF13=0,0,(AF13*((LOG(AF13))/LOG(2)))) -> -0.2091579725 | AI13: =N13 -> 1221 | AJ13: =COUNTIF(L69:L89,AI13) -> 0 | AK13: =AJ13/(AL4-AJ20) -> 0 | AL13: =IF(AK13=0,0,(AK13*((LOG(AK13))/LOG(2)))) -> 0 | AN13: =N13 -> 1221 | AO13: =COUNTIF(L90:L109,AN13) -> 1 | AP13: =AO13/(AQ4-AO20) -> 0.05 | AQ13: =IF(AP13=0,0,(AP13*((LOG(AP13))/LOG(2)))) -> -0.2160964047 | AS13: =N13 -> 1221 | AT13: =COUNTIF(L110:L130,AS13) -> 2 | AU13: =AT13/(AV4-AT20) -> 0.09523809524 | AV13: =IF(AU13=0,0,(AU13*((LOG(AU13))/LOG(2)))) -> -0.3230778498
A14: 12 | B14: 1243 | C14: 23 | D14: 1255 | E14: 24 | F14: 1259 | G14: 23 | H14: 1266 | K14: 0 | L14: 1222 | N14: 1222 | O14: =COUNTIF($L$7:$L$500,N14) -> 5 | P14: =O14/$Q$4 -> 0.04032258065 | Q14: =IF(P14=0,0,(P14*((LOG(P14))/LOG(2)))) -> -0.1867850087 | T14: =N14 -> 1222 | U14: =COUNTIF(L7:L27,T14) -> 3 | V14: =U14/(W4-U20) -> 0.1578947368 | W14: =IF(V14=0,0,(V14*((LOG(V14))/LOG(2)))) -> -0.4204681599 | Y14: =N14 -> 1222 | Z14: =COUNTIF(L28:L47,Y14) -> 0 | AA14: =Z14/(AB4-Z20) -> 0 | AB14: =IF(AA14=0,0,(AA14*((LOG(AA14))/LOG(2)))) -> 0 | AD14: =N14 -> 1222 | AE14: =COUNTIF(L48:L68,AD14) -> 0 | AF14: =AE14/(AG4-AE20) -> 0 | AG14: =IF(AF14=0,0,(AF14*((LOG(AF14))/LOG(2)))) -> 0 | AI14: =N14 -> 1222 | AJ14: =COUNTIF(L69:L89,AI14) -> 0 | AK14: =AJ14/(AL4-AJ20) -> 0 | AL14: =IF(AK14=0,0,(AK14*((LOG(AK14))/LOG(2)))) -> 0 | AN14: =N14 -> 1222 | AO14: =COUNTIF(L90:L109,AN14) -> 2 | AP14: =AO14/(AQ4-AO20) -> 0.1 | AQ14: =IF(AP14=0,0,(AP14*((LOG(AP14))/LOG(2)))) -> -0.3321928095 | AS14: =N14 -> 1222 | AT14: =COUNTIF(L110:L130,AS14) -> 0 | AU14: =AT14/(AV4-AT20) -> 0 | AV14: =IF(AU14=0,0,(AU14*((LOG(AU14))/LOG(2)))) -> 0
A15: 12 | B15: 1373 | C15: 23 | D15: 1391 | E15: 13 | F15: 1403 | G15: 14 | H15: 1408 | K15: 0 | L15: 1211 | N15: 2111 | O15: =COUNTIF($L$7:$L$500,N15) -> 16 | P15: =O15/$Q$4 -> 0.1290322581 | Q15: =IF(P15=0,0,(P15*((LOG(P15))/LOG(2)))) -> -0.3811866207 | T15: =N15 -> 2111 | U15: =COUNTIF(L7:L27,T15) -> 0 | V15: =U15/(W4-U20) -> 0 | W15: =IF(V15=0,0,(V15*((LOG(V15))/LOG(2)))) -> 0 | Y15: =N15 -> 2111 | Z15: =COUNTIF(L28:L47,Y15) -> 3 | AA15: =Z15/(AB4-Z20) -> 0.15 | AB15: =IF(AA15=0,0,(AA15*((LOG(AA15))/LOG(2)))) -> -0.4105448391 | AD15: =N15 -> 2111 | AE15: =COUNTIF(L48:L68,AD15) -> 5 | AF15: =AE15/(AG4-AE20) -> 0.2380952381 | AG15: =IF(AF15=0,0,(AF15*((LOG(AF15))/LOG(2)))) -> -0.49294984 | AI15: =N15 -> 2111 | AJ15: =COUNTIF(L69:L89,AI15) -> 4 | AK15: =AJ15/(AL4-AJ20) -> 0.1904761905 | AL15: =IF(AK15=0,0,(AK15*((LOG(AK15))/LOG(2)))) -> -0.4556795091 | AN15: =N15 -> 2111 | AO15: =COUNTIF(L90:L109,AN15) -> 2 | AP15: =AO15/(AQ4-AO20) -> 0.1 | AQ15: =IF(AP15=0,0,(AP15*((LOG(AP15))/LOG(2)))) -> -0.3321928095 | AS15: =N15 -> 2111 | AT15: =COUNTIF(L110:L130,AS15) -> 2 | AU15: =AT15/(AV4-AT20) -> 0.09523809524 | AV15: =IF(AU15=0,0,(AU15*((LOG(AU15))/LOG(2)))) -> -0.3230778498
A16: 12 | B16: 1533 | C16: 23 | D16: 1543 | E16: 24 | F16: 1548 | G16: 23 | H16: 1553 | K16: 0 | L16: 1222 | N16: 2112 | O16: =COUNTIF($L$7:$L$500,N16) -> 0 | P16: =O16/$Q$4 -> 0 | Q16: =IF(P16=0,0,(P16*((LOG(P16))/LOG(2)))) -> 0 | T16: =N16 -> 2112 | U16: =COUNTIF(L7:L27,T16) -> 0 | V16: =U16/(W4-U20) -> 0 | W16: =IF(V16=0,0,(V16*((LOG(V16))/LOG(2)))) -> 0 | Y16: =N16 -> 2112 | Z16: =COUNTIF(L28:L47,Y16) -> 0 | AA16: =Z16/(AB4-Z20) -> 0 | AB16: =IF(AA16=0,0,(AA16*((LOG(AA16))/LOG(2)))) -> 0 | AD16: =N16 -> 2112 | AE16: =COUNTIF(L48:L68,AD16) -> 0 | AF16: =AE16/(AG4-AE20) -> 0 | AG16: =IF(AF16=0,0,(AF16*((LOG(AF16))/LOG(2)))) -> 0 | AI16: =N16 -> 2112 | AJ16: =COUNTIF(L69:L89,AI16) -> 0 | AK16: =AJ16/(AL4-AJ20) -> 0 | AL16: =IF(AK16=0,0,(AK16*((LOG(AK16))/LOG(2)))) -> 0 | AN16: =N16 -> 2112 | AO16: =COUNTIF(L90:L109,AN16) -> 0 | AP16: =AO16/(AQ4-AO20) -> 0 | AQ16: =IF(AP16=0,0,(AP16*((LOG(AP16))/LOG(2)))) -> 0 | AS16: =N16 -> 2112 | AT16: =COUNTIF(L110:L130,AS16) -> 0 | AU16: =AT16/(AV4-AT20) -> 0 | AV16: =IF(AU16=0,0,(AU16*((LOG(AU16))/LOG(2)))) -> 0
A17: 12 | B17: 1659 | C17: 14 | D17: 1679 | E17: 24 | F17: 1692 | G17: 23 | H17: 1697 | K17: 0 | L17: 1122 | N17: 2121 | O17: =COUNTIF($L$7:$L$500,N17) -> 0 | P17: =O17/$Q$4 -> 0 | Q17: =IF(P17=0,0,(P17*((LOG(P17))/LOG(2)))) -> 0 | T17: =N17 -> 2121 | U17: =COUNTIF(L7:L27,T17) -> 0 | V17: =U17/(W4-U20) -> 0 | W17: =IF(V17=0,0,(V17*((LOG(V17))/LOG(2)))) -> 0 | Y17: =N17 -> 2121 | Z17: =COUNTIF(L28:L47,Y17) -> 0 | AA17: =Z17/(AB4-Z20) -> 0 | AB17: =IF(AA17=0,0,(AA17*((LOG(AA17))/LOG(2)))) -> 0 | AD17: =N17 -> 2121 | AE17: =COUNTIF(L48:L68,AD17) -> 0 | AF17: =AE17/(AG4-AE20) -> 0 | AG17: =IF(AF17=0,0,(AF17*((LOG(AF17))/LOG(2)))) -> 0 | AI17: =N17 -> 2121 | AJ17: =COUNTIF(L69:L89,AI17) -> 0 | AK17: =AJ17/(AL4-AJ20) -> 0 | AL17: =IF(AK17=0,0,(AK17*((LOG(AK17))/LOG(2)))) -> 0 | AN17: =N17 -> 2121 | AO17: =COUNTIF(L90:L109,AN17) -> 0 | AP17: =AO17/(AQ4-AO20) -> 0 | AQ17: =IF(AP17=0,0,(AP17*((LOG(AP17))/LOG(2)))) -> 0 | AS17: =N17 -> 2121 | AT17: =COUNTIF(L110:L130,AS17) -> 0 | AU17: =AT17/(AV4-AT20) -> 0 | AV17: =IF(AU17=0,0,(AU17*((LOG(AU17))/LOG(2)))) -> 0
A18: 12 | B18: 1800 | C18: 14 | D18: 1802 | E18: 13 | F18: 1818 | G18: 14 | H18: 1824 | K18: 0 | L18: 1111 | N18: 2122 | O18: =COUNTIF($L$7:$L$500,N18) -> 3 | P18: =O18/$Q$4 -> 0.02419354839 | Q18: =IF(P18=0,0,(P18*((LOG(P18))/LOG(2)))) -> -0.129900818 | T18: =N18 -> 2122 | U18: =COUNTIF(L7:L27,T18) -> 3 | V18: =U18/(W4-U20) -> 0.1578947368 | W18: =IF(V18=0,0,(V18*((LOG(V18))/LOG(2)))) -> -0.4204681599 | Y18: =N18 -> 2122 | Z18: =COUNTIF(L28:L47,Y18) -> 0 | AA18: =Z18/(AB4-Z20) -> 0 | AB18: =IF(AA18=0,0,(AA18*((LOG(AA18))/LOG(2)))) -> 0 | AD18: =N18 -> 2122 | AE18: =COUNTIF(L48:L68,AD18) -> 0 | AF18: =AE18/(AG4-AE20) -> 0 | AG18: =IF(AF18=0,0,(AF18*((LOG(AF18))/LOG(2)))) -> 0 | AI18: =N18 -> 2122 | AJ18: =COUNTIF(L69:L89,AI18) -> 0 | AK18: =AJ18/(AL4-AJ20) -> 0 | AL18: =IF(AK18=0,0,(AK18*((LOG(AK18))/LOG(2)))) -> 0 | AN18: =N18 -> 2122 | AO18: =COUNTIF(L90:L109,AN18) -> 0 | AP18: =AO18/(AQ4-AO20) -> 0 | AQ18: =IF(AP18=0,0,(AP18*((LOG(AP18))/LOG(2)))) -> 0 | AS18: =N18 -> 2122 | AT18: =COUNTIF(L110:L130,AS18) -> 0 | AU18: =AT18/(AV4-AT20) -> 0 | AV18: =IF(AU18=0,0,(AU18*((LOG(AU18))/LOG(2)))) -> 0
A19: 12 | B19: 1968 | C19: 14 | D19: 1973 | E19: 13 | F19: 1977 | G19: 23 | H19: 1995 | K19: 0 | L19: 1112 | N19: 2211 | O19: =COUNTIF($L$7:$L$500,N19) -> 3 | P19: =O19/$Q$4 -> 0.02419354839 | Q19: =IF(P19=0,0,(P19*((LOG(P19))/LOG(2)))) -> -0.129900818 | T19: =N19 -> 2211 | U19: =COUNTIF(L7:L27,T19) -> 0 | V19: =U19/(W4-U20) -> 0 | W19: =IF(V19=0,0,(V19*((LOG(V19))/LOG(2)))) -> 0 | Y19: =N19 -> 2211 | Z19: =COUNTIF(L28:L47,Y19) -> 1 | AA19: =Z19/(AB4-Z20) -> 0.05 | AB19: =IF(AA19=0,0,(AA19*((LOG(AA19))/LOG(2)))) -> -0.2160964047 | AD19: =N19 -> 2211 | AE19: =COUNTIF(L48:L68,AD19) -> 2 | AF19: =AE19/(AG4-AE20) -> 0.09523809524 | AG19: =IF(AF19=0,0,(AF19*((LOG(AF19))/LOG(2)))) -> -0.3230778498 | AI19: =N19 -> 2211 | AJ19: =COUNTIF(L69:L89,AI19) -> 0 | AK19: =AJ19/(AL4-AJ20) -> 0 | AL19: =IF(AK19=0,0,(AK19*((LOG(AK19))/LOG(2)))) -> 0 | AN19: =N19 -> 2211 | AO19: =COUNTIF(L90:L109,AN19) -> 0 | AP19: =AO19/(AQ4-AO20) -> 0 | AQ19: =IF(AP19=0,0,(AP19*((LOG(AP19))/LOG(2)))) -> 0 | AS19: =N19 -> 2211 | AT19: =COUNTIF(L110:L130,AS19) -> 0 | AU19: =AT19/(AV4-AT20) -> 0 | AV19: =IF(AU19=0,0,(AU19*((LOG(AU19))/LOG(2)))) -> 0
A20: 12 | B20: 2110 | C20: 14 | D20: 2140 | E20: 24 | F20: 2158 | G20: 23 | H20: 2166 | K20: 0 | L20: 1122 | N20: 2212 | O20: =COUNTIF($L$7:$L$500,N20) -> 2 | P20: =O20/$Q$4 -> 0.01612903226 | Q20: =IF(P20=0,0,(P20*((LOG(P20))/LOG(2)))) -> -0.09603542436 | T20: =N20 -> 2212 | U20: =COUNTIF(L7:L27,T20) -> 2 | Y20: =N20 -> 2212 | Z20: =COUNTIF(L28:L47,Y20) -> 0 | AD20: =N20 -> 2212 | AE20: =COUNTIF(L48:L68,AD20) -> 0 | AI20: =N20 -> 2212 | AJ20: =COUNTIF(L69:L89,AI20) -> 0 | AN20: =N20 -> 2212 | AO20: =COUNTIF(L90:L109,AN20) -> 0 | AS20: =N20 -> 2212 | AT20: =COUNTIF(L110:L130,AS20) -> 0
A21: 12 | B21: 2265 | C21: 14 | D21: 2286 | E21: 13 | F21: 2292 | G21: 23 | H21: 2304 | K21: 0 | L21: 1112 | N21: 2221 | O21: =COUNTIF($L$7:$L$500,N21) -> 4 | P21: =O21/$Q$4 -> 0.03225806452 | Q21: =IF(P21=0,0,(P21*((LOG(P21))/LOG(2)))) -> -0.1598127842 | T21: =N21 -> 2221 | U21: =COUNTIF(L7:L27,T21) -> 0 | V21: =U21/(W4-U20) -> 0 | W21: =IF(V21=0,0,(V21*((LOG(V21))/LOG(2)))) -> 0 | Y21: =N21 -> 2221 | Z21: =COUNTIF(L28:L47,Y21) -> 1 | AA21: =Z21/(AB4-Z20) -> 0.05 | AB21: =IF(AA21=0,0,(AA21*((LOG(AA21))/LOG(2)))) -> -0.2160964047 | AD21: =N21 -> 2221 | AE21: =COUNTIF(L48:L68,AD21) -> 0 | AF21: =AE21/(AG4-AE20) -> 0 | AG21: =IF(AF21=0,0,(AF21*((LOG(AF21))/LOG(2)))) -> 0 | AI21: =N21 -> 2221 | AJ21: =COUNTIF(L69:L89,AI21) -> 1 | AK21: =AJ21/(AL4-AJ20) -> 0.04761904762 | AL21: =IF(AK21=0,0,(AK21*((LOG(AK21))/LOG(2)))) -> -0.2091579725 | AN21: =N21 -> 2221 | AO21: =COUNTIF(L90:L109,AN21) -> 1 | AP21: =AO21/(AQ4-AO20) -> 0.05 | AQ21: =IF(AP21=0,0,(AP21*((LOG(AP21))/LOG(2)))) -> -0.2160964047 | AS21: =N21 -> 2221 | AT21: =COUNTIF(L110:L130,AS21) -> 1 | AU21: =AT21/(AV4-AT20) -> 0.04761904762 | AV21: =IF(AU21=0,0,(AU21*((LOG(AU21))/LOG(2)))) -> -0.2091579725
A22: 12 | B22: 2451 | C22: 23 | D22: 2465 | E22: 24 | F22: 2470 | G22: 14 | H22: 2481 | K22: 0 | L22: 1221 | N22: 2222 | O22: =COUNTIF($L$7:$L$500,N22) -> 3 | P22: =O22/$Q$4 -> 0.02419354839 | Q22: =IF(P22=0,0,(P22*((LOG(P22))/LOG(2)))) -> -0.129900818 | T22: =N22 -> 2222 | U22: =COUNTIF(L7:L27,T22) -> 1 | V22: =U22/(W4-U20) -> 0.05263157895 | W22: =IF(V22=0,0,(V22*((LOG(V22))/LOG(2)))) -> -0.2235751323 | Y22: =N22 -> 2222 | Z22: =COUNTIF(L28:L47,Y22) -> 1 | AA22: =Z22/(AB4-Z20) -> 0.05 | AB22: =IF(AA22=0,0,(AA22*((LOG(AA22))/LOG(2)))) -> -0.2160964047 | AD22: =N22 -> 2222 | AE22: =COUNTIF(L48:L68,AD22) -> 0 | AF22: =AE22/(AG4-AE20) -> 0 | AG22: =IF(AF22=0,0,(AF22*((LOG(AF22))/LOG(2)))) -> 0 | AI22: =N22 -> 2222 | AJ22: =COUNTIF(L69:L89,AI22) -> 1 | AK22: =AJ22/(AL4-AJ20) -> 0.04761904762 | AL22: =IF(AK22=0,0,(AK22*((LOG(AK22))/LOG(2)))) -> -0.2091579725 | AN22: =N22 -> 2222 | AO22: =COUNTIF(L90:L109,AN22) -> 0 | AP22: =AO22/(AQ4-AO20) -> 0 | AQ22: =IF(AP22=0,0,(AP22*((LOG(AP22))/LOG(2)))) -> 0 | AS22: =N22 -> 2222 | AT22: =COUNTIF(L110:L130,AS22) -> 0 | AU22: =AT22/(AV4-AT20) -> 0 | AV22: =IF(AU22=0,0,(AU22*((LOG(AU22))/LOG(2)))) -> 0
A23: 21 | B23: 2610 | C23: 12 | D23: 2627 | E23: 24 | F23: 2656 | G23: 23 | H23: 2667 | K23: 0 | L23: 2122 | P23: =SUM(P7:P22) -> 1 | Q23: =-SUM(Q7:Q22) -> 2.949802969 | V23: =SUM(V7:V22) -> 1 | W23: =-SUM(W7:W22) -> 2.825845934 | AA23: =SUM(AA7:AA22) -> 1 | AB23: =-SUM(AB7:AB22) -> 2.419973094 | AF23: =SUM(AF7:AF22) -> 1 | AG23: =-SUM(AG7:AG22) -> 2.410905972 | AK23: =SUM(AK7:AK22) -> 1 | AL23: =-SUM(AL7:AL22) -> 2.203071306 | AP23: =SUM(AP7:AP22) -> 1 | AQ23: =-SUM(AQ7:AQ22) -> 2.119240705 | AU23: =SUM(AU7:AU22) -> 1 | AV23: =-SUM(AV7:AV22) -> 2.294519908
A24: 12 | B24: 2783 | C24: 14 | D24: 2798 | E24: 13 | F24: 2802 | G24: 23 | H24: 2815 | K24: 0 | L24: 1112 | P24: U= | Q24: =Q23/(LOG(Q4)/LOG(2)) -> 0.4241759704 | V24: U1= | W24: =W23/(LOG(W4)/LOG(2)) -> 0.6433610466 | AA24: U2= | AB24: =AB23/(LOG(AB4)/LOG(2)) -> 0.5599290504 | AF24: U3= | AG24: =AG23/(LOG(AG4)/LOG(2)) -> 0.5488915621 | AK24: U4= | AL24: =AL23/(LOG(AL4)/LOG(2)) -> 0.5015737921 | AP24: U5= | AQ24: =AQ23/(LOG(AQ4)/LOG(2)) -> 0.4903461275 | AU24: U6= | AV24: =AV23/(LOG(AV4)/LOG(2)) -> 0.5223939182
A25: 12 | B25: 2929 | C25: 14 | D25: 2934 | E25: 13 | F25: 2941 | G25: 23 | H25: 2959 | K25: 0 | L25: 1112
A26: 12 | B26: 3080 | C26: 14 | D26: 3096 | E26: 13 | F26: 3100 | G26: 23 | H26: 3116 | K26: 0 | L26: 1112
A27: 12 | B27: 3235 | C27: 14 | D27: 3240 | E27: 13 | F27: 3245 | G27: 23 | H27: 3257 | K27: 0 | L27: 1112 | N27: Total Target Seq
A28: 12 | B28: 3379 | C28: 14 | D28: 3401 | E28: 13 | F28: 3408 | G28: 14 | H28: 3415 | K28: 0 | L28: 1111 | N28: =COUNTIF(L7:L130,G3) -> 2 | P28: 21 | Q28: 20 | R28: 21 | S28: 21 | T28: 20 | U28: 21
A29: 12 | B29: 3537 | C29: 14 | D29: 3541 | E29: 13 | F29: 3547 | G29: 14 | H29: 3553 | K29: 0 | L29: 1111 | P29: % of reinforcement given in 6 equal intervals based on number of trials
A30: 12 | B30: 3671 | C30: 14 | D30: 3676 | E30: 13 | F30: 3681 | G30: 14 | H30: 3686 | K30: 0 | L30: 1111 | P30: %_1 | Q30: %_2 | R30: %_3 | S30: %_4 | T30: %_5 | U30: %_6
A31: 12 | B31: 3809 | C31: 14 | D31: 3815 | E31: 13 | F31: 3819 | G31: 23 | H31: 3833 | K31: 0 | L31: 1112 | O31: target sequence | P31: =$G$3 -> 2212 | Q31: =$G$3 -> 2212 | R31: =$G$3 -> 2212 | S31: =$G$3 -> 2212 | T31: =$G$3 -> 2212 | U31: =$G$3 -> 2212
A32: 12 | B32: 3961 | C32: 23 | D32: 3979 | E32: 13 | F32: 3988 | G32: 14 | H32: 3997 | K32: 0 | L32: 1211 | O32: total reinforcement | P32: =U20 -> 2 | Q32: =Z20 -> 0 | R32: =AE20 -> 0 | S32: =AJ20 -> 0 | T32: =AO20 -> 0 | U32: =AT20 -> 0
A33: 12 | B33: 4127 | C33: 14 | D33: 4131 | E33: 13 | F33: 4135 | G33: 14 | H33: 4140 | K33: 0 | L33: 1111 | O33: % target
A34: 12 | B34: 4274 | C34: 14 | D34: 4278 | E34: 13 | F34: 4283 | G34: 14 | H34: 4288 | K34: 0 | L34: 1111 | O34: CCRF
A35: 12 | B35: 4405 | C35: 14 | D35: 4411 | E35: 13 | F35: 4416 | G35: 14 | H35: 4421 | K35: 0 | L35: 1111 | O35: % CCRf
A36: 12 | B36: 4523 | C36: 14 | D36: 4527 | E36: 13 | F36: 4532 | G36: 14 | H36: 4537 | K36: 0 | L36: 1111 | O36: average response rate | P36: =H27/P28 -> 155.0952381 | Q36: =(H47-H27)/Q28 -> 163.45 | R36: =(H68-H47)/R28 -> 233.3809524 | S36: =(H89-H68)/S28 -> 166.047619 | T36: =(H109-H89)/T28 -> 200.2 | U36: =(H130-H109)/U28 -> 223.3333333
A37: 21 | B37: 4686 | C37: 12 | D37: 4705 | E37: 13 | F37: 4710 | G37: 14 | H37: 4715 | K37: 0 | L37: 2111
A38: 12 | B38: 4897 | C38: 14 | D38: 4906 | E38: 13 | F38: 4911 | G38: 23 | H38: 4937 | K38: 0 | L38: 1112
A39: 12 | B39: 5055 | C39: 14 | D39: 5061 | E39: 13 | F39: 5072 | G39: 14 | H39: 5077 | K39: 0 | L39: 1111
A40: 21 | B40: 5231 | C40: 21 | D40: 5239 | E40: 11 | F40: 5252 | G40: 12 | H40: 5257 | K40: 0 | L40: 2211
A41: 21 | B41: 5461 | C41: 12 | D41: 5478 | E41: 13 | F41: 5482 | G41: 14 | H41: 5487 | K41: 0 | L41: 2111
A42: 21 | B42: 5656 | C42: 21 | D42: 5675 | E42: 22 | F42: 5688 | G42: 14 | H42: 5702 | K42: 0 | L42: 2221
A43: 21 | B43: 5887 | C43: 21 | D43: 5895 | E43: 22 | F43: 5908 | G43: 23 | H43: 5915 | K43: 0 | L43: 2222
A44: 12 | B44: 6028 | C44: 14 | D44: 6034 | E44: 13 | F44: 6039 | G44: 23 | H44: 6062 | K44: 0 | L44: 1112
A45: 12 | B45: 6189 | C45: 14 | D45: 6195 | E45: 13 | F45: 6203 | G45: 14 | H45: 6210 | K45: 0 | L45: 1111
A46: 21 | B46: 6325 | C46: 12 | D46: 6341 | E46: 13 | F46: 6355 | G46: 14 | H46: 6362 | K46: 0 | L46: 2111
A47: 12 | B47: 6478 | C47: 14 | D47: 6496 | E47: 24 | F47: 6521 | G47: 23 | H47: 6526 | K47: 0 | L47: 1122
A48: 21 | B48: 6658 | C48: 12 | D48: 6669 | E48: 13 | F48: 6674 | G48: 14 | H48: 6685 | K48: 0 | L48: 2111
A49: 12 | B49: 6860 | C49: 14 | D49: 6865 | E49: 13 | F49: 6875 | G49: 23 | H49: 6906 | K49: 0 | L49: 1112
A50: 12 | B50: 7028 | C50: 23 | D50: 7050 | E50: 24 | F50: 7056 | G50: 14 | H50: 7065 | K50: 0 | L50: 1221
A51: 12 | B51: 7204 | C51: 14 | D51: 7209 | E51: 13 | F51: 7214 | G51: 14 | H51: 7218 | K51: 0 | L51: 1111
A52: 21 | B52: 7320 | C52: 12 | D52: 7340 | E52: 13 | F52: 7345 | G52: 14 | H52: 7351 | K52: 0 | L52: 2111
A53: 12 | B53: 7481 | C53: 14 | D53: 7485 | E53: 13 | F53: 7490 | G53: 14 | H53: 7495 | K53: 0 | L53: 1111
A54: 12 | B54: 7616 | C54: 14 | D54: 7622 | E54: 13 | F54: 7629 | G54: 14 | H54: 7636 | K54: 0 | L54: 1111
A55: 12 | B55: 7745 | C55: 14 | D55: 7754 | E55: 13 | F55: 7761 | G55: 14 | H55: 7766 | K55: 0 | L55: 1111
A56: 21 | B56: 7882 | C56: 21 | D56: 7889 | E56: 11 | F56: 7902 | G56: 12 | H56: 7907 | K56: 0 | L56: 2211
A57: 21 | B57: 8025 | C57: 21 | D57: 8030 | E57: 11 | F57: 8053 | G57: 12 | H57: 8060 | K57: 0 | L57: 2211
A58: 12 | B58: 8338 | C58: 14 | D58: 8343 | E58: 13 | F58: 8351 | G58: 14 | H58: 8360 | K58: 0 | L58: 1111
A59: 21 | B59: 8478 | C59: 12 | D59: 8496 | E59: 13 | F59: 8506 | G59: 14 | H59: 8511 | K59: 0 | L59: 2111
A60: 12 | B60: 9760 | C60: 14 | D60: 9768 | E60: 24 | F60: 9782 | G60: 23 | H60: 9794 | K60: 0 | L60: 1122
A61: 12 | B61: 10038 | C61: 23 | D61: 10056 | E61: 13 | F61: 10073 | G61: 14 | H61: 10079 | K61: 0 | L61: 1211
A62: 12 | B62: 10391 | C62: 14 | D62: 10405 | E62: 13 | F62: 10409 | G62: 14 | H62: 10415 | K62: 0 | L62: 1111
A63: 21 | B63: 10535 | C63: 12 | D63: 10556 | E63: 13 | F63: 10560 | G63: 14 | H63: 10565 | K63: 0 | L63: 2111
A64: 21 | B64: 10696 | C64: 12 | D64: 10719 | E64: 13 | F64: 10724 | G64: 14 | H64: 10729 | K64: 0 | L64: 2111
A65: 12 | B65: 10870 | C65: 14 | D65: 10877 | E65: 13 | F65: 10882 | G65: 23 | H65: 10895 | K65: 0 | L65: 1112
A66: 12 | B66: 11047 | C66: 14 | D66: 11056 | E66: 13 | F66: 11064 | G66: 14 | H66: 11068 | K66: 0 | L66: 1111
A67: 12 | B67: 11183 | C67: 14 | D67: 11188 | E67: 13 | F67: 11194 | G67: 14 | H67: 11200 | K67: 0 | L67: 1111
A68: 12 | B68: 11345 | C68: 23 | D68: 11375 | E68: 13 | F68: 11418 | G68: 14 | H68: 11427 | K68: 0 | L68: 1211
A69: 12 | B69: 11531 | C69: 14 | D69: 11539 | E69: 13 | F69: 11546 | G69: 14 | H69: 11556 | K69: 0 | L69: 1111
A70: 21 | B70: 11695 | C70: 12 | D70: 11713 | E70: 13 | F70: 11722 | G70: 14 | H70: 11727 | K70: 0 | L70: 2111
A71: 12 | B71: 11882 | C71: 14 | D71: 11887 | E71: 13 | F71: 11891 | G71: 14 | H71: 11896 | K71: 0 | L71: 1111
A72: 21 | B72: 12015 | C72: 12 | D72: 12036 | E72: 13 | F72: 12040 | G72: 14 | H72: 12046 | K72: 0 | L72: 2111
A73: 12 | B73: 12224 | C73: 14 | D73: 12229 | E73: 13 | F73: 12234 | G73: 23 | H73: 12257 | K73: 0 | L73: 1112
A74: 21 | B74: 12366 | C74: 21 | D74: 12371 | E74: 22 | F74: 12375 | G74: 23 | H74: 12381 | K74: 0 | L74: 2222
A75: 21 | B75: 12476 | C75: 12 | D75: 12487 | E75: 13 | F75: 12493 | G75: 14 | H75: 12502 | K75: 0 | L75: 2111
A76: 12 | B76: 12644 | C76: 14 | D76: 12653 | E76: 13 | F76: 12662 | G76: 23 | H76: 12677 | K76: 0 | L76: 1112
A77: 12 | B77: 12784 | C77: 23 | D77: 12803 | E77: 13 | F77: 12813 | G77: 14 | H77: 12818 | K77: 0 | L77: 1211
A78: 12 | B78: 12962 | C78: 14 | D78: 12972 | E78: 13 | F78: 12981 | G78: 23 | H78: 12993 | K78: 0 | L78: 1112
A79: 21 | B79: 13150 | C79: 21 | D79: 13154 | E79: 22 | F79: 13163 | G79: 14 | H79: 13182 | K79: 0 | L79: 2221
A80: 12 | B80: 13290 | C80: 14 | D80: 13301 | E80: 13 | F80: 13306 | G80: 14 | H80: 13312 | K80: 0 | L80: 1111
A81: 21 | B81: 13473 | C81: 12 | D81: 13502 | E81: 13 | F81: 13508 | G81: 14 | H81: 13513 | K81: 0 | L81: 2111
A82: 12 | B82: 13613 | C82: 14 | D82: 13618 | E82: 13 | F82: 13627 | G82: 14 | H82: 13635 | K82: 0 | L82: 1111
A83: 12 | B83: 13913 | C83: 14 | D83: 13926 | E83: 13 | F83: 13930 | G83: 14 | H83: 13935 | K83: 0 | L83: 1111
A84: 12 | B84: 14046 | C84: 14 | D84: 14050 | E84: 13 | F84: 14054 | G84: 14 | H84: 14058 | K84: 0 | L84: 1111
A85: 12 | B85: 14247 | C85: 14 | D85: 14253 | E85: 13 | F85: 14258 | G85: 14 | H85: 14263 | K85: 0 | L85: 1111
A86: 12 | B86: 14381 | C86: 14 | D86: 14389 | E86: 13 | F86: 14394 | G86: 14 | H86: 14397 | K86: 0 | L86: 1111
A87: 12 | B87: 14562 | C87: 14 | D87: 14571 | E87: 13 | F87: 14578 | G87: 14 | H87: 14582 | K87: 0 | L87: 1111
A88: 12 | B88: 14699 | C88: 14 | D88: 14705 | E88: 24 | F88: 14721 | G88: 14 | H88: 14750 | K88: 0 | L88: 1121
A89: 12 | B89: 14898 | C89: 14 | D89: 14902 | E89: 13 | F89: 14907 | G89: 14 | H89: 14914 | K89: 0 | L89: 1111
A90: 12 | B90: 15044 | C90: 23 | D90: 15060 | E90: 13 | F90: 15073 | G90: 14 | H90: 15078 | K90: 0 | L90: 1211
A91: 12 | B91: 15278 | C91: 14 | D91: 15282 | E91: 13 | F91: 15287 | G91: 14 | H91: 15291 | K91: 0 | L91: 1111
A92: 12 | B92: 15476 | C92: 14 | D92: 15487 | E92: 24 | F92: 15507 | G92: 23 | H92: 15524 | K92: 0 | L92: 1122
A93: 12 | B93: 15631 | C93: 14 | D93: 15635 | E93: 13 | F93: 15649 | G93: 14 | H93: 15653 | K93: 0 | L93: 1111
A94: 21 | B94: 15759 | C94: 12 | D94: 15777 | E94: 13 | F94: 15782 | G94: 14 | H94: 15787 | K94: 0 | L94: 2111
A95: 12 | B95: 15907 | C95: 23 | D95: 15927 | E95: 24 | F95: 15941 | G95: 23 | H95: 15946 | K95: 0 | L95: 1222
A96: 12 | B96: 16302 | C96: 23 | D96: 16324 | E96: 24 | F96: 16332 | G96: 23 | H96: 16340 | K96: 0 | L96: 1222
A97: 12 | B97: 16472 | C97: 14 | D97: 16477 | E97: 13 | F97: 16483 | G97: 14 | H97: 16489 | K97: 0 | L97: 1111
A98: 12 | B98: 16787 | C98: 14 | D98: 16792 | E98: 13 | F98: 16800 | G98: 14 | H98: 16804 | K98: 0 | L98: 1111
A99: 12 | B99: 16908 | C99: 14 | D99: 16921 | E99: 13 | F99: 16955 | G99: 14 | H99: 16959 | K99: 0 | L99: 1111
A100: 12 | B100: 17188 | C100: 14 | D100: 17192 | E100: 13 | F100: 17198 | G100: 14 | H100: 17202 | K100: 0 | L100: 1111
A101: 21 | B101: 17312 | C101: 12 | D101: 17328 | E101: 13 | F101: 17332 | G101: 14 | H101: 17337 | K101: 0 | L101: 2111
A102: 12 | B102: 17576 | C102: 14 | D102: 17581 | E102: 13 | F102: 17587 | G102: 14 | H102: 17594 | K102: 0 | L102: 1111
A103: 12 | B103: 17758 | C103: 14 | D103: 17762 | E103: 13 | F103: 17768 | G103: 14 | H103: 17774 | K103: 0 | L103: 1111
A104: 12 | B104: 17899 | C104: 14 | D104: 17904 | E104: 13 | F104: 17917 | G104: 14 | H104: 17921 | K104: 0 | L104: 1111
A105: 12 | B105: 18059 | C105: 14 | D105: 18088 | E105: 13 | F105: 18093 | G105: 14 | H105: 18097 | K105: 0 | L105: 1111
A106: 12 | B106: 18211 | C106: 23 | D106: 18227 | E106: 13 | F106: 18242 | G106: 14 | H106: 18249 | K106: 0 | L106: 1211
A107: 21 | B107: 18369 | C107: 21 | D107: 18374 | E107: 22 | F107: 18380 | G107: 14 | H107: 18396 | K107: 0 | L107: 2221
A108: 12 | B108: 18644 | C108: 14 | D108: 18652 | E108: 13 | F108: 18657 | G108: 14 | H108: 18662 | K108: 0 | L108: 1111
A109: 12 | B109: 18868 | C109: 23 | D109: 18894 | E109: 24 | F109: 18902 | G109: 14 | H109: 18918 | K109: 0 | L109: 1221
A110: 12 | B110: 19037 | C110: 23 | D110: 19050 | E110: 13 | F110: 19065 | G110: 14 | H110: 19069 | K110: 0 | L110: 1211
A111: 12 | B111: 19269 | C111: 14 | D111: 19283 | E111: 13 | F111: 19288 | G111: 14 | H111: 19293 | K111: 0 | L111: 1111
A112: 12 | B112: 19454 | C112: 14 | D112: 19459 | E112: 13 | F112: 19463 | G112: 14 | H112: 19468 | K112: 0 | L112: 1111
A113: 12 | B113: 19711 | C113: 14 | D113: 19723 | E113: 13 | F113: 19740 | G113: 14 | H113: 19744 | K113: 0 | L113: 1111
A114: 12 | B114: 19877 | C114: 14 | D114: 19894 | E114: 13 | F114: 19904 | G114: 14 | H114: 19908 | K114: 0 | L114: 1111
A115: 12 | B115: 20081 | C115: 23 | D115: 20096 | E115: 24 | F115: 20105 | G115: 14 | H115: 20118 | K115: 0 | L115: 1221
A116: 12 | B116: 20459 | C116: 14 | D116: 20502 | E116: 13 | F116: 20506 | G116: 14 | H116: 20515 | K116: 0 | L116: 1111
A117: 12 | B117: 20615 | C117: 14 | D117: 20622 | E117: 13 | F117: 20631 | G117: 23 | H117: 20645 | K117: 0 | L117: 1112
A118: 12 | B118: 20786 | C118: 14 | D118: 20794 | E118: 24 | F118: 20813 | G118: 23 | H118: 20822 | K118: 0 | L118: 1122
A119: 12 | B119: 21054 | C119: 14 | D119: 21061 | E119: 13 | F119: 21067 | G119: 14 | H119: 21072 | K119: 0 | L119: 1111
A120: 12 | B120: 21348 | C120: 14 | D120: 21353 | E120: 13 | F120: 21362 | G120: 14 | H120: 21368 | K120: 0 | L120: 1111
A121: 12 | B121: 21641 | C121: 14 | D121: 21645 | E121: 24 | F121: 21663 | G121: 14 | H121: 21679 | K121: 0 | L121: 1121
A122: 12 | B122: 21784 | C122: 14 | D122: 21788 | E122: 24 | F122: 21803 | G122: 14 | H122: 21819 | K122: 0 | L122: 1121
A123: 21 | B123: 21976 | C123: 12 | D123: 21992 | E123: 13 | F123: 21996 | G123: 14 | H123: 22001 | K123: 0 | L123: 2111
A124: 21 | B124: 22226 | C124: 21 | D124: 22231 | E124: 22 | F124: 22237 | G124: 14 | H124: 22252 | K124: 0 | L124: 2221
A125: 12 | B125: 22385 | C125: 14 | D125: 22407 | E125: 13 | F125: 22412 | G125: 14 | H125: 22417 | K125: 0 | L125: 1111
A126: 12 | B126: 22522 | C126: 23 | D126: 22538 | E126: 24 | F126: 22558 | G126: 14 | H126: 22571 | K126: 0 | L126: 1221
A127: 12 | B127: 22806 | C127: 14 | D127: 22811 | E127: 13 | F127: 22816 | G127: 14 | H127: 22824 | K127: 0 | L127: 1111
A128: 21 | B128: 22978 | C128: 12 | D128: 22993 | E128: 13 | F128: 22998 | G128: 14 | H128: 23003 | K128: 0 | L128: 2111
A129: 12 | B129: 23259 | C129: 14 | D129: 23286 | E129: 13 | F129: 23292 | G129: 14 | H129: 23305 | K129: 0 | L129: 1111
A130: 12 | B130: 23590 | C130: 14 | D130: 23594 | E130: 13 | F130: 23603 | G130: 14 | H130: 23608 | K130: 0 | L130: 1111

Sheet !N106700.092
A1: Report for:!N106700.092
A2: Date: | B2: <date>
A3: Hen: | B3: <hen> | F3: Correct Sequence | G3: =Start!J2 -> 2212 | P3: Total Sequences in Data | Q3: =4994-COUNTBLANK(L7:L5000) -> 111 | V3: Total Sequences in Block Data | W3: =COUNTA(L7:L25) -> 19 | AA3: Total Sequences in Block Data | AB3: =COUNTA(L26:L43) -> 18 | AF3: Total Sequences in Block Data | AG3: =COUNTA(L44:L62) -> 19 | AK3: Total Sequences in Block Data | AL3: =COUNTA(L63:L80) -> 18 | AP3: Total Sequences in Block Data | AQ3: =COUNTA(L81:L99) -> 19 | AU3: Total Sequences in Block Data | AV3: =COUNTA(L100:L117) -> 18
P4: Total Sequences in Summary | Q4: =SUM(O7:O22) -> 111 | V4: Total Sequences in Block Summary | W4: =SUM(U7:U22) -> 19 | AA4: Total Sequences in Block Summary | AB4: =SUM(Z7:Z22) -> 18 | AF4: Total Sequences in Block Summary | AG4: =SUM(AE7:AE22) -> 19 | AK4: Total Sequences in Block Summary | AL4: =SUM(AJ7:AJ22) -> 18 | AP4: Total Sequences in Block Summary | AQ4: =SUM(AO7:AO22) -> 19 | AU4: Total Sequences in Block Summary | AV4: =SUM(AT7:AT22) -> 18
T5: Block 1 | Y5: Block 2 | AD5: Block 3 | AI5: Block 4 | AN5: Block 5 | AS5: Block 6
A6: Sequence Component 1 | B6: Time 1 | C6: Sequence Component 2 | D6: Time 2 | E6: Sequence Component 3 | F6: Time 3 | G6: Sequence Component 4 | H6: Time 4 | I6: Sequence Component 5 | J6: Time 5 | K6: Correct? 0=No 1=Yes | L6: Sequence | N6: Frequency | P6: Relative Frequency | Q6: Variability | T6: Frequency | V6: Relative Frequency | W6: Variability | Y6: Frequency | AA6: Relative Frequency | AB6: Variability | AD6: Frequency | AF6: Relative Frequency | AG6: Variability | AI6: Frequency | AK6: Relative Frequency | AL6: Variability | AN6: Frequency | AP6: Relative Frequency | AQ6: Variability | AS6: Frequency | AU6: Relative Frequency | AV6: Variability
A7: 21 | B7: 122 | C7: 12 | D7: 147 | E7: 24 | F7: 160 | G7: 23 | H7: 180 | K7: 0 | L7: 2122 | N7: 1111 | O7: =COUNTIF($L$7:$L$500,N7) -> 42 | P7: =O7/$Q$4 -> 0.3783783784 | Q7: =IF(P7=0,0,(P7*((LOG(P7))/LOG(2)))) -> -0.5305237354 | T7: =N7 -> 1111 | U7: =COUNTIF(L7:L25,T7) -> 9 | V7: =U7/(W4-U20) -> 0.5 | W7: =IF(V7=0,0,(V7*((LOG(V7))/LOG(2)))) -> -0.5 | Y7: =N7 -> 1111 | Z7: =COUNTIF(L26:L43,Y7) -> 7 | AA7: =Z7/(AB4-Z20) -> 0.3888888889 | AB7: =IF(AA7=0,0,(AA7*((LOG(AA7))/LOG(2)))) -> -0.5298883642 | AD7: =N7 -> 1111 | AE7: =COUNTIF(L44:L62,AD7) -> 8 | AF7: =AE7/(AG4-AE20) -> 0.4210526316 | AG7: =IF(AF7=0,0,(AF7*((LOG(AF7))/LOG(2)))) -> -0.5254431636 | AI7: =N7 -> 1111 | AJ7: =COUNTIF(L63:L80,AI7) -> 6 | AK7: =AJ7/(AL4-AJ20) -> 0.3333333333 | AL7: =IF(AK7=0,0,(AK7*((LOG(AK7))/LOG(2)))) -> -0.5283208336 | AN7: =N7 -> 1111 | AO7: =COUNTIF(L81:L99,AN7) -> 9 | AP7: =AO7/(AQ4-AO20) -> 0.4736842105 | AQ7: =IF(AP7=0,0,(AP7*((LOG(AP7))/LOG(2)))) -> -0.5106327688 | AS7: =N7 -> 1111 | AT7: =COUNTIF(L100:L117,AS7) -> 3 | AU7: =AT7/(AV4-AT20) -> 0.1666666667 | AV7: =IF(AU7=0,0,(AU7*((LOG(AU7))/LOG(2)))) -> -0.4308270835
A8: 21 | B8: 298 | C8: 21 | D8: 319 | E8: 22 | F8: 346 | G8: 23 | H8: 351 | K8: 0 | L8: 2222 | N8: 1112 | O8: =COUNTIF($L$7:$L$500,N8) -> 6 | P8: =O8/$Q$4 -> 0.05405405405 | Q8: =IF(P8=0,0,(P8*((LOG(P8))/LOG(2)))) -> -0.2275380198 | T8: =N8 -> 1112 | U8: =COUNTIF(L7:L25,T8) -> 1 | V8: =U8/(W4-U20) -> 0.05555555556 | W8: =IF(V8=0,0,(V8*((LOG(V8))/LOG(2)))) -> -0.2316625001 | Y8: =N8 -> 1112 | Z8: =COUNTIF(L26:L43,Y8) -> 1 | AA8: =Z8/(AB4-Z20) -> 0.05555555556 | AB8: =IF(AA8=0,0,(AA8*((LOG(AA8))/LOG(2)))) -> -0.2316625001 | AD8: =N8 -> 1112 | AE8: =COUNTIF(L44:L62,AD8) -> 2 | AF8: =AE8/(AG4-AE20) -> 0.1052631579 | AG8: =IF(AF8=0,0,(AF8*((LOG(AF8))/LOG(2)))) -> -0.3418871067 | AI8: =N8 -> 1112 | AJ8: =COUNTIF(L63:L80,AI8) -> 0 | AK8: =AJ8/(AL4-AJ20) -> 0 | AL8: =IF(AK8=0,0,(AK8*((LOG(AK8))/LOG(2)))) -> 0 | AN8: =N8 -> 1112 | AO8: =COUNTIF(L81:L99,AN8) -> 1 | AP8: =AO8/(AQ4-AO20) -> 0.05263157895 | AQ8: =IF(AP8=0,0,(AP8*((LOG(AP8))/LOG(2)))) -> -0.2235751323 | AS8: =N8 -> 1112 | AT8: =COUNTIF(L100:L117,AS8) -> 1 | AU8: =AT8/(AV4-AT20) -> 0.05555555556 | AV8: =IF(AU8=0,0,(AU8*((LOG(AU8))/LOG(2)))) -> -0.2316625001
A9: 12 | B9: 473 | C9: 23 | D9: 483 | E9: 13 | F9: 505 | G9: 14 | H9: 510 | K9: 0 | L9: 1211 | N9: 1121 | O9: =COUNTIF($L$7:$L$500,N9) -> 6 | P9: =O9/$Q$4 -> 0.05405405405 | Q9: =IF(P9=0,0,(P9*((LOG(P9))/LOG(2)))) -> -0.2275380198 | T9: =N9 -> 1121 | U9: =COUNTIF(L7:L25,T9) -> 1 | V9: =U9/(W4-U20) -> 0.05555555556 | W9: =IF(V9=0,0,(V9*((LOG(V9))/LOG(2)))) -> -0.2316625001 | Y9: =N9 -> 1121 | Z9: =COUNTIF(L26:L43,Y9) -> 0 | AA9: =Z9/(AB4-Z20) -> 0 | AB9: =IF(AA9=0,0,(AA9*((LOG(AA9))/LOG(2)))) -> 0 | AD9: =N9 -> 1121 | AE9: =COUNTIF(L44:L62,AD9) -> 2 | AF9: =AE9/(AG4-AE20) -> 0.1052631579 | AG9: =IF(AF9=0,0,(AF9*((LOG(AF9))/LOG(2)))) -> -0.3418871067 | AI9: =N9 -> 1121 | AJ9: =COUNTIF(L63:L80,AI9) -> 1 | AK9: =AJ9/(AL4-AJ20) -> 0.05555555556 | AL9: =IF(AK9=0,0,(AK9*((LOG(AK9))/LOG(2)))) -> -0.2316625001 | AN9: =N9 -> 1121 | AO9: =COUNTIF(L81:L99,AN9) -> 2 | AP9: =AO9/(AQ4-AO20) -> 0.1052631579 | AQ9: =IF(AP9=0,0,(AP9*((LOG(AP9))/LOG(2)))) -> -0.3418871067 | AS9: =N9 -> 1121 | AT9: =COUNTIF(L100:L117,AS9) -> 0 | AU9: =AT9/(AV4-AT20) -> 0 | AV9: =IF(AU9=0,0,(AU9*((LOG(AU9))/LOG(2)))) -> 0
A10: 21 | B10: 633 | C10: 12 | D10: 647 | E10: 24 | F10: 660 | G10: 23 | H10: 672 | K10: 0 | L10: 2122 | N10: 1122 | O10: =COUNTIF($L$7:$L$500,N10) -> 3 | P10: =O10/$Q$4 -> 0.02702702703 | Q10: =IF(P10=0,0,(P10*((LOG(P10))/LOG(2)))) -> -0.1407960369 | T10: =N10 -> 1122 | U10: =COUNTIF(L7:L25,T10) -> 1 | V10: =U10/(W4-U20) -> 0.05555555556 | W10: =IF(V10=0,0,(V10*((LOG(V10))/LOG(2)))) -> -0.2316625001 | Y10: =N10 -> 1122 | Z10: =COUNTIF(L26:L43,Y10) -> 2 | AA10: =Z10/(AB4-Z20) -> 0.1111111111 | AB10: =IF(AA10=0,0,(AA10*((LOG(AA10))/LOG(2)))) -> -0.352213889 | AD10: =N10 -> 1122 | AE10: =COUNTIF(L44:L62,AD10) -> 0 | AF10: =AE10/(AG4-AE20) -> 0 | AG10: =IF(AF10=0,0,(AF10*((LOG(AF10))/LOG(2)))) -> 0 | AI10: =N10 -> 1122 | AJ10: =COUNTIF(L63:L80,AI10) -> 0 | AK10: =AJ10/(AL4-AJ20) -> 0 | AL10: =IF(AK10=0,0,(AK10*((LOG(AK10))/LOG(2)))) -> 0 | AN10: =N10 -> 1122 | AO10: =COUNTIF(L81:L99,AN10) -> 0 | AP10: =AO10/(AQ4-AO20) -> 0 | AQ10: =IF(AP10=0,0,(AP10*((LOG(AP10))/LOG(2)))) -> 0 | AS10: =N10 -> 1122 | AT10: =COUNTIF(L100:L117,AS10) -> 0 | AU10: =AT10/(AV4-AT20) -> 0 | AV10: =IF(AU10=0,0,(AU10*((LOG(AU10))/LOG(2)))) -> 0
A11: 12 | B11: 793 | C11: 14 | D11: 798 | E11: 24 | F11: 815 | G11: 23 | H11: 819 | K11: 0 | L11: 1122 | N11: 1211 | O11: =COUNTIF($L$7:$L$500,N11) -> 14 | P11: =O11/$Q$4 -> 0.1261261261 | Q11: =IF(P11=0,0,(P11*((LOG(P11))/LOG(2)))) -> -0.3767464254 | T11: =N11 -> 1211 | U11: =COUNTIF(L7:L25,T11) -> 2 | V11: =U11/(W4-U20) -> 0.1111111111 | W11: =IF(V11=0,0,(V11*((LOG(V11))/LOG(2)))) -> -0.352213889 | Y11: =N11 -> 1211 | Z11: =COUNTIF(L26:L43,Y11) -> 1 | AA11: =Z11/(AB4-Z20) -> 0.05555555556 | AB11: =IF(AA11=0,0,(AA11*((LOG(AA11))/LOG(2)))) -> -0.2316625001 | AD11: =N11 -> 1211 | AE11: =COUNTIF(L44:L62,AD11) -> 1 | AF11: =AE11/(AG4-AE20) -> 0.05263157895 | AG11: =IF(AF11=0,0,(AF11*((LOG(AF11))/LOG(2)))) -> -0.2235751323 | AI11: =N11 -> 1211 | AJ11: =COUNTIF(L63:L80,AI11) -> 5 | AK11: =AJ11/(AL4-AJ20) -> 0.2777777778 | AL11: =IF(AK11=0,0,(AK11*((LOG(AK11))/LOG(2)))) -> -0.513332474 | AN11: =N11 -> 1211 | AO11: =COUNTIF(L81:L99,AN11) -> 3 | AP11: =AO11/(AQ4-AO20) -> 0.1578947368 | AQ11: =IF(AP11=0,0,(AP11*((LOG(AP11))/LOG(2)))) -> -0.4204681599 | AS11: =N11 -> 1211 | AT11: =COUNTIF(L100:L117,AS11) -> 2 | AU11: =AT11/(AV4-AT20) -> 0.1111111111 | AV11: =IF(AU11=0,0,(AU11*((LOG(AU11))/LOG(2)))) -> -0.352213889
A12: 12 | B12: 961 | C12: 14 | D12: 967 | E12: 24 | F12: 992 | G12: 14 | H12: 1006 | K12: 0 | L12: 1121 | N12: 1212 | O12: =COUNTIF($L$7:$L$500,N12) -> 0 | P12: =O12/$Q$4 -> 0 | Q12: =IF(P12=0,0,(P12*((LOG(P12))/LOG(2)))) -> 0 | T12: =N12 -> 1212 | U12: =COUNTIF(L7:L25,T12) -> 0 | V12: =U12/(W4-U20) -> 0 | W12: =IF(V12=0,0,(V12*((LOG(V12))/LOG(2)))) -> 0 | Y12: =N12 -> 1212 | Z12: =COUNTIF(L26:L43,Y12) -> 0 | AA12: =Z12/(AB4-Z20) -> 0 | AB12: =IF(AA12=0,0,(AA12*((LOG(AA12))/LOG(2)))) -> 0 | AD12: =N12 -> 1212 | AE12: =COUNTIF(L44:L62,AD12) -> 0 | AF12: =AE12/(AG4-AE20) -> 0 | AG12: =IF(AF12=0,0,(AF12*((LOG(AF12))/LOG(2)))) -> 0 | AI12: =N12 -> 1212 | AJ12: =COUNTIF(L63:L80,AI12) -> 0 | AK12: =AJ12/(AL4-AJ20) -> 0 | AL12: =IF(AK12=0,0,(AK12*((LOG(AK12))/LOG(2)))) -> 0 | AN12: =N12 -> 1212 | AO12: =COUNTIF(L81:L99,AN12) -> 0 | AP12: =AO12/(AQ4-AO20) -> 0 | AQ12: =IF(AP12=0,0,(AP12*((LOG(AP12))/LOG(2)))) -> 0 | AS12: =N12 -> 1212 | AT12: =COUNTIF(L100:L117,AS12) -> 0 | AU12: =AT12/(AV4-AT20) -> 0 | AV12: =IF(AU12=0,0,(AU12*((LOG(AU12))/LOG(2)))) -> 0
A13: 12 | B13: 1114 | C13: 14 | D13: 1129 | E13: 13 | F13: 1134 | G13: 14 | H13: 1143 | K13: 0 | L13: 1111 | N13: 1221 | O13: =COUNTIF($L$7:$L$500,N13) -> 3 | P13: =O13/$Q$4 -> 0.02702702703 | Q13: =IF(P13=0,0,(P13*((LOG(P13))/LOG(2)))) -> -0.1407960369 | T13: =N13 -> 1221 | U13: =COUNTIF(L7:L25,T13) -> 0 | V13: =U13/(W4-U20) -> 0 | W13: =IF(V13=0,0,(V13*((LOG(V13))/LOG(2)))) -> 0 | Y13: =N13 -> 1221 | Z13: =COUNTIF(L26:L43,Y13) -> 2 | AA13: =Z13/(AB4-Z20) -> 0.1111111111 | AB13: =IF(AA13=0,0,(AA13*((LOG(AA13))/LOG(2)))) -> -0.352213889 | AD13: =N13 -> 1221 | AE13: =COUNTIF(L44:L62,AD13) -> 0 | AF13: =AE13/(AG4-AE20) -> 0 | AG13: =IF(AF13=0,0,(AF13*((LOG(AF13))/LOG(2)))) -> 0 | AI13: =N13 -> 1221 | AJ13: =COUNTIF(L63:L80,AI13) -> 0 | AK13: =AJ13/(AL4-AJ20) -> 0 | AL13: =IF(AK13=0,0,(AK13*((LOG(AK13))/LOG(2)))) -> 0 | AN13: =N13 -> 1221 | AO13: =COUNTIF(L81:L99,AN13) -> 0 | AP13: =AO13/(AQ4-AO20) -> 0 | AQ13: =IF(AP13=0,0,(AP13*((LOG(AP13))/LOG(2)))) -> 0 | AS13: =N13 -> 1221 | AT13: =COUNTIF(L100:L117,AS13) -> 1 | AU13: =AT13/(AV4-AT20) -> 0.05555555556 | AV13: =IF(AU13=0,0,(AU13*((LOG(AU13))/LOG(2)))) -> -0.2316625001
A14: 12 | B14: 1258 | C14: 14 | D14: 1286 | E14: 13 | F14: 1291 | G14: 14 | H14: 1296 | K14: 0 | L14: 1111 | N14: 1222 | O14: =COUNTIF($L$7:$L$500,N14) -> 3 | P14: =O14/$Q$4 -> 0.02702702703 | Q14: =IF(P14=0,0,(P14*((LOG(P14))/LOG(2)))) -> -0.1407960369 | T14: =N14 -> 1222 | U14: =COUNTIF(L7:L25,T14) -> 0 | V14: =U14/(W4-U20) -> 0 | W14: =IF(V14=0,0,(V14*((LOG(V14))/LOG(2)))) -> 0 | Y14: =N14 -> 1222 | Z14: =COUNTIF(L26:L43,Y14) -> 0 | AA14: =Z14/(AB4-Z20) -> 0 | AB14: =IF(AA14=0,0,(AA14*((LOG(AA14))/LOG(2)))) -> 0 | AD14: =N14 -> 1222 | AE14: =COUNTIF(L44:L62,AD14) -> 1 | AF14: =AE14/(AG4-AE20) -> 0.05263157895 | AG14: =IF(AF14=0,0,(AF14*((LOG(AF14))/LOG(2)))) -> -0.2235751323 | AI14: =N14 -> 1222 | AJ14: =COUNTIF(L63:L80,AI14) -> 0 | AK14: =AJ14/(AL4-AJ20) -> 0 | AL14: =IF(AK14=0,0,(AK14*((LOG(AK14))/LOG(2)))) -> 0 | AN14: =N14 -> 1222 | AO14: =COUNTIF(L81:L99,AN14) -> 0 | AP14: =AO14/(AQ4-AO20) -> 0 | AQ14: =IF(AP14=0,0,(AP14*((LOG(AP14))/LOG(2)))) -> 0 | AS14: =N14 -> 1222 | AT14: =COUNTIF(L100:L117,AS14) -> 2 | AU14: =AT14/(AV4-AT20) -> 0.1111111111 | AV14: =IF(AU14=0,0,(AU14*((LOG(AU14))/LOG(2)))) -> -0.352213889
A15: 12 | B15: 1424 | C15: 14 | D15: 1431 | E15: 13 | F15: 1436 | G15: 23 | H15: 1449 | K15: 0 | L15: 1112 | N15: 2111 | O15: =COUNTIF($L$7:$L$500,N15) -> 12 | P15: =O15/$Q$4 -> 0.1081081081 | Q15: =IF(P15=0,0,(P15*((LOG(P15))/LOG(2)))) -> -0.3469679314 | T15: =N15 -> 2111 | U15: =COUNTIF(L7:L25,T15) -> 0 | V15: =U15/(W4-U20) -> 0 | W15: =IF(V15=0,0,(V15*((LOG(V15))/LOG(2)))) -> 0 | Y15: =N15 -> 2111 | Z15: =COUNTIF(L26:L43,Y15) -> 3 | AA15: =Z15/(AB4-Z20) -> 0.1666666667 | AB15: =IF(AA15=0,0,(AA15*((LOG(AA15))/LOG(2)))) -> -0.4308270835 | AD15: =N15 -> 2111 | AE15: =COUNTIF(L44:L62,AD15) -> 0 | AF15: =AE15/(AG4-AE20) -> 0 | AG15: =IF(AF15=0,0,(AF15*((LOG(AF15))/LOG(2)))) -> 0 | AI15: =N15 -> 2111 | AJ15: =COUNTIF(L63:L80,AI15) -> 3 | AK15: =AJ15/(AL4-AJ20) -> 0.1666666667 | AL15: =IF(AK15=0,0,(AK15*((LOG(AK15))/LOG(2)))) -> -0.4308270835 | AN15: =N15 -> 2111 | AO15: =COUNTIF(L81:L99,AN15) -> 2 | AP15: =AO15/(AQ4-AO20) -> 0.1052631579 | AQ15: =IF(AP15=0,0,(AP15*((LOG(AP15))/LOG(2)))) -> -0.3418871067 | AS15: =N15 -> 2111 | AT15: =COUNTIF(L100:L117,AS15) -> 4 | AU15: =AT15/(AV4-AT20) -> 0.2222222222 | AV15: =IF(AU15=0,0,(AU15*((LOG(AU15))/LOG(2)))) -> -0.4822055559
A16: 12 | B16: 1560 | C16: 14 | D16: 1565 | E16: 13 | F16: 1597 | G16: 14 | H16: 1602 | K16: 0 | L16: 1111 | N16: 2112 | O16: =COUNTIF($L$7:$L$500,N16) -> 4 | P16: =O16/$Q$4 -> 0.03603603604 | Q16: =IF(P16=0,0,(P16*((LOG(P16))/LOG(2)))) -> -0.1727717429 | T16: =N16 -> 2112 | U16: =COUNTIF(L7:L25,T16) -> 0 | V16: =U16/(W4-U20) -> 0 | W16: =IF(V16=0,0,(V16*((LOG(V16))/LOG(2)))) -> 0 | Y16: =N16 -> 2112 | Z16: =COUNTIF(L26:L43,Y16) -> 2 | AA16: =Z16/(AB4-Z20) -> 0.1111111111 | AB16: =IF(AA16=0,0,(AA16*((LOG(AA16))/LOG(2)))) -> -0.352213889 | AD16: =N16 -> 2112 | AE16: =COUNTIF(L44:L62,AD16) -> 1 | AF16: =AE16/(AG4-AE20) -> 0.05263157895 | AG16: =IF(AF16=0,0,(AF16*((LOG(AF16))/LOG(2)))) -> -0.2235751323 | AI16: =N16 -> 2112 | AJ16: =COUNTIF(L63:L80,AI16) -> 0 | AK16: =AJ16/(AL4-AJ20) -> 0 | AL16: =IF(AK16=0,0,(AK16*((LOG(AK16))/LOG(2)))) -> 0 | AN16: =N16 -> 2112 | AO16: =COUNTIF(L81:L99,AN16) -> 0 | AP16: =AO16/(AQ4-AO20) -> 0 | AQ16: =IF(AP16=0,0,(AP16*((LOG(AP16))/LOG(2)))) -> 0 | AS16: =N16 -> 2112 | AT16: =COUNTIF(L100:L117,AS16) -> 1 | AU16: =AT16/(AV4-AT20) -> 0.05555555556 | AV16: =IF(AU16=0,0,(AU16*((LOG(AU16))/LOG(2)))) -> -0.2316625001
A17: 12 | B17: 1712 | C17: 14 | D17: 1719 | E17: 13 | F17: 1725 | G17: 14 | H17: 1731 | K17: 0 | L17: 1111 | N17: 2121 | O17: =COUNTIF($L$7:$L$500,N17) -> 3 | P17: =O17/$Q$4 -> 0.02702702703 | Q17: =IF(P17=0,0,(P17*((LOG(P17))/LOG(2)))) -> -0.1407960369 | T17: =N17 -> 2121 | U17: =COUNTIF(L7:L25,T17) -> 0 | V17: =U17/(W4-U20) -> 0 | W17: =IF(V17=0,0,(V17*((LOG(V17))/LOG(2)))) -> 0 | Y17: =N17 -> 2121 | Z17: =COUNTIF(L26:L43,Y17) -> 0 | AA17: =Z17/(AB4-Z20) -> 0 | AB17: =IF(AA17=0,0,(AA17*((LOG(AA17))/LOG(2)))) -> 0 | AD17: =N17 -> 2121 | AE17: =COUNTIF(L44:L62,AD17) -> 1 | AF17: =AE17/(AG4-AE20) -> 0.05263157895 | AG17: =IF(AF17=0,0,(AF17*((LOG(AF17))/LOG(2)))) -> -0.2235751323 | AI17: =N17 -> 2121 | AJ17: =COUNTIF(L63:L80,AI17) -> 0 | AK17: =AJ17/(AL4-AJ20) -> 0 | AL17: =IF(AK17=0,0,(AK17*((LOG(AK17))/LOG(2)))) -> 0 | AN17: =N17 -> 2121 | AO17: =COUNTIF(L81:L99,AN17) -> 0 | AP17: =AO17/(AQ4-AO20) -> 0 | AQ17: =IF(AP17=0,0,(AP17*((LOG(AP17))/LOG(2)))) -> 0 | AS17: =N17 -> 2121 | AT17: =COUNTIF(L100:L117,AS17) -> 2 | AU17: =AT17/(AV4-AT20) -> 0.1111111111 | AV17: =IF(AU17=0,0,(AU17*((LOG(AU17))/LOG(2)))) -> -0.352213889
A18: 12 | B18: 1861 | C18: 14 | D18: 1871 | E18: 13 | F18: 1876 | G18: 14 | H18: 1880 | K18: 0 | L18: 1111 | N18: 2122 | O18: =COUNTIF($L$7:$L$500,N18) -> 3 | P18: =O18/$Q$4 -> 0.02702702703 | Q18: =IF(P18=0,0,(P18*((LOG(P18))/LOG(2)))) -> -0.1407960369 | T18: =N18 -> 2122 | U18: =COUNTIF(L7:L25,T18) -> 2 | V18: =U18/(W4-U20) -> 0.1111111111 | W18: =IF(V18=0,0,(V18*((LOG(V18))/LOG(2)))) -> -0.352213889 | Y18: =N18 -> 2122 | Z18: =COUNTIF(L26:L43,Y18) -> 0 | AA18: =Z18/(AB4-Z20) -> 0 | AB18: =IF(AA18=0,0,(AA18*((LOG(AA18))/LOG(2)))) -> 0 | AD18: =N18 -> 2122 | AE18: =COUNTIF(L44:L62,AD18) -> 0 | AF18: =AE18/(AG4-AE20) -> 0 | AG18: =IF(AF18=0,0,(AF18*((LOG(AF18))/LOG(2)))) -> 0 | AI18: =N18 -> 2122 | AJ18: =COUNTIF(L63:L80,AI18) -> 1 | AK18: =AJ18/(AL4-AJ20) -> 0.05555555556 | AL18: =IF(AK18=0,0,(AK18*((LOG(AK18))/LOG(2)))) -> -0.2316625001 | AN18: =N18 -> 2122 | AO18: =COUNTIF(L81:L99,AN18) -> 0 | AP18: =AO18/(AQ4-AO20) -> 0 | AQ18: =IF(AP18=0,0,(AP18*((LOG(AP18))/LOG(2)))) -> 0 | AS18: =N18 -> 2122 | AT18: =COUNTIF(L100:L117,AS18) -> 0 | AU18: =AT18/(AV4-AT20) -> 0 | AV18: =IF(AU18=0,0,(AU18*((LOG(AU18))/LOG(2)))) -> 0
A19: 12 | B19: 2044 | C19: 14 | D19: 2068 | E19: 13 | F19: 2073 | G19: 14 | H19: 2079 | K19: 0 | L19: 1111 | N19: 2211 | O19: =COUNTIF($L$7:$L$500,N19) -> 5 | P19: =O19/$Q$4 -> 0.04504504505 | Q19: =IF(P19=0,0,(P19*((LOG(P19))/LOG(2)))) -> -0.2014634131 | T19: =N19 -> 2211 | U19: =COUNTIF(L7:L25,T19) -> 0 | V19: =U19/(W4-U20) -> 0 | W19: =IF(V19=0,0,(V19*((LOG(V19))/LOG(2)))) -> 0 | Y19: =N19 -> 2211 | Z19: =COUNTIF(L26:L43,Y19) -> 0 | AA19: =Z19/(AB4-Z20) -> 0 | AB19: =IF(AA19=0,0,(AA19*((LOG(AA19))/LOG(2)))) -> 0 | AD19: =N19 -> 2211 | AE19: =COUNTIF(L44:L62,AD19) -> 1 | AF19: =AE19/(AG4-AE20) -> 0.05263157895 | AG19: =IF(AF19=0,0,(AF19*((LOG(AF19))/LOG(2)))) -> -0.2235751323 | AI19: =N19 -> 2211 | AJ19: =COUNTIF(L63:L80,AI19) -> 1 | AK19: =AJ19/(AL4-AJ20) -> 0.05555555556 | AL19: =IF(AK19=0,0,(AK19*((LOG(AK19))/LOG(2)))) -> -0.2316625001 | AN19: =N19 -> 2211 | AO19: =COUNTIF(L81:L99,AN19) -> 1 | AP19: =AO19/(AQ4-AO20) -> 0.05263157895 | AQ19: =IF(AP19=0,0,(AP19*((LOG(AP19))/LOG(2)))) -> -0.2235751323 | AS19: =N19 -> 2211 | AT19: =COUNTIF(L100:L117,AS19) -> 2 | AU19: =AT19/(AV4-AT20) -> 0.1111111111 | AV19: =IF(AU19=0,0,(AU19*((LOG(AU19))/LOG(2)))) -> -0.352213889
A20: 12 | B20: 2189 | C20: 14 | D20: 2195 | E20: 13 | F20: 2200 | G20: 14 | H20: 2207 | K20: 0 | L20: 1111 | N20: 2212 | O20: =COUNTIF($L$7:$L$500,N20) -> 1 | P20: =O20/$Q$4 -> 0.009009009009 | Q20: =IF(P20=0,0,(P20*((LOG(P20))/LOG(2)))) -> -0.06121095375 | T20: =N20 -> 2212 | U20: =COUNTIF(L7:L25,T20) -> 1 | Y20: =N20 -> 2212 | Z20: =COUNTIF(L26:L43,Y20) -> 0 | AD20: =N20 -> 2212 | AE20: =COUNTIF(L44:L62,AD20) -> 0 | AI20: =N20 -> 2212 | AJ20: =COUNTIF(L63:L80,AI20) -> 0 | AN20: =N20 -> 2212 | AO20: =COUNTIF(L81:L99,AN20) -> 0 | AS20: =N20 -> 2212 | AT20: =COUNTIF(L100:L117,AS20) -> 0
A21: 12 | B21: 2349 | C21: 14 | D21: 2367 | E21: 13 | F21: 2372 | G21: 14 | H21: 2377 | K21: 0 | L21: 1111 | N21: 2221 | O21: =COUNTIF($L$7:$L$500,N21) -> 4 | P21: =O21/$Q$4 -> 0.03603603604 | Q21: =IF(P21=0,0,(P21*((LOG(P21))/LOG(2)))) -> -0.1727717429 | T21: =N21 -> 2221 | U21: =COUNTIF(L7:L25,T21) -> 1 | V21: =U21/(W4-U20) -> 0.05555555556 | W21: =IF(V21=0,0,(V21*((LOG(V21))/LOG(2)))) -> -0.2316625001 | Y21: =N21 -> 2221 | Z21: =COUNTIF(L26:L43,Y21) -> 0 | AA21: =Z21/(AB4-Z20) -> 0 | AB21: =IF(AA21=0,0,(AA21*((LOG(AA21))/LOG(2)))) -> 0 | AD21: =N21 -> 2221 | AE21: =COUNTIF(L44:L62,AD21) -> 2 | AF21: =AE21/(AG4-AE20) -> 0.1052631579 | AG21: =IF(AF21=0,0,(AF21*((LOG(AF21))/LOG(2)))) -> -0.3418871067 | AI21: =N21 -> 2221 | AJ21: =COUNTIF(L63:L80,AI21) -> 0 | AK21: =AJ21/(AL4-AJ20) -> 0 | AL21: =IF(AK21=0,0,(AK21*((LOG(AK21))/LOG(2)))) -> 0 | AN21: =N21 -> 2221 | AO21: =COUNTIF(L81:L99,AN21) -> 1 | AP21: =AO21/(AQ4-AO20) -> 0.05263157895 | AQ21: =IF(AP21=0,0,(AP21*((LOG(AP21))/LOG(2)))) -> -0.2235751323 | AS21: =N21 -> 2221 | AT21: =COUNTIF(L100:L117,AS21) -> 0 | AU21: =AT21/(AV4-AT20) -> 0 | AV21: =IF(AU21=0,0,(AU21*((LOG(AU21))/LOG(2)))) -> 0
A22: 12 | B22: 3055 | C22: 14 | D22: 3060 | E22: 13 | F22: 3066 | G22: 14 | H22: 3089 | K22: 0 | L22: 1111 | N22: 2222 | O22: =COUNTIF($L$7:$L$500,N22) -> 2 | P22: =O22/$Q$4 -> 0.01801801802 | Q22: =IF(P22=0,0,(P22*((LOG(P22))/LOG(2)))) -> -0.1044038895 | T22: =N22 -> 2222 | U22: =COUNTIF(L7:L25,T22) -> 1 | V22: =U22/(W4-U20) -> 0.05555555556 | W22: =IF(V22=0,0,(V22*((LOG(V22))/LOG(2)))) -> -0.2316625001 | Y22: =N22 -> 2222 | Z22: =COUNTIF(L26:L43,Y22) -> 0 | AA22: =Z22/(AB4-Z20) -> 0 | AB22: =IF(AA22=0,0,(AA22*((LOG(AA22))/LOG(2)))) -> 0 | AD22: =N22 -> 2222 | AE22: =COUNTIF(L44:L62,AD22) -> 0 | AF22: =AE22/(AG4-AE20) -> 0 | AG22: =IF(AF22=0,0,(AF22*((LOG(AF22))/LOG(2)))) -> 0 | AI22: =N22 -> 2222 | AJ22: =COUNTIF(L63:L80,AI22) -> 1 | AK22: =AJ22/(AL4-AJ20) -> 0.05555555556 | AL22: =IF(AK22=0,0,(AK22*((LOG(AK22))/LOG(2)))) -> -0.2316625001 | AN22: =N22 -> 2222 | AO22: =COUNTIF(L81:L99,AN22) -> 0 | AP22: =AO22/(AQ4-AO20) -> 0 | AQ22: =IF(AP22=0,0,(AP22*((LOG(AP22))/LOG(2)))) -> 0 | AS22: =N22 -> 2222 | AT22: =COUNTIF(L100:L117,AS22) -> 0 | AU22: =AT22/(AV4-AT20) -> 0 | AV22: =IF(AU22=0,0,(AU22*((LOG(AU22))/LOG(2)))) -> 0
A23: 21 | B23: 3189 | C23: 21 | D23: 3201 | E23: 11 | F23: 3215 | G23: 21 | H23: 3236 | K23: 0 | L23: 2212 | P23: =SUM(P7:P22) -> 1 | Q23: =-SUM(Q7:Q22) -> 3.125916059 | V23: =SUM(V7:V22) -> 1 | W23: =-SUM(W7:W22) -> 2.362740278 | AA23: =SUM(AA7:AA22) -> 1 | AB23: =-SUM(AB7:AB22) -> 2.480682115 | AF23: =SUM(AF7:AF22) -> 1 | AG23: =-SUM(AG7:AG22) -> 2.668980145 | AK23: =SUM(AK7:AK22) -> 1 | AL23: =-SUM(AL7:AL22) -> 2.399130391 | AP23: =SUM(AP7:AP22) -> 1 | AQ23: =-SUM(AQ7:AQ22) -> 2.285600539 | AU23: =SUM(AU7:AU22) -> 1 | AV23: =-SUM(AV7:AV22) -> 3.016875696
A24: 21 | B24: 3345 | C24: 21 | D24: 3353 | E24: 22 | F24: 3362 | G24: 14 | H24: 3373 | K24: 0 | L24: 2221 | P24: U= | Q24: =Q23/(LOG(Q4)/LOG(2)) -> 0.4600713468 | V24: U1= | W24: =W23/(LOG(W4)/LOG(2)) -> 0.5562101215 | AA24: U2= | AB24: =AB23/(LOG(AB4)/LOG(2)) -> 0.5948984968 | AF24: U3= | AG24: =AG23/(LOG(AG4)/LOG(2)) -> 0.6283017157 | AK24: U4= | AL24: =AL23/(LOG(AL4)/LOG(2)) -> 0.5753413768 | AP24: U5= | AQ24: =AQ23/(LOG(AQ4)/LOG(2)) -> 0.5380507393 | AU24: U6= | AV24: =AV23/(LOG(AV4)/LOG(2)) -> 0.7234844019
A25: 12 | B25: 3493 | C25: 23 | D25: 3512 | E25: 13 | F25: 3526 | G25: 14 | H25: 3531 | K25: 0 | L25: 1211
A26: 12 | B26: 3663 | C26: 14 | D26: 3668 | E26: 24 | F26: 3687 | G26: 23 | H26: 3692 | K26: 0 | L26: 1122
A27: 21 | B27: 3822 | C27: 12 | D27: 3840 | E27: 13 | F27: 3850 | G27: 23 | H27: 3870 | K27: 0 | L27: 2112 | N27: Total Target Seq
A28: 12 | B28: 3996 | C28: 23 | D28: 4009 | E28: 24 | F28: 4014 | G28: 14 | H28: 4027 | K28: 0 | L28: 1221 | N28: =COUNTIF(L7:L117,G3) -> 1 | P28: 19 | Q28: 18 | R28: 19 | S28: 18 | T28: 19 | U28: 18
A29: 12 | B29: 4152 | C29: 14 | D29: 4162 | E29: 13 | F29: 4169 | G29: 23 | H29: 4181 | K29: 0 | L29: 1112 | P29: % of reinforcement given in 6 equal intervals based on number of trials
A30: 12 | B30: 4289 | C30: 23 | D30: 4307 | E30: 24 | F30: 4313 | G30: 14 | H30: 4325 | K30: 0 | L30: 1221 | P30: %_1 | Q30: %_2 | R30: %_3 | S30: %_4 | T30: %_5 | U30: %_6
A31: 12 | B31: 4449 | C31: 14 | D31: 4455 | E31: 13 | F31: 4459 | G31: 14 | H31: 4463 | K31: 0 | L31: 1111 | O31: target sequence | P31: =$G$3 -> 2212 | Q31: =$G$3 -> 2212 | R31: =$G$3 -> 2212 | S31: =$G$3 -> 2212 | T31: =$G$3 -> 2212 | U31: =$G$3 -> 2212
A32: 21 | B32: 4571 | C32: 12 | D32: 4587 | E32: 13 | F32: 4592 | G32: 14 | H32: 4597 | K32: 0 | L32: 2111 | O32: total reinforcement | P32: =U20 -> 1 | Q32: =Z20 -> 0 | R32: =AE20 -> 0 | S32: =AJ20 -> 0 | T32: =AO20 -> 0 | U32: =AT20 -> 0
A33: 21 | B33: 4733 | C33: 12 | D33: 4755 | E33: 13 | F33: 4765 | G33: 23 | H33: 4778 | K33: 0 | L33: 2112 | O33: % target
A34: 21 | B34: 4895 | C34: 12 | D34: 4905 | E34: 13 | F34: 4911 | G34: 14 | H34: 4915 | K34: 0 | L34: 2111 | O34: CCRF
A35: 12 | B35: 5017 | C35: 14 | D35: 5022 | E35: 13 | F35: 5027 | G35: 14 | H35: 5056 | K35: 0 | L35: 1111 | O35: % CCRf
A36: 12 | B36: 5168 | C36: 14 | D36: 5191 | E36: 13 | F36: 5196 | G36: 14 | H36: 5202 | K36: 0 | L36: 1111 | O36: average response rate | P36: =H25/P28 -> 185.8421053 | Q36: =(H43-H25)/Q28 -> 148.7222222 | R36: =(H62-H43)/R28 -> 175.3684211 | S36: =(H80-H62)/S28 -> 228.7222222 | T36: =(H99-H80)/T28 -> 285.9473684 | U36: =(H117-H99)/U28 -> 257.6666667
A37: 21 | B37: 5342 | C37: 12 | D37: 5357 | E37: 13 | F37: 5362 | G37: 14 | H37: 5369 | K37: 0 | L37: 2111
A38: 12 | B38: 5484 | C38: 14 | D38: 5490 | E38: 13 | F38: 5495 | G38: 14 | H38: 5501 | K38: 0 | L38: 1111
A39: 12 | B39: 5602 | C39: 14 | D39: 5607 | E39: 13 | F39: 5612 | G39: 14 | H39: 5618 | K39: 0 | L39: 1111
A40: 12 | B40: 5746 | C40: 23 | D40: 5762 | E40: 13 | F40: 5778 | G40: 14 | H40: 5783 | K40: 0 | L40: 1211
A41: 12 | B41: 5890 | C41: 14 | D41: 5894 | E41: 13 | F41: 5899 | G41: 14 | H41: 5904 | K41: 0 | L41: 1111
A42: 12 | B42: 6040 | C42: 14 | D42: 6048 | E42: 24 | F42: 6066 | G42: 23 | H42: 6073 | K42: 0 | L42: 1122
A43: 12 | B43: 6173 | C43: 14 | D43: 6197 | E43: 13 | F43: 6203 | G43: 14 | H43: 6208 | K43: 0 | L43: 1111
A44: 12 | B44: 6355 | C44: 14 | D44: 6363 | E44: 13 | F44: 6373 | G44: 14 | H44: 6378 | K44: 0 | L44: 1111
A45: 12 | B45: 6483 | C45: 14 | D45: 6506 | E45: 13 | F45: 6512 | G45: 14 | H45: 6518 | K45: 0 | L45: 1111
A46: 12 | B46: 6638 | C46: 14 | D46: 6643 | E46: 13 | F46: 6649 | G46: 14 | H46: 6655 | K46: 0 | L46: 1111
A47: 12 | B47: 6832 | C47: 14 | D47: 6837 | E47: 13 | F47: 6843 | G47: 14 | H47: 6849 | K47: 0 | L47: 1111
A48: 12 | B48: 7020 | C48: 14 | D48: 7025 | E48: 13 | F48: 7030 | G48: 14 | H48: 7036 | K48: 0 | L48: 1111
A49: 12 | B49: 7195 | C49: 14 | D49: 7201 | E49: 24 | F49: 7212 | G49: 14 | H49: 7235 | K49: 0 | L49: 1121
A50: 21 | B50: 7337 | C50: 12 | D50: 7354 | E50: 13 | F50: 7359 | G50: 23 | H50: 7373 | K50: 0 | L50: 2112
A51: 12 | B51: 7560 | C51: 14 | D51: 7568 | E51: 13 | F51: 7573 | G51: 23 | H51: 7585 | K51: 0 | L51: 1112
A52: 21 | B52: 7686 | C52: 21 | D52: 7701 | E52: 22 | F52: 7713 | G52: 14 | H52: 7723 | K52: 0 | L52: 2221
A53: 12 | B53: 7925 | C53: 14 | D53: 7931 | E53: 13 | F53: 7946 | G53: 14 | H53: 7950 | K53: 0 | L53: 1111
A54: 12 | B54: 8156 | C54: 14 | D54: 8162 | E54: 13 | F54: 8167 | G54: 14 | H54: 8173 | K54: 0 | L54: 1111
A55: 12 | B55: 8289 | C55: 14 | D55: 8293 | E55: 13 | F55: 8301 | G55: 14 | H55: 8312 | K55: 0 | L55: 1111
A56: 21 | B56: 8422 | C56: 21 | D56: 8443 | E56: 11 | F56: 8459 | G56: 12 | H56: 8465 | K56: 0 | L56: 2211
A57: 12 | B57: 8708 | C57: 23 | D57: 8723 | E57: 13 | F57: 8737 | G57: 14 | H57: 8742 | K57: 0 | L57: 1211
A58: 12 | B58: 8861 | C58: 14 | D58: 8866 | E58: 24 | F58: 8879 | G58: 14 | H58: 8891 | K58: 0 | L58: 1121
A59: 21 | B59: 8999 | C59: 21 | D59: 9005 | E59: 22 | F59: 9014 | G59: 14 | H59: 9029 | K59: 0 | L59: 2221
A60: 12 | B60: 9154 | C60: 14 | D60: 9159 | E60: 13 | F60: 9163 | G60: 23 | H60: 9175 | K60: 0 | L60: 1112
A61: 21 | B61: 9292 | C61: 12 | D61: 9325 | E61: 24 | F61: 9337 | G61: 14 | H61: 9349 | K61: 0 | L61: 2121
A62: 12 | B62: 9506 | C62: 23 | D62: 9519 | E62: 24 | F62: 9531 | G62: 23 | H62: 9540 | K62: 0 | L62: 1222
A63: 12 | B63: 9672 | C63: 23 | D63: 9681 | E63: 13 | F63: 9700 | G63: 14 | H63: 9705 | K63: 0 | L63: 1211
A64: 12 | B64: 9814 | C64: 14 | D64: 9828 | E64: 13 | F64: 9833 | G64: 14 | H64: 9837 | K64: 0 | L64: 1111
A65: 21 | B65: 10124 | C65: 12 | D65: 10146 | E65: 13 | F65: 10151 | G65: 14 | H65: 10156 | K65: 0 | L65: 2111
A66: 21 | B66: 10260 | C66: 21 | D66: 10268 | E66: 22 | F66: 10304 | G66: 23 | H66: 10324 | K66: 0 | L66: 2222
A67: 21 | B67: 10432 | C67: 21 | D67: 10441 | E67: 11 | F67: 10462 | G67: 12 | H67: 10467 | K67: 0 | L67: 2211
A68: 12 | B68: 10688 | C68: 14 | D68: 10700 | E68: 24 | F68: 10718 | G68: 14 | H68: 10746 | K68: 0 | L68: 1121
A69: 12 | B69: 10952 | C69: 23 | D69: 10966 | E69: 13 | F69: 10983 | G69: 14 | H69: 10988 | K69: 0 | L69: 1211
A70: 12 | B70: 11255 | C70: 23 | D70: 11276 | E70: 13 | F70: 11287 | G70: 14 | H70: 11291 | K70: 0 | L70: 1211
A71: 12 | B71: 11430 | C71: 14 | D71: 11442 | E71: 13 | F71: 11447 | G71: 14 | H71: 11451 | K71: 0 | L71: 1111
A72: 12 | B72: 11665 | C72: 14 | D72: 11703 | E72: 13 | F72: 11708 | G72: 14 | H72: 11713 | K72: 0 | L72: 1111
A73: 12 | B73: 11835 | C73: 14 | D73: 11839 | E73: 13 | F73: 11848 | G73: 14 | H73: 11852 | K73: 0 | L73: 1111
A74: 12 | B74: 12106 | C74: 14 | D74: 12153 | E74: 13 | F74: 12159 | G74: 14 | H74: 12165 | K74: 0 | L74: 1111
A75: 21 | B75: 12294 | C75: 12 | D75: 12321 | E75: 13 | F75: 12326 | G75: 14 | H75: 12334 | K75: 0 | L75: 2111
A76: 21 | B76: 12647 | C76: 12 | D76: 12664 | E76: 13 | F76: 12670 | G76: 14 | H76: 12676 | K76: 0 | L76: 2111
A77: 12 | B77: 12809 | C77: 23 | D77: 12845 | E77: 13 | F77: 12857 | G77: 14 | H77: 12863 | K77: 0 | L77: 1211
A78: 21 | B78: 13060 | C78: 12 | D78: 13083 | E78: 24 | F78: 13103 | G78: 23 | H78: 13114 | K78: 0 | L78: 2122
A79: 12 | B79: 13362 | C79: 23 | D79: 13375 | E79: 13 | F79: 13389 | G79: 14 | H79: 13394 | K79: 0 | L79: 1211
A80: 12 | B80: 13639 | C80: 14 | D80: 13644 | E80: 13 | F80: 13653 | G80: 14 | H80: 13657 | K80: 0 | L80: 1111
A81: 12 | B81: 13905 | C81: 14 | D81: 13913 | E81: 13 | F81: 13918 | G81: 23 | H81: 13931 | K81: 0 | L81: 1112
A82: 12 | B82: 14122 | C82: 14 | D82: 14145 | E82: 13 | F82: 14159 | G82: 14 | H82: 14164 | K82: 0 | L82: 1111
A83: 21 | B83: 14283 | C83: 12 | D83: 14310 | E83: 13 | F83: 14314 | G83: 14 | H83: 14319 | K83: 0 | L83: 2111
A84: 12 | B84: 14472 | C84: 14 | D84: 14478 | E84: 24 | F84: 14505 | G84: 14 | H84: 14533 | K84: 0 | L84: 1121
A85: 12 | B85: 14678 | C85: 14 | D85: 14686 | E85: 13 | F85: 14692 | G85: 14 | H85: 14698 | K85: 0 | L85: 1111
A86: 12 | B86: 14931 | C86: 23 | D86: 14948 | E86: 13 | F86: 14964 | G86: 14 | H86: 14975 | K86: 0 | L86: 1211
A87: 21 | B87: 15208 | C87: 21 | D87: 15253 | E87: 11 | F87: 15268 | G87: 12 | H87: 15289 | K87: 0 | L87: 2211
A88: 21 | B88: 15509 | C88: 12 | D88: 15534 | E88: 13 | F88: 15540 | G88: 14 | H88: 15546 | K88: 0 | L88: 2111
A89: 12 | B89: 15691 | C89: 14 | D89: 15698 | E89: 24 | F89: 15711 | G89: 14 | H89: 15736 | K89: 0 | L89: 1121
A90: 12 | B90: 16203 | C90: 14 | D90: 16208 | E90: 13 | F90: 16214 | G90: 14 | H90: 16220 | K90: 0 | L90: 1111
A91: 12 | B91: 16545 | C91: 14 | D91: 16554 | E91: 13 | F91: 16559 | G91: 14 | H91: 16563 | K91: 0 | L91: 1111
A92: 12 | B92: 16972 | C92: 23 | D92: 17006 | E92: 13 | F92: 17027 | G92: 14 | H92: 17033 | K92: 0 | L92: 1211
A93: 12 | B93: 17330 | C93: 14 | D93: 17340 | E93: 13 | F93: 17366 | G93: 14 | H93: 17374 | K93: 0 | L93: 1111
A94: 12 | B94: 17791 | C94: 14 | D94: 17797 | E94: 13 | F94: 17806 | G94: 14 | H94: 17817 | K94: 0 | L94: 1111
A95: 12 | B95: 18193 | C95: 14 | D95: 18199 | E95: 13 | F95: 18205 | G95: 14 | H95: 18215 | K95: 0 | L95: 1111
A96: 12 | B96: 18473 | C96: 14 | D96: 18499 | E96: 13 | F96: 18504 | G96: 14 | H96: 18509 | K96: 0 | L96: 1111
A97: 12 | B97: 18633 | C97: 14 | D97: 18647 | E97: 13 | F97: 18684 | G97: 14 | H97: 18693 | K97: 0 | L97: 1111
A98: 21 | B98: 18842 | C98: 21 | D98: 18850 | E98: 22 | F98: 18906 | G98: 14 | H98: 18925 | K98: 0 | L98: 2221
A99: 12 | B99: 19049 | C99: 23 | D99: 19062 | E99: 13 | F99: 19085 | G99: 14 | H99: 19090 | K99: 0 | L99: 1211
A100: 21 | B100: 19381 | C100: 12 | D100: 19399 | E100: 13 | F100: 19405 | G100: 14 | H100: 19411 | K100: 0 | L100: 2111
A101: 12 | B101: 19549 | C101: 14 | D101: 19577 | E101: 13 | F101: 19582 | G101: 14 | H101: 19586 | K101: 0 | L101: 1111
A102: 12 | B102: 19747 | C102: 23 | D102: 19766 | E102: 13 | F102: 19782 | G102: 14 | H102: 19786 | K102: 0 | L102: 1211
A103: 21 | B103: 20029 | C103: 21 | D103: 20045 | E103: 11 | F103: 20076 | G103: 12 | H103: 20084 | K103: 0 | L103: 2211
A104: 12 | B104: 20204 | C104: 23 | D104: 20219 | E104: 13 | F104: 20250 | G104: 14 | H104: 20256 | K104: 0 | L104: 1211
A105: 21 | B105: 20478 | C105: 12 | D105: 20493 | E105: 13 | F105: 20498 | G105: 14 | H105: 20505 | K105: 0 | L105: 2111
A106: 21 | B106: 20816 | C106: 12 | D106: 20838 | E106: 13 | F106: 20843 | G106: 14 | H106: 20853 | K106: 0 | L106: 2111
A107: 12 | B107: 20991 | C107: 23 | D107: 21001 | E107: 24 | F107: 21025 | G107: 14 | H107: 21037 | K107: 0 | L107: 1221
A108: 21 | B108: 21191 | C108: 12 | D108: 21217 | E108: 13 | F108: 21222 | G108: 14 | H108: 21228 | K108: 0 | L108: 2111
A109: 21 | B109: 21406 | C109: 12 | D109: 21420 | E109: 13 | F109: 21425 | G109: 23 | H109: 21438 | K109: 0 | L109: 2112
A110: 12 | B110: 21726 | C110: 14 | D110: 21737 | E110: 13 | F110: 21745 | G110: 14 | H110: 21750 | K110: 0 | L110: 1111
A111: 12 | B111: 21916 | C111: 14 | D111: 21922 | E111: 13 | F111: 21928 | G111: 14 | H111: 21937 | K111: 0 | L111: 1111
A112: 12 | B112: 22100 | C112: 23 | D112: 22113 | E112: 24 | F112: 22140 | G112: 23 | H112: 22149 | K112: 0 | L112: 1222
A113: 21 | B113: 22430 | C113: 21 | D113: 22445 | E113: 11 | F113: 22468 | G113: 12 | H113: 22473 | K113: 0 | L113: 2211
A114: 12 | B114: 22760 | C114: 23 | D114: 22785 | E114: 24 | F114: 22807 | G114: 23 | H114: 22813 | K114: 0 | L114: 1222
A115: 21 | B115: 23009 | C115: 12 | D115: 23032 | E115: 24 | F115: 23058 | G115: 14 | H115: 23114 | K115: 0 | L115: 2121
A116: 12 | B116: 23479 | C116: 14 | D116: 23487 | E116: 13 | F116: 23496 | G116: 23 | H116: 23520 | K116: 0 | L116: 1112
A117: 21 | B117: 23658 | C117: 12 | D117: 23684 | E117: 24 | F117: 23709 | G117: 14 | H117: 23728 | K117: 0 | L117: 2121

Sheet !N107750.092
A1: Report for:!N107750.092
A2: Date: | B2: <date>
A3: Hen: | B3: <hen> | F3: Correct Sequence | G3: =Start!J2 -> 2212 | P3: Total Sequences in Data | Q3: =4994-COUNTBLANK(L7:L5000) -> 103 | V3: Total Sequences in Block Data | W3: =COUNTA(L7:L23) -> 17 | AA3: Total Sequences in Block Data | AB3: =COUNTA(L24:L40) -> 17 | AF3: Total Sequences in Block Data | AG3: =COUNTA(L41:L58) -> 18 | AK3: Total Sequences in Block Data | AL3: =COUNTA(L59:L75) -> 17 | AP3: Total Sequences in Block Data | AQ3: =COUNTA(L76:L92) -> 17 | AU3: Total Sequences in Block Data | AV3: =COUNTA(L93:L109) -> 17
P4: Total Sequences in Summary | Q4: =SUM(O7:O22) -> 102 | V4: Total Sequences in Block Summary | W4: =SUM(U7:U22) -> 17 | AA4: Total Sequences in Block Summary | AB4: =SUM(Z7:Z22) -> 17 | AF4: Total Sequences in Block Summary | AG4: =SUM(AE7:AE22) -> 18 | AK4: Total Sequences in Block Summary | AL4: =SUM(AJ7:AJ22) -> 17 | AP4: Total Sequences in Block Summary | AQ4: =SUM(AO7:AO22) -> 17 | AU4: Total Sequences in Block Summary | AV4: =SUM(AT7:AT22) -> 16
T5: Block 1 | Y5: Block 2 | AD5: Block 3 | AI5: Block 4 | AN5: Block 5 | AS5: Block 6
A6: Sequence Component 1 | B6: Time 1 | C6: Sequence Component 2 | D6: Time 2 | E6: Sequence Component 3 | F6: Time 3 | G6: Sequence Component 4 | H6: Time 4 | I6: Sequence Component 5 | J6: Time 5 | K6: Correct? 0=No 1=Yes | L6: Sequence | N6: Frequency | P6: Relative Frequency | Q6: Variability | T6: Frequency | V6: Relative Frequency | W6: Variability | Y6: Frequency | AA6: Relative Frequency | AB6: Variability | AD6: Frequency | AF6: Relative Frequency | AG6: Variability | AI6: Frequency | AK6: Relative Frequency | AL6: Variability | AN6: Frequency | AP6: Relative Frequency | AQ6: Variability | AS6: Frequency | AU6: Relative Frequency | AV6: Variability
A7: 21 | B7: 91 | C7: 21 | D7: 99 | E7: 22 | F7: 121 | G7: 14 | H7: 138 | K7: 0 | L7: 2221 | N7: 1111 | O7: =COUNTIF($L$7:$L$500,N7) -> 31 | P7: =O7/$Q$4 -> 0.3039215686 | Q7: =IF(P7=0,0,(P7*((LOG(P7))/LOG(2)))) -> -0.5222068625 | T7: =N7 -> 1111 | U7: =COUNTIF(L7:L23,T7) -> 2 | V7: =U7/(W4-U20) -> 0.1176470588 | W7: =IF(V7=0,0,(V7*((LOG(V7))/LOG(2)))) -> -0.3632309225 | Y7: =N7 -> 1111 | Z7: =COUNTIF(L24:L40,Y7) -> 3 | AA7: =Z7/(AB4-Z20) -> 0.1764705882 | AB7: =IF(AA7=0,0,(AA7*((LOG(AA7))/LOG(2)))) -> -0.4416177072 | AD7: =N7 -> 1111 | AE7: =COUNTIF(L41:L58,AD7) -> 4 | AF7: =AE7/(AG4-AE20) -> 0.2222222222 | AG7: =IF(AF7=0,0,(AF7*((LOG(AF7))/LOG(2)))) -> -0.4822055559 | AI7: =N7 -> 1111 | AJ7: =COUNTIF(L59:L75,AI7) -> 13 | AK7: =AJ7/(AL4-AJ20) -> 0.7647058824 | AL7: =IF(AK7=0,0,(AK7*((LOG(AK7))/LOG(2)))) -> -0.2959588588 | AN7: =N7 -> 1111 | AO7: =COUNTIF(L76:L92,AN7) -> 4 | AP7: =AO7/(AQ4-AO20) -> 0.2352941176 | AQ7: =IF(AP7=0,0,(AP7*((LOG(AP7))/LOG(2)))) -> -0.4911677274 | AS7: =N7 -> 1111 | AT7: =COUNTIF(L93:L109,AS7) -> 5 | AU7: =AT7/(AV4-AT20) -> 0.3125 | AV7: =IF(AU7=0,0,(AU7*((LOG(AU7))/LOG(2)))) -> -0.5243974703
A8: 12 | B8: 266 | C8: 14 | D8: 271 | E8: 24 | F8: 301 | G8: 14 | H8: 319 | K8: 0 | L8: 1121 | N8: 1112 | O8: =COUNTIF($L$7:$L$500,N8) -> 7 | P8: =O8/$Q$4 -> 0.06862745098 | Q8: =IF(P8=0,0,(P8*((LOG(P8))/LOG(2)))) -> -0.2652499308 | T8: =N8 -> 1112 | U8: =COUNTIF(L7:L23,T8) -> 0 | V8: =U8/(W4-U20) -> 0 | W8: =IF(V8=0,0,(V8*((LOG(V8))/LOG(2)))) -> 0 | Y8: =N8 -> 1112 | Z8: =COUNTIF(L24:L40,Y8) -> 3 | AA8: =Z8/(AB4-Z20) -> 0.1764705882 | AB8: =IF(AA8=0,0,(AA8*((LOG(AA8))/LOG(2)))) -> -0.4416177072 | AD8: =N8 -> 1112 | AE8: =COUNTIF(L41:L58,AD8) -> 3 | AF8: =AE8/(AG4-AE20) -> 0.1666666667 | AG8: =IF(AF8=0,0,(AF8*((LOG(AF8))/LOG(2)))) -> -0.4308270835 | AI8: =N8 -> 1112 | AJ8: =COUNTIF(L59:L75,AI8) -> 0 | AK8: =AJ8/(AL4-AJ20) -> 0 | AL8: =IF(AK8=0,0,(AK8*((LOG(AK8))/LOG(2)))) -> 0 | AN8: =N8 -> 1112 | AO8: =COUNTIF(L76:L92,AN8) -> 0 | AP8: =AO8/(AQ4-AO20) -> 0 | AQ8: =IF(AP8=0,0,(AP8*((LOG(AP8))/LOG(2)))) -> 0 | AS8: =N8 -> 1112 | AT8: =COUNTIF(L93:L109,AS8) -> 1 | AU8: =AT8/(AV4-AT20) -> 0.0625 | AV8: =IF(AU8=0,0,(AU8*((LOG(AU8))/LOG(2)))) -> -0.25
A9: 12 | B9: 464 | C9: 23 | D9: 478 | E9: 24 | F9: 487 | G9: 14 | H9: 499 | K9: 0 | L9: 1221 | N9: 1121 | O9: =COUNTIF($L$7:$L$500,N9) -> 3 | P9: =O9/$Q$4 -> 0.02941176471 | Q9: =IF(P9=0,0,(P9*((LOG(P9))/LOG(2)))) -> -0.14963126 | T9: =N9 -> 1121 | U9: =COUNTIF(L7:L23,T9) -> 1 | V9: =U9/(W4-U20) -> 0.05882352941 | W9: =IF(V9=0,0,(V9*((LOG(V9))/LOG(2)))) -> -0.2404389907 | Y9: =N9 -> 1121 | Z9: =COUNTIF(L24:L40,Y9) -> 1 | AA9: =Z9/(AB4-Z20) -> 0.05882352941 | AB9: =IF(AA9=0,0,(AA9*((LOG(AA9))/LOG(2)))) -> -0.2404389907 | AD9: =N9 -> 1121 | AE9: =COUNTIF(L41:L58,AD9) -> 0 | AF9: =AE9/(AG4-AE20) -> 0 | AG9: =IF(AF9=0,0,(AF9*((LOG(AF9))/LOG(2)))) -> 0 | AI9: =N9 -> 1121 | AJ9: =COUNTIF(L59:L75,AI9) -> 0 | AK9: =AJ9/(AL4-AJ20) -> 0 | AL9: =IF(AK9=0,0,(AK9*((LOG(AK9))/LOG(2)))) -> 0 | AN9: =N9 -> 1121 | AO9: =COUNTIF(L76:L92,AN9) -> 0 | AP9: =AO9/(AQ4-AO20) -> 0 | AQ9: =IF(AP9=0,0,(AP9*((LOG(AP9))/LOG(2)))) -> 0 | AS9: =N9 -> 1121 | AT9: =COUNTIF(L93:L109,AS9) -> 1 | AU9: =AT9/(AV4-AT20) -> 0.0625 | AV9: =IF(AU9=0,0,(AU9*((LOG(AU9))/LOG(2)))) -> -0.25
A10: 21 | B10: 637 | C10: 21 | D10: 645 | E10: 22 | F10: 649 | G10: 14 | H10: 661 | K10: 0 | L10: 2221 | N10: 1122 | O10: =COUNTIF($L$7:$L$500,N10) -> 6 | P10: =O10/$Q$4 -> 0.05882352941 | Q10: =IF(P10=0,0,(P10*((LOG(P10))/LOG(2)))) -> -0.2404389907 | T10: =N10 -> 1122 | U10: =COUNTIF(L7:L23,T10) -> 1 | V10: =U10/(W4-U20) -> 0.05882352941 | W10: =IF(V10=0,0,(V10*((LOG(V10))/LOG(2)))) -> -0.2404389907 | Y10: =N10 -> 1122 | Z10: =COUNTIF(L24:L40,Y10) -> 1 | AA10: =Z10/(AB4-Z20) -> 0.05882352941 | AB10: =IF(AA10=0,0,(AA10*((LOG(AA10))/LOG(2)))) -> -0.2404389907 | AD10: =N10 -> 1122 | AE10: =COUNTIF(L41:L58,AD10) -> 1 | AF10: =AE10/(AG4-AE20) -> 0.05555555556 | AG10: =IF(AF10=0,0,(AF10*((LOG(AF10))/LOG(2)))) -> -0.2316625001 | AI10: =N10 -> 1122 | AJ10: =COUNTIF(L59:L75,AI10) -> 0 | AK10: =AJ10/(AL4-AJ20) -> 0 | AL10: =IF(AK10=0,0,(AK10*((LOG(AK10))/LOG(2)))) -> 0 | AN10: =N10 -> 1122 | AO10: =COUNTIF(L76:L92,AN10) -> 2 | AP10: =AO10/(AQ4-AO20) -> 0.1176470588 | AQ10: =IF(AP10=0,0,(AP10*((LOG(AP10))/LOG(2)))) -> -0.3632309225 | AS10: =N10 -> 1122 | AT10: =COUNTIF(L93:L109,AS10) -> 1 | AU10: =AT10/(AV4-AT20) -> 0.0625 | AV10: =IF(AU10=0,0,(AU10*((LOG(AU10))/LOG(2)))) -> -0.25
A11: 12 | B11: 799 | C11: 14 | D11: 809 | E11: 13 | F11: 814 | G11: 14 | H11: 820 | K11: 0 | L11: 1111 | N11: 1211 | O11: =COUNTIF($L$7:$L$500,N11) -> 6 | P11: =O11/$Q$4 -> 0.05882352941 | Q11: =IF(P11=0,0,(P11*((LOG(P11))/LOG(2)))) -> -0.2404389907 | T11: =N11 -> 1211 | U11: =COUNTIF(L7:L23,T11) -> 2 | V11: =U11/(W4-U20) -> 0.1176470588 | W11: =IF(V11=0,0,(V11*((LOG(V11))/LOG(2)))) -> -0.3632309225 | Y11: =N11 -> 1211 | Z11: =COUNTIF(L24:L40,Y11) -> 0 | AA11: =Z11/(AB4-Z20) -> 0 | AB11: =IF(AA11=0,0,(AA11*((LOG(AA11))/LOG(2)))) -> 0 | AD11: =N11 -> 1211 | AE11: =COUNTIF(L41:L58,AD11) -> 2 | AF11: =AE11/(AG4-AE20) -> 0.1111111111 | AG11: =IF(AF11=0,0,(AF11*((LOG(AF11))/LOG(2)))) -> -0.352213889 | AI11: =N11 -> 1211 | AJ11: =COUNTIF(L59:L75,AI11) -> 1 | AK11: =AJ11/(AL4-AJ20) -> 0.05882352941 | AL11: =IF(AK11=0,0,(AK11*((LOG(AK11))/LOG(2)))) -> -0.2404389907 | AN11: =N11 -> 1211 | AO11: =COUNTIF(L76:L92,AN11) -> 0 | AP11: =AO11/(AQ4-AO20) -> 0 | AQ11: =IF(AP11=0,0,(AP11*((LOG(AP11))/LOG(2)))) -> 0 | AS11: =N11 -> 1211 | AT11: =COUNTIF(L93:L109,AS11) -> 1 | AU11: =AT11/(AV4-AT20) -> 0.0625 | AV11: =IF(AU11=0,0,(AU11*((LOG(AU11))/LOG(2)))) -> -0.25
A12: 21 | B12: 933 | C12: 12 | D12: 944 | E12: 13 | F12: 949 | G12: 23 | H12: 960 | K12: 0 | L12: 2112 | N12: 1212 | O12: =COUNTIF($L$7:$L$500,N12) -> 0 | P12: =O12/$Q$4 -> 0 | Q12: =IF(P12=0,0,(P12*((LOG(P12))/LOG(2)))) -> 0 | T12: =N12 -> 1212 | U12: =COUNTIF(L7:L23,T12) -> 0 | V12: =U12/(W4-U20) -> 0 | W12: =IF(V12=0,0,(V12*((LOG(V12))/LOG(2)))) -> 0 | Y12: =N12 -> 1212 | Z12: =COUNTIF(L24:L40,Y12) -> 0 | AA12: =Z12/(AB4-Z20) -> 0 | AB12: =IF(AA12=0,0,(AA12*((LOG(AA12))/LOG(2)))) -> 0 | AD12: =N12 -> 1212 | AE12: =COUNTIF(L41:L58,AD12) -> 0 | AF12: =AE12/(AG4-AE20) -> 0 | AG12: =IF(AF12=0,0,(AF12*((LOG(AF12))/LOG(2)))) -> 0 | AI12: =N12 -> 1212 | AJ12: =COUNTIF(L59:L75,AI12) -> 0 | AK12: =AJ12/(AL4-AJ20) -> 0 | AL12: =IF(AK12=0,0,(AK12*((LOG(AK12))/LOG(2)))) -> 0 | AN12: =N12 -> 1212 | AO12: =COUNTIF(L76:L92,AN12) -> 0 | AP12: =AO12/(AQ4-AO20) -> 0 | AQ12: =IF(AP12=0,0,(AP12*((LOG(AP12))/LOG(2)))) -> 0 | AS12: =N12 -> 1212 | AT12: =COUNTIF(L93:L109,AS12) -> 0 | AU12: =AT12/(AV4-AT20) -> 0 | AV12: =IF(AU12=0,0,(AU12*((LOG(AU12))/LOG(2)))) -> 0
A13: 21 | B13: 1102 | C13: 12 | D13: 1120 | E13: 24 | F13: 1133 | G13: 14 | H13: 1148 | K13: 0 | L13: 2121 | N13: 1221 | O13: =COUNTIF($L$7:$L$500,N13) -> 9 | P13: =O13/$Q$4 -> 0.08823529412 | Q13: =IF(P13=0,0,(P13*((LOG(P13))/LOG(2)))) -> -0.3090441477 | T13: =N13 -> 1221 | U13: =COUNTIF(L7:L23,T13) -> 2 | V13: =U13/(W4-U20) -> 0.1176470588 | W13: =IF(V13=0,0,(V13*((LOG(V13))/LOG(2)))) -> -0.3632309225 | Y13: =N13 -> 1221 | Z13: =COUNTIF(L24:L40,Y13) -> 2 | AA13: =Z13/(AB4-Z20) -> 0.1176470588 | AB13: =IF(AA13=0,0,(AA13*((LOG(AA13))/LOG(2)))) -> -0.3632309225 | AD13: =N13 -> 1221 | AE13: =COUNTIF(L41:L58,AD13) -> 3 | AF13: =AE13/(AG4-AE20) -> 0.1666666667 | AG13: =IF(AF13=0,0,(AF13*((LOG(AF13))/LOG(2)))) -> -0.4308270835 | AI13: =N13 -> 1221 | AJ13: =COUNTIF(L59:L75,AI13) -> 0 | AK13: =AJ13/(AL4-AJ20) -> 0 | AL13: =IF(AK13=0,0,(AK13*((LOG(AK13))/LOG(2)))) -> 0 | AN13: =N13 -> 1221 | AO13: =COUNTIF(L76:L92,AN13) -> 1 | AP13: =AO13/(AQ4-AO20) -> 0.05882352941 | AQ13: =IF(AP13=0,0,(AP13*((LOG(AP13))/LOG(2)))) -> -0.2404389907 | AS13: =N13 -> 1221 | AT13: =COUNTIF(L93:L109,AS13) -> 1 | AU13: =AT13/(AV4-AT20) -> 0.0625 | AV13: =IF(AU13=0,0,(AU13*((LOG(AU13))/LOG(2)))) -> -0.25
A14: 12 | B14: 1288 | C14: 14 | D14: 1293 | E14: 24 | F14: 1305 | G14: 23 | H14: 1318 | K14: 0 | L14: 1122 | N14: 1222 | O14: =COUNTIF($L$7:$L$500,N14) -> 2 | P14: =O14/$Q$4 -> 0.01960784314 | Q14: =IF(P14=0,0,(P14*((LOG(P14))/LOG(2)))) -> -0.1112240263 | T14: =N14 -> 1222 | U14: =COUNTIF(L7:L23,T14) -> 0 | V14: =U14/(W4-U20) -> 0 | W14: =IF(V14=0,0,(V14*((LOG(V14))/LOG(2)))) -> 0 | Y14: =N14 -> 1222 | Z14: =COUNTIF(L24:L40,Y14) -> 0 | AA14: =Z14/(AB4-Z20) -> 0 | AB14: =IF(AA14=0,0,(AA14*((LOG(AA14))/LOG(2)))) -> 0 | AD14: =N14 -> 1222 | AE14: =COUNTIF(L41:L58,AD14) -> 1 | AF14: =AE14/(AG4-AE20) -> 0.05555555556 | AG14: =IF(AF14=0,0,(AF14*((LOG(AF14))/LOG(2)))) -> -0.2316625001 | AI14: =N14 -> 1222 | AJ14: =COUNTIF(L59:L75,AI14) -> 0 | AK14: =AJ14/(AL4-AJ20) -> 0 | AL14: =IF(AK14=0,0,(AK14*((LOG(AK14))/LOG(2)))) -> 0 | AN14: =N14 -> 1222 | AO14: =COUNTIF(L76:L92,AN14) -> 1 | AP14: =AO14/(AQ4-AO20) -> 0.05882352941 | AQ14: =IF(AP14=0,0,(AP14*((LOG(AP14))/LOG(2)))) -> -0.2404389907 | AS14: =N14 -> 1222 | AT14: =COUNTIF(L93:L109,AS14) -> 0 | AU14: =AT14/(AV4-AT20) -> 0 | AV14: =IF(AU14=0,0,(AU14*((LOG(AU14))/LOG(2)))) -> 0
A15: 21 | B15: 1423 | C15: 12 | D15: 1435 | E15: 13 | F15: 1440 | G15: 14 | H15: 1445 | K15: 0 | L15: 2111 | N15: 2111 | O15: =COUNTIF($L$7:$L$500,N15) -> 21 | P15: =O15/$Q$4 -> 0.2058823529 | Q15: =IF(P15=0,0,(P15*((LOG(P15))/LOG(2)))) -> -0.4694339834 | T15: =N15 -> 2111 | U15: =COUNTIF(L7:L23,T15) -> 3 | V15: =U15/(W4-U20) -> 0.1764705882 | W15: =IF(V15=0,0,(V15*((LOG(V15))/LOG(2)))) -> -0.4416177072 | Y15: =N15 -> 2111 | Z15: =COUNTIF(L24:L40,Y15) -> 6 | AA15: =Z15/(AB4-Z20) -> 0.3529411765 | AB15: =IF(AA15=0,0,(AA15*((LOG(AA15))/LOG(2)))) -> -0.5302942378 | AD15: =N15 -> 2111 | AE15: =COUNTIF(L41:L58,AD15) -> 2 | AF15: =AE15/(AG4-AE20) -> 0.1111111111 | AG15: =IF(AF15=0,0,(AF15*((LOG(AF15))/LOG(2)))) -> -0.352213889 | AI15: =N15 -> 2111 | AJ15: =COUNTIF(L59:L75,AI15) -> 1 | AK15: =AJ15/(AL4-AJ20) -> 0.05882352941 | AL15: =IF(AK15=0,0,(AK15*((LOG(AK15))/LOG(2)))) -> -0.2404389907 | AN15: =N15 -> 2111 | AO15: =COUNTIF(L76:L92,AN15) -> 5 | AP15: =AO15/(AQ4-AO20) -> 0.2941176471 | AQ15: =IF(AP15=0,0,(AP15*((LOG(AP15))/LOG(2)))) -> -0.5192749254 | AS15: =N15 -> 2111 | AT15: =COUNTIF(L93:L109,AS15) -> 4 | AU15: =AT15/(AV4-AT20) -> 0.25 | AV15: =IF(AU15=0,0,(AU15*((LOG(AU15))/LOG(2)))) -> -0.5
A16: 12 | B16: 1574 | C16: 23 | D16: 1586 | E16: 24 | F16: 1600 | G16: 14 | H16: 1609 | K16: 0 | L16: 1221 | N16: 2112 | O16: =COUNTIF($L$7:$L$500,N16) -> 2 | P16: =O16/$Q$4 -> 0.01960784314 | Q16: =IF(P16=0,0,(P16*((LOG(P16))/LOG(2)))) -> -0.1112240263 | T16: =N16 -> 2112 | U16: =COUNTIF(L7:L23,T16) -> 1 | V16: =U16/(W4-U20) -> 0.05882352941 | W16: =IF(V16=0,0,(V16*((LOG(V16))/LOG(2)))) -> -0.2404389907 | Y16: =N16 -> 2112 | Z16: =COUNTIF(L24:L40,Y16) -> 0 | AA16: =Z16/(AB4-Z20) -> 0 | AB16: =IF(AA16=0,0,(AA16*((LOG(AA16))/LOG(2)))) -> 0 | AD16: =N16 -> 2112 | AE16: =COUNTIF(L41:L58,AD16) -> 1 | AF16: =AE16/(AG4-AE20) -> 0.05555555556 | AG16: =IF(AF16=0,0,(AF16*((LOG(AF16))/LOG(2)))) -> -0.2316625001 | AI16: =N16 -> 2112 | AJ16: =COUNTIF(L59:L75,AI16) -> 0 | AK16: =AJ16/(AL4-AJ20) -> 0 | AL16: =IF(AK16=0,0,(AK16*((LOG(AK16))/LOG(2)))) -> 0 | AN16: =N16 -> 2112 | AO16: =COUNTIF(L76:L92,AN16) -> 0 | AP16: =AO16/(AQ4-AO20) -> 0 | AQ16: =IF(AP16=0,0,(AP16*((LOG(AP16))/LOG(2)))) -> 0 | AS16: =N16 -> 2112 | AT16: =COUNTIF(L93:L109,AS16) -> 0 | AU16: =AT16/(AV4-AT20) -> 0 | AV16: =IF(AU16=0,0,(AU16*((LOG(AU16))/LOG(2)))) -> 0
A17: 12 | B17: 1844 | C17: 14 | D17: 1851 | E17: 13 | F17: 1860 | G17: 14 | H17: 1864 | K17: 0 | L17: 1111 | N17: 2121 | O17: =COUNTIF($L$7:$L$500,N17) -> 1 | P17: =O17/$Q$4 -> 0.009803921569 | Q17: =IF(P17=0,0,(P17*((LOG(P17))/LOG(2)))) -> -0.06541593473 | T17: =N17 -> 2121 | U17: =COUNTIF(L7:L23,T17) -> 1 | V17: =U17/(W4-U20) -> 0.05882352941 | W17: =IF(V17=0,0,(V17*((LOG(V17))/LOG(2)))) -> -0.2404389907 | Y17: =N17 -> 2121 | Z17: =COUNTIF(L24:L40,Y17) -> 0 | AA17: =Z17/(AB4-Z20) -> 0 | AB17: =IF(AA17=0,0,(AA17*((LOG(AA17))/LOG(2)))) -> 0 | AD17: =N17 -> 2121 | AE17: =COUNTIF(L41:L58,AD17) -> 0 | AF17: =AE17/(AG4-AE20) -> 0 | AG17: =IF(AF17=0,0,(AF17*((LOG(AF17))/LOG(2)))) -> 0 | AI17: =N17 -> 2121 | AJ17: =COUNTIF(L59:L75,AI17) -> 0 | AK17: =AJ17/(AL4-AJ20) -> 0 | AL17: =IF(AK17=0,0,(AK17*((LOG(AK17))/LOG(2)))) -> 0 | AN17: =N17 -> 2121 | AO17: =COUNTIF(L76:L92,AN17) -> 0 | AP17: =AO17/(AQ4-AO20) -> 0 | AQ17: =IF(AP17=0,0,(AP17*((LOG(AP17))/LOG(2)))) -> 0 | AS17: =N17 -> 2121 | AT17: =COUNTIF(L93:L109,AS17) -> 0 | AU17: =AT17/(AV4-AT20) -> 0 | AV17: =IF(AU17=0,0,(AU17*((LOG(AU17))/LOG(2)))) -> 0
A18: 21 | B18: 2004 | C18: 12 | D18: 2021 | E18: 13 | F18: 2059 | G18: 14 | H18: 2066 | K18: 0 | L18: 2111 | N18: 2122 | O18: =COUNTIF($L$7:$L$500,N18) -> 1 | P18: =O18/$Q$4 -> 0.009803921569 | Q18: =IF(P18=0,0,(P18*((LOG(P18))/LOG(2)))) -> -0.06541593473 | T18: =N18 -> 2122 | U18: =COUNTIF(L7:L23,T18) -> 0 | V18: =U18/(W4-U20) -> 0 | W18: =IF(V18=0,0,(V18*((LOG(V18))/LOG(2)))) -> 0 | Y18: =N18 -> 2122 | Z18: =COUNTIF(L24:L40,Y18) -> 0 | AA18: =Z18/(AB4-Z20) -> 0 | AB18: =IF(AA18=0,0,(AA18*((LOG(AA18))/LOG(2)))) -> 0 | AD18: =N18 -> 2122 | AE18: =COUNTIF(L41:L58,AD18) -> 0 | AF18: =AE18/(AG4-AE20) -> 0 | AG18: =IF(AF18=0,0,(AF18*((LOG(AF18))/LOG(2)))) -> 0 | AI18: =N18 -> 2122 | AJ18: =COUNTIF(L59:L75,AI18) -> 0 | AK18: =AJ18/(AL4-AJ20) -> 0 | AL18: =IF(AK18=0,0,(AK18*((LOG(AK18))/LOG(2)))) -> 0 | AN18: =N18 -> 2122 | AO18: =COUNTIF(L76:L92,AN18) -> 1 | AP18: =AO18/(AQ4-AO20) -> 0.05882352941 | AQ18: =IF(AP18=0,0,(AP18*((LOG(AP18))/LOG(2)))) -> -0.2404389907 | AS18: =N18 -> 2122 | AT18: =COUNTIF(L93:L109,AS18) -> 0 | AU18: =AT18/(AV4-AT20) -> 0 | AV18: =IF(AU18=0,0,(AU18*((LOG(AU18))/LOG(2)))) -> 0
A19: 21 | B19: 2189 | C19: 21 | D19: 2201 | E19: 11 | F19: 2211 | G19: 12 | H19: 2215 | K19: 0 | L19: 2211 | N19: 2211 | O19: =COUNTIF($L$7:$L$500,N19) -> 7 | P19: =O19/$Q$4 -> 0.06862745098 | Q19: =IF(P19=0,0,(P19*((LOG(P19))/LOG(2)))) -> -0.2652499308 | T19: =N19 -> 2211 | U19: =COUNTIF(L7:L23,T19) -> 2 | V19: =U19/(W4-U20) -> 0.1176470588 | W19: =IF(V19=0,0,(V19*((LOG(V19))/LOG(2)))) -> -0.3632309225 | Y19: =N19 -> 2211 | Z19: =COUNTIF(L24:L40,Y19) -> 1 | AA19: =Z19/(AB4-Z20) -> 0.05882352941 | AB19: =IF(AA19=0,0,(AA19*((LOG(AA19))/LOG(2)))) -> -0.2404389907 | AD19: =N19 -> 2211 | AE19: =COUNTIF(L41:L58,AD19) -> 1 | AF19: =AE19/(AG4-AE20) -> 0.05555555556 | AG19: =IF(AF19=0,0,(AF19*((LOG(AF19))/LOG(2)))) -> -0.2316625001 | AI19: =N19 -> 2211 | AJ19: =COUNTIF(L59:L75,AI19) -> 1 | AK19: =AJ19/(AL4-AJ20) -> 0.05882352941 | AL19: =IF(AK19=0,0,(AK19*((LOG(AK19))/LOG(2)))) -> -0.2404389907 | AN19: =N19 -> 2211 | AO19: =COUNTIF(L76:L92,AN19) -> 2 | AP19: =AO19/(AQ4-AO20) -> 0.1176470588 | AQ19: =IF(AP19=0,0,(AP19*((LOG(AP19))/LOG(2)))) -> -0.3632309225 | AS19: =N19 -> 2211 | AT19: =COUNTIF(L93:L109,AS19) -> 0 | AU19: =AT19/(AV4-AT20) -> 0 | AV19: =IF(AU19=0,0,(AU19*((LOG(AU19))/LOG(2)))) -> 0
A20: 12 | B20: 2392 | C20: 23 | D20: 2405 | E20: 13 | F20: 2421 | G20: 14 | H20: 2426 | K20: 0 | L20: 1211 | N20: 2212 | O20: =COUNTIF($L$7:$L$500,N20) -> 0 | P20: =O20/$Q$4 -> 0 | Q20: =IF(P20=0,0,(P20*((LOG(P20))/LOG(2)))) -> 0 | T20: =N20 -> 2212 | U20: =COUNTIF(L7:L23,T20) -> 0 | Y20: =N20 -> 2212 | Z20: =COUNTIF(L24:L40,Y20) -> 0 | AD20: =N20 -> 2212 | AE20: =COUNTIF(L41:L58,AD20) -> 0 | AI20: =N20 -> 2212 | AJ20: =COUNTIF(L59:L75,AI20) -> 0 | AN20: =N20 -> 2212 | AO20: =COUNTIF(L76:L92,AN20) -> 0 | AS20: =N20 -> 2212 | AT20: =COUNTIF(L93:L109,AS20) -> 0
A21: 21 | B21: 2531 | C21: 21 | D21: 2569 | E21: 11 | F21: 2586 | G21: 12 | H21: 2592 | K21: 0 | L21: 2211 | N21: 2221 | O21: =COUNTIF($L$7:$L$500,N21) -> 3 | P21: =O21/$Q$4 -> 0.02941176471 | Q21: =IF(P21=0,0,(P21*((LOG(P21))/LOG(2)))) -> -0.14963126 | T21: =N21 -> 2221 | U21: =COUNTIF(L7:L23,T21) -> 2 | V21: =U21/(W4-U20) -> 0.1176470588 | W21: =IF(V21=0,0,(V21*((LOG(V21))/LOG(2)))) -> -0.3632309225 | Y21: =N21 -> 2221 | Z21: =COUNTIF(L24:L40,Y21) -> 0 | AA21: =Z21/(AB4-Z20) -> 0 | AB21: =IF(AA21=0,0,(AA21*((LOG(AA21))/LOG(2)))) -> 0 | AD21: =N21 -> 2221 | AE21: =COUNTIF(L41:L58,AD21) -> 0 | AF21: =AE21/(AG4-AE20) -> 0 | AG21: =IF(AF21=0,0,(AF21*((LOG(AF21))/LOG(2)))) -> 0 | AI21: =N21 -> 2221 | AJ21: =COUNTIF(L59:L75,AI21) -> 1 | AK21: =AJ21/(AL4-AJ20) -> 0.05882352941 | AL21: =IF(AK21=0,0,(AK21*((LOG(AK21))/LOG(2)))) -> -0.2404389907 | AN21: =N21 -> 2221 | AO21: =COUNTIF(L76:L92,AN21) -> 0 | AP21: =AO21/(AQ4-AO20) -> 0 | AQ21: =IF(AP21=0,0,(AP21*((LOG(AP21))/LOG(2)))) -> 0 | AS21: =N21 -> 2221 | AT21: =COUNTIF(L93:L109,AS21) -> 0 | AU21: =AT21/(AV4-AT20) -> 0 | AV21: =IF(AU21=0,0,(AU21*((LOG(AU21))/LOG(2)))) -> 0
A22: 12 | B22: 2776 | C22: 23 | D22: 2792 | E22: 13 | F22: 2813 | G22: 14 | H22: 2819 | K22: 0 | L22: 1211 | N22: 2222 | O22: =COUNTIF($L$7:$L$500,N22) -> 3 | P22: =O22/$Q$4 -> 0.02941176471 | Q22: =IF(P22=0,0,(P22*((LOG(P22))/LOG(2)))) -> -0.14963126 | T22: =N22 -> 2222 | U22: =COUNTIF(L7:L23,T22) -> 0 | V22: =U22/(W4-U20) -> 0 | W22: =IF(V22=0,0,(V22*((LOG(V22))/LOG(2)))) -> 0 | Y22: =N22 -> 2222 | Z22: =COUNTIF(L24:L40,Y22) -> 0 | AA22: =Z22/(AB4-Z20) -> 0 | AB22: =IF(AA22=0,0,(AA22*((LOG(AA22))/LOG(2)))) -> 0 | AD22: =N22 -> 2222 | AE22: =COUNTIF(L41:L58,AD22) -> 0 | AF22: =AE22/(AG4-AE20) -> 0 | AG22: =IF(AF22=0,0,(AF22*((LOG(AF22))/LOG(2)))) -> 0 | AI22: =N22 -> 2222 | AJ22: =COUNTIF(L59:L75,AI22) -> 0 | AK22: =AJ22/(AL4-AJ20) -> 0 | AL22: =IF(AK22=0,0,(AK22*((LOG(AK22))/LOG(2)))) -> 0 | AN22: =N22 -> 2222 | AO22: =COUNTIF(L76:L92,AN22) -> 1 | AP22: =AO22/(AQ4-AO20) -> 0.05882352941 | AQ22: =IF(AP22=0,0,(AP22*((LOG(AP22))/LOG(2)))) -> -0.2404389907 | AS22: =N22 -> 2222 | AT22: =COUNTIF(L93:L109,AS22) -> 2 | AU22: =AT22/(AV4-AT20) -> 0.125 | AV22: =IF(AU22=0,0,(AU22*((LOG(AU22))/LOG(2)))) -> -0.375
A23: 21 | B23: 3041 | C23: 12 | D23: 3064 | E23: 13 | F23: 3109 | G23: 14 | H23: 3113 | K23: 0 | L23: 2111 | P23: =SUM(P7:P22) -> 1 | Q23: =-SUM(Q7:Q22) -> 3.114236539 | V23: =SUM(V7:V22) -> 1 | W23: =-SUM(W7:W22) -> 3.219528282 | AA23: =SUM(AA7:AA22) -> 1 | AB23: =-SUM(AB7:AB22) -> 2.498077547 | AF23: =SUM(AF7:AF22) -> 1 | AG23: =-SUM(AG7:AG22) -> 2.974937501 | AK23: =SUM(AK7:AK22) -> 1 | AL23: =-SUM(AL7:AL22) -> 1.257714821 | AP23: =SUM(AP7:AP22) -> 1 | AQ23: =-SUM(AQ7:AQ22) -> 2.69866046 | AU23: =SUM(AU7:AU22) -> 1 | AV23: =-SUM(AV7:AV22) -> 2.64939747
A24: 12 | B24: 3242 | C24: 14 | D24: 3249 | E24: 13 | F24: 3258 | G24: 23 | H24: 3271 | K24: 0 | L24: 1112 | P24: U= | Q24: =Q23/(LOG(Q4)/LOG(2)) -> 0.4667323168 | V24: U1= | W24: =W23/(LOG(W4)/LOG(2)) -> 0.7876593396 | AA24: U2= | AB24: =AB23/(LOG(AB4)/LOG(2)) -> 0.611156026 | AF24: U3= | AG24: =AG23/(LOG(AG4)/LOG(2)) -> 0.7134271 | AK24: U4= | AL24: =AL23/(LOG(AL4)/LOG(2)) -> 0.3077006129 | AP24: U5= | AQ24: =AQ23/(LOG(AQ4)/LOG(2)) -> 0.6602287446 | AU24: U6= | AV24: =AV23/(LOG(AV4)/LOG(2)) -> 0.6623493676
A25: 21 | B25: 3383 | C25: 21 | D25: 3391 | E25: 11 | F25: 3404 | G25: 12 | H25: 3410 | K25: 0 | L25: 2211
A26: 21 | B26: 3543 | C26: 12 | D26: 3563 | E26: 13 | F26: 3569 | G26: 14 | H26: 3574 | K26: 0 | L26: 2111
A27: 21 | B27: 3678 | C27: 12 | D27: 3693 | E27: 13 | F27: 3700 | G27: 14 | H27: 3706 | K27: 0 | L27: 2111 | N27: Total Target Seq
A28: 12 | B28: 3847 | C28: 14 | D28: 3852 | E28: 13 | F28: 3870 | G28: 23 | H28: 3882 | K28: 0 | L28: 1112 | N28: =COUNTIF(L7:L109,G3) -> 0 | P28: 17 | Q28: 17 | R28: 18 | S28: 17 | T28: 17 | U28: 17
A29: 12 | B29: 4051 | C29: 23 | D29: 4065 | E29: 24 | F29: 4070 | G29: 14 | H29: 4087 | K29: 0 | L29: 1221 | P29: % of reinforcement given in 6 equal intervals based on number of trials
A30: 12 | B30: 4284 | C30: 14 | D30: 4306 | E30: 13 | F30: 4312 | G30: 14 | H30: 4318 | K30: 0 | L30: 1111 | P30: %_1 | Q30: %_2 | R30: %_3 | S30: %_4 | T30: %_5 | U30: %_6
A31: 12 | B31: 4484 | C31: 14 | D31: 4490 | E31: 24 | F31: 4508 | G31: 23 | H31: 4516 | K31: 0 | L31: 1122 | O31: target sequence | P31: =$G$3 -> 2212 | Q31: =$G$3 -> 2212 | R31: =$G$3 -> 2212 | S31: =$G$3 -> 2212 | T31: =$G$3 -> 2212 | U31: =$G$3 -> 2212
A32: 21 | B32: 4674 | C32: 12 | D32: 4692 | E32: 13 | F32: 4701 | G32: 14 | H32: 4709 | K32: 0 | L32: 2111 | O32: total reinforcement | P32: =U20 -> 0 | Q32: =Z20 -> 0 | R32: =AE20 -> 0 | S32: =AJ20 -> 0 | T32: =AO20 -> 0 | U32: =AT20 -> 0
A33: 21 | B33: 4953 | C33: 12 | D33: 4964 | E33: 13 | F33: 4969 | G33: 14 | H33: 4975 | K33: 0 | L33: 2111 | O33: % target
A34: 12 | B34: 5119 | C34: 23 | D34: 5141 | E34: 24 | F34: 5149 | G34: 14 | H34: 5176 | K34: 0 | L34: 1221 | O34: CCRF
A35: 12 | B35: 5308 | C35: 14 | D35: 5318 | E35: 24 | F35: 5341 | G35: 14 | H35: 5355 | K35: 0 | L35: 1121 | O35: % CCRf
A36: 12 | B36: 5623 | C36: 14 | D36: 5669 | E36: 13 | F36: 5680 | G36: 14 | H36: 5689 | K36: 0 | L36: 1111 | O36: average response rate | P36: =H23/P28 -> 183.1176471 | Q36: =(H40-H23)/Q28 -> 194.4705882 | R36: =(H58-H40)/R28 -> 239.1666667 | S36: =(H75-H58)/S28 -> 202.8823529 | T36: =(H92-H75)/T28 -> 202.5882353 | U36: =(H109-H92)/U28 -> -1036.294118
A37: 12 | B37: 5838 | C37: 14 | D37: 5844 | E37: 13 | F37: 5855 | G37: 23 | H37: 5877 | K37: 0 | L37: 1112
A38: 21 | B38: 5977 | C38: 12 | D38: 5994 | E38: 13 | F38: 5998 | G38: 14 | H38: 6003 | K38: 0 | L38: 2111
A39: 12 | B39: 6226 | C39: 14 | D39: 6231 | E39: 13 | F39: 6241 | G39: 14 | H39: 6245 | K39: 0 | L39: 1111
A40: 21 | B40: 6394 | C40: 12 | D40: 6405 | E40: 13 | F40: 6415 | G40: 14 | H40: 6419 | K40: 0 | L40: 2111
A41: 12 | B41: 6545 | C41: 14 | D41: 6551 | E41: 24 | F41: 6565 | G41: 23 | H41: 6575 | K41: 0 | L41: 1122
A42: 12 | B42: 6726 | C42: 14 | D42: 6732 | E42: 13 | F42: 6737 | G42: 14 | H42: 6741 | K42: 0 | L42: 1111
A43: 12 | B43: 7149 | C43: 23 | D43: 7172 | E43: 13 | F43: 7188 | G43: 14 | H43: 7193 | K43: 0 | L43: 1211
A44: 12 | B44: 7328 | C44: 14 | D44: 7334 | E44: 13 | F44: 7339 | G44: 23 | H44: 7361 | K44: 0 | L44: 1112
A45: 12 | B45: 7498 | C45: 23 | D45: 7511 | E45: 24 | F45: 7525 | G45: 14 | H45: 7547 | K45: 0 | L45: 1221
A46: 21 | B46: 7764 | C46: 12 | D46: 7787 | E46: 13 | F46: 7792 | G46: 14 | H46: 7797 | K46: 0 | L46: 2111
A47: 12 | B47: 7954 | C47: 14 | D47: 7959 | E47: 13 | F47: 7965 | G47: 14 | H47: 7975 | K47: 0 | L47: 1111
A48: 12 | B48: 8100 | C48: 23 | D48: 8113 | E48: 24 | F48: 8124 | G48: 23 | H48: 8135 | K48: 0 | L48: 1222
A49: 21 | B49: 8277 | C49: 12 | D49: 8298 | E49: 13 | F49: 8307 | G49: 14 | H49: 8314 | K49: 0 | L49: 2111
A50: 21 | B50: 8457 | C50: 12 | D50: 8474 | E50: 13 | F50: 8479 | G50: 23 | H50: 8492 | K50: 0 | L50: 2112
A51: 12 | B51: 8658 | C51: 23 | D51: 8671 | E51: 13 | F51: 8694 | G51: 14 | H51: 8699 | K51: 0 | L51: 1211
A52: 12 | B52: 8897 | C52: 14 | D52: 8906 | E52: 13 | F52: 8910 | G52: 23 | H52: 8923 | K52: 0 | L52: 1112
A53: 21 | B53: 9057 | C53: 21 | D53: 9062 | E53: 11 | F53: 9072 | G53: 12 | H53: 9077 | K53: 0 | L53: 2211
A54: 12 | B54: 9198 | C54: 23 | D54: 9233 | E54: 24 | F54: 9248 | G54: 14 | H54: 9260 | K54: 0 | L54: 1221
A55: 12 | B55: 9502 | C55: 14 | D55: 9508 | E55: 13 | F55: 9516 | G55: 14 | H55: 9521 | K55: 0 | L55: 1111
A56: 12 | B56: 9662 | C56: 14 | D56: 9667 | E56: 13 | F56: 9677 | G56: 14 | H56: 9681 | K56: 0 | L56: 1111
A57: 12 | B57: 10429 | C57: 14 | D57: 10435 | E57: 13 | F57: 10442 | G57: 23 | H57: 10459 | K57: 0 | L57: 1112
A58: 12 | B58: 10677 | C58: 23 | D58: 10690 | E58: 24 | F58: 10705 | G58: 14 | H58: 10724 | K58: 0 | L58: 1221
A59: 12 | B59: 10840 | C59: 14 | D59: 10847 | E59: 13 | F59: 10878 | G59: 14 | H59: 10887 | K59: 0 | L59: 1111
A60: 12 | B60: 11093 | C60: 14 | D60: 11098 | E60: 13 | F60: 11103 | G60: 14 | H60: 11106 | K60: 0 | L60: 1111
A61: 12 | B61: 11233 | C61: 14 | D61: 11238 | E61: 13 | F61: 11243 | G61: 14 | H61: 11249 | K61: 0 | L61: 1111
A62: 12 | B62: 11439 | C62: 14 | D62: 11444 | E62: 13 | F62: 11450 | G62: 14 | H62: 11459 | K62: 0 | L62: 1111
A63: 12 | B63: 11572 | C63: 14 | D63: 11580 | E63: 13 | F63: 11586 | G63: 14 | H63: 11589 | K63: 0 | L63: 1111
A64: 12 | B64: 11710 | C64: 14 | D64: 11720 | E64: 13 | F64: 11724 | G64: 14 | H64: 11728 | K64: 0 | L64: 1111
A65: 21 | B65: 11851 | C65: 12 | D65: 11881 | E65: 13 | F65: 11886 | G65: 14 | H65: 11891 | K65: 0 | L65: 2111
A66: 12 | B66: 12056 | C66: 14 | D66: 12062 | E66: 13 | F66: 12066 | G66: 14 | H66: 12076 | K66: 0 | L66: 1111
A67: 12 | B67: 12372 | C67: 14 | D67: 12377 | E67: 13 | F67: 12385 | G67: 14 | H67: 12392 | K67: 0 | L67: 1111
A68: 12 | B68: 12534 | C68: 14 | D68: 12545 | E68: 13 | F68: 12553 | G68: 14 | H68: 12557 | K68: 0 | L68: 1111
A69: 12 | B69: 12680 | C69: 14 | D69: 12686 | E69: 13 | F69: 12691 | G69: 14 | H69: 12696 | K69: 0 | L69: 1111
A70: 21 | B70: 12980 | C70: 21 | D70: 12988 | E70: 11 | F70: 13006 | G70: 12 | H70: 13017 | K70: 0 | L70: 2211
A71: 12 | B71: 13152 | C71: 14 | D71: 13157 | E71: 13 | F71: 13162 | G71: 14 | H71: 13169 | K71: 0 | L71: 1111
A72: 12 | B72: 13343 | C72: 23 | D72: 13368 | E72: 13 | F72: 13387 | G72: 14 | H72: 13393 | K72: 0 | L72: 1211
A73: 12 | B73: 13666 | C73: 14 | D73: 13691 | E73: 13 | F73: 13697 | G73: 14 | H73: 13702 | K73: 0 | L73: 1111
A74: 21 | B74: 13878 | C74: 21 | D74: 13890 | E74: 22 | F74: 13895 | G74: 14 | H74: 13913 | K74: 0 | L74: 2221
A75: 12 | B75: 14109 | C75: 14 | D75: 14162 | E75: 13 | F75: 14167 | G75: 14 | H75: 14173 | K75: 0 | L75: 1111
A76: 12 | B76: 14307 | C76: 14 | D76: 14338 | E76: 13 | F76: 14342 | G76: 14 | H76: 14348 | K76: 0 | L76: 1111
A77: 21 | B77: 14548 | C77: 12 | D77: 14565 | E77: 13 | F77: 14573 | G77: 14 | H77: 14579 | K77: 0 | L77: 2111
A78: 21 | B78: 14732 | C78: 21 | D78: 14746 | E78: 22 | F78: 14770 | G78: 23 | H78: 14780 | K78: 0 | L78: 2222
A79: 12 | B79: 14890 | C79: 23 | D79: 14906 | E79: 24 | F79: 14911 | G79: 14 | H79: 14926 | K79: 0 | L79: 1221
A80: 21 | B80: 15079 | C80: 12 | D80: 15114 | E80: 13 | F80: 15118 | G80: 14 | H80: 15123 | K80: 0 | L80: 2111
A81: 12 | B81: 15440 | C81: 14 | D81: 15468 | E81: 13 | F81: 15473 | G81: 14 | H81: 15482 | K81: 0 | L81: 1111
A82: 12 | B82: 15642 | C82: 14 | D82: 15649 | E82: 13 | F82: 15655 | G82: 14 | H82: 15661 | K82: 0 | L82: 1111
A83: 21 | B83: 15796 | C83: 21 | D83: 15802 | E83: 11 | F83: 15813 | G83: 12 | H83: 15825 | K83: 0 | L83: 2211
A84: 21 | B84: 15996 | C84: 21 | D84: 16003 | E84: 11 | F84: 16017 | G84: 12 | H84: 16040 | K84: 0 | L84: 2211
A85: 21 | B85: 16155 | C85: 12 | D85: 16191 | E85: 13 | F85: 16197 | G85: 14 | H85: 16201 | K85: 0 | L85: 2111
A86: 12 | B86: 16318 | C86: 14 | D86: 16365 | E86: 24 | F86: 16386 | G86: 23 | H86: 16398 | K86: 0 | L86: 1122
A87: 21 | B87: 16565 | C87: 12 | D87: 16591 | E87: 13 | F87: 16603 | G87: 14 | H87: 16608 | K87: 0 | L87: 2111
A88: 12 | B88: 16710 | C88: 14 | D88: 16717 | E88: 24 | F88: 16734 | G88: 23 | H88: 16742 | K88: 0 | L88: 1122
A89: 12 | B89: 16959 | C89: 23 | D89: 16973 | E89: 24 | F89: 16979 | G89: 23 | H89: 16987 | K89: 0 | L89: 1222
A90: 12 | B90: 17132 | C90: 14 | D90: 17137 | E90: 13 | F90: 17144 | G90: 14 | H90: 17149 | K90: 0 | L90: 1111
A91: 21 | B91: 17419 | C91: 12 | D91: 17448 | E91: 13 | F91: 17453 | G91: 14 | H91: 17464 | K91: 0 | L91: 2111
A92: 21 | B92: 17579 | C92: 12 | D92: 17598 | E92: 24 | F92: 17611 | G92: 23 | H92: 17617 | K92: 0 | L92: 2122
A93: 12 | B93: 17748 | C93: 14 | D93: 17753 | E93: 13 | F93: 17760 | G93: 14 | H93: 17769 | K93: 0 | L93: 1111
A94: 21 | B94: 18260 | C94: 21 | D94: 18266 | E94: 22 | F94: 18277 | G94: 23 | H94: 18282 | K94: 0 | L94: 2222
A95: 12 | B95: 18404 | C95: 14 | D95: 18419 | E95: 24 | F95: 18443 | G95: 14 | H95: 18458 | K95: 0 | L95: 1121
A96: 12 | B96: 18611 | C96: 14 | D96: 18620 | E96: 13 | F96: 18626 | G96: 14 | H96: 18634 | K96: 0 | L96: 1111
A97: 12 | B97: 19031 | C97: 14 | D97: 19037 | E97: 13 | F97: 19043 | G97: 14 | H97: 19051 | K97: 0 | L97: 1111
A98: 12 | B98: 19175 | C98: 23 | D98: 19204 | E98: 13 | F98: 19226 | G98: 14 | H98: 19232 | K98: 0 | L98: 1211
A99: 12 | B99: 21349 | C99: 14 | D99: 21355 | E99: 13 | F99: 21362 | G99: 14 | H99: 21369 | K99: 0 | L99: 1111
A100: 12 | B100: 21527 | C100: 23 | D100: 21583 | E100: 24 | F100: 21590 | G100: 14 | H100: 21607 | K100: 0 | L100: 1221
A101: 12 | B101: 21807 | C101: 14 | D101: 21820 | E101: 13 | F101: 21826 | G101: 14 | H101: 21835 | K101: 0 | L101: 1111
A102: 12 | B102: 21999 | C102: 14 | D102: 22004 | E102: 13 | F102: 22009 | G102: 23 | H102: 22021 | K102: 0 | L102: 1112
A103: 21 | B103: 22149 | C103: 12 | D103: 22165 | E103: 13 | F103: 22169 | G103: 14 | H103: 22180 | K103: 0 | L103: 2111
A104: 21 | B104: 22695 | C104: 12 | D104: 22723 | E104: 13 | F104: 22730 | G104: 14 | H104: 22741 | K104: 0 | L104: 2111
A105: 12 | B105: 23072 | C105: 14 | D105: 23078 | E105: 24 | F105: 23096 | G105: 23 | H105: 23123 | K105: 0 | L105: 1122
A106: 21 | B106: 23293 | C106: 12 | D106: 23309 | E106: 13 | F106: 23314 | G106: 14 | H106: 23321 | K106: 0 | L106: 2111
A107: 21 | B107: 23487 | C107: 12 | D107: 23511 | E107: 13 | F107: 23516 | G107: 14 | H107: 23521 | K107: 0 | L107: 2111
A108: 21 | B108: 23667 | C108: 21 | D108: 23697 | E108: 22 | F108: 23743 | G108: 23 | H108: 23753 | K108: 0 | L108: 2222
A109: 12 | B109: 23905 | C109: 14 | D109: 23965 | E109: 24 | F109: 23982 | L109: 112

Sheet !N108830.092
A1: Report for:!N108830.092
A2: Date: | B2: <date>
A3: Hen: | B3: <hen> | F3: Correct Sequence | G3: =Start!J2 -> 2212 | P3: Total Sequences in Data | Q3: =4994-COUNTBLANK(L7:L5000) -> 48 | V3: Total Sequences in Block Data | W3: =COUNTA(L7:L14) -> 8 | AA3: Total Sequences in Block Data | AB3: =COUNTA(L15:L22) -> 8 | AF3: Total Sequences in Block Data | AG3: =COUNTA(L23:L30) -> 8 | AK3: Total Sequences in Block Data | AL3: =COUNTA(L31:L38) -> 8 | AP3: Total Sequences in Block Data | AQ3: =COUNTA(L39:L46) -> 8 | AU3: Total Sequences in Block Data | AV3: =COUNTA(L47:L54) -> 8
P4: Total Sequences in Summary | Q4: =SUM(O7:O22) -> 48 | V4: Total Sequences in Block Summary | W4: =SUM(U7:U22) -> 8 | AA4: Total Sequences in Block Summary | AB4: =SUM(Z7:Z22) -> 8 | AF4: Total Sequences in Block Summary | AG4: =SUM(AE7:AE22) -> 8 | AK4: Total Sequences in Block Summary | AL4: =SUM(AJ7:AJ22) -> 8 | AP4: Total Sequences in Block Summary | AQ4: =SUM(AO7:AO22) -> 8 | AU4: Total Sequences in Block Summary | AV4: =SUM(AT7:AT22) -> 8
T5: Block 1 | Y5: Block 2 | AD5: Block 3 | AI5: Block 4 | AN5: Block 5 | AS5: Block 6
A6: Sequence Component 1 | B6: Time 1 | C6: Sequence Component 2 | D6: Time 2 | E6: Sequence Component 3 | F6: Time 3 | G6: Sequence Component 4 | H6: Time 4 | I6: Sequence Component 5 | J6: Time 5 | K6: Correct? 0=No 1=Yes | L6: Sequence | N6: Frequency | P6: Relative Frequency | Q6: Variability | T6: Frequency | V6: Relative Frequency | W6: Variability | Y6: Frequency | AA6: Relative Frequency | AB6: Variability | AD6: Frequency | AF6: Relative Frequency | AG6: Variability | AI6: Frequency | AK6: Relative Frequency | AL6: Variability | AN6: Frequency | AP6: Relative Frequency | AQ6: Variability | AS6: Frequency | AU6: Relative Frequency | AV6: Variability
A7: 21 | B7: 30 | C7: 21 | D7: 56 | E7: 22 | F7: 77 | G7: 14 | H7: 93 | K7: 0 | L7: 2221 | N7: 1111 | O7: =COUNTIF($L$7:$L$500,N7) -> 21 | P7: =O7/$Q$4 -> 0.4375 | Q7: =IF(P7=0,0,(P7*((LOG(P7))/LOG(2)))) -> -0.5217822216 | T7: =N7 -> 1111 | U7: =COUNTIF(L7:L14,T7) -> 1 | V7: =U7/(W4-U20) -> 0.125 | W7: =IF(V7=0,0,(V7*((LOG(V7))/LOG(2)))) -> -0.375 | Y7: =N7 -> 1111 | Z7: =COUNTIF(L15:L22,Y7) -> 3 | AA7: =Z7/(AB4-Z20) -> 0.375 | AB7: =IF(AA7=0,0,(AA7*((LOG(AA7))/LOG(2)))) -> -0.5306390622 | AD7: =N7 -> 1111 | AE7: =COUNTIF(L23:L30,AD7) -> 6 | AF7: =AE7/(AG4-AE20) -> 0.75 | AG7: =IF(AF7=0,0,(AF7*((LOG(AF7))/LOG(2)))) -> -0.3112781245 | AI7: =N7 -> 1111 | AJ7: =COUNTIF(L31:L38,AI7) -> 4 | AK7: =AJ7/(AL4-AJ20) -> 0.5 | AL7: =IF(AK7=0,0,(AK7*((LOG(AK7))/LOG(2)))) -> -0.5 | AN7: =N7 -> 1111 | AO7: =COUNTIF(L39:L46,AN7) -> 5 | AP7: =AO7/(AQ4-AO20) -> 0.625 | AQ7: =IF(AP7=0,0,(AP7*((LOG(AP7))/LOG(2)))) -> -0.4237949407 | AS7: =N7 -> 1111 | AT7: =COUNTIF(L47:L54,AS7) -> 2 | AU7: =AT7/(AV4-AT20) -> 0.25 | AV7: =IF(AU7=0,0,(AU7*((LOG(AU7))/LOG(2)))) -> -0.5
A8: 12 | B8: 241 | C8: 23 | D8: 252 | E8: 24 | F8: 259 | G8: 14 | H8: 271 | K8: 0 | L8: 1221 | N8: 1112 | O8: =COUNTIF($L$7:$L$500,N8) -> 2 | P8: =O8/$Q$4 -> 0.04166666667 | Q8: =IF(P8=0,0,(P8*((LOG(P8))/LOG(2)))) -> -0.1910401042 | T8: =N8 -> 1112 | U8: =COUNTIF(L7:L14,T8) -> 0 | V8: =U8/(W4-U20) -> 0 | W8: =IF(V8=0,0,(V8*((LOG(V8))/LOG(2)))) -> 0 | Y8: =N8 -> 1112 | Z8: =COUNTIF(L15:L22,Y8) -> 0 | AA8: =Z8/(AB4-Z20) -> 0 | AB8: =IF(AA8=0,0,(AA8*((LOG(AA8))/LOG(2)))) -> 0 | AD8: =N8 -> 1112 | AE8: =COUNTIF(L23:L30,AD8) -> 1 | AF8: =AE8/(AG4-AE20) -> 0.125 | AG8: =IF(AF8=0,0,(AF8*((LOG(AF8))/LOG(2)))) -> -0.375 | AI8: =N8 -> 1112 | AJ8: =COUNTIF(L31:L38,AI8) -> 0 | AK8: =AJ8/(AL4-AJ20) -> 0 | AL8: =IF(AK8=0,0,(AK8*((LOG(AK8))/LOG(2)))) -> 0 | AN8: =N8 -> 1112 | AO8: =COUNTIF(L39:L46,AN8) -> 1 | AP8: =AO8/(AQ4-AO20) -> 0.125 | AQ8: =IF(AP8=0,0,(AP8*((LOG(AP8))/LOG(2)))) -> -0.375 | AS8: =N8 -> 1112 | AT8: =COUNTIF(L47:L54,AS8) -> 0 | AU8: =AT8/(AV4-AT20) -> 0 | AV8: =IF(AU8=0,0,(AU8*((LOG(AU8))/LOG(2)))) -> 0
A9: 21 | B9: 394 | C9: 12 | D9: 414 | E9: 24 | F9: 425 | G9: 23 | H9: 431 | K9: 0 | L9: 2122 | N9: 1121 | O9: =COUNTIF($L$7:$L$500,N9) -> 5 | P9: =O9/$Q$4 -> 0.1041666667 | Q9: =IF(P9=0,0,(P9*((LOG(P9))/LOG(2)))) -> -0.3398994173 | T9: =N9 -> 1121 | U9: =COUNTIF(L7:L14,T9) -> 1 | V9: =U9/(W4-U20) -> 0.125 | W9: =IF(V9=0,0,(V9*((LOG(V9))/LOG(2)))) -> -0.375 | Y9: =N9 -> 1121 | Z9: =COUNTIF(L15:L22,Y9) -> 1 | AA9: =Z9/(AB4-Z20) -> 0.125 | AB9: =IF(AA9=0,0,(AA9*((LOG(AA9))/LOG(2)))) -> -0.375 | AD9: =N9 -> 1121 | AE9: =COUNTIF(L23:L30,AD9) -> 0 | AF9: =AE9/(AG4-AE20) -> 0 | AG9: =IF(AF9=0,0,(AF9*((LOG(AF9))/LOG(2)))) -> 0 | AI9: =N9 -> 1121 | AJ9: =COUNTIF(L31:L38,AI9) -> 2 | AK9: =AJ9/(AL4-AJ20) -> 0.25 | AL9: =IF(AK9=0,0,(AK9*((LOG(AK9))/LOG(2)))) -> -0.5 | AN9: =N9 -> 1121 | AO9: =COUNTIF(L39:L46,AN9) -> 1 | AP9: =AO9/(AQ4-AO20) -> 0.125 | AQ9: =IF(AP9=0,0,(AP9*((LOG(AP9))/LOG(2)))) -> -0.375 | AS9: =N9 -> 1121 | AT9: =COUNTIF(L47:L54,AS9) -> 0 | AU9: =AT9/(AV4-AT20) -> 0 | AV9: =IF(AU9=0,0,(AU9*((LOG(AU9))/LOG(2)))) -> 0
A10: 12 | B10: 560 | C10: 14 | D10: 565 | E10: 24 | F10: 577 | G10: 14 | H10: 591 | K10: 0 | L10: 1121 | N10: 1122 | O10: =COUNTIF($L$7:$L$500,N10) -> 0 | P10: =O10/$Q$4 -> 0 | Q10: =IF(P10=0,0,(P10*((LOG(P10))/LOG(2)))) -> 0 | T10: =N10 -> 1122 | U10: =COUNTIF(L7:L14,T10) -> 0 | V10: =U10/(W4-U20) -> 0 | W10: =IF(V10=0,0,(V10*((LOG(V10))/LOG(2)))) -> 0 | Y10: =N10 -> 1122 | Z10: =COUNTIF(L15:L22,Y10) -> 0 | AA10: =Z10/(AB4-Z20) -> 0 | AB10: =IF(AA10=0,0,(AA10*((LOG(AA10))/LOG(2)))) -> 0 | AD10: =N10 -> 1122 | AE10: =COUNTIF(L23:L30,AD10) -> 0 | AF10: =AE10/(AG4-AE20) -> 0 | AG10: =IF(AF10=0,0,(AF10*((LOG(AF10))/LOG(2)))) -> 0 | AI10: =N10 -> 1122 | AJ10: =COUNTIF(L31:L38,AI10) -> 0 | AK10: =AJ10/(AL4-AJ20) -> 0 | AL10: =IF(AK10=0,0,(AK10*((LOG(AK10))/LOG(2)))) -> 0 | AN10: =N10 -> 1122 | AO10: =COUNTIF(L39:L46,AN10) -> 0 | AP10: =AO10/(AQ4-AO20) -> 0 | AQ10: =IF(AP10=0,0,(AP10*((LOG(AP10))/LOG(2)))) -> 0 | AS10: =N10 -> 1122 | AT10: =COUNTIF(L47:L54,AS10) -> 0 | AU10: =AT10/(AV4-AT20) -> 0 | AV10: =IF(AU10=0,0,(AU10*((LOG(AU10))/LOG(2)))) -> 0
A11: 21 | B11: 717 | C11: 12 | D11: 735 | E11: 13 | F11: 745 | G11: 14 | H11: 751 | K11: 0 | L11: 2111 | N11: 1211 | O11: =COUNTIF($L$7:$L$500,N11) -> 4 | P11: =O11/$Q$4 -> 0.08333333333 | Q11: =IF(P11=0,0,(P11*((LOG(P11))/LOG(2)))) -> -0.2987468751 | T11: =N11 -> 1211 | U11: =COUNTIF(L7:L14,T11) -> 1 | V11: =U11/(W4-U20) -> 0.125 | W11: =IF(V11=0,0,(V11*((LOG(V11))/LOG(2)))) -> -0.375 | Y11: =N11 -> 1211 | Z11: =COUNTIF(L15:L22,Y11) -> 1 | AA11: =Z11/(AB4-Z20) -> 0.125 | AB11: =IF(AA11=0,0,(AA11*((LOG(AA11))/LOG(2)))) -> -0.375 | AD11: =N11 -> 1211 | AE11: =COUNTIF(L23:L30,AD11) -> 1 | AF11: =AE11/(AG4-AE20) -> 0.125 | AG11: =IF(AF11=0,0,(AF11*((LOG(AF11))/LOG(2)))) -> -0.375 | AI11: =N11 -> 1211 | AJ11: =COUNTIF(L31:L38,AI11) -> 0 | AK11: =AJ11/(AL4-AJ20) -> 0 | AL11: =IF(AK11=0,0,(AK11*((LOG(AK11))/LOG(2)))) -> 0 | AN11: =N11 -> 1211 | AO11: =COUNTIF(L39:L46,AN11) -> 0 | AP11: =AO11/(AQ4-AO20) -> 0 | AQ11: =IF(AP11=0,0,(AP11*((LOG(AP11))/LOG(2)))) -> 0 | AS11: =N11 -> 1211 | AT11: =COUNTIF(L47:L54,AS11) -> 1 | AU11: =AT11/(AV4-AT20) -> 0.125 | AV11: =IF(AU11=0,0,(AU11*((LOG(AU11))/LOG(2)))) -> -0.375
A12: 12 | B12: 861 | C12: 23 | D12: 876 | E12: 24 | F12: 883 | G12: 23 | H12: 892 | K12: 0 | L12: 1222 | N12: 1212 | O12: =COUNTIF($L$7:$L$500,N12) -> 1 | P12: =O12/$Q$4 -> 0.02083333333 | Q12: =IF(P12=0,0,(P12*((LOG(P12))/LOG(2)))) -> -0.1163533854 | T12: =N12 -> 1212 | U12: =COUNTIF(L7:L14,T12) -> 0 | V12: =U12/(W4-U20) -> 0 | W12: =IF(V12=0,0,(V12*((LOG(V12))/LOG(2)))) -> 0 | Y12: =N12 -> 1212 | Z12: =COUNTIF(L15:L22,Y12) -> 1 | AA12: =Z12/(AB4-Z20) -> 0.125 | AB12: =IF(AA12=0,0,(AA12*((LOG(AA12))/LOG(2)))) -> -0.375 | AD12: =N12 -> 1212 | AE12: =COUNTIF(L23:L30,AD12) -> 0 | AF12: =AE12/(AG4-AE20) -> 0 | AG12: =IF(AF12=0,0,(AF12*((LOG(AF12))/LOG(2)))) -> 0 | AI12: =N12 -> 1212 | AJ12: =COUNTIF(L31:L38,AI12) -> 0 | AK12: =AJ12/(AL4-AJ20) -> 0 | AL12: =IF(AK12=0,0,(AK12*((LOG(AK12))/LOG(2)))) -> 0 | AN12: =N12 -> 1212 | AO12: =COUNTIF(L39:L46,AN12) -> 0 | AP12: =AO12/(AQ4-AO20) -> 0 | AQ12: =IF(AP12=0,0,(AP12*((LOG(AP12))/LOG(2)))) -> 0 | AS12: =N12 -> 1212 | AT12: =COUNTIF(L47:L54,AS12) -> 0 | AU12: =AT12/(AV4-AT20) -> 0 | AV12: =IF(AU12=0,0,(AU12*((LOG(AU12))/LOG(2)))) -> 0
